Workbook

Sheet Sample Report (hidden)
A2: Date
A3: Hen
A4: Program
A5: Start at 999999
A6: Sequence component 1 | B6: Time 1 | C6: Seqeunce Component 2 | D6: Time 2 | E6: Seqeunce Component 3 | F6: Time 3 | G6: Correct 0 = No 1=Yes | J6: Seqeunce | K6: Time
A7: 12 | B7: 7 | C7: 12 | D7: 42 | E7: 13 | F7: 18 | G7: if 77 new line, if 31 or 41 = yes new line on 77, | J7: =string of Seqeunce compponent 1, 2 & 3 | K7: =time 3
A8: This continues until ther is a 1 on its own to indicate start of summary data
J9: 10-19 =1
A10: Summary Data | J10: 20-29 =2
A11: Correct | B11: Incorrect | C11: Rft | D11: total | E11: Av Correct | F11: Av Incorrect | G11: Percent correct | H11: Time | J11: in this example the seqeunce would be 111
A12: 40 | B12: 33 | C12: 40 | D12: 73 | E12: 23.95 | F12: 15 | G12: 54 | H12: 806

Sheet Summary
A2: Day | B2: Date | C2: Average Response Rate | D2: Target % | E2: RF for non correct sequence | F2: U Value | K2: Block 1 | L2: Block 2 | M2: Block 3 | N2: Block 4 | O2: Block 5 | P2: Block 6
A3: 1 | B3: ='!M823B10.Gus'!B2:C2 -> <date> | C3: =('!M823B10.Gus'!F185/60)/'!M823B10.Gus'!Q3 -> 2.213333333 | D3: ='!M823B10.Gus'!N20/'!M823B10.Gus'!Q3 -> 0.1388888889 | E3: =SUM('!M823B10.Gus'!L20:Q20)/'!M823B10.Gus'!Q3 -> 1.705555556 | F3: ='!M823B10.Gus'!Q16 -> 0.3154588866 | J3: Average Response Rate | K3: =AVERAGE(C3:C7) -> 2.461642635 | L3: =AVERAGE(C8:C12) -> 2.371928642 | M3: =AVERAGE(C13:C17) -> 2.545002731 | N3: =AVERAGE(C18:C22) -> 2.278113212 | O3: =AVERAGE(C23:C27) -> 2.281575743 | P3: =AVERAGE(C28:C32) -> 2.384885827
A4: 2 | B4: ='!M824B00.Gus'!B2:C2 -> <date> | C4: =('!M824B00.Gus'!F186/60)/'!M824B00.Gus'!Q3 -> 2.214444444 | D4: ='!M824B00.Gus'!N20/'!M824B00.Gus'!Q3 -> 0.1555555556 | E4: =SUM('!M824B00.Gus'!L20:Q20)/'!M824B00.Gus'!Q3 -> 1.166666667 | F4: ='!M824B00.Gus'!Q16 -> 0.3071230975 | J4: Target % | K4: =AVERAGE(D3:D7) -> 0.3097983831 | L4: =AVERAGE(D8:D12) -> 0.7111120999 | M4: =AVERAGE(D13:D17) -> 0.7005689668 | N4: =AVERAGE(D18:D22) -> 0.8018372804 | O4: =AVERAGE(D23:D27) -> 0.8705383887 | P4: =AVERAGE(D28:D32) -> 0.9006790199
A5: 3 | B5: ='!M825A20.Gus'!B2:C2 -> <date> | C5: =('!M825A20.Gus'!F174/60)/'!M825A20.Gus'!Q3 -> 2.370337302 | D5: ='!M825A20.Gus'!N20/'!M825A20.Gus'!Q3 -> 0.1964285714 | E5: =SUM('!M825A20.Gus'!L20:Q20)/'!M825A20.Gus'!Q3 -> 1.196428571 | F5: ='!M825A20.Gus'!Q16 -> 0.3176878566 | J5: CCRF | K5: =AVERAGE(E3:E7) -> 2.240260771 | L5: =AVERAGE(E8:E12) -> 4.319304457 | M5: =AVERAGE(E13:E17) -> 4.999293179 | N5: =AVERAGE(E18:E22) -> 5.683962312 | O5: =AVERAGE(E23:E27) -> 6.157848126 | P5: =AVERAGE(E28:E32) -> 6.278987481
A6: 4 | B6: ='!M826B30.Gus'!B2:C2 -> <date> | C6: =('!M826B30.Gus'!F55/60)/'!M826B30.Gus'!Q3 -> 3.204421769 | D6: ='!M826B30.Gus'!N20/'!M826B30.Gus'!Q3 -> 0.7755102041 | E6: =SUM('!M826B30.Gus'!L20:Q20)/'!M826B30.Gus'!Q3 -> 5.632653061 | F6: ='!M826B30.Gus'!Q16 -> 0.2042367042 | J6: U Value | K6: =AVERAGE(F3:F7) -> 0.2905152089 | L6: =AVERAGE(F8:F12) -> 0.1862896024 | M6: =AVERAGE(F13:F17) -> 0.2319403593 | N6: =AVERAGE(F18:F22) -> 0.1600067128 | O6: =AVERAGE(F23:F27) -> 0.1229736781 | P6: =AVERAGE(F28:F32) -> 0.08377742902
A7: 5 | B7: ='!M827B40.Gus'!B2:C2 -> <date> | C7: =('!M827B40.Gus'!F144/60)/'!M827B40.Gus'!Q3 -> 2.305676329 | D7: ='!M827B40.Gus'!N20/'!M827B40.Gus'!Q3 -> 0.2826086957 | E7: =SUM('!M827B40.Gus'!L20:Q20)/'!M827B40.Gus'!Q3 -> 1.5 | F7: ='!M827B40.Gus'!Q16 -> 0.3080694998
A8: 6 | B8: ='!M828A40.Gus'!B2:C2 -> <date> | C8: =('!M828A40.Gus'!F90/60)/'!M828A40.Gus'!Q3 -> 2.377777778 | D8: ='!M828A40.Gus'!N20/'!M828A40.Gus'!Q3 -> 0.4642857143 | E8: =SUM('!M828A40.Gus'!L20:Q20)/'!M828A40.Gus'!Q3 -> 3.44047619 | F8: ='!M828A40.Gus'!Q16 -> 0.2985620595
A9: 7 | B9: ='!M829A50.Gus'!B2:C2 -> <date> | C9: =('!M829A50.Gus'!F52/60)/'!M829A50.Gus'!Q3 -> 2.604347826 | D9: ='!M829A50.Gus'!N20/'!M829A50.Gus'!Q3 -> 0.8695652174 | E9: =SUM('!M829A50.Gus'!L20:Q20)/'!M829A50.Gus'!Q3 -> 3.847826087 | F9: ='!M829A50.Gus'!Q16 -> 0.1011357124 | G9: =K3 -> 2.461642635 | H9: =L3 -> 2.371928642 | I9: 2.545002731 | J9: 2.278113212 | K9: 2.281575743 | L9: 2.384885827 | M9: =K4 -> 0.3097983831 | N9: =L4 -> 0.7111120999 | O9: 0.7005689668 | P9: 0.8018372804 | Q9: 0.8705383887 | R9: 0.9006790199 | S9: =K6 -> 0.2905152089 | T9: =L6 -> 0.1862896024 | U9: 0.2319403593 | V9: 0.1600067128 | W9: 0.1229736781 | X9: 0.08377742902
A10: 8 | B10: ='!M830B10.Gus'!B2:C2 -> <date> | C10: =('!M830B10.Gus'!F77/60)/'!M830B10.Gus'!Q3 -> 2.377934272 | D10: ='!M830B10.Gus'!N20/'!M830B10.Gus'!Q3 -> 0.5492957746 | E10: =SUM('!M830B10.Gus'!L20:Q20)/'!M830B10.Gus'!Q3 -> 2.605633803 | F10: ='!M830B10.Gus'!Q16 -> 0.2760975134
A11: 9 | B11: ='!M831B10.Gus'!B2:C2 -> <date> | C11: =('!M831B10.Gus'!F64/60)/'!M831B10.Gus'!Q3 -> 2.091666667 | D11: ='!M831B10.Gus'!N20/'!M831B10.Gus'!Q3 -> 0.6724137931 | E11: =SUM('!M831B10.Gus'!L20:Q20)/'!M831B10.Gus'!Q3 -> 4.827586207 | F11: ='!M831B10.Gus'!Q16 -> 0.2556527267
A12: 10 | B12: ='!M901A00.Gus'!B2:C2 -> <date> | C12: =('!M901A00.Gus'!F46/60)/'!M901A00.Gus'!Q3 -> 2.407916667 | D12: ='!M901A00.Gus'!N20/'!M901A00.Gus'!Q3 -> 1 | E12: =SUM('!M901A00.Gus'!L20:Q20)/'!M901A00.Gus'!Q3 -> 6.875 | F12: ='!M901A00.Gus'!Q16 -> 0
A13: 11 | B13: ='!M902A10.Gus'!B2:C2 -> <date> | C13: =('!M902A10.Gus'!F61/60)/'!M902A10.Gus'!Q3 -> 2.106969697 | D13: ='!M902A10.Gus'!N20/'!M902A10.Gus'!Q3 -> 0.7090909091 | E13: =SUM('!M902A10.Gus'!L20:Q20)/'!M902A10.Gus'!Q3 -> 5.072727273 | F13: ='!M902A10.Gus'!Q16 -> 0.2463538827
A14: 12 | B14: ='!M903C30.Gus'!B2:C2 -> <date> | C14: =('!M903C30.Gus'!F67/60)/'!M903C30.Gus'!Q3 -> 3.051639344 | D14: ='!M903C30.Gus'!N20/'!M903C30.Gus'!Q3 -> 0.6393442623 | E14: =SUM('!M903C30.Gus'!L20:Q20)/'!M903C30.Gus'!Q3 -> 4.606557377 | F14: ='!M903C30.Gus'!Q16 -> 0.2608562453
A15: 13 | B15: ='!M904A40.Gus'!B2:C2 -> <date> | C15: =('!M904A40.Gus'!F59/60)/'!M904A40.Gus'!Q3 -> 3.135849057 | D15: ='!M904A40.Gus'!N20/'!M904A40.Gus'!Q3 -> 0.7358490566 | E15: =SUM('!M904A40.Gus'!L20:Q20)/'!M904A40.Gus'!Q3 -> 5.264150943 | F15: ='!M904A40.Gus'!Q16 -> 0.2160051427
A16: 14 | B16: ='!M905A40.Gus'!B2:C2 -> <date> | C16: =('!M905A40.Gus'!F72/60)/'!M905A40.Gus'!Q3 -> 2.066666667 | D16: ='!M905A40.Gus'!N20/'!M905A40.Gus'!Q3 -> 0.6060606061 | E16: =SUM('!M905A40.Gus'!L20:Q20)/'!M905A40.Gus'!Q3 -> 4.303030303 | F16: ='!M905A40.Gus'!Q16 -> 0.2586173408
A17: 15 | B17: ='!M906B10.Gus'!B2:C2 -> <date> | C17: =('!M906B10.Gus'!F54/60)/'!M906B10.Gus'!Q3 -> 2.363888889 | D17: ='!M906B10.Gus'!N20/'!M906B10.Gus'!Q3 -> 0.8125 | E17: =SUM('!M906B10.Gus'!L20:Q20)/'!M906B10.Gus'!Q3 -> 5.75 | F17: ='!M906B10.Gus'!Q16 -> 0.1778691851
A18: 16 | B18: ='!M907A50.Gus'!B2:C2 -> <date> | C18: =('!M907A50.Gus'!F61/60)/'!M907A50.Gus'!Q3 -> 2.44 | D18: ='!M907A50.Gus'!N20/'!M907A50.Gus'!Q3 -> 0.6909090909 | E18: =SUM('!M907A50.Gus'!L20:Q20)/'!M907A50.Gus'!Q3 -> 5.054545455 | F18: ='!M907A50.Gus'!Q16 -> 0.2473070057
A19: 17 | B19: ='!M908A50.Gus'!B2:C2 -> <date> | C19: =('!M908A50.Gus'!F66/60)/'!M908A50.Gus'!Q3 -> 2.400277778 | D19: ='!M908A50.Gus'!N20/'!M908A50.Gus'!Q3 -> 0.65 | E19: =SUM('!M908A50.Gus'!L20:Q20)/'!M908A50.Gus'!Q3 -> 4.516666667 | F19: ='!M908A50.Gus'!Q16 -> 0.2481397258
A20: 18 | B20: ='!M909A50.Gus'!B2:C2 -> <date> | C20: =('!M909A50.Gus'!F46/60)/'!M909A50.Gus'!Q3 -> 2.287916667 | D20: ='!M909A50.Gus'!N20/'!M909A50.Gus'!Q3 -> 0.975 | E20: =SUM('!M909A50.Gus'!L20:Q20)/'!M909A50.Gus'!Q3 -> 6.85 | F20: ='!M909A50.Gus'!Q16 -> 0.03169169679
A21: 19 | B21: ='!M910B50.Gus'!B2:C2 -> <date> | C21: =('!M910B50.Gus'!F48/60)/'!M910B50.Gus'!Q3 -> 2.079365079 | D21: ='!M910B50.Gus'!N20/'!M910B50.Gus'!Q3 -> 0.9285714286 | E21: =SUM('!M910B50.Gus'!L20:Q20)/'!M910B50.Gus'!Q3 -> 6.547619048 | F21: ='!M910B50.Gus'!Q16 -> 0.08100874855
A22: 20 | B22: ='!M911A30.Gus'!B2:C2 -> <date> | C22: =('!M911A30.Gus'!F57/60)/'!M911A30.Gus'!Q3 -> 2.183006536 | D22: ='!M911A30.Gus'!N20/'!M911A30.Gus'!Q3 -> 0.7647058824 | E22: =SUM('!M911A30.Gus'!L20:Q20)/'!M911A30.Gus'!Q3 -> 5.450980392 | F22: ='!M911A30.Gus'!Q16 -> 0.1918863871
A23: 21 | B23: ='!M912A40.Gus'!B2:C2 -> <date> | C23: =('!M912A40.Gus'!F54/60)/'!M912A40.Gus'!Q3 -> 2.3875 | D23: ='!M912A40.Gus'!N20/'!M912A40.Gus'!Q3 -> 0.8125 | E23: =SUM('!M912A40.Gus'!L20:Q20)/'!M912A40.Gus'!Q3 -> 5.770833333 | F23: ='!M912A40.Gus'!Q16 -> 0.1863169534
A24: 22 | B24: ='!M913A00.Gus'!B2:C2 -> <date> | C24: =('!M913A00.Gus'!F63/60)/'!M913A00.Gus'!Q3 -> 2.143859649 | D24: ='!M913A00.Gus'!N20/'!M913A00.Gus'!Q3 -> 0.6842105263 | E24: =SUM('!M913A00.Gus'!L20:Q20)/'!M913A00.Gus'!Q3 -> 4.912280702 | F24: ='!M913A00.Gus'!Q16 -> 0.2474960658
A25: 23 | B25: ='!M914B30.Gus'!B2:C2 -> <date> | C25: =('!M914B30.Gus'!F47/60)/'!M914B30.Gus'!Q3 -> 2.19796748 | D25: ='!M914B30.Gus'!N20/'!M914B30.Gus'!Q3 -> 0.9512195122 | E25: =SUM('!M914B30.Gus'!L20:Q20)/'!M914B30.Gus'!Q3 -> 6.707317073 | F25: ='!M914B30.Gus'!Q16 -> 0.0615904958
A26: 24 | B26: ='!M915B20.Gus'!B2:C2 -> <date> | C26: =('!M915B20.Gus'!F48/60)/'!M915B20.Gus'!Q3 -> 2.562301587 | D26: ='!M915B20.Gus'!N20/'!M915B20.Gus'!Q3 -> 0.9047619048 | E26: =SUM('!M915B20.Gus'!L20:Q20)/'!M915B20.Gus'!Q3 -> 6.523809524 | F26: ='!M915B20.Gus'!Q16 -> 0.1194648755
A27: 25 | B27: ='!M916A40.Gus'!B2:C2 -> <date> | C27: =('!M916A40.Gus'!F46/60)/'!M916A40.Gus'!Q3 -> 2.11625 | D27: ='!M916A40.Gus'!N20/'!M916A40.Gus'!Q3 -> 1 | E27: =SUM('!M916A40.Gus'!L20:Q20)/'!M916A40.Gus'!Q3 -> 6.875 | F27: ='!M916A40.Gus'!Q16 -> 0
A28: 26 | B28: ='!M917A40.Gus'!B2:C2 -> <date> | C28: =('!M917A40.Gus'!F55/60)/'!M917A40.Gus'!Q3 -> 2.594897959 | D28: ='!M917A40.Gus'!N20/'!M917A40.Gus'!Q3 -> 0.8163265306 | E28: =SUM('!M917A40.Gus'!L20:Q20)/'!M917A40.Gus'!Q3 -> 5.673469388 | F28: ='!M917A40.Gus'!Q16 -> 0.1549647312
A29: 27 | B29: ='!M918A20.Gus'!B2:C2 -> <date> | C29: =('!M918A20.Gus'!F47/60)/'!M918A20.Gus'!Q3 -> 2.453658537 | D29: ='!M918A20.Gus'!N20/'!M918A20.Gus'!Q3 -> 0.9512195122 | E29: =SUM('!M918A20.Gus'!L20:Q20)/'!M918A20.Gus'!Q3 -> 6.707317073 | F29: ='!M918A20.Gus'!Q16 -> 0.05248550013
A30: 28 | B30: ='!M919A30.Gus'!B2:C2 -> <date> | C30: =('!M919A30.Gus'!F46/60)/'!M919A30.Gus'!Q3 -> 2.592916667 | D30: ='!M919A30.Gus'!N20/'!M919A30.Gus'!Q3 -> 1 | E30: =SUM('!M919A30.Gus'!L20:Q20)/'!M919A30.Gus'!Q3 -> 6.875 | F30: ='!M919A30.Gus'!Q16 -> 0
A31: 29 | B31: ='!M920950.Gus'!B2:C2 -> <date> | C31: =('!M920950.Gus'!F46/60)/'!M920950.Gus'!Q3 -> 2.176666667 | D31: ='!M920950.Gus'!N20/'!M920950.Gus'!Q3 -> 1 | E31: =SUM('!M920950.Gus'!L20:Q20)/'!M920950.Gus'!Q3 -> 6.875 | F31: ='!M920950.Gus'!Q16 -> 0
A32: 30 | B32: ='!M921900.Gus'!B2:C2 -> <date> | C32: =('!M921900.Gus'!F59/60)/'!M921900.Gus'!Q3 -> 2.106289308 | D32: ='!M921900.Gus'!N20/'!M921900.Gus'!Q3 -> 0.7358490566 | E32: =SUM('!M921900.Gus'!L20:Q20)/'!M921900.Gus'!Q3 -> 5.264150943 | F32: ='!M921900.Gus'!Q16 -> 0.2114369138

Sheet Start
F1: Use Folder 51 | H1: Auto Clean Up | J1: Correct sequence
F2: FALSE | H2: TRUE | J2: 222
A4: Working with Folder | G4: Process All/Or Pick A number: ALL or an integer
A5: F:\Possum Chapter\Raw Data\Gus\new phase RRR\ | G5: ALL
A6: Filenames:
A7: !M921900.Gus | G7: Paint Cells
A8: !M823B10.Gus | G8: FALSE
A9: !M824B00.Gus
A10: !M825A20.Gus
A11: !M826B30.Gus
A12: !M827B40.Gus
A13: !M828A40.Gus
A14: !M829A50.Gus
A15: !M830B10.Gus
A16: !M831B10.Gus
A17: !M901A00.Gus
A18: !M902A10.Gus
A19: !M903C30.Gus
A20: !M904A40.Gus
A21: !M905A40.Gus
A22: !M906B10.Gus
A23: !M907A50.Gus
A24: !M908A50.Gus
A25: !M909A50.Gus
A26: !M910B50.Gus
A27: !M911A30.Gus
A28: !M912A40.Gus
A29: !M913A00.Gus
A30: !M914B30.Gus
A31: !M915B20.Gus
A32: !M916A40.Gus
A33: !M917A40.Gus
A34: !M918A20.Gus
A35: !M919A30.Gus
A36: !M920950.Gus

Sheet !M823B10.Gus
A1: Report for:!M823B10.Gus
A2: Date: | B2: <date>
A3: Hen: | B3: <hen> | F3: Correct Sequence | G3: =Start!J2 -> 222 | P3: Total Sequences in Data | Q3: =4994-COUNTBLANK(L7:L5000) -> 180 | V3: Total Sequences in Block Data | W3: =COUNTA(L7:L36) -> 30 | AA3: Total Sequences in Block Data | AB3: =COUNTA(L37:L66) -> 30 | AF3: Total Sequences in Block Data | AG3: =COUNTA(L67:L96) -> 30 | AK3: Total Sequences in Block Data | AL3: =COUNTA(L97:L126) -> 30 | AP3: Total Sequences in Block Data | AQ3: =COUNTA(L127:L156) -> 30 | AU3: Total Sequences in Block Data | AV3: =COUNTA(L157:L186) -> 30
P4: Total Sequences in Summary | Q4: =SUM(O7:O14) -> 179 | V4: Total Sequences in Block Summary | W4: =SUM(U7:U14) -> 30 | AA4: Total Sequences in Block Summary | AB4: =SUM(Z7:Z14) -> 30 | AF4: Total Sequences in Block Summary | AG4: =SUM(AE7:AE14) -> 30 | AK4: Total Sequences in Block Summary | AL4: =SUM(AJ7:AJ14) -> 30 | AP4: Total Sequences in Block Summary | AQ4: =SUM(AO7:AO14) -> 30 | AU4: Total Sequences in Block Summary | AV4: =SUM(AT7:AT14) -> 29
T5: Block 1 | Y5: Block 2 | AD5: Block 3 | AI5: Block 4 | AN5: Block 5 | AS5: Block 6
A6: Sequence Component 1 | B6: Time 1 | C6: Sequence Component 2 | D6: Time 2 | E6: Sequence Component 3 | F6: Time 3 | G6: Sequence Component 4 | H6: Time 4 | I6: Sequence Component 5 | J6: Time 5 | K6: Correct? 0=No 1=Yes | L6: Sequence | N6: Frequency | P6: Relative Frequency | Q6: Variability | T6: Frequency | V6: Relative Frequency | W6: Variability | Y6: Frequency | AA6: Relative Frequency | AB6: Variability | AD6: Frequency | AF6: Relative Frequency | AG6: Variability | AI6: Frequency | AK6: Relative Frequency | AL6: Variability | AN6: Frequency | AP6: Relative Frequency | AQ6: Variability | AS6: Frequency | AU6: Relative Frequency | AV6: Variability
A7: 12 | B7: 7 | C7: 23 | D7: 18 | E7: 23 | F7: 37 | K7: 0 | L7: 122 | N7: 111 | O7: =COUNTIF($L$7:$L$500,N7) -> 0 | P7: =O7/$Q$4 -> 0 | Q7: =IF(P7=0,0,(P7*((LOG(P7))/LOG(2)))) -> 0 | T7: =N7 -> 111 | U7: =COUNTIF(L7:L36,T7) -> 0 | V7: =U7/(W4-U14) -> 0 | W7: =IF(V7=0,0,(V7*((LOG(V7))/LOG(2)))) -> 0 | Y7: =N7 -> 111 | Z7: =COUNTIF(L37:L66,Y7) -> 0 | AA7: =Z7/(AB4-Z14) -> 0 | AB7: =IF(AA7=0,0,(AA7*((LOG(AA7))/LOG(2)))) -> 0 | AD7: =N7 -> 111 | AE7: =COUNTIF(L67:L96,AD7) -> 0 | AF7: =AE7/(AG4-AE14) -> 0 | AG7: =IF(AF7=0,0,(AF7*((LOG(AF7))/LOG(2)))) -> 0 | AI7: =N7 -> 111 | AJ7: =COUNTIF(L97:L126,AI7) -> 0 | AK7: =AJ7/(AL4-AJ14) -> 0 | AL7: =IF(AK7=0,0,(AK7*((LOG(AK7))/LOG(2)))) -> 0 | AN7: =N7 -> 111 | AO7: =COUNTIF(L127:L156,AN7) -> 0 | AP7: =AO7/(AQ4-AO14) -> 0 | AQ7: =IF(AP7=0,0,(AP7*((LOG(AP7))/LOG(2)))) -> 0 | AS7: =N7 -> 111 | AT7: =COUNTIF(L157:L186,AS7) -> 0 | AU7: =AT7/(AV4-AT14) -> 0 | AV7: =IF(AU7=0,0,(AU7*((LOG(AU7))/LOG(2)))) -> 0
A8: 21 | B8: 138 | C8: 21 | D8: 142 | E8: 21 | F8: 148 | K8: 0 | L8: 222 | N8: 112 | O8: =COUNTIF($L$7:$L$500,N8) -> 3 | P8: =O8/$Q$4 -> 0.01675977654 | Q8: =IF(P8=0,0,(P8*((LOG(P8))/LOG(2)))) -> -0.09886346274 | T8: =N8 -> 112 | U8: =COUNTIF(L7:L36,T8) -> 1 | V8: =U8/(W4-U14) -> 0.04166666667 | W8: =IF(V8=0,0,(V8*((LOG(V8))/LOG(2)))) -> -0.1910401042 | Y8: =N8 -> 112 | Z8: =COUNTIF(L37:L66,Y8) -> 1 | AA8: =Z8/(AB4-Z14) -> 0.04166666667 | AB8: =IF(AA8=0,0,(AA8*((LOG(AA8))/LOG(2)))) -> -0.1910401042 | AD8: =N8 -> 112 | AE8: =COUNTIF(L67:L96,AD8) -> 0 | AF8: =AE8/(AG4-AE14) -> 0 | AG8: =IF(AF8=0,0,(AF8*((LOG(AF8))/LOG(2)))) -> 0 | AI8: =N8 -> 112 | AJ8: =COUNTIF(L97:L126,AI8) -> 1 | AK8: =AJ8/(AL4-AJ14) -> 0.03571428571 | AL8: =IF(AK8=0,0,(AK8*((LOG(AK8))/LOG(2)))) -> -0.1716912472 | AN8: =N8 -> 112 | AO8: =COUNTIF(L127:L156,AN8) -> 0 | AP8: =AO8/(AQ4-AO14) -> 0 | AQ8: =IF(AP8=0,0,(AP8*((LOG(AP8))/LOG(2)))) -> 0 | AS8: =N8 -> 112 | AT8: =COUNTIF(L157:L186,AS8) -> 0 | AU8: =AT8/(AV4-AT14) -> 0 | AV8: =IF(AU8=0,0,(AU8*((LOG(AU8))/LOG(2)))) -> 0
A9: 12 | B9: 237 | C9: 23 | D9: 247 | E9: 23 | F9: 252 | K9: 0 | L9: 122 | N9: 121 | O9: =COUNTIF($L$7:$L$500,N9) -> 33 | P9: =O9/$Q$4 -> 0.1843575419 | Q9: =IF(P9=0,0,(P9*((LOG(P9))/LOG(2)))) -> -0.4497257805 | T9: =N9 -> 121 | U9: =COUNTIF(L7:L36,T9) -> 5 | V9: =U9/(W4-U14) -> 0.2083333333 | W9: =IF(V9=0,0,(V9*((LOG(V9))/LOG(2)))) -> -0.4714655012 | Y9: =N9 -> 121 | Z9: =COUNTIF(L37:L66,Y9) -> 1 | AA9: =Z9/(AB4-Z14) -> 0.04166666667 | AB9: =IF(AA9=0,0,(AA9*((LOG(AA9))/LOG(2)))) -> -0.1910401042 | AD9: =N9 -> 121 | AE9: =COUNTIF(L67:L96,AD9) -> 9 | AF9: =AE9/(AG4-AE14) -> 0.3214285714 | AG9: =IF(AF9=0,0,(AF9*((LOG(AF9))/LOG(2)))) -> -0.5263167602 | AI9: =N9 -> 121 | AJ9: =COUNTIF(L97:L126,AI9) -> 6 | AK9: =AJ9/(AL4-AJ14) -> 0.2142857143 | AL9: =IF(AK9=0,0,(AK9*((LOG(AK9))/LOG(2)))) -> -0.4762269474 | AN9: =N9 -> 121 | AO9: =COUNTIF(L127:L156,AN9) -> 8 | AP9: =AO9/(AQ4-AO14) -> 0.32 | AQ9: =IF(AP9=0,0,(AP9*((LOG(AP9))/LOG(2)))) -> -0.5260339807 | AS9: =N9 -> 121 | AT9: =COUNTIF(L157:L186,AS9) -> 4 | AU9: =AT9/(AV4-AT14) -> 0.16 | AV9: =IF(AU9=0,0,(AU9*((LOG(AU9))/LOG(2)))) -> -0.4230169904
A10: 21 | B10: 350 | C10: 21 | D10: 353 | E10: 12 | F10: 354 | K10: 0 | L10: 221 | N10: 122 | O10: =COUNTIF($L$7:$L$500,N10) -> 47 | P10: =O10/$Q$4 -> 0.2625698324 | Q10: =IF(P10=0,0,(P10*((LOG(P10))/LOG(2)))) -> -0.5065567905 | T10: =N10 -> 122 | U10: =COUNTIF(L7:L36,T10) -> 12 | V10: =U10/(W4-U14) -> 0.5 | W10: =IF(V10=0,0,(V10*((LOG(V10))/LOG(2)))) -> -0.5 | Y10: =N10 -> 122 | Z10: =COUNTIF(L37:L66,Y10) -> 9 | AA10: =Z10/(AB4-Z14) -> 0.375 | AB10: =IF(AA10=0,0,(AA10*((LOG(AA10))/LOG(2)))) -> -0.5306390622 | AD10: =N10 -> 122 | AE10: =COUNTIF(L67:L96,AD10) -> 10 | AF10: =AE10/(AG4-AE14) -> 0.3571428571 | AG10: =IF(AF10=0,0,(AF10*((LOG(AF10))/LOG(2)))) -> -0.5305095811 | AI10: =N10 -> 122 | AJ10: =COUNTIF(L97:L126,AI10) -> 7 | AK10: =AJ10/(AL4-AJ14) -> 0.25 | AL10: =IF(AK10=0,0,(AK10*((LOG(AK10))/LOG(2)))) -> -0.5 | AN10: =N10 -> 122 | AO10: =COUNTIF(L127:L156,AN10) -> 5 | AP10: =AO10/(AQ4-AO14) -> 0.2 | AQ10: =IF(AP10=0,0,(AP10*((LOG(AP10))/LOG(2)))) -> -0.464385619 | AS10: =N10 -> 122 | AT10: =COUNTIF(L157:L186,AS10) -> 4 | AU10: =AT10/(AV4-AT14) -> 0.16 | AV10: =IF(AU10=0,0,(AU10*((LOG(AU10))/LOG(2)))) -> -0.4230169904
A11: 12 | B11: 449 | C11: 23 | D11: 457 | E11: 14 | F11: 461 | K11: 0 | L11: 121 | N11: 211 | O11: =COUNTIF($L$7:$L$500,N11) -> 1 | P11: =O11/$Q$4 -> 0.005586592179 | Q11: =IF(P11=0,0,(P11*((LOG(P11))/LOG(2)))) -> -0.04180902669 | T11: =N11 -> 211 | U11: =COUNTIF(L7:L36,T11) -> 0 | V11: =U11/(W4-U14) -> 0 | W11: =IF(V11=0,0,(V11*((LOG(V11))/LOG(2)))) -> 0 | Y11: =N11 -> 211 | Z11: =COUNTIF(L37:L66,Y11) -> 0 | AA11: =Z11/(AB4-Z14) -> 0 | AB11: =IF(AA11=0,0,(AA11*((LOG(AA11))/LOG(2)))) -> 0 | AD11: =N11 -> 211 | AE11: =COUNTIF(L67:L96,AD11) -> 1 | AF11: =AE11/(AG4-AE14) -> 0.03571428571 | AG11: =IF(AF11=0,0,(AF11*((LOG(AF11))/LOG(2)))) -> -0.1716912472 | AI11: =N11 -> 211 | AJ11: =COUNTIF(L97:L126,AI11) -> 0 | AK11: =AJ11/(AL4-AJ14) -> 0 | AL11: =IF(AK11=0,0,(AK11*((LOG(AK11))/LOG(2)))) -> 0 | AN11: =N11 -> 211 | AO11: =COUNTIF(L127:L156,AN11) -> 0 | AP11: =AO11/(AQ4-AO14) -> 0 | AQ11: =IF(AP11=0,0,(AP11*((LOG(AP11))/LOG(2)))) -> 0 | AS11: =N11 -> 211 | AT11: =COUNTIF(L157:L186,AS11) -> 0 | AU11: =AT11/(AV4-AT14) -> 0 | AV11: =IF(AU11=0,0,(AU11*((LOG(AU11))/LOG(2)))) -> 0
A12: 12 | B12: 563 | C12: 23 | D12: 573 | E12: 23 | F12: 584 | K12: 0 | L12: 122 | N12: 212 | O12: =COUNTIF($L$7:$L$500,N12) -> 50 | P12: =O12/$Q$4 -> 0.2793296089 | Q12: =IF(P12=0,0,(P12*((LOG(P12))/LOG(2)))) -> -0.513955192 | T12: =N12 -> 212 | U12: =COUNTIF(L7:L36,T12) -> 3 | V12: =U12/(W4-U14) -> 0.125 | W12: =IF(V12=0,0,(V12*((LOG(V12))/LOG(2)))) -> -0.375 | Y12: =N12 -> 212 | Z12: =COUNTIF(L37:L66,Y12) -> 10 | AA12: =Z12/(AB4-Z14) -> 0.4166666667 | AB12: =IF(AA12=0,0,(AA12*((LOG(AA12))/LOG(2)))) -> -0.5262643358 | AD12: =N12 -> 212 | AE12: =COUNTIF(L67:L96,AD12) -> 6 | AF12: =AE12/(AG4-AE14) -> 0.2142857143 | AG12: =IF(AF12=0,0,(AF12*((LOG(AF12))/LOG(2)))) -> -0.4762269474 | AI12: =N12 -> 212 | AJ12: =COUNTIF(L97:L126,AI12) -> 10 | AK12: =AJ12/(AL4-AJ14) -> 0.3571428571 | AL12: =IF(AK12=0,0,(AK12*((LOG(AK12))/LOG(2)))) -> -0.5305095811 | AN12: =N12 -> 212 | AO12: =COUNTIF(L127:L156,AN12) -> 11 | AP12: =AO12/(AQ4-AO14) -> 0.44 | AQ12: =IF(AP12=0,0,(AP12*((LOG(AP12))/LOG(2)))) -> -0.5211468113 | AS12: =N12 -> 212 | AT12: =COUNTIF(L157:L186,AS12) -> 10 | AU12: =AT12/(AV4-AT14) -> 0.4 | AV12: =IF(AU12=0,0,(AU12*((LOG(AU12))/LOG(2)))) -> -0.528771238
A13: 12 | B13: 721 | C13: 23 | D13: 734 | E13: 23 | F13: 741 | K13: 0 | L13: 122 | N13: 221 | O13: =COUNTIF($L$7:$L$500,N13) -> 20 | P13: =O13/$Q$4 -> 0.1117318436 | Q13: =IF(P13=0,0,(P13*((LOG(P13))/LOG(2)))) -> -0.3532835399 | T13: =N13 -> 221 | U13: =COUNTIF(L7:L36,T13) -> 3 | V13: =U13/(W4-U14) -> 0.125 | W13: =IF(V13=0,0,(V13*((LOG(V13))/LOG(2)))) -> -0.375 | Y13: =N13 -> 221 | Z13: =COUNTIF(L37:L66,Y13) -> 3 | AA13: =Z13/(AB4-Z14) -> 0.125 | AB13: =IF(AA13=0,0,(AA13*((LOG(AA13))/LOG(2)))) -> -0.375 | AD13: =N13 -> 221 | AE13: =COUNTIF(L67:L96,AD13) -> 2 | AF13: =AE13/(AG4-AE14) -> 0.07142857143 | AG13: =IF(AF13=0,0,(AF13*((LOG(AF13))/LOG(2)))) -> -0.271953923 | AI13: =N13 -> 221 | AJ13: =COUNTIF(L97:L126,AI13) -> 4 | AK13: =AJ13/(AL4-AJ14) -> 0.1428571429 | AL13: =IF(AK13=0,0,(AK13*((LOG(AK13))/LOG(2)))) -> -0.4010507032 | AN13: =N13 -> 221 | AO13: =COUNTIF(L127:L156,AN13) -> 1 | AP13: =AO13/(AQ4-AO14) -> 0.04 | AQ13: =IF(AP13=0,0,(AP13*((LOG(AP13))/LOG(2)))) -> -0.1857542476 | AS13: =N13 -> 221 | AT13: =COUNTIF(L157:L186,AS13) -> 7 | AU13: =AT13/(AV4-AT14) -> 0.28 | AV13: =IF(AU13=0,0,(AU13*((LOG(AU13))/LOG(2)))) -> -0.514220355
A14: 21 | B14: 832 | C14: 21 | D14: 838 | E14: 12 | F14: 841 | K14: 0 | L14: 221 | N14: 222 | O14: =COUNTIF($L$7:$L$500,N14) -> 25 | P14: =O14/$Q$4 -> 0.1396648045 | Q14: =IF(P14=0,0,(P14*((LOG(P14))/LOG(2)))) -> -0.3966424005 | T14: =N14 -> 222 | U14: =COUNTIF(L7:L36,T14) -> 6 | Y14: =N14 -> 222 | Z14: =COUNTIF(L37:L66,Y14) -> 6 | AD14: =N14 -> 222 | AE14: =COUNTIF(L67:L96,AD14) -> 2 | AI14: =N14 -> 222 | AJ14: =COUNTIF(L97:L126,AI14) -> 2 | AN14: =N14 -> 222 | AO14: =COUNTIF(L127:L156,AN14) -> 5 | AS14: =N14 -> 222 | AT14: =COUNTIF(L157:L186,AS14) -> 4
A15: 12 | B15: 933 | C15: 23 | D15: 936 | E15: 14 | F15: 940 | K15: 0 | L15: 121 | P15: =SUM(P7:P14) -> 1 | Q15: =-SUM(Q7:Q14) -> 2.360836193 | V15: =SUM(V7:V14) -> 1 | W15: =-SUM(W7:W14) -> 1.912505605 | AA15: =SUM(AA7:AA14) -> 1 | AB15: =-SUM(AB7:AB14) -> 1.813983606 | AF15: =SUM(AF7:AF14) -> 1 | AG15: =-SUM(AG7:AG14) -> 1.976698459 | AK15: =SUM(AK7:AK14) -> 1 | AL15: =-SUM(AL7:AL14) -> 2.079478479 | AP15: =SUM(AP7:AP14) -> 1 | AQ15: =-SUM(AQ7:AQ14) -> 1.697320659 | AU15: =SUM(AU7:AU14) -> 1 | AV15: =-SUM(AV7:AV14) -> 1.889025574
A16: 12 | B16: 1035 | C16: 23 | D16: 1037 | E16: 23 | F16: 1045 | K16: 0 | L16: 122 | P16: U= | Q16: =Q15/(LOG(Q4)/LOG(2)) -> 0.3154588866 | V16: U1= | W16: =W15/(LOG(W4)/LOG(2)) -> 0.3897591699 | AA16: U2= | AB16: =AB15/(LOG(AB4)/LOG(2)) -> 0.3696808745 | AF16: U3= | AG16: =AG15/(LOG(AG4)/LOG(2)) -> 0.4028413555 | AK16: U4= | AL16: =AL15/(LOG(AL4)/LOG(2)) -> 0.4237874145 | AP16: U5= | AQ16: =AQ15/(LOG(AQ4)/LOG(2)) -> 0.3459055435 | AU16: U6= | AV16: =AV15/(LOG(AV4)/LOG(2)) -> 0.3888499308
A17: 12 | B17: 1138 | C17: 23 | D17: 1143 | E17: 14 | F17: 1147 | K17: 0 | L17: 121
A18: 12 | B18: 1241 | C18: 23 | D18: 1243 | E18: 14 | F18: 1246 | K18: 0 | L18: 121
A19: 21 | B19: 1343 | C19: 12 | D19: 1346 | E19: 23 | F19: 1351 | K19: 0 | L19: 212 | N19: Total Target Seq
A20: 21 | B20: 1447 | C20: 21 | D20: 1467 | E20: 21 | F20: 1474 | K20: 0 | L20: 222 | N20: =COUNTIF(L7:L186,G3) -> 25 | P20: 30 | Q20: 30 | R20: 30 | S20: 30 | T20: 30 | U20: 30
A21: 12 | B21: 1621 | C21: 23 | D21: 1640 | E21: 23 | F21: 1652 | K21: 0 | L21: 122 | P21: % of reinforcement given in 6 equal intervals based on number of trials
A22: 21 | B22: 1752 | C22: 21 | D22: 1762 | E22: 21 | F22: 1771 | K22: 0 | L22: 222 | P22: %_1 | Q22: %_2 | R22: %_3 | S22: %_4 | T22: %_5 | U22: %_6
A23: 12 | B23: 2109 | C23: 23 | D23: 2117 | E23: 14 | F23: 2124 | K23: 0 | L23: 121 | O23: target sequence | P23: =$G$3 -> 222 | Q23: =$G$3 -> 222 | R23: =$G$3 -> 222 | S23: =$G$3 -> 222 | T23: =$G$3 -> 222 | U23: =$G$3 -> 222
A24: 12 | B24: 2251 | C24: 23 | D24: 2255 | E24: 23 | F24: 2261 | K24: 0 | L24: 122 | O24: total reinforcement | P24: =U14 -> 6 | Q24: =Z14 -> 6 | R24: =AE14 -> 2 | S24: =AJ14 -> 2 | T24: =AO14 -> 5 | U24: =AT14 -> 4
A25: 21 | B25: 2362 | C25: 21 | D25: 2369 | E25: 21 | F25: 2376 | K25: 0 | L25: 222 | O25: % target
A26: 12 | B26: 2642 | C26: 23 | D26: 2651 | E26: 23 | F26: 2657 | K26: 0 | L26: 122 | O26: CCRF
A27: 21 | B27: 2752 | C27: 21 | D27: 2755 | E27: 21 | F27: 2764 | K27: 0 | L27: 222 | O27: % CCRf
A28: 12 | B28: 3176 | C28: 14 | D28: 3181 | E28: 23 | F28: 3190 | K28: 0 | L28: 112 | O28: average response rate | P28: =F36/P20 -> 144.3 | Q28: =(F66-F36)/Q20 -> 133.2333333 | R28: =(F96-F66)/R20 -> 112.7 | S28: =(F126-F96)/S20 -> 123.4333333 | T28: =(F156-F126)/T20 -> 145.4666667 | U28: =(F186-F156)/U20 -> -659.1333333
A29: 21 | B29: 3287 | C29: 12 | D29: 3297 | E29: 23 | F29: 3302 | K29: 0 | L29: 212
A30: 12 | B30: 3396 | C30: 23 | D30: 3402 | E30: 23 | F30: 3410 | K30: 0 | L30: 122
A31: 12 | B31: 3502 | C31: 23 | D31: 3511 | E31: 23 | F31: 3520 | K31: 0 | L31: 122
A32: 21 | B32: 3613 | C32: 12 | D32: 3617 | E32: 23 | F32: 3625 | K32: 0 | L32: 212
A33: 12 | B33: 3718 | C33: 23 | D33: 3721 | E33: 23 | F33: 3723 | K33: 0 | L33: 122
A34: 21 | B34: 3820 | C34: 21 | D34: 3827 | E34: 21 | F34: 3836 | K34: 0 | L34: 222
A35: 21 | B35: 4187 | C35: 21 | D35: 4194 | E35: 12 | F35: 4200 | K35: 0 | L35: 221
A36: 12 | B36: 4314 | C36: 23 | D36: 4319 | E36: 23 | F36: 4329 | K36: 0 | L36: 122
A37: 12 | B37: 4422 | C37: 23 | D37: 4425 | E37: 14 | F37: 4429 | K37: 0 | L37: 121
A38: 12 | B38: 4527 | C38: 23 | D38: 4533 | E38: 23 | F38: 4543 | K38: 0 | L38: 122
A39: 21 | B39: 4638 | C39: 21 | D39: 4642 | E39: 21 | F39: 4650 | K39: 0 | L39: 222
A40: 21 | B40: 4765 | C40: 12 | D40: 4768 | E40: 23 | F40: 4771 | K40: 0 | L40: 212
A41: 12 | B41: 4944 | C41: 23 | D41: 4950 | E41: 23 | F41: 4961 | K41: 0 | L41: 122
A42: 21 | B42: 5057 | C42: 21 | D42: 5066 | E42: 21 | F42: 5075 | K42: 0 | L42: 222
A43: 12 | B43: 5214 | C43: 23 | D43: 5220 | E43: 23 | F43: 5237 | K43: 0 | L43: 122
A44: 21 | B44: 5332 | C44: 12 | D44: 5337 | E44: 23 | F44: 5344 | K44: 0 | L44: 212
A45: 12 | B45: 5437 | C45: 23 | D45: 5444 | E45: 23 | F45: 5457 | K45: 0 | L45: 122
A46: 12 | B46: 5551 | C46: 23 | D46: 5556 | E46: 23 | F46: 5562 | K46: 0 | L46: 122
A47: 21 | B47: 5659 | C47: 12 | D47: 5662 | E47: 23 | F47: 5668 | K47: 0 | L47: 212
A48: 21 | B48: 5763 | C48: 12 | D48: 5767 | E48: 23 | F48: 5771 | K48: 0 | L48: 212
A49: 21 | B49: 5865 | C49: 21 | D49: 5868 | E49: 12 | F49: 5872 | K49: 0 | L49: 221
A50: 21 | B50: 5968 | C50: 21 | D50: 5987 | E50: 21 | F50: 5996 | K50: 0 | L50: 222
A51: 21 | B51: 6181 | C51: 12 | D51: 6187 | E51: 23 | F51: 6197 | K51: 0 | L51: 212
A52: 21 | B52: 6293 | C52: 12 | D52: 6297 | E52: 23 | F52: 6299 | K52: 0 | L52: 212
A53: 12 | B53: 6391 | C53: 14 | D53: 6397 | E53: 23 | F53: 6403 | K53: 0 | L53: 112
A54: 21 | B54: 6499 | C54: 12 | D54: 6502 | E54: 23 | F54: 6503 | K54: 0 | L54: 212
A55: 21 | B55: 6640 | C55: 12 | D55: 6643 | E55: 23 | F55: 6652 | K55: 0 | L55: 212
A56: 21 | B56: 6748 | C56: 12 | D56: 6751 | E56: 23 | F56: 6757 | K56: 0 | L56: 212
A57: 12 | B57: 6851 | C57: 23 | D57: 6858 | E57: 23 | F57: 6866 | K57: 0 | L57: 122
A58: 12 | B58: 6960 | C58: 23 | D58: 6969 | E58: 23 | F58: 6979 | K58: 0 | L58: 122
A59: 21 | B59: 7075 | C59: 12 | D59: 7081 | E59: 23 | F59: 7091 | K59: 0 | L59: 212
A60: 12 | B60: 7183 | C60: 23 | D60: 7186 | E60: 23 | F60: 7194 | K60: 0 | L60: 122
A61: 21 | B61: 7303 | C61: 21 | D61: 7310 | E61: 21 | F61: 7318 | K61: 0 | L61: 222
A62: 21 | B62: 7526 | C62: 21 | D62: 7533 | E62: 21 | F62: 7544 | K62: 0 | L62: 222
A63: 21 | B63: 7802 | C63: 21 | D63: 7807 | E63: 12 | F63: 7811 | K63: 0 | L63: 221
A64: 21 | B64: 7913 | C64: 21 | D64: 7915 | E64: 21 | F64: 7925 | K64: 0 | L64: 222
A65: 21 | B65: 8210 | C65: 21 | D65: 8215 | E65: 12 | F65: 8218 | K65: 0 | L65: 221
A66: 12 | B66: 8310 | C66: 23 | D66: 8317 | E66: 23 | F66: 8326 | K66: 0 | L66: 122
A67: 12 | B67: 8419 | C67: 23 | D67: 8428 | E67: 23 | F67: 8439 | K67: 0 | L67: 122
A68: 21 | B68: 8533 | C68: 12 | D68: 8538 | E68: 23 | F68: 8545 | K68: 0 | L68: 212
A69: 12 | B69: 8639 | C69: 23 | D69: 8644 | E69: 23 | F69: 8650 | K69: 0 | L69: 122
A70: 21 | B70: 8743 | C70: 12 | D70: 8749 | E70: 14 | F70: 8752 | K70: 0 | L70: 211
A71: 12 | B71: 8845 | C71: 23 | D71: 8849 | E71: 14 | F71: 8851 | K71: 0 | L71: 121
A72: 21 | B72: 8947 | C72: 21 | D72: 8957 | E72: 21 | F72: 8966 | K72: 0 | L72: 222
A73: 21 | B73: 9217 | C73: 12 | D73: 9220 | E73: 23 | F73: 9226 | K73: 0 | L73: 212
A74: 12 | B74: 9318 | C74: 23 | D74: 9321 | E74: 23 | F74: 9327 | K74: 0 | L74: 122
A75: 12 | B75: 9419 | C75: 23 | D75: 9422 | E75: 23 | F75: 9429 | K75: 0 | L75: 122
A76: 21 | B76: 9525 | C76: 12 | D76: 9529 | E76: 23 | F76: 9531 | K76: 0 | L76: 212
A77: 12 | B77: 9623 | C77: 23 | D77: 9627 | E77: 14 | F77: 9630 | K77: 0 | L77: 121
A78: 21 | B78: 9726 | C78: 21 | D78: 9730 | E78: 21 | F78: 9737 | K78: 0 | L78: 222
A79: 12 | B79: 9890 | C79: 23 | D79: 9898 | E79: 14 | F79: 9900 | K79: 0 | L79: 121
A80: 12 | B80: 9994 | C80: 23 | D80: 10002 | E80: 14 | F80: 10009 | K80: 0 | L80: 121
A81: 21 | B81: 10106 | C81: 21 | D81: 10109 | E81: 12 | F81: 10112 | K81: 0 | L81: 221
A82: 21 | B82: 10212 | C82: 21 | D82: 10218 | E82: 12 | F82: 10224 | K82: 0 | L82: 221
A83: 12 | B83: 10326 | C83: 23 | D83: 10333 | E83: 23 | F83: 10336 | K83: 0 | L83: 122
A84: 12 | B84: 10429 | C84: 23 | D84: 10436 | E84: 23 | F84: 10444 | K84: 0 | L84: 122
A85: 21 | B85: 10540 | C85: 12 | D85: 10555 | E85: 23 | F85: 10563 | K85: 0 | L85: 212
A86: 12 | B86: 10655 | C86: 23 | D86: 10658 | E86: 14 | F86: 10663 | K86: 0 | L86: 121
A87: 12 | B87: 10755 | C87: 23 | D87: 10758 | E87: 14 | F87: 10765 | K87: 0 | L87: 121
A88: 21 | B88: 10860 | C88: 12 | D88: 10864 | E88: 23 | F88: 10871 | K88: 0 | L88: 212
A89: 12 | B89: 10965 | C89: 23 | D89: 10967 | E89: 23 | F89: 10975 | K89: 0 | L89: 122
A90: 12 | B90: 11075 | C90: 23 | D90: 11083 | E90: 23 | F90: 11087 | K90: 0 | L90: 122
A91: 12 | B91: 11179 | C91: 23 | D91: 11182 | E91: 23 | F91: 11186 | K91: 0 | L91: 122
A92: 21 | B92: 11282 | C92: 12 | D92: 11289 | E92: 23 | F92: 11297 | K92: 0 | L92: 212
A93: 12 | B93: 11391 | C93: 23 | D93: 11394 | E93: 14 | F93: 11400 | K93: 0 | L93: 121
A94: 12 | B94: 11492 | C94: 23 | D94: 11496 | E94: 14 | F94: 11500 | K94: 0 | L94: 121
A95: 12 | B95: 11593 | C95: 23 | D95: 11596 | E95: 23 | F95: 11607 | K95: 0 | L95: 122
A96: 12 | B96: 11700 | C96: 23 | D96: 11703 | E96: 14 | F96: 11707 | K96: 0 | L96: 121
A97: 12 | B97: 11818 | C97: 23 | D97: 11823 | E97: 23 | F97: 11829 | K97: 0 | L97: 122
A98: 21 | B98: 11924 | C98: 21 | D98: 11942 | E98: 21 | F98: 11949 | K98: 0 | L98: 222
A99: 12 | B99: 12152 | C99: 23 | D99: 12164 | E99: 23 | F99: 12169 | K99: 0 | L99: 122
A100: 21 | B100: 12267 | C100: 12 | D100: 12274 | E100: 23 | F100: 12276 | K100: 0 | L100: 212
A101: 12 | B101: 12371 | C101: 23 | D101: 12375 | E101: 23 | F101: 12383 | K101: 0 | L101: 122
A102: 12 | B102: 12475 | C102: 23 | D102: 12479 | E102: 23 | F102: 12484 | K102: 0 | L102: 122
A103: 21 | B103: 12579 | C103: 21 | D103: 12587 | E103: 12 | F103: 12591 | K103: 0 | L103: 221
A104: 21 | B104: 12687 | C104: 12 | D104: 12690 | E104: 23 | F104: 12712 | K104: 0 | L104: 212
A105: 12 | B105: 12806 | C105: 23 | D105: 12808 | E105: 14 | F105: 12812 | K105: 0 | L105: 121
A106: 12 | B106: 12903 | C106: 23 | D106: 12907 | E106: 23 | F106: 12911 | K106: 0 | L106: 122
A107: 21 | B107: 13005 | C107: 12 | D107: 13007 | E107: 23 | F107: 13011 | K107: 0 | L107: 212
A108: 21 | B108: 13106 | C108: 21 | D108: 13110 | E108: 12 | F108: 13113 | K108: 0 | L108: 221
A109: 21 | B109: 13209 | C109: 12 | D109: 13212 | E109: 23 | F109: 13228 | K109: 0 | L109: 212
A110: 12 | B110: 13322 | C110: 23 | D110: 13323 | E110: 23 | F110: 13327 | K110: 0 | L110: 122
A111: 12 | B111: 13422 | C111: 23 | D111: 13438 | E111: 23 | F111: 13444 | K111: 0 | L111: 122
A112: 12 | B112: 13537 | C112: 23 | D112: 13541 | E112: 14 | F112: 13544 | K112: 0 | L112: 121
A113: 21 | B113: 13647 | C113: 21 | D113: 13651 | E113: 12 | F113: 13653 | K113: 0 | L113: 221
A114: 21 | B114: 13745 | C114: 12 | D114: 13751 | E114: 23 | F114: 13759 | K114: 0 | L114: 212
A115: 21 | B115: 13858 | C115: 12 | D115: 13861 | E115: 23 | F115: 13872 | K115: 0 | L115: 212
A116: 12 | B116: 13966 | C116: 23 | D116: 13969 | E116: 14 | F116: 13974 | K116: 0 | L116: 121
A117: 21 | B117: 14073 | C117: 21 | D117: 14078 | E117: 21 | F117: 14090 | K117: 0 | L117: 222
A118: 21 | B118: 14562 | C118: 12 | D118: 14566 | E118: 23 | F118: 14574 | K118: 0 | L118: 212
A119: 21 | B119: 14670 | C119: 12 | D119: 14675 | E119: 23 | F119: 14681 | K119: 0 | L119: 212
A120: 12 | B120: 14775 | C120: 23 | D120: 14779 | E120: 14 | F120: 14782 | K120: 0 | L120: 121
A121: 12 | B121: 14874 | C121: 23 | D121: 14877 | E121: 14 | F121: 14881 | K121: 0 | L121: 121
A122: 12 | B122: 14974 | C122: 14 | D122: 14981 | E122: 23 | F122: 14992 | K122: 0 | L122: 112
A123: 21 | B123: 15088 | C123: 12 | D123: 15091 | E123: 23 | F123: 15093 | K123: 0 | L123: 212
A124: 21 | B124: 15197 | C124: 21 | D124: 15201 | E124: 12 | F124: 15203 | K124: 0 | L124: 221
A125: 21 | B125: 15304 | C125: 12 | D125: 15308 | E125: 23 | F125: 15310 | K125: 0 | L125: 212
A126: 12 | B126: 15403 | C126: 23 | D126: 15407 | E126: 14 | F126: 15410 | K126: 0 | L126: 121
A127: 21 | B127: 15507 | C127: 12 | D127: 15510 | E127: 23 | F127: 15515 | K127: 0 | L127: 212
A128: 12 | B128: 15609 | C128: 23 | D128: 15612 | E128: 14 | F128: 15614 | K128: 0 | L128: 121
A129: 21 | B129: 15709 | C129: 21 | D129: 15713 | E129: 21 | F129: 15723 | K129: 0 | L129: 222
A130: 21 | B130: 15897 | C130: 12 | D130: 15905 | E130: 23 | F130: 15908 | K130: 0 | L130: 212
A131: 21 | B131: 16008 | C131: 21 | D131: 16013 | E131: 12 | F131: 16020 | K131: 0 | L131: 221
A132: 12 | B132: 16112 | C132: 23 | D132: 16116 | E132: 14 | F132: 16127 | K132: 0 | L132: 121
A133: 12 | B133: 16221 | C133: 23 | D133: 16223 | E133: 14 | F133: 16226 | K133: 0 | L133: 121
A134: 12 | B134: 16320 | C134: 23 | D134: 16322 | E134: 14 | F134: 16326 | K134: 0 | L134: 121
A135: 21 | B135: 16422 | C135: 21 | D135: 16425 | E135: 21 | F135: 16430 | K135: 0 | L135: 222
A136: 21 | B136: 16878 | C136: 12 | D136: 16886 | E136: 23 | F136: 16893 | K136: 0 | L136: 212
A137: 21 | B137: 16989 | C137: 12 | D137: 16992 | E137: 23 | F137: 16994 | K137: 0 | L137: 212
A138: 12 | B138: 17086 | C138: 23 | D138: 17091 | E138: 14 | F138: 17094 | K138: 0 | L138: 121
A139: 21 | B139: 17190 | C139: 21 | D139: 17194 | E139: 21 | F139: 17200 | K139: 0 | L139: 222
A140: 21 | B140: 17560 | C140: 12 | D140: 17563 | E140: 23 | F140: 17588 | K140: 0 | L140: 212
A141: 12 | B141: 17681 | C141: 23 | D141: 17683 | E141: 23 | F141: 17687 | K141: 0 | L141: 122
A142: 21 | B142: 17782 | C142: 12 | D142: 17788 | E142: 23 | F142: 17796 | K142: 0 | L142: 212
A143: 12 | B143: 17890 | C143: 23 | D143: 17896 | E143: 14 | F143: 17898 | K143: 0 | L143: 121
A144: 12 | B144: 17990 | C144: 23 | D144: 17993 | E144: 23 | F144: 17996 | K144: 0 | L144: 122
A145: 12 | B145: 18088 | C145: 23 | D145: 18092 | E145: 14 | F145: 18098 | K145: 0 | L145: 121
A146: 21 | B146: 18194 | C146: 12 | D146: 18197 | E146: 23 | F146: 18216 | K146: 0 | L146: 212
A147: 12 | B147: 18310 | C147: 23 | D147: 18313 | E147: 23 | F147: 18319 | K147: 0 | L147: 122
A148: 21 | B148: 18414 | C148: 12 | D148: 18418 | E148: 23 | F148: 18434 | K148: 0 | L148: 212
A149: 21 | B149: 18529 | C149: 21 | D149: 18532 | E149: 21 | F149: 18540 | K149: 0 | L149: 222
A150: 21 | B150: 18864 | C150: 12 | D150: 18867 | E150: 23 | F150: 18903 | K150: 0 | L150: 212
A151: 12 | B151: 18995 | C151: 23 | D151: 18998 | E151: 23 | F151: 19002 | K151: 0 | L151: 122
A152: 12 | B152: 19095 | C152: 23 | D152: 19099 | E152: 14 | F152: 19102 | K152: 0 | L152: 121
A153: 21 | B153: 19198 | C153: 12 | D153: 19200 | E153: 23 | F153: 19209 | K153: 0 | L153: 212
A154: 21 | B154: 19304 | C154: 21 | D154: 19307 | E154: 21 | F154: 19313 | K154: 0 | L154: 222
A155: 21 | B155: 19615 | C155: 12 | D155: 19619 | E155: 23 | F155: 19634 | K155: 0 | L155: 212
A156: 12 | B156: 19752 | C156: 23 | D156: 19762 | E156: 23 | F156: 19774 | K156: 0 | L156: 122
A157: 21 | B157: 19869 | C157: 12 | D157: 19877 | E157: 23 | F157: 19881 | K157: 0 | L157: 212
A158: 12 | B158: 19973 | C158: 23 | D158: 19976 | E158: 14 | F158: 19984 | K158: 0 | L158: 121
A159: 21 | B159: 20079 | C159: 12 | D159: 20085 | E159: 23 | F159: 20094 | K159: 0 | L159: 212
A160: 12 | B160: 20186 | C160: 23 | D160: 20190 | E160: 23 | F160: 20195 | K160: 0 | L160: 122
A161: 21 | B161: 20292 | C161: 12 | D161: 20295 | E161: 23 | F161: 20297 | K161: 0 | L161: 212
A162: 21 | B162: 20392 | C162: 12 | D162: 20398 | E162: 23 | F162: 20407 | K162: 0 | L162: 212
A163: 12 | B163: 20500 | C163: 23 | D163: 20503 | E163: 23 | F163: 20507 | K163: 0 | L163: 122
A164: 21 | B164: 20602 | C164: 12 | D164: 20606 | E164: 23 | F164: 20614 | K164: 0 | L164: 212
A165: 12 | B165: 20707 | C165: 23 | D165: 20710 | E165: 14 | F165: 20713 | K165: 0 | L165: 121
A166: 12 | B166: 20807 | C166: 23 | D166: 20810 | E166: 14 | F166: 20814 | K166: 0 | L166: 121
A167: 21 | B167: 20909 | C167: 21 | D167: 20913 | E167: 12 | F167: 20919 | K167: 0 | L167: 221
A168: 21 | B168: 21014 | C168: 12 | D168: 21017 | E168: 23 | F168: 21022 | K168: 0 | L168: 212
A169: 21 | B169: 21118 | C169: 12 | D169: 21121 | E169: 23 | F169: 21138 | K169: 0 | L169: 212
A170: 21 | B170: 21234 | C170: 21 | D170: 21236 | E170: 21 | F170: 21242 | K170: 0 | L170: 222
A171: 21 | B171: 21587 | C171: 21 | D171: 21592 | E171: 12 | F171: 21596 | K171: 0 | L171: 221
A172: 12 | B172: 21690 | C172: 23 | D172: 21693 | E172: 23 | F172: 21698 | K172: 0 | L172: 122
A173: 12 | B173: 21792 | C173: 23 | D173: 21797 | E173: 14 | F173: 21806 | K173: 0 | L173: 121
A174: 12 | B174: 21898 | C174: 23 | D174: 21902 | E174: 23 | F174: 21907 | K174: 0 | L174: 122
A175: 21 | B175: 22032 | C175: 21 | D175: 22042 | E175: 21 | F175: 22049 | K175: 0 | L175: 222
A176: 21 | B176: 22447 | C176: 21 | D176: 22453 | E176: 21 | F176: 22459 | K176: 0 | L176: 222
A177: 21 | B177: 22836 | C177: 12 | D177: 22846 | E177: 23 | F177: 22850 | K177: 0 | L177: 212
A178: 21 | B178: 22945 | C178: 21 | D178: 22951 | E178: 12 | F178: 22960 | K178: 0 | L178: 221
A179: 21 | B179: 23055 | C179: 21 | D179: 23059 | E179: 12 | F179: 23063 | K179: 0 | L179: 221
A180: 21 | B180: 23162 | C180: 12 | D180: 23167 | E180: 23 | F180: 23171 | K180: 0 | L180: 212
A181: 21 | B181: 23267 | C181: 12 | D181: 23276 | E181: 23 | F181: 23286 | K181: 0 | L181: 212
A182: 21 | B182: 23382 | C182: 21 | D182: 23384 | E182: 21 | F182: 23387 | K182: 0 | L182: 222
A183: 21 | B183: 23681 | C183: 21 | D183: 23683 | E183: 12 | F183: 23690 | K183: 0 | L183: 221
A184: 21 | B184: 23792 | C184: 21 | D184: 23797 | E184: 12 | F184: 23803 | K184: 0 | L184: 221
A185: 21 | B185: 23899 | C185: 21 | D185: 23903 | E185: 12 | F185: 23904 | K185: 0 | L185: 221
A186: 12 | B186: 23997 | C186: 23 | D186: 24001 | L186: 12

Sheet !M824B00.Gus
A1: Report for:!M824B00.Gus
A2: Date: | B2: <date>
A3: Hen: | B3: <hen> | F3: Correct Sequence | G3: =Start!J2 -> 222 | P3: Total Sequences in Data | Q3: =4994-COUNTBLANK(L7:L5000) -> 180 | V3: Total Sequences in Block Data | W3: =COUNTA(L7:L36) -> 30 | AA3: Total Sequences in Block Data | AB3: =COUNTA(L37:L66) -> 30 | AF3: Total Sequences in Block Data | AG3: =COUNTA(L67:L96) -> 30 | AK3: Total Sequences in Block Data | AL3: =COUNTA(L97:L126) -> 30 | AP3: Total Sequences in Block Data | AQ3: =COUNTA(L127:L156) -> 30 | AU3: Total Sequences in Block Data | AV3: =COUNTA(L157:L186) -> 30
P4: Total Sequences in Summary | Q4: =SUM(O7:O14) -> 180 | V4: Total Sequences in Block Summary | W4: =SUM(U7:U14) -> 30 | AA4: Total Sequences in Block Summary | AB4: =SUM(Z7:Z14) -> 30 | AF4: Total Sequences in Block Summary | AG4: =SUM(AE7:AE14) -> 30 | AK4: Total Sequences in Block Summary | AL4: =SUM(AJ7:AJ14) -> 30 | AP4: Total Sequences in Block Summary | AQ4: =SUM(AO7:AO14) -> 30 | AU4: Total Sequences in Block Summary | AV4: =SUM(AT7:AT14) -> 30
T5: Block 1 | Y5: Block 2 | AD5: Block 3 | AI5: Block 4 | AN5: Block 5 | AS5: Block 6
A6: Sequence Component 1 | B6: Time 1 | C6: Sequence Component 2 | D6: Time 2 | E6: Sequence Component 3 | F6: Time 3 | G6: Sequence Component 4 | H6: Time 4 | I6: Sequence Component 5 | J6: Time 5 | K6: Correct? 0=No 1=Yes | L6: Sequence | N6: Frequency | P6: Relative Frequency | Q6: Variability | T6: Frequency | V6: Relative Frequency | W6: Variability | Y6: Frequency | AA6: Relative Frequency | AB6: Variability | AD6: Frequency | AF6: Relative Frequency | AG6: Variability | AI6: Frequency | AK6: Relative Frequency | AL6: Variability | AN6: Frequency | AP6: Relative Frequency | AQ6: Variability | AS6: Frequency | AU6: Relative Frequency | AV6: Variability
A7: 21 | B7: 19 | C7: 12 | D7: 24 | E7: 23 | F7: 33 | K7: 0 | L7: 212 | N7: 111 | O7: =COUNTIF($L$7:$L$500,N7) -> 0 | P7: =O7/$Q$4 -> 0 | Q7: =IF(P7=0,0,(P7*((LOG(P7))/LOG(2)))) -> 0 | T7: =N7 -> 111 | U7: =COUNTIF(L7:L36,T7) -> 0 | V7: =U7/(W4-U14) -> 0 | W7: =IF(V7=0,0,(V7*((LOG(V7))/LOG(2)))) -> 0 | Y7: =N7 -> 111 | Z7: =COUNTIF(L37:L66,Y7) -> 0 | AA7: =Z7/(AB4-Z14) -> 0 | AB7: =IF(AA7=0,0,(AA7*((LOG(AA7))/LOG(2)))) -> 0 | AD7: =N7 -> 111 | AE7: =COUNTIF(L67:L96,AD7) -> 0 | AF7: =AE7/(AG4-AE14) -> 0 | AG7: =IF(AF7=0,0,(AF7*((LOG(AF7))/LOG(2)))) -> 0 | AI7: =N7 -> 111 | AJ7: =COUNTIF(L97:L126,AI7) -> 0 | AK7: =AJ7/(AL4-AJ14) -> 0 | AL7: =IF(AK7=0,0,(AK7*((LOG(AK7))/LOG(2)))) -> 0 | AN7: =N7 -> 111 | AO7: =COUNTIF(L127:L156,AN7) -> 0 | AP7: =AO7/(AQ4-AO14) -> 0 | AQ7: =IF(AP7=0,0,(AP7*((LOG(AP7))/LOG(2)))) -> 0 | AS7: =N7 -> 111 | AT7: =COUNTIF(L157:L186,AS7) -> 0 | AU7: =AT7/(AV4-AT14) -> 0 | AV7: =IF(AU7=0,0,(AU7*((LOG(AU7))/LOG(2)))) -> 0
A8: 12 | B8: 126 | C8: 23 | D8: 130 | E8: 14 | F8: 133 | K8: 0 | L8: 121 | N8: 112 | O8: =COUNTIF($L$7:$L$500,N8) -> 2 | P8: =O8/$Q$4 -> 0.01111111111 | Q8: =IF(P8=0,0,(P8*((LOG(P8))/LOG(2)))) -> -0.07213170107 | T8: =N8 -> 112 | U8: =COUNTIF(L7:L36,T8) -> 0 | V8: =U8/(W4-U14) -> 0 | W8: =IF(V8=0,0,(V8*((LOG(V8))/LOG(2)))) -> 0 | Y8: =N8 -> 112 | Z8: =COUNTIF(L37:L66,Y8) -> 1 | AA8: =Z8/(AB4-Z14) -> 0.03571428571 | AB8: =IF(AA8=0,0,(AA8*((LOG(AA8))/LOG(2)))) -> -0.1716912472 | AD8: =N8 -> 112 | AE8: =COUNTIF(L67:L96,AD8) -> 1 | AF8: =AE8/(AG4-AE14) -> 0.04347826087 | AG8: =IF(AF8=0,0,(AF8*((LOG(AF8))/LOG(2)))) -> -0.1966766068 | AI8: =N8 -> 112 | AJ8: =COUNTIF(L97:L126,AI8) -> 0 | AK8: =AJ8/(AL4-AJ14) -> 0 | AL8: =IF(AK8=0,0,(AK8*((LOG(AK8))/LOG(2)))) -> 0 | AN8: =N8 -> 112 | AO8: =COUNTIF(L127:L156,AN8) -> 0 | AP8: =AO8/(AQ4-AO14) -> 0 | AQ8: =IF(AP8=0,0,(AP8*((LOG(AP8))/LOG(2)))) -> 0 | AS8: =N8 -> 112 | AT8: =COUNTIF(L157:L186,AS8) -> 0 | AU8: =AT8/(AV4-AT14) -> 0 | AV8: =IF(AU8=0,0,(AU8*((LOG(AU8))/LOG(2)))) -> 0
A9: 12 | B9: 226 | C9: 23 | D9: 230 | E9: 23 | F9: 237 | K9: 0 | L9: 122 | N9: 121 | O9: =COUNTIF($L$7:$L$500,N9) -> 22 | P9: =O9/$Q$4 -> 0.1222222222 | Q9: =IF(P9=0,0,(P9*((LOG(P9))/LOG(2)))) -> -0.3706292917 | T9: =N9 -> 121 | U9: =COUNTIF(L7:L36,T9) -> 5 | V9: =U9/(W4-U14) -> 0.1923076923 | W9: =IF(V9=0,0,(V9*((LOG(V9))/LOG(2)))) -> -0.4574060814 | Y9: =N9 -> 121 | Z9: =COUNTIF(L37:L66,Y9) -> 2 | AA9: =Z9/(AB4-Z14) -> 0.07142857143 | AB9: =IF(AA9=0,0,(AA9*((LOG(AA9))/LOG(2)))) -> -0.271953923 | AD9: =N9 -> 121 | AE9: =COUNTIF(L67:L96,AD9) -> 2 | AF9: =AE9/(AG4-AE14) -> 0.08695652174 | AG9: =IF(AF9=0,0,(AF9*((LOG(AF9))/LOG(2)))) -> -0.3063966918 | AI9: =N9 -> 121 | AJ9: =COUNTIF(L97:L126,AI9) -> 8 | AK9: =AJ9/(AL4-AJ14) -> 0.2857142857 | AL9: =IF(AK9=0,0,(AK9*((LOG(AK9))/LOG(2)))) -> -0.5163871206 | AN9: =N9 -> 121 | AO9: =COUNTIF(L127:L156,AN9) -> 2 | AP9: =AO9/(AQ4-AO14) -> 0.08695652174 | AQ9: =IF(AP9=0,0,(AP9*((LOG(AP9))/LOG(2)))) -> -0.3063966918 | AS9: =N9 -> 121 | AT9: =COUNTIF(L157:L186,AS9) -> 3 | AU9: =AT9/(AV4-AT14) -> 0.125 | AV9: =IF(AU9=0,0,(AU9*((LOG(AU9))/LOG(2)))) -> -0.375
A10: 21 | B10: 335 | C10: 12 | D10: 339 | E10: 23 | F10: 344 | K10: 0 | L10: 212 | N10: 122 | O10: =COUNTIF($L$7:$L$500,N10) -> 45 | P10: =O10/$Q$4 -> 0.25 | Q10: =IF(P10=0,0,(P10*((LOG(P10))/LOG(2)))) -> -0.5 | T10: =N10 -> 122 | U10: =COUNTIF(L7:L36,T10) -> 9 | V10: =U10/(W4-U14) -> 0.3461538462 | W10: =IF(V10=0,0,(V10*((LOG(V10))/LOG(2)))) -> -0.5297935558 | Y10: =N10 -> 122 | Z10: =COUNTIF(L37:L66,Y10) -> 8 | AA10: =Z10/(AB4-Z14) -> 0.2857142857 | AB10: =IF(AA10=0,0,(AA10*((LOG(AA10))/LOG(2)))) -> -0.5163871206 | AD10: =N10 -> 122 | AE10: =COUNTIF(L67:L96,AD10) -> 7 | AF10: =AE10/(AG4-AE14) -> 0.3043478261 | AG10: =IF(AF10=0,0,(AF10*((LOG(AF10))/LOG(2)))) -> -0.5223238799 | AI10: =N10 -> 122 | AJ10: =COUNTIF(L97:L126,AI10) -> 7 | AK10: =AJ10/(AL4-AJ14) -> 0.25 | AL10: =IF(AK10=0,0,(AK10*((LOG(AK10))/LOG(2)))) -> -0.5 | AN10: =N10 -> 122 | AO10: =COUNTIF(L127:L156,AN10) -> 9 | AP10: =AO10/(AQ4-AO14) -> 0.3913043478 | AQ10: =IF(AP10=0,0,(AP10*((LOG(AP10))/LOG(2)))) -> -0.5296840257 | AS10: =N10 -> 122 | AT10: =COUNTIF(L157:L186,AS10) -> 5 | AU10: =AT10/(AV4-AT14) -> 0.2083333333 | AV10: =IF(AU10=0,0,(AU10*((LOG(AU10))/LOG(2)))) -> -0.4714655012
A11: 12 | B11: 438 | C11: 23 | D11: 445 | E11: 23 | F11: 452 | K11: 0 | L11: 122 | N11: 211 | O11: =COUNTIF($L$7:$L$500,N11) -> 1 | P11: =O11/$Q$4 -> 0.005555555556 | Q11: =IF(P11=0,0,(P11*((LOG(P11))/LOG(2)))) -> -0.04162140609 | T11: =N11 -> 211 | U11: =COUNTIF(L7:L36,T11) -> 0 | V11: =U11/(W4-U14) -> 0 | W11: =IF(V11=0,0,(V11*((LOG(V11))/LOG(2)))) -> 0 | Y11: =N11 -> 211 | Z11: =COUNTIF(L37:L66,Y11) -> 0 | AA11: =Z11/(AB4-Z14) -> 0 | AB11: =IF(AA11=0,0,(AA11*((LOG(AA11))/LOG(2)))) -> 0 | AD11: =N11 -> 211 | AE11: =COUNTIF(L67:L96,AD11) -> 1 | AF11: =AE11/(AG4-AE14) -> 0.04347826087 | AG11: =IF(AF11=0,0,(AF11*((LOG(AF11))/LOG(2)))) -> -0.1966766068 | AI11: =N11 -> 211 | AJ11: =COUNTIF(L97:L126,AI11) -> 0 | AK11: =AJ11/(AL4-AJ14) -> 0 | AL11: =IF(AK11=0,0,(AK11*((LOG(AK11))/LOG(2)))) -> 0 | AN11: =N11 -> 211 | AO11: =COUNTIF(L127:L156,AN11) -> 0 | AP11: =AO11/(AQ4-AO14) -> 0 | AQ11: =IF(AP11=0,0,(AP11*((LOG(AP11))/LOG(2)))) -> 0 | AS11: =N11 -> 211 | AT11: =COUNTIF(L157:L186,AS11) -> 0 | AU11: =AT11/(AV4-AT14) -> 0 | AV11: =IF(AU11=0,0,(AU11*((LOG(AU11))/LOG(2)))) -> 0
A12: 12 | B12: 545 | C12: 23 | D12: 549 | E12: 14 | F12: 554 | K12: 0 | L12: 121 | N12: 212 | O12: =COUNTIF($L$7:$L$500,N12) -> 60 | P12: =O12/$Q$4 -> 0.3333333333 | Q12: =IF(P12=0,0,(P12*((LOG(P12))/LOG(2)))) -> -0.5283208336 | T12: =N12 -> 212 | U12: =COUNTIF(L7:L36,T12) -> 10 | V12: =U12/(W4-U14) -> 0.3846153846 | W12: =IF(V12=0,0,(V12*((LOG(V12))/LOG(2)))) -> -0.5301967782 | Y12: =N12 -> 212 | Z12: =COUNTIF(L37:L66,Y12) -> 10 | AA12: =Z12/(AB4-Z14) -> 0.3571428571 | AB12: =IF(AA12=0,0,(AA12*((LOG(AA12))/LOG(2)))) -> -0.5305095811 | AD12: =N12 -> 212 | AE12: =COUNTIF(L67:L96,AD12) -> 10 | AF12: =AE12/(AG4-AE14) -> 0.4347826087 | AG12: =IF(AF12=0,0,(AF12*((LOG(AF12))/LOG(2)))) -> -0.5224495049 | AI12: =N12 -> 212 | AJ12: =COUNTIF(L97:L126,AI12) -> 9 | AK12: =AJ12/(AL4-AJ14) -> 0.3214285714 | AL12: =IF(AK12=0,0,(AK12*((LOG(AK12))/LOG(2)))) -> -0.5263167602 | AN12: =N12 -> 212 | AO12: =COUNTIF(L127:L156,AN12) -> 9 | AP12: =AO12/(AQ4-AO14) -> 0.3913043478 | AQ12: =IF(AP12=0,0,(AP12*((LOG(AP12))/LOG(2)))) -> -0.5296840257 | AS12: =N12 -> 212 | AT12: =COUNTIF(L157:L186,AS12) -> 12 | AU12: =AT12/(AV4-AT14) -> 0.5 | AV12: =IF(AU12=0,0,(AU12*((LOG(AU12))/LOG(2)))) -> -0.5
A13: 21 | B13: 651 | C13: 12 | D13: 653 | E13: 23 | F13: 657 | K13: 0 | L13: 212 | N13: 221 | O13: =COUNTIF($L$7:$L$500,N13) -> 22 | P13: =O13/$Q$4 -> 0.1222222222 | Q13: =IF(P13=0,0,(P13*((LOG(P13))/LOG(2)))) -> -0.3706292917 | T13: =N13 -> 221 | U13: =COUNTIF(L7:L36,T13) -> 2 | V13: =U13/(W4-U14) -> 0.07692307692 | W13: =IF(V13=0,0,(V13*((LOG(V13))/LOG(2)))) -> -0.2846492091 | Y13: =N13 -> 221 | Z13: =COUNTIF(L37:L66,Y13) -> 7 | AA13: =Z13/(AB4-Z14) -> 0.25 | AB13: =IF(AA13=0,0,(AA13*((LOG(AA13))/LOG(2)))) -> -0.5 | AD13: =N13 -> 221 | AE13: =COUNTIF(L67:L96,AD13) -> 2 | AF13: =AE13/(AG4-AE14) -> 0.08695652174 | AG13: =IF(AF13=0,0,(AF13*((LOG(AF13))/LOG(2)))) -> -0.3063966918 | AI13: =N13 -> 221 | AJ13: =COUNTIF(L97:L126,AI13) -> 4 | AK13: =AJ13/(AL4-AJ14) -> 0.1428571429 | AL13: =IF(AK13=0,0,(AK13*((LOG(AK13))/LOG(2)))) -> -0.4010507032 | AN13: =N13 -> 221 | AO13: =COUNTIF(L127:L156,AN13) -> 3 | AP13: =AO13/(AQ4-AO14) -> 0.1304347826 | AQ13: =IF(AP13=0,0,(AP13*((LOG(AP13))/LOG(2)))) -> -0.3832955811 | AS13: =N13 -> 221 | AT13: =COUNTIF(L157:L186,AS13) -> 4 | AU13: =AT13/(AV4-AT14) -> 0.1666666667 | AV13: =IF(AU13=0,0,(AU13*((LOG(AU13))/LOG(2)))) -> -0.4308270835
A14: 21 | B14: 754 | C14: 12 | D14: 756 | E14: 23 | F14: 758 | K14: 0 | L14: 212 | N14: 222 | O14: =COUNTIF($L$7:$L$500,N14) -> 28 | P14: =O14/$Q$4 -> 0.1555555556 | Q14: =IF(P14=0,0,(P14*((LOG(P14))/LOG(2)))) -> -0.4175886049 | T14: =N14 -> 222 | U14: =COUNTIF(L7:L36,T14) -> 4 | Y14: =N14 -> 222 | Z14: =COUNTIF(L37:L66,Y14) -> 2 | AD14: =N14 -> 222 | AE14: =COUNTIF(L67:L96,AD14) -> 7 | AI14: =N14 -> 222 | AJ14: =COUNTIF(L97:L126,AI14) -> 2 | AN14: =N14 -> 222 | AO14: =COUNTIF(L127:L156,AN14) -> 7 | AS14: =N14 -> 222 | AT14: =COUNTIF(L157:L186,AS14) -> 6
A15: 12 | B15: 850 | C15: 23 | D15: 854 | E15: 23 | F15: 857 | K15: 0 | L15: 122 | P15: =SUM(P7:P14) -> 1 | Q15: =-SUM(Q7:Q14) -> 2.300921129 | V15: =SUM(V7:V14) -> 1 | W15: =-SUM(W7:W14) -> 1.802045624 | AA15: =SUM(AA7:AA14) -> 1 | AB15: =-SUM(AB7:AB14) -> 1.990541872 | AF15: =SUM(AF7:AF14) -> 1 | AG15: =-SUM(AG7:AG14) -> 2.050919982 | AK15: =SUM(AK7:AK14) -> 1 | AL15: =-SUM(AL7:AL14) -> 1.943754584 | AP15: =SUM(AP7:AP14) -> 1 | AQ15: =-SUM(AQ7:AQ14) -> 1.749060324 | AU15: =SUM(AU7:AU14) -> 1 | AV15: =-SUM(AV7:AV14) -> 1.777292585
A16: 21 | B16: 953 | C16: 12 | D16: 956 | E16: 23 | F16: 962 | K16: 0 | L16: 212 | P16: U= | Q16: =Q15/(LOG(Q4)/LOG(2)) -> 0.3071230975 | V16: U1= | W16: =W15/(LOG(W4)/LOG(2)) -> 0.3672479729 | AA16: U2= | AB16: =AB15/(LOG(AB4)/LOG(2)) -> 0.4056625745 | AF16: U3= | AG16: =AG15/(LOG(AG4)/LOG(2)) -> 0.4179673343 | AK16: U4= | AL16: =AL15/(LOG(AL4)/LOG(2)) -> 0.396127557 | AP16: U5= | AQ16: =AQ15/(LOG(AQ4)/LOG(2)) -> 0.3564498312 | AU16: U6= | AV16: =AV15/(LOG(AV4)/LOG(2)) -> 0.362203426
A17: 12 | B17: 1057 | C17: 23 | D17: 1058 | E17: 14 | F17: 1065 | K17: 0 | L17: 121
A18: 21 | B18: 1161 | C18: 21 | D18: 1165 | E18: 21 | F18: 1172 | K18: 0 | L18: 222
A19: 21 | B19: 1355 | C19: 21 | D19: 1362 | E19: 21 | F19: 1369 | K19: 0 | L19: 222 | N19: Total Target Seq
A20: 12 | B20: 1668 | C20: 23 | D20: 1671 | E20: 23 | F20: 1678 | K20: 0 | L20: 122 | N20: =COUNTIF(L7:L186,G3) -> 28 | P20: 30 | Q20: 30 | R20: 30 | S20: 30 | T20: 30 | U20: 30
A21: 12 | B21: 1770 | C21: 23 | D21: 1784 | E21: 23 | F21: 1788 | K21: 0 | L21: 122 | P21: % of reinforcement given in 6 equal intervals based on number of trials
A22: 12 | B22: 1916 | C22: 23 | D22: 1923 | E22: 23 | F22: 1928 | K22: 0 | L22: 122 | P22: %_1 | Q22: %_2 | R22: %_3 | S22: %_4 | T22: %_5 | U22: %_6
A23: 21 | B23: 2023 | C23: 12 | D23: 2027 | E23: 23 | F23: 2030 | K23: 0 | L23: 212 | O23: target sequence | P23: =$G$3 -> 222 | Q23: =$G$3 -> 222 | R23: =$G$3 -> 222 | S23: =$G$3 -> 222 | T23: =$G$3 -> 222 | U23: =$G$3 -> 222
A24: 12 | B24: 2122 | C24: 23 | D24: 2129 | E24: 14 | F24: 2133 | K24: 0 | L24: 121 | O24: total reinforcement | P24: =U14 -> 4 | Q24: =Z14 -> 2 | R24: =AE14 -> 7 | S24: =AJ14 -> 2 | T24: =AO14 -> 7 | U24: =AT14 -> 6
A25: 21 | B25: 2230 | C25: 21 | D25: 2234 | E25: 12 | F25: 2240 | K25: 0 | L25: 221 | O25: % target
A26: 12 | B26: 2341 | C26: 23 | D26: 2351 | E26: 23 | F26: 2359 | K26: 0 | L26: 122 | O26: CCRF
A27: 21 | B27: 2455 | C27: 12 | D27: 2460 | E27: 23 | F27: 2463 | K27: 0 | L27: 212 | O27: % CCRf
A28: 21 | B28: 2572 | C28: 21 | D28: 2576 | E28: 21 | F28: 2582 | K28: 0 | L28: 222 | O28: average response rate | P28: =F36/P20 -> 121.8 | Q28: =(F66-F36)/Q20 -> 111.8333333 | R28: =(F96-F66)/R20 -> 138.4333333 | S28: =(F126-F96)/S20 -> 108.0333333 | T28: =(F156-F126)/T20 -> 168.6333333 | U28: =(F186-F156)/U20 -> 148.4666667
A29: 12 | B29: 2856 | C29: 23 | D29: 2869 | E29: 14 | F29: 2876 | K29: 0 | L29: 121
A30: 21 | B30: 2975 | C30: 12 | D30: 2979 | E30: 23 | F30: 2985 | K30: 0 | L30: 212
A31: 21 | B31: 3081 | C31: 12 | D31: 3097 | E31: 23 | F31: 3100 | K31: 0 | L31: 212
A32: 21 | B32: 3196 | C32: 21 | D32: 3201 | E32: 12 | F32: 3207 | K32: 0 | L32: 221
A33: 21 | B33: 3298 | C33: 12 | D33: 3302 | E33: 23 | F33: 3305 | K33: 0 | L33: 212
A34: 12 | B34: 3397 | C34: 23 | D34: 3403 | E34: 23 | F34: 3410 | K34: 0 | L34: 122
A35: 21 | B35: 3507 | C35: 21 | D35: 3510 | E35: 21 | F35: 3521 | K35: 0 | L35: 222
A36: 12 | B36: 3635 | C36: 23 | D36: 3643 | E36: 23 | F36: 3654 | K36: 0 | L36: 122
A37: 12 | B37: 3748 | C37: 23 | D37: 3753 | E37: 14 | F37: 3757 | K37: 0 | L37: 121
A38: 12 | B38: 3850 | C38: 23 | D38: 3854 | E38: 23 | F38: 3858 | K38: 0 | L38: 122
A39: 21 | B39: 3954 | C39: 21 | D39: 3957 | E39: 12 | F39: 3960 | K39: 0 | L39: 221
A40: 21 | B40: 4057 | C40: 21 | D40: 4081 | E40: 21 | F40: 4089 | K40: 0 | L40: 222
A41: 21 | B41: 4237 | C41: 12 | D41: 4243 | E41: 23 | F41: 4248 | K41: 0 | L41: 212
A42: 21 | B42: 4345 | C42: 21 | D42: 4354 | E42: 12 | F42: 4360 | K42: 0 | L42: 221
A43: 21 | B43: 4459 | C43: 12 | D43: 4460 | E43: 23 | F43: 4474 | K43: 0 | L43: 212
A44: 21 | B44: 4570 | C44: 21 | D44: 4576 | E44: 12 | F44: 4580 | K44: 0 | L44: 221
A45: 21 | B45: 4675 | C45: 21 | D45: 4679 | E45: 12 | F45: 4683 | K45: 0 | L45: 221
A46: 21 | B46: 4778 | C46: 12 | D46: 4783 | E46: 23 | F46: 4797 | K46: 0 | L46: 212
A47: 21 | B47: 4893 | C47: 21 | D47: 4899 | E47: 12 | F47: 4912 | K47: 0 | L47: 221
A48: 12 | B48: 5008 | C48: 23 | D48: 5015 | E48: 23 | F48: 5027 | K48: 0 | L48: 122
A49: 21 | B49: 5123 | C49: 12 | D49: 5125 | E49: 23 | F49: 5136 | K49: 0 | L49: 212
A50: 21 | B50: 5233 | C50: 12 | D50: 5237 | E50: 23 | F50: 5246 | K50: 0 | L50: 212
A51: 12 | B51: 5338 | C51: 23 | D51: 5343 | E51: 23 | F51: 5348 | K51: 0 | L51: 122
A52: 21 | B52: 5448 | C52: 21 | D52: 5451 | E52: 21 | F52: 5453 | K52: 0 | L52: 222
A53: 12 | B53: 5604 | C53: 23 | D53: 5611 | E53: 23 | F53: 5628 | K53: 0 | L53: 122
A54: 21 | B54: 5724 | C54: 12 | D54: 5728 | E54: 23 | F54: 5734 | K54: 0 | L54: 212
A55: 12 | B55: 5826 | C55: 23 | D55: 5831 | E55: 23 | F55: 5835 | K55: 0 | L55: 122
A56: 21 | B56: 5931 | C56: 21 | D56: 5935 | E56: 12 | F56: 5938 | K56: 0 | L56: 221
A57: 12 | B57: 6032 | C57: 14 | D57: 6036 | E57: 23 | F57: 6042 | K57: 0 | L57: 112
A58: 21 | B58: 6139 | C58: 12 | D58: 6143 | E58: 23 | F58: 6145 | K58: 0 | L58: 212
A59: 21 | B59: 6242 | C59: 12 | D59: 6244 | E59: 23 | F59: 6246 | K59: 0 | L59: 212
A60: 12 | B60: 6340 | C60: 23 | D60: 6344 | E60: 23 | F60: 6349 | K60: 0 | L60: 122
A61: 12 | B61: 6450 | C61: 23 | D61: 6458 | E61: 23 | F61: 6463 | K61: 0 | L61: 122
A62: 12 | B62: 6556 | C62: 23 | D62: 6560 | E62: 14 | F62: 6564 | K62: 0 | L62: 121
A63: 12 | B63: 6663 | C63: 23 | D63: 6671 | E63: 23 | F63: 6673 | K63: 0 | L63: 122
A64: 21 | B64: 6769 | C64: 12 | D64: 6774 | E64: 23 | F64: 6783 | K64: 0 | L64: 212
A65: 21 | B65: 6880 | C65: 12 | D65: 6883 | E65: 23 | F65: 6904 | K65: 0 | L65: 212
A66: 21 | B66: 6999 | C66: 21 | D66: 7003 | E66: 12 | F66: 7009 | K66: 0 | L66: 221
A67: 21 | B67: 7104 | C67: 21 | D67: 7107 | E67: 12 | F67: 7110 | K67: 0 | L67: 221
A68: 21 | B68: 7206 | C68: 12 | D68: 7211 | E68: 23 | F68: 7231 | K68: 0 | L68: 212
A69: 21 | B69: 7327 | C69: 21 | D69: 7331 | E69: 21 | F69: 7336 | K69: 0 | L69: 222
A70: 21 | B70: 7578 | C70: 21 | D70: 7583 | E70: 21 | F70: 7600 | K70: 0 | L70: 222
A71: 21 | B71: 7891 | C71: 12 | D71: 7898 | E71: 23 | F71: 7905 | K71: 0 | L71: 212
A72: 21 | B72: 8022 | C72: 12 | D72: 8026 | E72: 23 | F72: 8040 | K72: 0 | L72: 212
A73: 12 | B73: 8132 | C73: 14 | D73: 8140 | E73: 23 | F73: 8149 | K73: 0 | L73: 112
A74: 21 | B74: 8245 | C74: 12 | D74: 8250 | E74: 23 | F74: 8260 | K74: 0 | L74: 212
A75: 12 | B75: 8353 | C75: 23 | D75: 8356 | E75: 23 | F75: 8361 | K75: 0 | L75: 122
A76: 21 | B76: 8459 | C76: 21 | D76: 8466 | E76: 21 | F76: 8474 | K76: 0 | L76: 222
A77: 12 | B77: 8639 | C77: 23 | D77: 8647 | E77: 23 | F77: 8653 | K77: 0 | L77: 122
A78: 12 | B78: 8745 | C78: 23 | D78: 8751 | E78: 23 | F78: 8757 | K78: 0 | L78: 122
A79: 21 | B79: 8853 | C79: 21 | D79: 8856 | E79: 12 | F79: 8859 | K79: 0 | L79: 221
A80: 21 | B80: 8956 | C80: 12 | D80: 8960 | E80: 23 | F80: 8961 | K80: 0 | L80: 212
A81: 21 | B81: 9058 | C81: 21 | D81: 9065 | E81: 21 | F81: 9077 | K81: 0 | L81: 222
A82: 12 | B82: 9236 | C82: 23 | D82: 9248 | E82: 23 | F82: 9258 | K82: 0 | L82: 122
A83: 21 | B83: 9354 | C83: 12 | D83: 9361 | E83: 23 | F83: 9368 | K83: 0 | L83: 212
A84: 21 | B84: 9464 | C84: 12 | D84: 9468 | E84: 23 | F84: 9476 | K84: 0 | L84: 212
A85: 21 | B85: 9573 | C85: 21 | D85: 9577 | E85: 21 | F85: 9583 | K85: 0 | L85: 222
A86: 12 | B86: 9714 | C86: 23 | D86: 9723 | E86: 23 | F86: 9732 | K86: 0 | L86: 122
A87: 21 | B87: 9938 | C87: 21 | D87: 9941 | E87: 21 | F87: 9948 | K87: 0 | L87: 222
A88: 21 | B88: 10168 | C88: 12 | D88: 10176 | E88: 23 | F88: 10182 | K88: 0 | L88: 212
A89: 12 | B89: 10276 | C89: 23 | D89: 10279 | E89: 23 | F89: 10282 | K89: 0 | L89: 122
A90: 12 | B90: 10374 | C90: 23 | D90: 10379 | E90: 14 | F90: 10382 | K90: 0 | L90: 121
A91: 12 | B91: 10474 | C91: 23 | D91: 10477 | E91: 23 | F91: 10481 | K91: 0 | L91: 122
A92: 21 | B92: 10578 | C92: 12 | D92: 10584 | E92: 23 | F92: 10593 | K92: 0 | L92: 212
A93: 21 | B93: 10690 | C93: 12 | D93: 10696 | E93: 23 | F93: 10702 | K93: 0 | L93: 212
A94: 12 | B94: 10796 | C94: 23 | D94: 10799 | E94: 14 | F94: 10805 | K94: 0 | L94: 121
A95: 21 | B95: 10901 | C95: 21 | D95: 10905 | E95: 21 | F95: 10922 | K95: 0 | L95: 222
A96: 21 | B96: 11152 | C96: 12 | D96: 11160 | E96: 14 | F96: 11162 | K96: 0 | L96: 211
A97: 21 | B97: 11265 | C97: 12 | D97: 11271 | E97: 23 | F97: 11273 | K97: 0 | L97: 212
A98: 21 | B98: 11371 | C98: 21 | D98: 11376 | E98: 12 | F98: 11380 | K98: 0 | L98: 221
A99: 21 | B99: 11476 | C99: 12 | D99: 11479 | E99: 23 | F99: 11482 | K99: 0 | L99: 212
A100: 12 | B100: 11575 | C100: 23 | D100: 11578 | E100: 23 | F100: 11581 | K100: 0 | L100: 122
A101: 21 | B101: 11678 | C101: 12 | D101: 11684 | E101: 23 | F101: 11693 | K101: 0 | L101: 212
A102: 12 | B102: 11787 | C102: 23 | D102: 11791 | E102: 14 | F102: 11795 | K102: 0 | L102: 121
A103: 12 | B103: 11888 | C103: 23 | D103: 11892 | E103: 14 | F103: 11896 | K103: 0 | L103: 121
A104: 12 | B104: 11988 | C104: 23 | D104: 11992 | E104: 23 | F104: 11998 | K104: 0 | L104: 122
A105: 12 | B105: 12090 | C105: 23 | D105: 12093 | E105: 14 | F105: 12096 | K105: 0 | L105: 121
A106: 12 | B106: 12189 | C106: 23 | D106: 12192 | E106: 14 | F106: 12195 | K106: 0 | L106: 121
A107: 21 | B107: 12291 | C107: 12 | D107: 12294 | E107: 23 | F107: 12313 | K107: 0 | L107: 212
A108: 21 | B108: 12412 | C108: 12 | D108: 12416 | E108: 23 | F108: 12422 | K108: 0 | L108: 212
A109: 12 | B109: 12514 | C109: 23 | D109: 12519 | E109: 23 | F109: 12521 | K109: 0 | L109: 122
A110: 21 | B110: 12617 | C110: 21 | D110: 12623 | E110: 12 | F110: 12627 | K110: 0 | L110: 221
A111: 21 | B111: 12723 | C111: 21 | D111: 12727 | E111: 12 | F111: 12730 | K111: 0 | L111: 221
A112: 21 | B112: 12831 | C112: 12 | D112: 12836 | E112: 23 | F112: 12838 | K112: 0 | L112: 212
A113: 12 | B113: 12931 | C113: 23 | D113: 12934 | E113: 23 | F113: 12937 | K113: 0 | L113: 122
A114: 12 | B114: 13030 | C114: 23 | D114: 13032 | E114: 14 | F114: 13035 | K114: 0 | L114: 121
A115: 12 | B115: 13129 | C115: 23 | D115: 13132 | E115: 14 | F115: 13136 | K115: 0 | L115: 121
A116: 21 | B116: 13230 | C116: 12 | D116: 13235 | E116: 23 | F116: 13249 | K116: 0 | L116: 212
A117: 12 | B117: 13343 | C117: 23 | D117: 13345 | E117: 14 | F117: 13348 | K117: 0 | L117: 121
A118: 21 | B118: 13444 | C118: 12 | D118: 13447 | E118: 23 | F118: 13453 | K118: 0 | L118: 212
A119: 12 | B119: 13547 | C119: 23 | D119: 13549 | E119: 23 | F119: 13552 | K119: 0 | L119: 122
A120: 12 | B120: 13646 | C120: 23 | D120: 13650 | E120: 14 | F120: 13657 | K120: 0 | L120: 121
A121: 12 | B121: 13751 | C121: 23 | D121: 13753 | E121: 23 | F121: 13757 | K121: 0 | L121: 122
A122: 21 | B122: 13853 | C122: 21 | D122: 13857 | E122: 12 | F122: 13860 | K122: 0 | L122: 221
A123: 21 | B123: 13977 | C123: 21 | D123: 13981 | E123: 21 | F123: 13986 | K123: 0 | L123: 222
A124: 12 | B124: 14156 | C124: 23 | D124: 14175 | E124: 23 | F124: 14182 | K124: 0 | L124: 122
A125: 21 | B125: 14281 | C125: 12 | D125: 14288 | E125: 23 | F125: 14293 | K125: 0 | L125: 212
A126: 21 | B126: 14390 | C126: 21 | D126: 14397 | E126: 21 | F126: 14403 | K126: 0 | L126: 222
A127: 12 | B127: 14633 | C127: 23 | D127: 14638 | E127: 23 | F127: 14655 | K127: 0 | L127: 122
A128: 21 | B128: 14798 | C128: 12 | D128: 14803 | E128: 23 | F128: 14810 | K128: 0 | L128: 212
A129: 21 | B129: 14907 | C129: 12 | D129: 14911 | E129: 23 | F129: 14917 | K129: 0 | L129: 212
A130: 21 | B130: 15015 | C130: 21 | D130: 15019 | E130: 12 | F130: 15023 | K130: 0 | L130: 221
A131: 21 | B131: 15119 | C131: 21 | D131: 15123 | E131: 21 | F131: 15132 | K131: 0 | L131: 222
A132: 12 | B132: 15344 | C132: 23 | D132: 15356 | E132: 23 | F132: 15365 | K132: 0 | L132: 122
A133: 21 | B133: 15461 | C133: 21 | D133: 15465 | E133: 21 | F133: 15472 | K133: 0 | L133: 222
A134: 21 | B134: 15895 | C134: 12 | D134: 15901 | E134: 23 | F134: 15907 | K134: 0 | L134: 212
A135: 12 | B135: 15999 | C135: 23 | D135: 16003 | E135: 23 | F135: 16008 | K135: 0 | L135: 122
A136: 21 | B136: 16105 | C136: 21 | D136: 16111 | E136: 12 | F136: 16117 | K136: 0 | L136: 221
A137: 21 | B137: 16214 | C137: 21 | D137: 16219 | E137: 21 | F137: 16227 | K137: 0 | L137: 222
A138: 21 | B138: 16593 | C138: 12 | D138: 16605 | E138: 23 | F138: 16615 | K138: 0 | L138: 212
A139: 21 | B139: 16710 | C139: 21 | D139: 16715 | E139: 21 | F139: 16723 | K139: 0 | L139: 222
A140: 21 | B140: 17121 | C140: 21 | D140: 17125 | E140: 12 | F140: 17128 | K140: 0 | L140: 221
A141: 12 | B141: 17220 | C141: 23 | D141: 17224 | E141: 14 | F141: 17231 | K141: 0 | L141: 121
A142: 21 | B142: 17327 | C142: 12 | D142: 17335 | E142: 23 | F142: 17344 | K142: 0 | L142: 212
A143: 21 | B143: 17441 | C143: 21 | D143: 17444 | E143: 21 | F143: 17451 | K143: 0 | L143: 222
A144: 12 | B144: 17667 | C144: 23 | D144: 17677 | E144: 23 | F144: 17683 | K144: 0 | L144: 122
A145: 21 | B145: 17779 | C145: 12 | D145: 17783 | E145: 23 | F145: 17790 | K145: 0 | L145: 212
A146: 12 | B146: 17885 | C146: 23 | D146: 17894 | E146: 23 | F146: 17901 | K146: 0 | L146: 122
A147: 21 | B147: 17996 | C147: 21 | D147: 18001 | E147: 21 | F147: 18008 | K147: 0 | L147: 222
A148: 21 | B148: 18318 | C148: 12 | D148: 18320 | E148: 23 | F148: 18324 | K148: 0 | L148: 212
A149: 12 | B149: 18419 | C149: 23 | D149: 18421 | E149: 23 | F149: 18427 | K149: 0 | L149: 122
A150: 21 | B150: 18520 | C150: 21 | D150: 18525 | E150: 21 | F150: 18532 | K150: 0 | L150: 222
A151: 21 | B151: 18927 | C151: 12 | D151: 18936 | E151: 23 | F151: 18941 | K151: 0 | L151: 212
A152: 12 | B152: 19034 | C152: 23 | D152: 19036 | E152: 14 | F152: 19043 | K152: 0 | L152: 121
A153: 12 | B153: 19137 | C153: 23 | D153: 19140 | E153: 23 | F153: 19146 | K153: 0 | L153: 122
A154: 12 | B154: 19240 | C154: 23 | D154: 19244 | E154: 23 | F154: 19248 | K154: 0 | L154: 122
A155: 12 | B155: 19340 | C155: 23 | D155: 19344 | E155: 23 | F155: 19354 | K155: 0 | L155: 122
A156: 21 | B156: 19449 | C156: 12 | D156: 19453 | E156: 23 | F156: 19462 | K156: 0 | L156: 212
A157: 12 | B157: 19555 | C157: 23 | D157: 19557 | E157: 14 | F157: 19561 | K157: 0 | L157: 121
A158: 21 | B158: 19656 | C158: 21 | D158: 19662 | E158: 12 | F158: 19664 | K158: 0 | L158: 221
A159: 21 | B159: 19761 | C159: 12 | D159: 19765 | E159: 23 | F159: 19771 | K159: 0 | L159: 212
A160: 12 | B160: 19865 | C160: 23 | D160: 19867 | E160: 23 | F160: 19870 | K160: 0 | L160: 122
A161: 21 | B161: 19966 | C161: 12 | D161: 19969 | E161: 23 | F161: 19978 | K161: 0 | L161: 212
A162: 12 | B162: 20072 | C162: 23 | D162: 20075 | E162: 14 | F162: 20078 | K162: 0 | L162: 121
A163: 21 | B163: 20173 | C163: 12 | D163: 20177 | E163: 23 | F163: 20179 | K163: 0 | L163: 212
A164: 21 | B164: 20276 | C164: 21 | D164: 20279 | E164: 21 | F164: 20286 | K164: 0 | L164: 222
A165: 21 | B165: 20825 | C165: 21 | D165: 20831 | E165: 21 | F165: 20837 | K165: 0 | L165: 222
A166: 21 | B166: 21181 | C166: 12 | D166: 21184 | E166: 23 | F166: 21195 | K166: 0 | L166: 212
A167: 21 | B167: 21293 | C167: 12 | D167: 21301 | E167: 23 | F167: 21317 | K167: 0 | L167: 212
A168: 21 | B168: 21414 | C168: 12 | D168: 21419 | E168: 23 | F168: 21429 | K168: 0 | L168: 212
A169: 12 | B169: 21521 | C169: 23 | D169: 21525 | E169: 23 | F169: 21530 | K169: 0 | L169: 122
A170: 21 | B170: 21626 | C170: 12 | D170: 21635 | E170: 23 | F170: 21637 | K170: 0 | L170: 212
A171: 12 | B171: 21729 | C171: 23 | D171: 21732 | E171: 23 | F171: 21736 | K171: 0 | L171: 122
A172: 21 | B172: 21831 | C172: 21 | D172: 21835 | E172: 21 | F172: 21841 | K172: 0 | L172: 222
A173: 21 | B173: 22303 | C173: 21 | D173: 22325 | E173: 21 | F173: 22335 | K173: 0 | L173: 222
A174: 21 | B174: 22517 | C174: 12 | D174: 22519 | E174: 23 | F174: 22543 | K174: 0 | L174: 212
A175: 21 | B175: 22639 | C175: 21 | D175: 22643 | E175: 12 | F175: 22647 | K175: 0 | L175: 221
A176: 21 | B176: 22750 | C176: 21 | D176: 22753 | E176: 12 | F176: 22755 | K176: 0 | L176: 221
A177: 21 | B177: 22849 | C177: 21 | D177: 22855 | E177: 21 | F177: 22862 | K177: 0 | L177: 222
A178: 21 | B178: 23027 | C178: 12 | D178: 23031 | E178: 23 | F178: 23035 | K178: 0 | L178: 212
A179: 21 | B179: 23159 | C179: 12 | D179: 23162 | E179: 23 | F179: 23164 | K179: 0 | L179: 212
A180: 12 | B180: 23256 | C180: 23 | D180: 23260 | E180: 23 | F180: 23269 | K180: 0 | L180: 122
A181: 21 | B181: 23365 | C181: 12 | D181: 23371 | E181: 23 | F181: 23373 | K181: 0 | L181: 212
A182: 21 | B182: 23467 | C182: 21 | D182: 23470 | E182: 12 | F182: 23473 | K182: 0 | L182: 221
A183: 12 | B183: 23567 | C183: 23 | D183: 23569 | E183: 14 | F183: 23574 | K183: 0 | L183: 121
A184: 21 | B184: 23696 | C184: 12 | D184: 23703 | E184: 23 | F184: 23710 | K184: 0 | L184: 212
A185: 12 | B185: 23802 | C185: 23 | D185: 23805 | E185: 23 | F185: 23809 | K185: 0 | L185: 122
A186: 21 | B186: 23906 | C186: 21 | D186: 23910 | E186: 21 | F186: 23916 | K186: 0 | L186: 222

Sheet !M825A20.Gus
A1: Report for:!M825A20.Gus
A2: Date: | B2: <date>
A3: Hen: | B3: <hen> | F3: Correct Sequence | G3: =Start!J2 -> 222 | P3: Total Sequences in Data | Q3: =4994-COUNTBLANK(L7:L5000) -> 168 | V3: Total Sequences in Block Data | W3: =COUNTA(L7:L34) -> 28 | AA3: Total Sequences in Block Data | AB3: =COUNTA(L35:L62) -> 28 | AF3: Total Sequences in Block Data | AG3: =COUNTA(L63:L90) -> 28 | AK3: Total Sequences in Block Data | AL3: =COUNTA(L91:L118) -> 28 | AP3: Total Sequences in Block Data | AQ3: =COUNTA(L119:L146) -> 28 | AU3: Total Sequences in Block Data | AV3: =COUNTA(L147:L174) -> 28
P4: Total Sequences in Summary | Q4: =SUM(O7:O14) -> 168 | V4: Total Sequences in Block Summary | W4: =SUM(U7:U14) -> 28 | AA4: Total Sequences in Block Summary | AB4: =SUM(Z7:Z14) -> 28 | AF4: Total Sequences in Block Summary | AG4: =SUM(AE7:AE14) -> 28 | AK4: Total Sequences in Block Summary | AL4: =SUM(AJ7:AJ14) -> 28 | AP4: Total Sequences in Block Summary | AQ4: =SUM(AO7:AO14) -> 28 | AU4: Total Sequences in Block Summary | AV4: =SUM(AT7:AT14) -> 28
T5: Block 1 | Y5: Block 2 | AD5: Block 3 | AI5: Block 4 | AN5: Block 5 | AS5: Block 6
A6: Sequence Component 1 | B6: Time 1 | C6: Sequence Component 2 | D6: Time 2 | E6: Sequence Component 3 | F6: Time 3 | G6: Sequence Component 4 | H6: Time 4 | I6: Sequence Component 5 | J6: Time 5 | K6: Correct? 0=No 1=Yes | L6: Sequence | N6: Frequency | P6: Relative Frequency | Q6: Variability | T6: Frequency | V6: Relative Frequency | W6: Variability | Y6: Frequency | AA6: Relative Frequency | AB6: Variability | AD6: Frequency | AF6: Relative Frequency | AG6: Variability | AI6: Frequency | AK6: Relative Frequency | AL6: Variability | AN6: Frequency | AP6: Relative Frequency | AQ6: Variability | AS6: Frequency | AU6: Relative Frequency | AV6: Variability
A7: 21 | B7: 232 | C7: 21 | D7: 242 | E7: 21 | F7: 254 | K7: 0 | L7: 222 | N7: 111 | O7: =COUNTIF($L$7:$L$500,N7) -> 0 | P7: =O7/$Q$4 -> 0 | Q7: =IF(P7=0,0,(P7*((LOG(P7))/LOG(2)))) -> 0 | T7: =N7 -> 111 | U7: =COUNTIF(L7:L34,T7) -> 0 | V7: =U7/(W4-U14) -> 0 | W7: =IF(V7=0,0,(V7*((LOG(V7))/LOG(2)))) -> 0 | Y7: =N7 -> 111 | Z7: =COUNTIF(L35:L62,Y7) -> 0 | AA7: =Z7/(AB4-Z14) -> 0 | AB7: =IF(AA7=0,0,(AA7*((LOG(AA7))/LOG(2)))) -> 0 | AD7: =N7 -> 111 | AE7: =COUNTIF(L63:L90,AD7) -> 0 | AF7: =AE7/(AG4-AE14) -> 0 | AG7: =IF(AF7=0,0,(AF7*((LOG(AF7))/LOG(2)))) -> 0 | AI7: =N7 -> 111 | AJ7: =COUNTIF(L91:L118,AI7) -> 0 | AK7: =AJ7/(AL4-AJ14) -> 0 | AL7: =IF(AK7=0,0,(AK7*((LOG(AK7))/LOG(2)))) -> 0 | AN7: =N7 -> 111 | AO7: =COUNTIF(L119:L146,AN7) -> 0 | AP7: =AO7/(AQ4-AO14) -> 0 | AQ7: =IF(AP7=0,0,(AP7*((LOG(AP7))/LOG(2)))) -> 0 | AS7: =N7 -> 111 | AT7: =COUNTIF(L147:L174,AS7) -> 0 | AU7: =AT7/(AV4-AT14) -> 0 | AV7: =IF(AU7=0,0,(AU7*((LOG(AU7))/LOG(2)))) -> 0
A8: 21 | B8: 675 | C8: 21 | D8: 701 | E8: 21 | F8: 711 | K8: 0 | L8: 222 | N8: 112 | O8: =COUNTIF($L$7:$L$500,N8) -> 4 | P8: =O8/$Q$4 -> 0.02380952381 | Q8: =IF(P8=0,0,(P8*((LOG(P8))/LOG(2)))) -> -0.1283885101 | T8: =N8 -> 112 | U8: =COUNTIF(L7:L34,T8) -> 1 | V8: =U8/(W4-U14) -> 0.05263157895 | W8: =IF(V8=0,0,(V8*((LOG(V8))/LOG(2)))) -> -0.2235751323 | Y8: =N8 -> 112 | Z8: =COUNTIF(L35:L62,Y8) -> 0 | AA8: =Z8/(AB4-Z14) -> 0 | AB8: =IF(AA8=0,0,(AA8*((LOG(AA8))/LOG(2)))) -> 0 | AD8: =N8 -> 112 | AE8: =COUNTIF(L63:L90,AD8) -> 0 | AF8: =AE8/(AG4-AE14) -> 0 | AG8: =IF(AF8=0,0,(AF8*((LOG(AF8))/LOG(2)))) -> 0 | AI8: =N8 -> 112 | AJ8: =COUNTIF(L91:L118,AI8) -> 1 | AK8: =AJ8/(AL4-AJ14) -> 0.03846153846 | AL8: =IF(AK8=0,0,(AK8*((LOG(AK8))/LOG(2)))) -> -0.180786143 | AN8: =N8 -> 112 | AO8: =COUNTIF(L119:L146,AN8) -> 1 | AP8: =AO8/(AQ4-AO14) -> 0.04545454545 | AQ8: =IF(AP8=0,0,(AP8*((LOG(AP8))/LOG(2)))) -> -0.2027014372 | AS8: =N8 -> 112 | AT8: =COUNTIF(L147:L174,AS8) -> 1 | AU8: =AT8/(AV4-AT14) -> 0.04761904762 | AV8: =IF(AU8=0,0,(AU8*((LOG(AU8))/LOG(2)))) -> -0.2091579725
A9: 12 | B9: 1095 | C9: 23 | D9: 1132 | E9: 23 | F9: 1140 | K9: 0 | L9: 122 | N9: 121 | O9: =COUNTIF($L$7:$L$500,N9) -> 9 | P9: =O9/$Q$4 -> 0.05357142857 | Q9: =IF(P9=0,0,(P9*((LOG(P9))/LOG(2)))) -> -0.226199594 | T9: =N9 -> 121 | U9: =COUNTIF(L7:L34,T9) -> 1 | V9: =U9/(W4-U14) -> 0.05263157895 | W9: =IF(V9=0,0,(V9*((LOG(V9))/LOG(2)))) -> -0.2235751323 | Y9: =N9 -> 121 | Z9: =COUNTIF(L35:L62,Y9) -> 3 | AA9: =Z9/(AB4-Z14) -> 0.125 | AB9: =IF(AA9=0,0,(AA9*((LOG(AA9))/LOG(2)))) -> -0.375 | AD9: =N9 -> 121 | AE9: =COUNTIF(L63:L90,AD9) -> 3 | AF9: =AE9/(AG4-AE14) -> 0.1304347826 | AG9: =IF(AF9=0,0,(AF9*((LOG(AF9))/LOG(2)))) -> -0.3832955811 | AI9: =N9 -> 121 | AJ9: =COUNTIF(L91:L118,AI9) -> 0 | AK9: =AJ9/(AL4-AJ14) -> 0 | AL9: =IF(AK9=0,0,(AK9*((LOG(AK9))/LOG(2)))) -> 0 | AN9: =N9 -> 121 | AO9: =COUNTIF(L119:L146,AN9) -> 2 | AP9: =AO9/(AQ4-AO14) -> 0.09090909091 | AQ9: =IF(AP9=0,0,(AP9*((LOG(AP9))/LOG(2)))) -> -0.3144937835 | AS9: =N9 -> 121 | AT9: =COUNTIF(L147:L174,AS9) -> 0 | AU9: =AT9/(AV4-AT14) -> 0 | AV9: =IF(AU9=0,0,(AU9*((LOG(AU9))/LOG(2)))) -> 0
A10: 21 | B10: 1235 | C10: 12 | D10: 1244 | E10: 14 | F10: 1247 | K10: 0 | L10: 211 | N10: 122 | O10: =COUNTIF($L$7:$L$500,N10) -> 31 | P10: =O10/$Q$4 -> 0.1845238095 | Q10: =IF(P10=0,0,(P10*((LOG(P10))/LOG(2)))) -> -0.4498913957 | T10: =N10 -> 122 | U10: =COUNTIF(L7:L34,T10) -> 7 | V10: =U10/(W4-U14) -> 0.3684210526 | W10: =IF(V10=0,0,(V10*((LOG(V10))/LOG(2)))) -> -0.5307372705 | Y10: =N10 -> 122 | Z10: =COUNTIF(L35:L62,Y10) -> 7 | AA10: =Z10/(AB4-Z14) -> 0.2916666667 | AB10: =IF(AA10=0,0,(AA10*((LOG(AA10))/LOG(2)))) -> -0.5184688771 | AD10: =N10 -> 122 | AE10: =COUNTIF(L63:L90,AD10) -> 2 | AF10: =AE10/(AG4-AE14) -> 0.08695652174 | AG10: =IF(AF10=0,0,(AF10*((LOG(AF10))/LOG(2)))) -> -0.3063966918 | AI10: =N10 -> 122 | AJ10: =COUNTIF(L91:L118,AI10) -> 8 | AK10: =AJ10/(AL4-AJ14) -> 0.3076923077 | AL10: =IF(AK10=0,0,(AK10*((LOG(AK10))/LOG(2)))) -> -0.523212221 | AN10: =N10 -> 122 | AO10: =COUNTIF(L119:L146,AN10) -> 4 | AP10: =AO10/(AQ4-AO14) -> 0.1818181818 | AQ10: =IF(AP10=0,0,(AP10*((LOG(AP10))/LOG(2)))) -> -0.4471693852 | AS10: =N10 -> 122 | AT10: =COUNTIF(L147:L174,AS10) -> 3 | AU10: =AT10/(AV4-AT14) -> 0.1428571429 | AV10: =IF(AU10=0,0,(AU10*((LOG(AU10))/LOG(2)))) -> -0.4010507032
A11: 21 | B11: 1340 | C11: 21 | D11: 1343 | E11: 21 | F11: 1352 | K11: 0 | L11: 222 | N11: 211 | O11: =COUNTIF($L$7:$L$500,N11) -> 4 | P11: =O11/$Q$4 -> 0.02380952381 | Q11: =IF(P11=0,0,(P11*((LOG(P11))/LOG(2)))) -> -0.1283885101 | T11: =N11 -> 211 | U11: =COUNTIF(L7:L34,T11) -> 1 | V11: =U11/(W4-U14) -> 0.05263157895 | W11: =IF(V11=0,0,(V11*((LOG(V11))/LOG(2)))) -> -0.2235751323 | Y11: =N11 -> 211 | Z11: =COUNTIF(L35:L62,Y11) -> 0 | AA11: =Z11/(AB4-Z14) -> 0 | AB11: =IF(AA11=0,0,(AA11*((LOG(AA11))/LOG(2)))) -> 0 | AD11: =N11 -> 211 | AE11: =COUNTIF(L63:L90,AD11) -> 0 | AF11: =AE11/(AG4-AE14) -> 0 | AG11: =IF(AF11=0,0,(AF11*((LOG(AF11))/LOG(2)))) -> 0 | AI11: =N11 -> 211 | AJ11: =COUNTIF(L91:L118,AI11) -> 1 | AK11: =AJ11/(AL4-AJ14) -> 0.03846153846 | AL11: =IF(AK11=0,0,(AK11*((LOG(AK11))/LOG(2)))) -> -0.180786143 | AN11: =N11 -> 211 | AO11: =COUNTIF(L119:L146,AN11) -> 2 | AP11: =AO11/(AQ4-AO14) -> 0.09090909091 | AQ11: =IF(AP11=0,0,(AP11*((LOG(AP11))/LOG(2)))) -> -0.3144937835 | AS11: =N11 -> 211 | AT11: =COUNTIF(L147:L174,AS11) -> 0 | AU11: =AT11/(AV4-AT14) -> 0 | AV11: =IF(AU11=0,0,(AU11*((LOG(AU11))/LOG(2)))) -> 0
A12: 12 | B12: 1611 | C12: 23 | D12: 1643 | E12: 23 | F12: 1653 | K12: 0 | L12: 122 | N12: 212 | O12: =COUNTIF($L$7:$L$500,N12) -> 60 | P12: =O12/$Q$4 -> 0.3571428571 | Q12: =IF(P12=0,0,(P12*((LOG(P12))/LOG(2)))) -> -0.5305095811 | T12: =N12 -> 212 | U12: =COUNTIF(L7:L34,T12) -> 6 | V12: =U12/(W4-U14) -> 0.3157894737 | W12: =IF(V12=0,0,(V12*((LOG(V12))/LOG(2)))) -> -0.5251468461 | Y12: =N12 -> 212 | Z12: =COUNTIF(L35:L62,Y12) -> 12 | AA12: =Z12/(AB4-Z14) -> 0.5 | AB12: =IF(AA12=0,0,(AA12*((LOG(AA12))/LOG(2)))) -> -0.5 | AD12: =N12 -> 212 | AE12: =COUNTIF(L63:L90,AD12) -> 14 | AF12: =AE12/(AG4-AE14) -> 0.6086956522 | AG12: =IF(AF12=0,0,(AF12*((LOG(AF12))/LOG(2)))) -> -0.4359521077 | AI12: =N12 -> 212 | AJ12: =COUNTIF(L91:L118,AI12) -> 10 | AK12: =AJ12/(AL4-AJ14) -> 0.3846153846 | AL12: =IF(AK12=0,0,(AK12*((LOG(AK12))/LOG(2)))) -> -0.5301967782 | AN12: =N12 -> 212 | AO12: =COUNTIF(L119:L146,AN12) -> 8 | AP12: =AO12/(AQ4-AO14) -> 0.3636363636 | AQ12: =IF(AP12=0,0,(AP12*((LOG(AP12))/LOG(2)))) -> -0.5307024068 | AS12: =N12 -> 212 | AT12: =COUNTIF(L147:L174,AS12) -> 10 | AU12: =AT12/(AV4-AT14) -> 0.4761904762 | AV12: =IF(AU12=0,0,(AU12*((LOG(AU12))/LOG(2)))) -> -0.5097092038
A13: 21 | B13: 1748 | C13: 21 | D13: 1754 | E13: 21 | F13: 1762 | K13: 0 | L13: 222 | N13: 221 | O13: =COUNTIF($L$7:$L$500,N13) -> 27 | P13: =O13/$Q$4 -> 0.1607142857 | Q13: =IF(P13=0,0,(P13*((LOG(P13))/LOG(2)))) -> -0.4238726658 | T13: =N13 -> 221 | U13: =COUNTIF(L7:L34,T13) -> 3 | V13: =U13/(W4-U14) -> 0.1578947368 | W13: =IF(V13=0,0,(V13*((LOG(V13))/LOG(2)))) -> -0.4204681599 | Y13: =N13 -> 221 | Z13: =COUNTIF(L35:L62,Y13) -> 2 | AA13: =Z13/(AB4-Z14) -> 0.08333333333 | AB13: =IF(AA13=0,0,(AA13*((LOG(AA13))/LOG(2)))) -> -0.2987468751 | AD13: =N13 -> 221 | AE13: =COUNTIF(L63:L90,AD13) -> 4 | AF13: =AE13/(AG4-AE14) -> 0.1739130435 | AG13: =IF(AF13=0,0,(AF13*((LOG(AF13))/LOG(2)))) -> -0.4388803402 | AI13: =N13 -> 221 | AJ13: =COUNTIF(L91:L118,AI13) -> 6 | AK13: =AJ13/(AL4-AJ14) -> 0.2307692308 | AL13: =IF(AK13=0,0,(AK13*((LOG(AK13))/LOG(2)))) -> -0.4881870502 | AN13: =N13 -> 221 | AO13: =COUNTIF(L119:L146,AN13) -> 5 | AP13: =AO13/(AQ4-AO14) -> 0.2272727273 | AQ13: =IF(AP13=0,0,(AP13*((LOG(AP13))/LOG(2)))) -> -0.4857962554 | AS13: =N13 -> 221 | AT13: =COUNTIF(L147:L174,AS13) -> 7 | AU13: =AT13/(AV4-AT14) -> 0.3333333333 | AV13: =IF(AU13=0,0,(AU13*((LOG(AU13))/LOG(2)))) -> -0.5283208336
A14: 12 | B14: 2034 | C14: 23 | D14: 2047 | E14: 14 | F14: 2057 | K14: 0 | L14: 121 | N14: 222 | O14: =COUNTIF($L$7:$L$500,N14) -> 33 | P14: =O14/$Q$4 -> 0.1964285714 | Q14: =IF(P14=0,0,(P14*((LOG(P14))/LOG(2)))) -> -0.4611992203 | T14: =N14 -> 222 | U14: =COUNTIF(L7:L34,T14) -> 9 | Y14: =N14 -> 222 | Z14: =COUNTIF(L35:L62,Y14) -> 4 | AD14: =N14 -> 222 | AE14: =COUNTIF(L63:L90,AD14) -> 5 | AI14: =N14 -> 222 | AJ14: =COUNTIF(L91:L118,AI14) -> 2 | AN14: =N14 -> 222 | AO14: =COUNTIF(L119:L146,AN14) -> 6 | AS14: =N14 -> 222 | AT14: =COUNTIF(L147:L174,AS14) -> 7
A15: 12 | B15: 2260 | C15: 23 | D15: 2294 | E15: 23 | F15: 2302 | K15: 0 | L15: 122 | P15: =SUM(P7:P14) -> 1 | Q15: =-SUM(Q7:Q14) -> 2.348449477 | V15: =SUM(V7:V14) -> 1 | W15: =-SUM(W7:W14) -> 2.147077673 | AA15: =SUM(AA7:AA14) -> 1 | AB15: =-SUM(AB7:AB14) -> 1.692215752 | AF15: =SUM(AF7:AF14) -> 1 | AG15: =-SUM(AG7:AG14) -> 1.564524721 | AK15: =SUM(AK7:AK14) -> 1 | AL15: =-SUM(AL7:AL14) -> 1.903168335 | AP15: =SUM(AP7:AP14) -> 1 | AQ15: =-SUM(AQ7:AQ14) -> 2.295357052 | AU15: =SUM(AU7:AU14) -> 1 | AV15: =-SUM(AV7:AV14) -> 1.648238713
A16: 21 | B16: 2401 | C16: 12 | D16: 2403 | E16: 23 | F16: 2406 | K16: 0 | L16: 212 | P16: U= | Q16: =Q15/(LOG(Q4)/LOG(2)) -> 0.3176878566 | V16: U1= | W16: =W15/(LOG(W4)/LOG(2)) -> 0.4466234984 | AA16: U2= | AB16: =AB15/(LOG(AB4)/LOG(2)) -> 0.3520055789 | AF16: U3= | AG16: =AG15/(LOG(AG4)/LOG(2)) -> 0.3254439804 | AK16: U4= | AL16: =AL15/(LOG(AL4)/LOG(2)) -> 0.3958867956 | AP16: U5= | AQ16: =AQ15/(LOG(AQ4)/LOG(2)) -> 0.4774677736 | AU16: U6= | AV16: =AV15/(LOG(AV4)/LOG(2)) -> 0.3428577128
A17: 21 | B17: 2500 | C17: 12 | D17: 2504 | E17: 23 | F17: 2507 | K17: 0 | L17: 212
A18: 21 | B18: 2602 | C18: 21 | D18: 2606 | E18: 12 | F18: 2611 | K18: 0 | L18: 221
A19: 21 | B19: 2708 | C19: 12 | D19: 2713 | E19: 23 | F19: 2722 | K19: 0 | L19: 212 | N19: Total Target Seq
A20: 12 | B20: 2814 | C20: 14 | D20: 2821 | E20: 23 | F20: 2830 | K20: 0 | L20: 112 | N20: =COUNTIF(L7:L174,G3) -> 33 | P20: 28 | Q20: 28 | R20: 28 | S20: 28 | T20: 28 | U20: 28
A21: 21 | B21: 3145 | C21: 21 | D21: 3151 | E21: 12 | F21: 3155 | K21: 0 | L21: 221 | P21: % of reinforcement given in 6 equal intervals based on number of trials
A22: 12 | B22: 3250 | C22: 23 | D22: 3257 | E22: 23 | F22: 3263 | K22: 0 | L22: 122 | P22: %_1 | Q22: %_2 | R22: %_3 | S22: %_4 | T22: %_5 | U22: %_6
A23: 12 | B23: 3356 | C23: 23 | D23: 3358 | E23: 23 | F23: 3361 | K23: 0 | L23: 122 | O23: target sequence | P23: =$G$3 -> 222 | Q23: =$G$3 -> 222 | R23: =$G$3 -> 222 | S23: =$G$3 -> 222 | T23: =$G$3 -> 222 | U23: =$G$3 -> 222
A24: 21 | B24: 3456 | C24: 12 | D24: 3462 | E24: 23 | F24: 3472 | K24: 0 | L24: 212 | O24: total reinforcement | P24: =U14 -> 9 | Q24: =Z14 -> 4 | R24: =AE14 -> 5 | S24: =AJ14 -> 2 | T24: =AO14 -> 6 | U24: =AT14 -> 7
A25: 21 | B25: 3570 | C25: 21 | D25: 3576 | E25: 21 | F25: 3585 | K25: 0 | L25: 222 | O25: % target
A26: 21 | B26: 3843 | C26: 21 | D26: 3848 | E26: 21 | F26: 3859 | K26: 0 | L26: 222 | O26: CCRF
A27: 21 | B27: 4271 | C27: 12 | D27: 4278 | E27: 23 | F27: 4284 | K27: 0 | L27: 212 | O27: % CCRf
A28: 21 | B28: 4376 | C28: 21 | D28: 4381 | E28: 21 | F28: 4390 | K28: 0 | L28: 222 | O28: average response rate | P28: =F34/P20 -> 191.5357143 | Q28: =(F62-F34)/Q20 -> 121.0357143 | R28: =(F90-F62)/R20 -> 140.7142857 | S28: =(F118-F90)/S20 -> 120.75 | T28: =(F146-F118)/T20 -> 159.25 | U28: =(F174-F146)/U20 -> 120.0357143
A29: 21 | B29: 4640 | C29: 21 | D29: 4645 | E29: 12 | F29: 4654 | K29: 0 | L29: 221
A30: 12 | B30: 4754 | C30: 23 | D30: 4759 | E30: 23 | F30: 4765 | K30: 0 | L30: 122
A31: 21 | B31: 4861 | C31: 21 | D31: 4863 | E31: 21 | F31: 4880 | K31: 0 | L31: 222
A32: 12 | B32: 5131 | C32: 23 | D32: 5137 | E32: 23 | F32: 5143 | K32: 0 | L32: 122
A33: 21 | B33: 5241 | C33: 12 | D33: 5244 | E33: 23 | F33: 5255 | K33: 0 | L33: 212
A34: 21 | B34: 5349 | C34: 21 | D34: 5355 | E34: 21 | F34: 5363 | K34: 0 | L34: 222
A35: 21 | B35: 5574 | C35: 12 | D35: 5581 | E35: 23 | F35: 5586 | K35: 0 | L35: 212
A36: 21 | B36: 5686 | C36: 12 | D36: 5689 | E36: 23 | F36: 5699 | K36: 0 | L36: 212
A37: 21 | B37: 5803 | C37: 12 | D37: 5806 | E37: 23 | F37: 5810 | K37: 0 | L37: 212
A38: 12 | B38: 5903 | C38: 23 | D38: 5905 | E38: 23 | F38: 5908 | K38: 0 | L38: 122
A39: 21 | B39: 6003 | C39: 12 | D39: 6007 | E39: 23 | F39: 6009 | K39: 0 | L39: 212
A40: 12 | B40: 6102 | C40: 23 | D40: 6105 | E40: 23 | F40: 6109 | K40: 0 | L40: 122
A41: 12 | B41: 6202 | C41: 23 | D41: 6206 | E41: 23 | F41: 6209 | K41: 0 | L41: 122
A42: 12 | B42: 6302 | C42: 23 | D42: 6305 | E42: 14 | F42: 6310 | K42: 0 | L42: 121
A43: 21 | B43: 6406 | C43: 12 | D43: 6409 | E43: 23 | F43: 6411 | K43: 0 | L43: 212
A44: 21 | B44: 6502 | C44: 12 | D44: 6505 | E44: 23 | F44: 6514 | K44: 0 | L44: 212
A45: 12 | B45: 6607 | C45: 23 | D45: 6610 | E45: 14 | F45: 6615 | K45: 0 | L45: 121
A46: 12 | B46: 6707 | C46: 23 | D46: 6711 | E46: 14 | F46: 6716 | K46: 0 | L46: 121
A47: 21 | B47: 6812 | C47: 21 | D47: 6814 | E47: 12 | F47: 6817 | K47: 0 | L47: 221
A48: 21 | B48: 6913 | C48: 12 | D48: 6918 | E48: 23 | F48: 6920 | K48: 0 | L48: 212
A49: 21 | B49: 7017 | C49: 12 | D49: 7022 | E49: 23 | F49: 7030 | K49: 0 | L49: 212
A50: 12 | B50: 7122 | C50: 23 | D50: 7125 | E50: 23 | F50: 7131 | K50: 0 | L50: 122
A51: 21 | B51: 7227 | C51: 12 | D51: 7231 | E51: 23 | F51: 7238 | K51: 0 | L51: 212
A52: 12 | B52: 7331 | C52: 23 | D52: 7335 | E52: 23 | F52: 7339 | K52: 0 | L52: 122
A53: 21 | B53: 7436 | C53: 12 | D53: 7438 | E53: 23 | F53: 7444 | K53: 0 | L53: 212
A54: 21 | B54: 7540 | C54: 21 | D54: 7544 | E54: 12 | F54: 7547 | K54: 0 | L54: 221
A55: 21 | B55: 7642 | C55: 21 | D55: 7645 | E55: 21 | F55: 7651 | K55: 0 | L55: 222
A56: 21 | B56: 7933 | C56: 12 | D56: 7937 | E56: 23 | F56: 7939 | K56: 0 | L56: 212
A57: 12 | B57: 8034 | C57: 23 | D57: 8039 | E57: 23 | F57: 8046 | K57: 0 | L57: 122
A58: 21 | B58: 8142 | C58: 21 | D58: 8145 | E58: 21 | F58: 8150 | K58: 0 | L58: 222
A59: 12 | B59: 8323 | C59: 23 | D59: 8329 | E59: 23 | F59: 8346 | K59: 0 | L59: 122
A60: 21 | B60: 8444 | C60: 21 | D60: 8447 | E60: 21 | F60: 8460 | K60: 0 | L60: 222
A61: 21 | B61: 8627 | C61: 12 | D61: 8632 | E61: 23 | F61: 8638 | K61: 0 | L61: 212
A62: 21 | B62: 8742 | C62: 21 | D62: 8748 | E62: 21 | F62: 8752 | K62: 0 | L62: 222
A63: 21 | B63: 8871 | C63: 12 | D63: 8878 | E63: 23 | F63: 8890 | K63: 0 | L63: 212
A64: 21 | B64: 8987 | C64: 12 | D64: 8989 | E64: 23 | F64: 8991 | K64: 0 | L64: 212
A65: 12 | B65: 9085 | C65: 23 | D65: 9088 | E65: 14 | F65: 9092 | K65: 0 | L65: 121
A66: 21 | B66: 9187 | C66: 12 | D66: 9190 | E66: 23 | F66: 9210 | K66: 0 | L66: 212
A67: 21 | B67: 9306 | C67: 12 | D67: 9308 | E67: 23 | F67: 9315 | K67: 0 | L67: 212
A68: 21 | B68: 9410 | C68: 21 | D68: 9415 | E68: 12 | F68: 9419 | K68: 0 | L68: 221
A69: 21 | B69: 9515 | C69: 12 | D69: 9517 | E69: 23 | F69: 9524 | K69: 0 | L69: 212
A70: 21 | B70: 9620 | C70: 12 | D70: 9623 | E70: 23 | F70: 9627 | K70: 0 | L70: 212
A71: 21 | B71: 9724 | C71: 12 | D71: 9726 | E71: 23 | F71: 9728 | K71: 0 | L71: 212
A72: 21 | B72: 9823 | C72: 12 | D72: 9825 | E72: 23 | F72: 9830 | K72: 0 | L72: 212
A73: 21 | B73: 9926 | C73: 12 | D73: 9929 | E73: 23 | F73: 9936 | K73: 0 | L73: 212
A74: 12 | B74: 10029 | C74: 23 | D74: 10032 | E74: 14 | F74: 10036 | K74: 0 | L74: 121
A75: 21 | B75: 10132 | C75: 12 | D75: 10135 | E75: 23 | F75: 10149 | K75: 0 | L75: 212
A76: 21 | B76: 10244 | C76: 21 | D76: 10248 | E76: 12 | F76: 10253 | K76: 0 | L76: 221
A77: 21 | B77: 10349 | C77: 21 | D77: 10353 | E77: 21 | F77: 10357 | K77: 0 | L77: 222
A78: 12 | B78: 10708 | C78: 23 | D78: 10714 | E78: 23 | F78: 10729 | K78: 0 | L78: 122
A79: 21 | B79: 10826 | C79: 12 | D79: 10829 | E79: 23 | F79: 10839 | K79: 0 | L79: 212
A80: 12 | B80: 10934 | C80: 23 | D80: 10937 | E80: 14 | F80: 10939 | K80: 0 | L80: 121
A81: 21 | B81: 11035 | C81: 21 | D81: 11038 | E81: 21 | F81: 11041 | K81: 0 | L81: 222
A82: 21 | B82: 11552 | C82: 12 | D82: 11561 | E82: 23 | F82: 11566 | K82: 0 | L82: 212
A83: 21 | B83: 11661 | C83: 21 | D83: 11666 | E83: 21 | F83: 11671 | K83: 0 | L83: 222
A84: 21 | B84: 11818 | C84: 12 | D84: 11823 | E84: 23 | F84: 11827 | K84: 0 | L84: 212
A85: 21 | B85: 11923 | C85: 21 | D85: 11926 | E85: 12 | F85: 11931 | K85: 0 | L85: 221
A86: 21 | B86: 12033 | C86: 21 | D86: 12042 | E86: 21 | F86: 12050 | K86: 0 | L86: 222
A87: 21 | B87: 12367 | C87: 12 | D87: 12371 | E87: 23 | F87: 12378 | K87: 0 | L87: 212
A88: 12 | B88: 12470 | C88: 23 | D88: 12474 | E88: 23 | F88: 12477 | K88: 0 | L88: 122
A89: 21 | B89: 12572 | C89: 21 | D89: 12577 | E89: 12 | F89: 12587 | K89: 0 | L89: 221
A90: 21 | B90: 12682 | C90: 21 | D90: 12686 | E90: 21 | F90: 12692 | K90: 0 | L90: 222
A91: 12 | B91: 12895 | C91: 23 | D91: 12907 | E91: 23 | F91: 12922 | K91: 0 | L91: 122
A92: 21 | B92: 13019 | C92: 21 | D92: 13024 | E92: 12 | F92: 13027 | K92: 0 | L92: 221
A93: 21 | B93: 13123 | C93: 21 | D93: 13128 | E93: 12 | F93: 13133 | K93: 0 | L93: 221
A94: 12 | B94: 13226 | C94: 23 | D94: 13230 | E94: 23 | F94: 13232 | K94: 0 | L94: 122
A95: 12 | B95: 13324 | C95: 23 | D95: 13328 | E95: 23 | F95: 13331 | K95: 0 | L95: 122
A96: 12 | B96: 13422 | C96: 23 | D96: 13426 | E96: 23 | F96: 13430 | K96: 0 | L96: 122
A97: 21 | B97: 13526 | C97: 21 | D97: 13530 | E97: 21 | F97: 13537 | K97: 0 | L97: 222
A98: 21 | B98: 13843 | C98: 12 | D98: 13848 | E98: 23 | F98: 13855 | K98: 0 | L98: 212
A99: 21 | B99: 13952 | C99: 12 | D99: 13956 | E99: 23 | F99: 13967 | K99: 0 | L99: 212
A100: 21 | B100: 14063 | C100: 12 | D100: 14067 | E100: 23 | F100: 14073 | K100: 0 | L100: 212
A101: 21 | B101: 14165 | C101: 12 | D101: 14168 | E101: 23 | F101: 14175 | K101: 0 | L101: 212
A102: 21 | B102: 14270 | C102: 12 | D102: 14274 | E102: 23 | F102: 14276 | K102: 0 | L102: 212
A103: 21 | B103: 14372 | C103: 21 | D103: 14376 | E103: 12 | F103: 14380 | K103: 0 | L103: 221
A104: 21 | B104: 14477 | C104: 21 | D104: 14488 | E104: 12 | F104: 14493 | K104: 0 | L104: 221
A105: 21 | B105: 14590 | C105: 12 | D105: 14593 | E105: 14 | F105: 14595 | K105: 0 | L105: 211
A106: 12 | B106: 14688 | C106: 23 | D106: 14690 | E106: 23 | F106: 14693 | K106: 0 | L106: 122
A107: 21 | B107: 14789 | C107: 12 | D107: 14799 | E107: 23 | F107: 14806 | K107: 0 | L107: 212
A108: 21 | B108: 14902 | C108: 21 | D108: 14906 | E108: 12 | F108: 14910 | K108: 0 | L108: 221
A109: 21 | B109: 15005 | C109: 21 | D109: 15009 | E109: 12 | F109: 15015 | K109: 0 | L109: 221
A110: 21 | B110: 15112 | C110: 12 | D110: 15115 | E110: 23 | F110: 15118 | K110: 0 | L110: 212
A111: 12 | B111: 15210 | C111: 23 | D111: 15214 | E111: 23 | F111: 15218 | K111: 0 | L111: 122
A112: 21 | B112: 15313 | C112: 12 | D112: 15318 | E112: 23 | F112: 15326 | K112: 0 | L112: 212
A113: 21 | B113: 15423 | C113: 12 | D113: 15431 | E113: 23 | F113: 15440 | K113: 0 | L113: 212
A114: 12 | B114: 15533 | C114: 23 | D114: 15536 | E114: 23 | F114: 15541 | K114: 0 | L114: 122
A115: 21 | B115: 15637 | C115: 21 | D115: 15640 | E115: 21 | F115: 15646 | K115: 0 | L115: 222
A116: 21 | B116: 15851 | C116: 12 | D116: 15855 | E116: 23 | F116: 15858 | K116: 0 | L116: 212
A117: 12 | B117: 15950 | C117: 14 | D117: 15958 | E117: 23 | F117: 15972 | K117: 0 | L117: 112
A118: 12 | B118: 16066 | C118: 23 | D118: 16068 | E118: 23 | F118: 16073 | K118: 0 | L118: 122
A119: 21 | B119: 16169 | C119: 21 | D119: 16173 | E119: 12 | F119: 16178 | K119: 0 | L119: 221
A120: 12 | B120: 16273 | C120: 14 | D120: 16277 | E120: 23 | F120: 16289 | K120: 0 | L120: 112
A121: 12 | B121: 16383 | C121: 23 | D121: 16386 | E121: 14 | F121: 16390 | K121: 0 | L121: 121
A122: 12 | B122: 16484 | C122: 23 | D122: 16489 | E122: 14 | F122: 16492 | K122: 0 | L122: 121
A123: 21 | B123: 16588 | C123: 21 | D123: 16591 | E123: 21 | F123: 16598 | K123: 0 | L123: 222
A124: 21 | B124: 16861 | C124: 12 | D124: 16864 | E124: 23 | F124: 16875 | K124: 0 | L124: 212
A125: 21 | B125: 16971 | C125: 12 | D125: 16974 | E125: 23 | F125: 16981 | K125: 0 | L125: 212
A126: 21 | B126: 17077 | C126: 21 | D126: 17080 | E126: 12 | F126: 17082 | K126: 0 | L126: 221
A127: 21 | B127: 17178 | C127: 21 | D127: 17182 | E127: 21 | F127: 17188 | K127: 0 | L127: 222
A128: 21 | B128: 17933 | C128: 21 | D128: 17937 | E128: 12 | F128: 17941 | K128: 0 | L128: 221
A129: 21 | B129: 18036 | C129: 21 | D129: 18041 | E129: 21 | F129: 18048 | K129: 0 | L129: 222
A130: 12 | B130: 18187 | C130: 23 | D130: 18192 | E130: 23 | F130: 18201 | K130: 0 | L130: 122
A131: 21 | B131: 18296 | C131: 21 | D131: 18300 | E131: 21 | F131: 18308 | K131: 0 | L131: 222
A132: 21 | B132: 18462 | C132: 21 | D132: 18467 | E132: 12 | F132: 18470 | K132: 0 | L132: 221
A133: 21 | B133: 18566 | C133: 21 | D133: 18569 | E133: 21 | F133: 18576 | K133: 0 | L133: 222
A134: 21 | B134: 18700 | C134: 12 | D134: 18705 | E134: 23 | F134: 18719 | K134: 0 | L134: 212
A135: 21 | B135: 18812 | C135: 12 | D135: 18814 | E135: 23 | F135: 18824 | K135: 0 | L135: 212
A136: 21 | B136: 18922 | C136: 12 | D136: 18927 | E136: 23 | F136: 18937 | K136: 0 | L136: 212
A137: 21 | B137: 19033 | C137: 12 | D137: 19037 | E137: 14 | F137: 19038 | K137: 0 | L137: 211
A138: 21 | B138: 19135 | C138: 12 | D138: 19138 | E138: 14 | F138: 19140 | K138: 0 | L138: 211
A139: 21 | B139: 19236 | C139: 12 | D139: 19239 | E139: 23 | F139: 19241 | K139: 0 | L139: 212
A140: 21 | B140: 19337 | C140: 12 | D140: 19341 | E140: 23 | F140: 19348 | K140: 0 | L140: 212
A141: 21 | B141: 19444 | C141: 12 | D141: 19448 | E141: 23 | F141: 19451 | K141: 0 | L141: 212
A142: 12 | B142: 19545 | C142: 23 | D142: 19547 | E142: 23 | F142: 19550 | K142: 0 | L142: 122
A143: 21 | B143: 19645 | C143: 21 | D143: 19648 | E143: 21 | F143: 19664 | K143: 0 | L143: 222
A144: 21 | B144: 20324 | C144: 21 | D144: 20329 | E144: 12 | F144: 20332 | K144: 0 | L144: 221
A145: 12 | B145: 20424 | C145: 23 | D145: 20428 | E145: 23 | F145: 20433 | K145: 0 | L145: 122
A146: 12 | B146: 20525 | C146: 23 | D146: 20528 | E146: 23 | F146: 20532 | K146: 0 | L146: 122
A147: 12 | B147: 20625 | C147: 23 | D147: 20629 | E147: 23 | F147: 20633 | K147: 0 | L147: 122
A148: 21 | B148: 20729 | C148: 21 | D148: 20733 | E148: 21 | F148: 20738 | K148: 0 | L148: 222
A149: 21 | B149: 20943 | C149: 21 | D149: 20952 | E149: 21 | F149: 20958 | K149: 0 | L149: 222
A150: 12 | B150: 21128 | C150: 14 | D150: 21131 | E150: 23 | F150: 21139 | K150: 0 | L150: 112
A151: 21 | B151: 21237 | C151: 12 | D151: 21240 | E151: 23 | F151: 21248 | K151: 0 | L151: 212
A152: 21 | B152: 21346 | C152: 21 | D152: 21351 | E152: 12 | F152: 21360 | K152: 0 | L152: 221
A153: 21 | B153: 21454 | C153: 21 | D153: 21457 | E153: 21 | F153: 21461 | K153: 0 | L153: 222
A154: 12 | B154: 21586 | C154: 23 | D154: 21598 | E154: 23 | F154: 21609 | K154: 0 | L154: 122
A155: 21 | B155: 21705 | C155: 12 | D155: 21709 | E155: 23 | F155: 21719 | K155: 0 | L155: 212
A156: 21 | B156: 21815 | C156: 12 | D156: 21821 | E156: 23 | F156: 21823 | K156: 0 | L156: 212
A157: 21 | B157: 21919 | C157: 21 | D157: 21923 | E157: 12 | F157: 21926 | K157: 0 | L157: 221
A158: 21 | B158: 22023 | C158: 12 | D158: 22026 | E158: 23 | F158: 22033 | K158: 0 | L158: 212
A159: 21 | B159: 22128 | C159: 12 | D159: 22133 | E159: 23 | F159: 22136 | K159: 0 | L159: 212
A160: 21 | B160: 22231 | C160: 21 | D160: 22236 | E160: 21 | F160: 22245 | K160: 0 | L160: 222
A161: 21 | B161: 22408 | C161: 21 | D161: 22419 | E161: 12 | F161: 22424 | K161: 0 | L161: 221
A162: 12 | B162: 22519 | C162: 23 | D162: 22521 | E162: 23 | F162: 22525 | K162: 0 | L162: 122
A163: 21 | B163: 22621 | C163: 21 | D163: 22625 | E163: 21 | F163: 22637 | K163: 0 | L163: 222
A164: 21 | B164: 22743 | C164: 21 | D164: 22747 | E164: 12 | F164: 22750 | K164: 0 | L164: 221
A165: 21 | B165: 22846 | C165: 12 | D165: 22851 | E165: 23 | F165: 22868 | K165: 0 | L165: 212
A166: 21 | B166: 22981 | C166: 21 | D166: 22992 | E166: 21 | F166: 22998 | K166: 0 | L166: 222
A167: 21 | B167: 23138 | C167: 12 | D167: 23144 | E167: 23 | F167: 23151 | K167: 0 | L167: 212
A168: 21 | B168: 23247 | C168: 12 | D168: 23252 | E168: 23 | F168: 23258 | K168: 0 | L168: 212
A169: 21 | B169: 23355 | C169: 21 | D169: 23359 | E169: 12 | F169: 23370 | K169: 0 | L169: 221
A170: 21 | B170: 23465 | C170: 12 | D170: 23468 | E170: 23 | F170: 23471 | K170: 0 | L170: 212
A171: 21 | B171: 23567 | C171: 21 | D171: 23573 | E171: 12 | F171: 23578 | K171: 0 | L171: 221
A172: 21 | B172: 23673 | C172: 12 | D172: 23679 | E172: 23 | F172: 23686 | K172: 0 | L172: 212
A173: 21 | B173: 23783 | C173: 21 | D173: 23787 | E173: 12 | F173: 23790 | K173: 0 | L173: 221
A174: 21 | B174: 23886 | C174: 21 | D174: 23888 | E174: 21 | F174: 23893 | K174: 0 | L174: 222

Sheet !M826B30.Gus
A1: Report for:!M826B30.Gus
A2: Date: | B2: <date>
A3: Hen: | B3: <hen> | F3: Correct Sequence | G3: =Start!J2 -> 222 | P3: Total Sequences in Data | Q3: =4994-COUNTBLANK(L7:L5000) -> 49 | V3: Total Sequences in Block Data | W3: =COUNTA(L7:L14) -> 8 | AA3: Total Sequences in Block Data | AB3: =COUNTA(L15:L22) -> 8 | AF3: Total Sequences in Block Data | AG3: =COUNTA(L23:L31) -> 9 | AK3: Total Sequences in Block Data | AL3: =COUNTA(L32:L39) -> 8 | AP3: Total Sequences in Block Data | AQ3: =COUNTA(L40:L47) -> 8 | AU3: Total Sequences in Block Data | AV3: =COUNTA(L48:L55) -> 8
P4: Total Sequences in Summary | Q4: =SUM(O7:O14) -> 49 | V4: Total Sequences in Block Summary | W4: =SUM(U7:U14) -> 8 | AA4: Total Sequences in Block Summary | AB4: =SUM(Z7:Z14) -> 8 | AF4: Total Sequences in Block Summary | AG4: =SUM(AE7:AE14) -> 9 | AK4: Total Sequences in Block Summary | AL4: =SUM(AJ7:AJ14) -> 8 | AP4: Total Sequences in Block Summary | AQ4: =SUM(AO7:AO14) -> 8 | AU4: Total Sequences in Block Summary | AV4: =SUM(AT7:AT14) -> 8
T5: Block 1 | Y5: Block 2 | AD5: Block 3 | AI5: Block 4 | AN5: Block 5 | AS5: Block 6
A6: Sequence Component 1 | B6: Time 1 | C6: Sequence Component 2 | D6: Time 2 | E6: Sequence Component 3 | F6: Time 3 | G6: Sequence Component 4 | H6: Time 4 | I6: Sequence Component 5 | J6: Time 5 | K6: Correct? 0=No 1=Yes | L6: Sequence | N6: Frequency | P6: Relative Frequency | Q6: Variability | T6: Frequency | V6: Relative Frequency | W6: Variability | Y6: Frequency | AA6: Relative Frequency | AB6: Variability | AD6: Frequency | AF6: Relative Frequency | AG6: Variability | AI6: Frequency | AK6: Relative Frequency | AL6: Variability | AN6: Frequency | AP6: Relative Frequency | AQ6: Variability | AS6: Frequency | AU6: Relative Frequency | AV6: Variability
A7: 21 | B7: 11 | C7: 21 | D7: 16 | E7: 21 | F7: 21 | K7: 0 | L7: 222 | N7: 111 | O7: =COUNTIF($L$7:$L$500,N7) -> 0 | P7: =O7/$Q$4 -> 0 | Q7: =IF(P7=0,0,(P7*((LOG(P7))/LOG(2)))) -> 0 | T7: =N7 -> 111 | U7: =COUNTIF(L7:L14,T7) -> 0 | V7: =U7/(W4-U14) -> 0 | W7: =IF(V7=0,0,(V7*((LOG(V7))/LOG(2)))) -> 0 | Y7: =N7 -> 111 | Z7: =COUNTIF(L15:L22,Y7) -> 0 | AA7: =Z7/(AB4-Z14) -> 0 | AB7: =IF(AA7=0,0,(AA7*((LOG(AA7))/LOG(2)))) -> 0 | AD7: =N7 -> 111 | AE7: =COUNTIF(L23:L31,AD7) -> 0 | AF7: =AE7/(AG4-AE14) ->  | AG7: =IF(AF7=0,0,(AF7*((LOG(AF7))/LOG(2)))) ->  | AI7: =N7 -> 111 | AJ7: =COUNTIF(L32:L39,AI7) -> 0 | AK7: =AJ7/(AL4-AJ14) -> 0 | AL7: =IF(AK7=0,0,(AK7*((LOG(AK7))/LOG(2)))) -> 0 | AN7: =N7 -> 111 | AO7: =COUNTIF(L40:L47,AN7) -> 0 | AP7: =AO7/(AQ4-AO14) -> 0 | AQ7: =IF(AP7=0,0,(AP7*((LOG(AP7))/LOG(2)))) -> 0 | AS7: =N7 -> 111 | AT7: =COUNTIF(L48:L55,AS7) -> 0 | AU7: =AT7/(AV4-AT14) -> 0 | AV7: =IF(AU7=0,0,(AU7*((LOG(AU7))/LOG(2)))) -> 0
A8: 21 | B8: 140 | C8: 21 | D8: 152 | E8: 21 | F8: 158 | K8: 0 | L8: 222 | N8: 112 | O8: =COUNTIF($L$7:$L$500,N8) -> 0 | P8: =O8/$Q$4 -> 0 | Q8: =IF(P8=0,0,(P8*((LOG(P8))/LOG(2)))) -> 0 | T8: =N8 -> 112 | U8: =COUNTIF(L7:L14,T8) -> 0 | V8: =U8/(W4-U14) -> 0 | W8: =IF(V8=0,0,(V8*((LOG(V8))/LOG(2)))) -> 0 | Y8: =N8 -> 112 | Z8: =COUNTIF(L15:L22,Y8) -> 0 | AA8: =Z8/(AB4-Z14) -> 0 | AB8: =IF(AA8=0,0,(AA8*((LOG(AA8))/LOG(2)))) -> 0 | AD8: =N8 -> 112 | AE8: =COUNTIF(L23:L31,AD8) -> 0 | AF8: =AE8/(AG4-AE14) ->  | AG8: =IF(AF8=0,0,(AF8*((LOG(AF8))/LOG(2)))) ->  | AI8: =N8 -> 112 | AJ8: =COUNTIF(L32:L39,AI8) -> 0 | AK8: =AJ8/(AL4-AJ14) -> 0 | AL8: =IF(AK8=0,0,(AK8*((LOG(AK8))/LOG(2)))) -> 0 | AN8: =N8 -> 112 | AO8: =COUNTIF(L40:L47,AN8) -> 0 | AP8: =AO8/(AQ4-AO14) -> 0 | AQ8: =IF(AP8=0,0,(AP8*((LOG(AP8))/LOG(2)))) -> 0 | AS8: =N8 -> 112 | AT8: =COUNTIF(L48:L55,AS8) -> 0 | AU8: =AT8/(AV4-AT14) -> 0 | AV8: =IF(AU8=0,0,(AU8*((LOG(AU8))/LOG(2)))) -> 0
A9: 21 | B9: 547 | C9: 21 | D9: 552 | E9: 21 | F9: 560 | K9: 0 | L9: 222 | N9: 121 | O9: =COUNTIF($L$7:$L$500,N9) -> 1 | P9: =O9/$Q$4 -> 0.02040816327 | Q9: =IF(P9=0,0,(P9*((LOG(P9))/LOG(2)))) -> -0.1145859152 | T9: =N9 -> 121 | U9: =COUNTIF(L7:L14,T9) -> 0 | V9: =U9/(W4-U14) -> 0 | W9: =IF(V9=0,0,(V9*((LOG(V9))/LOG(2)))) -> 0 | Y9: =N9 -> 121 | Z9: =COUNTIF(L15:L22,Y9) -> 0 | AA9: =Z9/(AB4-Z14) -> 0 | AB9: =IF(AA9=0,0,(AA9*((LOG(AA9))/LOG(2)))) -> 0 | AD9: =N9 -> 121 | AE9: =COUNTIF(L23:L31,AD9) -> 0 | AF9: =AE9/(AG4-AE14) ->  | AG9: =IF(AF9=0,0,(AF9*((LOG(AF9))/LOG(2)))) ->  | AI9: =N9 -> 121 | AJ9: =COUNTIF(L32:L39,AI9) -> 0 | AK9: =AJ9/(AL4-AJ14) -> 0 | AL9: =IF(AK9=0,0,(AK9*((LOG(AK9))/LOG(2)))) -> 0 | AN9: =N9 -> 121 | AO9: =COUNTIF(L40:L47,AN9) -> 0 | AP9: =AO9/(AQ4-AO14) -> 0 | AQ9: =IF(AP9=0,0,(AP9*((LOG(AP9))/LOG(2)))) -> 0 | AS9: =N9 -> 121 | AT9: =COUNTIF(L48:L55,AS9) -> 1 | AU9: =AT9/(AV4-AT14) -> 0.25 | AV9: =IF(AU9=0,0,(AU9*((LOG(AU9))/LOG(2)))) -> -0.5
A10: 21 | B10: 730 | C10: 21 | D10: 736 | E10: 21 | F10: 758 | K10: 0 | L10: 222 | N10: 122 | O10: =COUNTIF($L$7:$L$500,N10) -> 2 | P10: =O10/$Q$4 -> 0.04081632653 | Q10: =IF(P10=0,0,(P10*((LOG(P10))/LOG(2)))) -> -0.1883555038 | T10: =N10 -> 122 | U10: =COUNTIF(L7:L14,T10) -> 1 | V10: =U10/(W4-U14) -> 1 | W10: =IF(V10=0,0,(V10*((LOG(V10))/LOG(2)))) -> 0 | Y10: =N10 -> 122 | Z10: =COUNTIF(L15:L22,Y10) -> 0 | AA10: =Z10/(AB4-Z14) -> 0 | AB10: =IF(AA10=0,0,(AA10*((LOG(AA10))/LOG(2)))) -> 0 | AD10: =N10 -> 122 | AE10: =COUNTIF(L23:L31,AD10) -> 0 | AF10: =AE10/(AG4-AE14) ->  | AG10: =IF(AF10=0,0,(AF10*((LOG(AF10))/LOG(2)))) ->  | AI10: =N10 -> 122 | AJ10: =COUNTIF(L32:L39,AI10) -> 0 | AK10: =AJ10/(AL4-AJ14) -> 0 | AL10: =IF(AK10=0,0,(AK10*((LOG(AK10))/LOG(2)))) -> 0 | AN10: =N10 -> 122 | AO10: =COUNTIF(L40:L47,AN10) -> 1 | AP10: =AO10/(AQ4-AO14) -> 0.25 | AQ10: =IF(AP10=0,0,(AP10*((LOG(AP10))/LOG(2)))) -> -0.5 | AS10: =N10 -> 122 | AT10: =COUNTIF(L48:L55,AS10) -> 0 | AU10: =AT10/(AV4-AT14) -> 0 | AV10: =IF(AU10=0,0,(AU10*((LOG(AU10))/LOG(2)))) -> 0
A11: 21 | B11: 1147 | C11: 21 | D11: 1158 | E11: 21 | F11: 1173 | K11: 0 | L11: 222 | N11: 211 | O11: =COUNTIF($L$7:$L$500,N11) -> 0 | P11: =O11/$Q$4 -> 0 | Q11: =IF(P11=0,0,(P11*((LOG(P11))/LOG(2)))) -> 0 | T11: =N11 -> 211 | U11: =COUNTIF(L7:L14,T11) -> 0 | V11: =U11/(W4-U14) -> 0 | W11: =IF(V11=0,0,(V11*((LOG(V11))/LOG(2)))) -> 0 | Y11: =N11 -> 211 | Z11: =COUNTIF(L15:L22,Y11) -> 0 | AA11: =Z11/(AB4-Z14) -> 0 | AB11: =IF(AA11=0,0,(AA11*((LOG(AA11))/LOG(2)))) -> 0 | AD11: =N11 -> 211 | AE11: =COUNTIF(L23:L31,AD11) -> 0 | AF11: =AE11/(AG4-AE14) ->  | AG11: =IF(AF11=0,0,(AF11*((LOG(AF11))/LOG(2)))) ->  | AI11: =N11 -> 211 | AJ11: =COUNTIF(L32:L39,AI11) -> 0 | AK11: =AJ11/(AL4-AJ14) -> 0 | AL11: =IF(AK11=0,0,(AK11*((LOG(AK11))/LOG(2)))) -> 0 | AN11: =N11 -> 211 | AO11: =COUNTIF(L40:L47,AN11) -> 0 | AP11: =AO11/(AQ4-AO14) -> 0 | AQ11: =IF(AP11=0,0,(AP11*((LOG(AP11))/LOG(2)))) -> 0 | AS11: =N11 -> 211 | AT11: =COUNTIF(L48:L55,AS11) -> 0 | AU11: =AT11/(AV4-AT14) -> 0 | AV11: =IF(AU11=0,0,(AU11*((LOG(AU11))/LOG(2)))) -> 0
A12: 12 | B12: 1379 | C12: 23 | D12: 1383 | E12: 23 | F12: 1435 | K12: 0 | L12: 122 | N12: 212 | O12: =COUNTIF($L$7:$L$500,N12) -> 6 | P12: =O12/$Q$4 -> 0.1224489796 | Q12: =IF(P12=0,0,(P12*((LOG(P12))/LOG(2)))) -> -0.3709894706 | T12: =N12 -> 212 | U12: =COUNTIF(L7:L14,T12) -> 0 | V12: =U12/(W4-U14) -> 0 | W12: =IF(V12=0,0,(V12*((LOG(V12))/LOG(2)))) -> 0 | Y12: =N12 -> 212 | Z12: =COUNTIF(L15:L22,Y12) -> 1 | AA12: =Z12/(AB4-Z14) -> 1 | AB12: =IF(AA12=0,0,(AA12*((LOG(AA12))/LOG(2)))) -> 0 | AD12: =N12 -> 212 | AE12: =COUNTIF(L23:L31,AD12) -> 0 | AF12: =AE12/(AG4-AE14) ->  | AG12: =IF(AF12=0,0,(AF12*((LOG(AF12))/LOG(2)))) ->  | AI12: =N12 -> 212 | AJ12: =COUNTIF(L32:L39,AI12) -> 0 | AK12: =AJ12/(AL4-AJ14) -> 0 | AL12: =IF(AK12=0,0,(AK12*((LOG(AK12))/LOG(2)))) -> 0 | AN12: =N12 -> 212 | AO12: =COUNTIF(L40:L47,AN12) -> 2 | AP12: =AO12/(AQ4-AO14) -> 0.5 | AQ12: =IF(AP12=0,0,(AP12*((LOG(AP12))/LOG(2)))) -> -0.5 | AS12: =N12 -> 212 | AT12: =COUNTIF(L48:L55,AS12) -> 3 | AU12: =AT12/(AV4-AT14) -> 0.75 | AV12: =IF(AU12=0,0,(AU12*((LOG(AU12))/LOG(2)))) -> -0.3112781245
A13: 21 | B13: 1648 | C13: 21 | D13: 1652 | E13: 21 | F13: 1662 | K13: 0 | L13: 222 | N13: 221 | O13: =COUNTIF($L$7:$L$500,N13) -> 2 | P13: =O13/$Q$4 -> 0.04081632653 | Q13: =IF(P13=0,0,(P13*((LOG(P13))/LOG(2)))) -> -0.1883555038 | T13: =N13 -> 221 | U13: =COUNTIF(L7:L14,T13) -> 0 | V13: =U13/(W4-U14) -> 0 | W13: =IF(V13=0,0,(V13*((LOG(V13))/LOG(2)))) -> 0 | Y13: =N13 -> 221 | Z13: =COUNTIF(L15:L22,Y13) -> 0 | AA13: =Z13/(AB4-Z14) -> 0 | AB13: =IF(AA13=0,0,(AA13*((LOG(AA13))/LOG(2)))) -> 0 | AD13: =N13 -> 221 | AE13: =COUNTIF(L23:L31,AD13) -> 0 | AF13: =AE13/(AG4-AE14) ->  | AG13: =IF(AF13=0,0,(AF13*((LOG(AF13))/LOG(2)))) ->  | AI13: =N13 -> 221 | AJ13: =COUNTIF(L32:L39,AI13) -> 1 | AK13: =AJ13/(AL4-AJ14) -> 1 | AL13: =IF(AK13=0,0,(AK13*((LOG(AK13))/LOG(2)))) -> 0 | AN13: =N13 -> 221 | AO13: =COUNTIF(L40:L47,AN13) -> 1 | AP13: =AO13/(AQ4-AO14) -> 0.25 | AQ13: =IF(AP13=0,0,(AP13*((LOG(AP13))/LOG(2)))) -> -0.5 | AS13: =N13 -> 221 | AT13: =COUNTIF(L48:L55,AS13) -> 0 | AU13: =AT13/(AV4-AT14) -> 0 | AV13: =IF(AU13=0,0,(AU13*((LOG(AU13))/LOG(2)))) -> 0
A14: 21 | B14: 1884 | C14: 21 | D14: 1905 | E14: 21 | F14: 1914 | K14: 0 | L14: 222 | N14: 222 | O14: =COUNTIF($L$7:$L$500,N14) -> 38 | P14: =O14/$Q$4 -> 0.7755102041 | Q14: =IF(P14=0,0,(P14*((LOG(P14))/LOG(2)))) -> -0.2844434401 | T14: =N14 -> 222 | U14: =COUNTIF(L7:L14,T14) -> 7 | Y14: =N14 -> 222 | Z14: =COUNTIF(L15:L22,Y14) -> 7 | AD14: =N14 -> 222 | AE14: =COUNTIF(L23:L31,AD14) -> 9 | AI14: =N14 -> 222 | AJ14: =COUNTIF(L32:L39,AI14) -> 7 | AN14: =N14 -> 222 | AO14: =COUNTIF(L40:L47,AN14) -> 4 | AS14: =N14 -> 222 | AT14: =COUNTIF(L48:L55,AS14) -> 4
A15: 21 | B15: 2262 | C15: 21 | D15: 2297 | E15: 21 | F15: 2313 | K15: 0 | L15: 222 | P15: =SUM(P7:P14) -> 1 | Q15: =-SUM(Q7:Q14) -> 1.146729834 | V15: =SUM(V7:V14) -> 1 | W15: =-SUM(W7:W14) -> 0 | AA15: =SUM(AA7:AA14) -> 1 | AB15: =-SUM(AB7:AB14) -> 0 | AF15: =SUM(AF7:AF14) ->  | AG15: =-SUM(AG7:AG14) ->  | AK15: =SUM(AK7:AK14) -> 1 | AL15: =-SUM(AL7:AL14) -> 0 | AP15: =SUM(AP7:AP14) -> 1 | AQ15: =-SUM(AQ7:AQ14) -> 1.5 | AU15: =SUM(AU7:AU14) -> 1 | AV15: =-SUM(AV7:AV14) -> 0.8112781245
A16: 21 | B16: 2408 | C16: 12 | D16: 2417 | E16: 23 | F16: 2433 | K16: 0 | L16: 212 | P16: U= | Q16: =Q15/(LOG(Q4)/LOG(2)) -> 0.2042367042 | V16: U1= | W16: =W15/(LOG(W4)/LOG(2)) -> 0 | AA16: U2= | AB16: =AB15/(LOG(AB4)/LOG(2)) -> 0 | AF16: U3= | AG16: =AG15/(LOG(AG4)/LOG(2)) ->  | AK16: U4= | AL16: =AL15/(LOG(AL4)/LOG(2)) -> 0 | AP16: U5= | AQ16: =AQ15/(LOG(AQ4)/LOG(2)) -> 0.5 | AU16: U6= | AV16: =AV15/(LOG(AV4)/LOG(2)) -> 0.2704260415
A17: 21 | B17: 2531 | C17: 21 | D17: 2536 | E17: 21 | F17: 2545 | K17: 0 | L17: 222
A18: 21 | B18: 2822 | C18: 21 | D18: 2882 | E18: 21 | F18: 2898 | K18: 0 | L18: 222
A19: 21 | B19: 3151 | C19: 21 | D19: 3187 | E19: 21 | F19: 3214 | K19: 0 | L19: 222 | N19: Total Target Seq
A20: 21 | B20: 3439 | C20: 21 | D20: 3475 | E20: 21 | F20: 3494 | K20: 0 | L20: 222 | N20: =COUNTIF(L7:L55,G3) -> 38 | P20: 8 | Q20: 8 | R20: 9 | S20: 8 | T20: 8 | U20: 8
A21: 21 | B21: 3730 | C21: 21 | D21: 3745 | E21: 21 | F21: 3752 | K21: 0 | L21: 222 | P21: % of reinforcement given in 6 equal intervals based on number of trials
A22: 21 | B22: 4043 | C22: 21 | D22: 4087 | E22: 21 | F22: 4123 | K22: 0 | L22: 222 | P22: %_1 | Q22: %_2 | R22: %_3 | S22: %_4 | T22: %_5 | U22: %_6
A23: 21 | B23: 4400 | C23: 21 | D23: 4410 | E23: 21 | F23: 4419 | K23: 0 | L23: 222 | O23: target sequence | P23: =$G$3 -> 222 | Q23: =$G$3 -> 222 | R23: =$G$3 -> 222 | S23: =$G$3 -> 222 | T23: =$G$3 -> 222 | U23: =$G$3 -> 222
A24: 21 | B24: 4539 | C24: 21 | D24: 4566 | E24: 21 | F24: 4576 | K24: 0 | L24: 222 | O24: total reinforcement | P24: =U14 -> 7 | Q24: =Z14 -> 7 | R24: =AE14 -> 9 | S24: =AJ14 -> 7 | T24: =AO14 -> 4 | U24: =AT14 -> 4
A25: 21 | B25: 4679 | C25: 21 | D25: 4689 | E25: 21 | F25: 4694 | K25: 0 | L25: 222 | O25: % target
A26: 21 | B26: 4856 | C26: 21 | D26: 4872 | E26: 21 | F26: 4880 | K26: 0 | L26: 222 | O26: CCRF
A27: 21 | B27: 4998 | C27: 21 | D27: 5029 | E27: 21 | F27: 5038 | K27: 0 | L27: 222 | O27: % CCRf
A28: 21 | B28: 5132 | C28: 21 | D28: 5140 | E28: 21 | F28: 5146 | K28: 0 | L28: 222 | O28: average response rate | P28: =F14/P20 -> 239.25 | Q28: =(F22-F14)/Q20 -> 276.125 | R28: =(F31-F22)/R20 -> 199.7777778 | S28: =(F39-F31)/S20 -> 166.375 | T28: =(F47-F39)/T20 -> 131.75 | U28: =(F55-F47)/U20 -> 139.375
A29: 21 | B29: 5334 | C29: 21 | D29: 5351 | E29: 21 | F29: 5359 | K29: 0 | L29: 222
A30: 21 | B30: 5615 | C30: 21 | D30: 5633 | E30: 21 | F30: 5642 | K30: 0 | L30: 222
A31: 21 | B31: 5853 | C31: 21 | D31: 5886 | E31: 21 | F31: 5921 | K31: 0 | L31: 222
A32: 21 | B32: 6056 | C32: 21 | D32: 6062 | E32: 21 | F32: 6070 | K32: 0 | L32: 222
A33: 21 | B33: 6201 | C33: 21 | D33: 6222 | E33: 21 | F33: 6259 | K33: 0 | L33: 222
A34: 21 | B34: 6415 | C34: 21 | D34: 6481 | E34: 21 | F34: 6503 | K34: 0 | L34: 222
A35: 21 | B35: 6660 | C35: 21 | D35: 6668 | E35: 21 | F35: 6683 | K35: 0 | L35: 222
A36: 21 | B36: 6829 | C36: 21 | D36: 6846 | E36: 21 | F36: 6855 | K36: 0 | L36: 222
A37: 21 | B37: 6947 | C37: 21 | D37: 6950 | E37: 21 | F37: 6962 | K37: 0 | L37: 222
A38: 21 | B38: 7121 | C38: 21 | D38: 7140 | E38: 21 | F38: 7149 | K38: 0 | L38: 222
A39: 21 | B39: 7239 | C39: 21 | D39: 7249 | E39: 12 | F39: 7252 | K39: 0 | L39: 221
A40: 21 | B40: 7378 | C40: 21 | D40: 7390 | E40: 21 | F40: 7399 | K40: 0 | L40: 222
A41: 21 | B41: 7567 | C41: 21 | D41: 7574 | E41: 21 | F41: 7583 | K41: 0 | L41: 222
A42: 21 | B42: 7737 | C42: 21 | D42: 7747 | E42: 21 | F42: 7769 | K42: 0 | L42: 222
A43: 12 | B43: 7868 | C43: 23 | D43: 7876 | E43: 23 | F43: 7882 | K43: 0 | L43: 122
A44: 21 | B44: 7979 | C44: 12 | D44: 7983 | E44: 23 | F44: 7987 | K44: 0 | L44: 212
A45: 21 | B45: 8084 | C45: 12 | D45: 8088 | E45: 23 | F45: 8098 | K45: 0 | L45: 212
A46: 21 | B46: 8193 | C46: 21 | D46: 8201 | E46: 12 | F46: 8203 | K46: 0 | L46: 221
A47: 21 | B47: 8296 | C47: 21 | D47: 8300 | E47: 21 | F47: 8306 | K47: 0 | L47: 222
A48: 21 | B48: 8432 | C48: 12 | D48: 8440 | E48: 23 | F48: 8451 | K48: 0 | L48: 212
A49: 21 | B49: 8547 | C49: 12 | D49: 8549 | E49: 23 | F49: 8552 | K49: 0 | L49: 212
A50: 12 | B50: 8644 | C50: 23 | D50: 8647 | E50: 14 | F50: 8654 | K50: 0 | L50: 121
A51: 21 | B51: 8749 | C51: 12 | D51: 8753 | E51: 23 | F51: 8759 | K51: 0 | L51: 212
A52: 21 | B52: 8855 | C52: 21 | D52: 8862 | E52: 21 | F52: 8870 | K52: 0 | L52: 222
A53: 21 | B53: 8988 | C53: 21 | D53: 8992 | E53: 21 | F53: 8998 | K53: 0 | L53: 222
A54: 21 | B54: 9259 | C54: 21 | D54: 9283 | E54: 21 | F54: 9292 | K54: 0 | L54: 222
A55: 21 | B55: 9405 | C55: 21 | D55: 9415 | E55: 21 | F55: 9421 | K55: 1 | L55: 222

Sheet !M827B40.Gus
A1: Report for:!M827B40.Gus
A2: Date: | B2: <date>
A3: Hen: | B3: <hen> | F3: Correct Sequence | G3: =Start!J2 -> 222 | P3: Total Sequences in Data | Q3: =4994-COUNTBLANK(L7:L5000) -> 138 | V3: Total Sequences in Block Data | W3: =COUNTA(L7:L29) -> 23 | AA3: Total Sequences in Block Data | AB3: =COUNTA(L30:L52) -> 23 | AF3: Total Sequences in Block Data | AG3: =COUNTA(L53:L75) -> 23 | AK3: Total Sequences in Block Data | AL3: =COUNTA(L76:L98) -> 23 | AP3: Total Sequences in Block Data | AQ3: =COUNTA(L99:L121) -> 23 | AU3: Total Sequences in Block Data | AV3: =COUNTA(L122:L144) -> 23
P4: Total Sequences in Summary | Q4: =SUM(O7:O14) -> 138 | V4: Total Sequences in Block Summary | W4: =SUM(U7:U14) -> 23 | AA4: Total Sequences in Block Summary | AB4: =SUM(Z7:Z14) -> 23 | AF4: Total Sequences in Block Summary | AG4: =SUM(AE7:AE14) -> 23 | AK4: Total Sequences in Block Summary | AL4: =SUM(AJ7:AJ14) -> 23 | AP4: Total Sequences in Block Summary | AQ4: =SUM(AO7:AO14) -> 23 | AU4: Total Sequences in Block Summary | AV4: =SUM(AT7:AT14) -> 23
T5: Block 1 | Y5: Block 2 | AD5: Block 3 | AI5: Block 4 | AN5: Block 5 | AS5: Block 6
A6: Sequence Component 1 | B6: Time 1 | C6: Sequence Component 2 | D6: Time 2 | E6: Sequence Component 3 | F6: Time 3 | G6: Sequence Component 4 | H6: Time 4 | I6: Sequence Component 5 | J6: Time 5 | K6: Correct? 0=No 1=Yes | L6: Sequence | N6: Frequency | P6: Relative Frequency | Q6: Variability | T6: Frequency | V6: Relative Frequency | W6: Variability | Y6: Frequency | AA6: Relative Frequency | AB6: Variability | AD6: Frequency | AF6: Relative Frequency | AG6: Variability | AI6: Frequency | AK6: Relative Frequency | AL6: Variability | AN6: Frequency | AP6: Relative Frequency | AQ6: Variability | AS6: Frequency | AU6: Relative Frequency | AV6: Variability
A7: 21 | B7: 9 | C7: 21 | D7: 24 | E7: 12 | F7: 29 | K7: 0 | L7: 221 | N7: 111 | O7: =COUNTIF($L$7:$L$500,N7) -> 0 | P7: =O7/$Q$4 -> 0 | Q7: =IF(P7=0,0,(P7*((LOG(P7))/LOG(2)))) -> 0 | T7: =N7 -> 111 | U7: =COUNTIF(L7:L29,T7) -> 0 | V7: =U7/(W4-U14) -> 0 | W7: =IF(V7=0,0,(V7*((LOG(V7))/LOG(2)))) -> 0 | Y7: =N7 -> 111 | Z7: =COUNTIF(L30:L52,Y7) -> 0 | AA7: =Z7/(AB4-Z14) -> 0 | AB7: =IF(AA7=0,0,(AA7*((LOG(AA7))/LOG(2)))) -> 0 | AD7: =N7 -> 111 | AE7: =COUNTIF(L53:L75,AD7) -> 0 | AF7: =AE7/(AG4-AE14) -> 0 | AG7: =IF(AF7=0,0,(AF7*((LOG(AF7))/LOG(2)))) -> 0 | AI7: =N7 -> 111 | AJ7: =COUNTIF(L76:L98,AI7) -> 0 | AK7: =AJ7/(AL4-AJ14) -> 0 | AL7: =IF(AK7=0,0,(AK7*((LOG(AK7))/LOG(2)))) -> 0 | AN7: =N7 -> 111 | AO7: =COUNTIF(L99:L121,AN7) -> 0 | AP7: =AO7/(AQ4-AO14) -> 0 | AQ7: =IF(AP7=0,0,(AP7*((LOG(AP7))/LOG(2)))) -> 0 | AS7: =N7 -> 111 | AT7: =COUNTIF(L122:L144,AS7) -> 0 | AU7: =AT7/(AV4-AT14) -> 0 | AV7: =IF(AU7=0,0,(AU7*((LOG(AU7))/LOG(2)))) -> 0
A8: 12 | B8: 120 | C8: 23 | D8: 126 | E8: 14 | F8: 129 | K8: 0 | L8: 121 | N8: 112 | O8: =COUNTIF($L$7:$L$500,N8) -> 1 | P8: =O8/$Q$4 -> 0.007246376812 | Q8: =IF(P8=0,0,(P8*((LOG(P8))/LOG(2)))) -> -0.05151104679 | T8: =N8 -> 112 | U8: =COUNTIF(L7:L29,T8) -> 0 | V8: =U8/(W4-U14) -> 0 | W8: =IF(V8=0,0,(V8*((LOG(V8))/LOG(2)))) -> 0 | Y8: =N8 -> 112 | Z8: =COUNTIF(L30:L52,Y8) -> 0 | AA8: =Z8/(AB4-Z14) -> 0 | AB8: =IF(AA8=0,0,(AA8*((LOG(AA8))/LOG(2)))) -> 0 | AD8: =N8 -> 112 | AE8: =COUNTIF(L53:L75,AD8) -> 0 | AF8: =AE8/(AG4-AE14) -> 0 | AG8: =IF(AF8=0,0,(AF8*((LOG(AF8))/LOG(2)))) -> 0 | AI8: =N8 -> 112 | AJ8: =COUNTIF(L76:L98,AI8) -> 1 | AK8: =AJ8/(AL4-AJ14) -> 0.09090909091 | AL8: =IF(AK8=0,0,(AK8*((LOG(AK8))/LOG(2)))) -> -0.3144937835 | AN8: =N8 -> 112 | AO8: =COUNTIF(L99:L121,AN8) -> 0 | AP8: =AO8/(AQ4-AO14) -> 0 | AQ8: =IF(AP8=0,0,(AP8*((LOG(AP8))/LOG(2)))) -> 0 | AS8: =N8 -> 112 | AT8: =COUNTIF(L122:L144,AS8) -> 0 | AU8: =AT8/(AV4-AT14) -> 0 | AV8: =IF(AU8=0,0,(AU8*((LOG(AU8))/LOG(2)))) -> 0
A9: 21 | B9: 226 | C9: 12 | D9: 230 | E9: 23 | F9: 237 | K9: 0 | L9: 212 | N9: 121 | O9: =COUNTIF($L$7:$L$500,N9) -> 7 | P9: =O9/$Q$4 -> 0.05072463768 | Q9: =IF(P9=0,0,(P9*((LOG(P9))/LOG(2)))) -> -0.2181752663 | T9: =N9 -> 121 | U9: =COUNTIF(L7:L29,T9) -> 2 | V9: =U9/(W4-U14) -> 0.1052631579 | W9: =IF(V9=0,0,(V9*((LOG(V9))/LOG(2)))) -> -0.3418871067 | Y9: =N9 -> 121 | Z9: =COUNTIF(L30:L52,Y9) -> 2 | AA9: =Z9/(AB4-Z14) -> 0.1176470588 | AB9: =IF(AA9=0,0,(AA9*((LOG(AA9))/LOG(2)))) -> -0.3632309225 | AD9: =N9 -> 121 | AE9: =COUNTIF(L53:L75,AD9) -> 0 | AF9: =AE9/(AG4-AE14) -> 0 | AG9: =IF(AF9=0,0,(AF9*((LOG(AF9))/LOG(2)))) -> 0 | AI9: =N9 -> 121 | AJ9: =COUNTIF(L76:L98,AI9) -> 1 | AK9: =AJ9/(AL4-AJ14) -> 0.09090909091 | AL9: =IF(AK9=0,0,(AK9*((LOG(AK9))/LOG(2)))) -> -0.3144937835 | AN9: =N9 -> 121 | AO9: =COUNTIF(L99:L121,AN9) -> 1 | AP9: =AO9/(AQ4-AO14) -> 0.05882352941 | AQ9: =IF(AP9=0,0,(AP9*((LOG(AP9))/LOG(2)))) -> -0.2404389907 | AS9: =N9 -> 121 | AT9: =COUNTIF(L122:L144,AS9) -> 1 | AU9: =AT9/(AV4-AT14) -> 0.06666666667 | AV9: =IF(AU9=0,0,(AU9*((LOG(AU9))/LOG(2)))) -> -0.260459373
A10: 21 | B10: 341 | C10: 12 | D10: 343 | E10: 23 | F10: 347 | K10: 0 | L10: 212 | N10: 122 | O10: =COUNTIF($L$7:$L$500,N10) -> 19 | P10: =O10/$Q$4 -> 0.1376811594 | Q10: =IF(P10=0,0,(P10*((LOG(P10))/LOG(2)))) -> -0.3938503038 | T10: =N10 -> 122 | U10: =COUNTIF(L7:L29,T10) -> 3 | V10: =U10/(W4-U14) -> 0.1578947368 | W10: =IF(V10=0,0,(V10*((LOG(V10))/LOG(2)))) -> -0.4204681599 | Y10: =N10 -> 122 | Z10: =COUNTIF(L30:L52,Y10) -> 3 | AA10: =Z10/(AB4-Z14) -> 0.1764705882 | AB10: =IF(AA10=0,0,(AA10*((LOG(AA10))/LOG(2)))) -> -0.4416177072 | AD10: =N10 -> 122 | AE10: =COUNTIF(L53:L75,AD10) -> 6 | AF10: =AE10/(AG4-AE14) -> 0.3 | AG10: =IF(AF10=0,0,(AF10*((LOG(AF10))/LOG(2)))) -> -0.5210896782 | AI10: =N10 -> 122 | AJ10: =COUNTIF(L76:L98,AI10) -> 2 | AK10: =AJ10/(AL4-AJ14) -> 0.1818181818 | AL10: =IF(AK10=0,0,(AK10*((LOG(AK10))/LOG(2)))) -> -0.4471693852 | AN10: =N10 -> 122 | AO10: =COUNTIF(L99:L121,AN10) -> 3 | AP10: =AO10/(AQ4-AO14) -> 0.1764705882 | AQ10: =IF(AP10=0,0,(AP10*((LOG(AP10))/LOG(2)))) -> -0.4416177072 | AS10: =N10 -> 122 | AT10: =COUNTIF(L122:L144,AS10) -> 2 | AU10: =AT10/(AV4-AT14) -> 0.1333333333 | AV10: =IF(AU10=0,0,(AU10*((LOG(AU10))/LOG(2)))) -> -0.3875854127
A11: 21 | B11: 442 | C11: 12 | D11: 448 | E11: 23 | F11: 460 | K11: 0 | L11: 212 | N11: 211 | O11: =COUNTIF($L$7:$L$500,N11) -> 0 | P11: =O11/$Q$4 -> 0 | Q11: =IF(P11=0,0,(P11*((LOG(P11))/LOG(2)))) -> 0 | T11: =N11 -> 211 | U11: =COUNTIF(L7:L29,T11) -> 0 | V11: =U11/(W4-U14) -> 0 | W11: =IF(V11=0,0,(V11*((LOG(V11))/LOG(2)))) -> 0 | Y11: =N11 -> 211 | Z11: =COUNTIF(L30:L52,Y11) -> 0 | AA11: =Z11/(AB4-Z14) -> 0 | AB11: =IF(AA11=0,0,(AA11*((LOG(AA11))/LOG(2)))) -> 0 | AD11: =N11 -> 211 | AE11: =COUNTIF(L53:L75,AD11) -> 0 | AF11: =AE11/(AG4-AE14) -> 0 | AG11: =IF(AF11=0,0,(AF11*((LOG(AF11))/LOG(2)))) -> 0 | AI11: =N11 -> 211 | AJ11: =COUNTIF(L76:L98,AI11) -> 0 | AK11: =AJ11/(AL4-AJ14) -> 0 | AL11: =IF(AK11=0,0,(AK11*((LOG(AK11))/LOG(2)))) -> 0 | AN11: =N11 -> 211 | AO11: =COUNTIF(L99:L121,AN11) -> 0 | AP11: =AO11/(AQ4-AO14) -> 0 | AQ11: =IF(AP11=0,0,(AP11*((LOG(AP11))/LOG(2)))) -> 0 | AS11: =N11 -> 211 | AT11: =COUNTIF(L122:L144,AS11) -> 0 | AU11: =AT11/(AV4-AT14) -> 0 | AV11: =IF(AU11=0,0,(AU11*((LOG(AU11))/LOG(2)))) -> 0
A12: 21 | B12: 561 | C12: 21 | D12: 565 | E12: 12 | F12: 569 | K12: 0 | L12: 221 | N12: 212 | O12: =COUNTIF($L$7:$L$500,N12) -> 37 | P12: =O12/$Q$4 -> 0.268115942 | Q12: =IF(P12=0,0,(P12*((LOG(P12))/LOG(2)))) -> -0.5091712346 | T12: =N12 -> 212 | U12: =COUNTIF(L7:L29,T12) -> 10 | V12: =U12/(W4-U14) -> 0.5263157895 | W12: =IF(V12=0,0,(V12*((LOG(V12))/LOG(2)))) -> -0.487368115 | Y12: =N12 -> 212 | Z12: =COUNTIF(L30:L52,Y12) -> 7 | AA12: =Z12/(AB4-Z14) -> 0.4117647059 | AB12: =IF(AA12=0,0,(AA12*((LOG(AA12))/LOG(2)))) -> -0.5271032608 | AD12: =N12 -> 212 | AE12: =COUNTIF(L53:L75,AD12) -> 4 | AF12: =AE12/(AG4-AE14) -> 0.2 | AG12: =IF(AF12=0,0,(AF12*((LOG(AF12))/LOG(2)))) -> -0.464385619 | AI12: =N12 -> 212 | AJ12: =COUNTIF(L76:L98,AI12) -> 4 | AK12: =AJ12/(AL4-AJ14) -> 0.3636363636 | AL12: =IF(AK12=0,0,(AK12*((LOG(AK12))/LOG(2)))) -> -0.5307024068 | AN12: =N12 -> 212 | AO12: =COUNTIF(L99:L121,AN12) -> 7 | AP12: =AO12/(AQ4-AO14) -> 0.4117647059 | AQ12: =IF(AP12=0,0,(AP12*((LOG(AP12))/LOG(2)))) -> -0.5271032608 | AS12: =N12 -> 212 | AT12: =COUNTIF(L122:L144,AS12) -> 5 | AU12: =AT12/(AV4-AT14) -> 0.3333333333 | AV12: =IF(AU12=0,0,(AU12*((LOG(AU12))/LOG(2)))) -> -0.5283208336
A13: 21 | B13: 665 | C13: 12 | D13: 669 | E13: 23 | F13: 676 | K13: 0 | L13: 212 | N13: 221 | O13: =COUNTIF($L$7:$L$500,N13) -> 35 | P13: =O13/$Q$4 -> 0.2536231884 | Q13: =IF(P13=0,0,(P13*((LOG(P13))/LOG(2)))) -> -0.5019815246 | T13: =N13 -> 221 | U13: =COUNTIF(L7:L29,T13) -> 4 | V13: =U13/(W4-U14) -> 0.2105263158 | W13: =IF(V13=0,0,(V13*((LOG(V13))/LOG(2)))) -> -0.4732478976 | Y13: =N13 -> 221 | Z13: =COUNTIF(L30:L52,Y13) -> 5 | AA13: =Z13/(AB4-Z14) -> 0.2941176471 | AB13: =IF(AA13=0,0,(AA13*((LOG(AA13))/LOG(2)))) -> -0.5192749254 | AD13: =N13 -> 221 | AE13: =COUNTIF(L53:L75,AD13) -> 10 | AF13: =AE13/(AG4-AE14) -> 0.5 | AG13: =IF(AF13=0,0,(AF13*((LOG(AF13))/LOG(2)))) -> -0.5 | AI13: =N13 -> 221 | AJ13: =COUNTIF(L76:L98,AI13) -> 3 | AK13: =AJ13/(AL4-AJ14) -> 0.2727272727 | AL13: =IF(AK13=0,0,(AK13*((LOG(AK13))/LOG(2)))) -> -0.5112188503 | AN13: =N13 -> 221 | AO13: =COUNTIF(L99:L121,AN13) -> 6 | AP13: =AO13/(AQ4-AO14) -> 0.3529411765 | AQ13: =IF(AP13=0,0,(AP13*((LOG(AP13))/LOG(2)))) -> -0.5302942378 | AS13: =N13 -> 221 | AT13: =COUNTIF(L122:L144,AS13) -> 7 | AU13: =AT13/(AV4-AT14) -> 0.4666666667 | AV13: =IF(AU13=0,0,(AU13*((LOG(AU13))/LOG(2)))) -> -0.5131166477
A14: 21 | B14: 773 | C14: 21 | D14: 776 | E14: 21 | F14: 777 | K14: 0 | L14: 222 | N14: 222 | O14: =COUNTIF($L$7:$L$500,N14) -> 39 | P14: =O14/$Q$4 -> 0.2826086957 | Q14: =IF(P14=0,0,(P14*((LOG(P14))/LOG(2)))) -> -0.5152301977 | T14: =N14 -> 222 | U14: =COUNTIF(L7:L29,T14) -> 4 | Y14: =N14 -> 222 | Z14: =COUNTIF(L30:L52,Y14) -> 6 | AD14: =N14 -> 222 | AE14: =COUNTIF(L53:L75,AD14) -> 3 | AI14: =N14 -> 222 | AJ14: =COUNTIF(L76:L98,AI14) -> 12 | AN14: =N14 -> 222 | AO14: =COUNTIF(L99:L121,AN14) -> 6 | AS14: =N14 -> 222 | AT14: =COUNTIF(L122:L144,AS14) -> 8
A15: 21 | B15: 869 | C15: 12 | D15: 874 | E15: 23 | F15: 886 | K15: 0 | L15: 212 | P15: =SUM(P7:P14) -> 1 | Q15: =-SUM(Q7:Q14) -> 2.189919574 | V15: =SUM(V7:V14) -> 1 | W15: =-SUM(W7:W14) -> 1.722971279 | AA15: =SUM(AA7:AA14) -> 1 | AB15: =-SUM(AB7:AB14) -> 1.851226816 | AF15: =SUM(AF7:AF14) -> 1 | AG15: =-SUM(AG7:AG14) -> 1.485475297 | AK15: =SUM(AK7:AK14) -> 1 | AL15: =-SUM(AL7:AL14) -> 2.118078209 | AP15: =SUM(AP7:AP14) -> 1 | AQ15: =-SUM(AQ7:AQ14) -> 1.739454196 | AU15: =SUM(AU7:AU14) -> 1 | AV15: =-SUM(AV7:AV14) -> 1.689482267
A16: 21 | B16: 982 | C16: 21 | D16: 990 | E16: 21 | F16: 996 | K16: 0 | L16: 222 | P16: U= | Q16: =Q15/(LOG(Q4)/LOG(2)) -> 0.3080694998 | V16: U1= | W16: =W15/(LOG(W4)/LOG(2)) -> 0.3808881797 | AA16: U2= | AB16: =AB15/(LOG(AB4)/LOG(2)) -> 0.4092409552 | AF16: U3= | AG16: =AG15/(LOG(AG4)/LOG(2)) -> 0.3283861947 | AK16: U4= | AL16: =AL15/(LOG(AL4)/LOG(2)) -> 0.4682323863 | AP16: U5= | AQ16: =AQ15/(LOG(AQ4)/LOG(2)) -> 0.3845319714 | AU16: U6= | AV16: =AV15/(LOG(AV4)/LOG(2)) -> 0.3734849403
A17: 12 | B17: 1383 | C17: 23 | D17: 1391 | E17: 23 | F17: 1395 | K17: 0 | L17: 122
A18: 21 | B18: 2381 | C18: 12 | D18: 2390 | E18: 23 | F18: 2399 | K18: 0 | L18: 212
A19: 21 | B19: 2497 | C19: 12 | D19: 2500 | E19: 23 | F19: 2503 | K19: 0 | L19: 212 | N19: Total Target Seq
A20: 12 | B20: 2596 | C20: 23 | D20: 2598 | E20: 23 | F20: 2602 | K20: 0 | L20: 122 | N20: =COUNTIF(L7:L144,G3) -> 39 | P20: 23 | Q20: 23 | R20: 23 | S20: 23 | T20: 23 | U20: 23
A21: 21 | B21: 2698 | C21: 21 | D21: 2704 | E21: 21 | F21: 2712 | K21: 0 | L21: 222 | P21: % of reinforcement given in 6 equal intervals based on number of trials
A22: 21 | B22: 3092 | C22: 12 | D22: 3101 | E22: 23 | F22: 3106 | K22: 0 | L22: 212 | P22: %_1 | Q22: %_2 | R22: %_3 | S22: %_4 | T22: %_5 | U22: %_6
A23: 21 | B23: 3201 | C23: 12 | D23: 3205 | E23: 23 | F23: 3211 | K23: 0 | L23: 212 | O23: target sequence | P23: =$G$3 -> 222 | Q23: =$G$3 -> 222 | R23: =$G$3 -> 222 | S23: =$G$3 -> 222 | T23: =$G$3 -> 222 | U23: =$G$3 -> 222
A24: 21 | B24: 3306 | C24: 21 | D24: 3309 | E24: 21 | F24: 3315 | K24: 0 | L24: 222 | O24: total reinforcement | P24: =U14 -> 4 | Q24: =Z14 -> 6 | R24: =AE14 -> 3 | S24: =AJ14 -> 12 | T24: =AO14 -> 6 | U24: =AT14 -> 8
A25: 21 | B25: 3453 | C25: 12 | D25: 3455 | E25: 23 | F25: 3458 | K25: 0 | L25: 212 | O25: % target
A26: 21 | B26: 3556 | C26: 21 | D26: 3560 | E26: 12 | F26: 3565 | K26: 0 | L26: 221 | O26: CCRF
A27: 12 | B27: 3657 | C27: 23 | D27: 3662 | E27: 14 | F27: 3666 | K27: 0 | L27: 121 | O27: % CCRf
A28: 21 | B28: 3764 | C28: 21 | D28: 3768 | E28: 12 | F28: 3772 | K28: 0 | L28: 221 | O28: average response rate | P28: =F29/P20 -> 168.3478261 | Q28: =(F52-F29)/Q20 -> 123.4782609 | R28: =(F75-F52)/R20 -> 120.4782609 | S28: =(F98-F75)/S20 -> 173.173913 | T28: =(F121-F98)/T20 -> 115.7826087 | U28: =(F144-F121)/U20 -> 128.7826087
A29: 12 | B29: 3865 | C29: 23 | D29: 3868 | E29: 23 | F29: 3872 | K29: 0 | L29: 122
A30: 12 | B30: 3966 | C30: 23 | D30: 3968 | E30: 23 | F30: 3971 | K30: 0 | L30: 122
A31: 12 | B31: 4063 | C31: 23 | D31: 4069 | E31: 14 | F31: 4072 | K31: 0 | L31: 121
A32: 12 | B32: 4166 | C32: 23 | D32: 4167 | E32: 14 | F32: 4173 | K32: 0 | L32: 121
A33: 21 | B33: 4268 | C33: 21 | D33: 4273 | E33: 12 | F33: 4277 | K33: 0 | L33: 221
A34: 21 | B34: 4373 | C34: 12 | D34: 4376 | E34: 23 | F34: 4382 | K34: 0 | L34: 212
A35: 21 | B35: 4478 | C35: 21 | D35: 4480 | E35: 12 | F35: 4484 | K35: 0 | L35: 221
A36: 21 | B36: 4581 | C36: 21 | D36: 4590 | E36: 21 | F36: 4596 | K36: 0 | L36: 222
A37: 21 | B37: 4884 | C37: 21 | D37: 4892 | E37: 12 | F37: 4896 | K37: 0 | L37: 221
A38: 21 | B38: 4992 | C38: 12 | D38: 4997 | E38: 23 | F38: 5002 | K38: 0 | L38: 212
A39: 21 | B39: 5099 | C39: 21 | D39: 5100 | E39: 12 | F39: 5106 | K39: 0 | L39: 221
A40: 21 | B40: 5198 | C40: 21 | D40: 5204 | E40: 21 | F40: 5212 | K40: 0 | L40: 222
A41: 21 | B41: 5303 | C41: 12 | D41: 5306 | E41: 23 | F41: 5310 | K41: 0 | L41: 212
A42: 21 | B42: 5408 | C42: 21 | D42: 5414 | E42: 21 | F42: 5422 | K42: 0 | L42: 222
A43: 21 | B43: 5523 | C43: 12 | D43: 5531 | E43: 23 | F43: 5534 | K43: 0 | L43: 212
A44: 21 | B44: 5630 | C44: 21 | D44: 5637 | E44: 21 | F44: 5644 | K44: 0 | L44: 222
A45: 21 | B45: 5777 | C45: 12 | D45: 5791 | E45: 23 | F45: 5798 | K45: 0 | L45: 212
A46: 21 | B46: 5896 | C46: 12 | D46: 5900 | E46: 23 | F46: 5907 | K46: 0 | L46: 212
A47: 21 | B47: 6002 | C47: 21 | D47: 6006 | E47: 21 | F47: 6012 | K47: 0 | L47: 222
A48: 12 | B48: 6275 | C48: 23 | D48: 6282 | E48: 23 | F48: 6294 | K48: 0 | L48: 122
A49: 21 | B49: 6389 | C49: 12 | D49: 6395 | E49: 23 | F49: 6397 | K49: 0 | L49: 212
A50: 21 | B50: 6493 | C50: 21 | D50: 6497 | E50: 12 | F50: 6501 | K50: 0 | L50: 221
A51: 21 | B51: 6597 | C51: 21 | D51: 6600 | E51: 21 | F51: 6604 | K51: 0 | L51: 222
A52: 12 | B52: 6694 | C52: 23 | D52: 6703 | E52: 23 | F52: 6712 | K52: 0 | L52: 122
A53: 21 | B53: 6808 | C53: 21 | D53: 6810 | E53: 12 | F53: 6814 | K53: 0 | L53: 221
A54: 21 | B54: 6910 | C54: 21 | D54: 6914 | E54: 12 | F54: 6918 | K54: 0 | L54: 221
A55: 21 | B55: 7013 | C55: 21 | D55: 7018 | E55: 12 | F55: 7020 | K55: 0 | L55: 221
A56: 21 | B56: 7116 | C56: 12 | D56: 7119 | E56: 23 | F56: 7126 | K56: 0 | L56: 212
A57: 21 | B57: 7222 | C57: 21 | D57: 7226 | E57: 12 | F57: 7229 | K57: 0 | L57: 221
A58: 21 | B58: 7326 | C58: 12 | D58: 7329 | E58: 23 | F58: 7337 | K58: 0 | L58: 212
A59: 21 | B59: 7434 | C59: 21 | D59: 7438 | E59: 12 | F59: 7441 | K59: 0 | L59: 221
A60: 12 | B60: 7534 | C60: 23 | D60: 7537 | E60: 23 | F60: 7541 | K60: 0 | L60: 122
A61: 21 | B61: 7637 | C61: 12 | D61: 7639 | E61: 23 | F61: 7641 | K61: 0 | L61: 212
A62: 21 | B62: 7736 | C62: 21 | D62: 7739 | E62: 12 | F62: 7745 | K62: 0 | L62: 221
A63: 21 | B63: 7841 | C63: 21 | D63: 7845 | E63: 21 | F63: 7856 | K63: 0 | L63: 222
A64: 21 | B64: 7992 | C64: 21 | D64: 7997 | E64: 12 | F64: 8002 | K64: 0 | L64: 221
A65: 12 | B65: 8095 | C65: 23 | D65: 8098 | E65: 23 | F65: 8103 | K65: 0 | L65: 122
A66: 21 | B66: 8199 | C66: 21 | D66: 8207 | E66: 21 | F66: 8212 | K66: 0 | L66: 222
A67: 21 | B67: 8424 | C67: 21 | D67: 8429 | E67: 12 | F67: 8434 | K67: 0 | L67: 221
A68: 21 | B68: 8530 | C68: 21 | D68: 8534 | E68: 12 | F68: 8537 | K68: 0 | L68: 221
A69: 21 | B69: 8635 | C69: 21 | D69: 8639 | E69: 21 | F69: 8648 | K69: 0 | L69: 222
A70: 12 | B70: 8958 | C70: 23 | D70: 8962 | E70: 23 | F70: 8966 | K70: 0 | L70: 122
A71: 21 | B71: 9062 | C71: 21 | D71: 9069 | E71: 12 | F71: 9074 | K71: 0 | L71: 221
A72: 12 | B72: 9167 | C72: 23 | D72: 9169 | E72: 23 | F72: 9172 | K72: 0 | L72: 122
A73: 12 | B73: 9267 | C73: 23 | D73: 9268 | E73: 23 | F73: 9272 | K73: 0 | L73: 122
A74: 21 | B74: 9368 | C74: 12 | D74: 9372 | E74: 23 | F74: 9376 | K74: 0 | L74: 212
A75: 12 | B75: 9470 | C75: 23 | D75: 9475 | E75: 23 | F75: 9483 | K75: 0 | L75: 122
A76: 21 | B76: 9579 | C76: 21 | D76: 9582 | E76: 21 | F76: 9589 | K76: 0 | L76: 222
A77: 21 | B77: 9995 | C77: 21 | D77: 10002 | E77: 21 | F77: 10009 | K77: 0 | L77: 222
A78: 21 | B78: 10138 | C78: 21 | D78: 10149 | E78: 21 | F78: 10156 | K78: 0 | L78: 222
A79: 21 | B79: 10580 | C79: 21 | D79: 10586 | E79: 21 | F79: 10623 | K79: 0 | L79: 222
A80: 21 | B80: 10734 | C80: 21 | D80: 10749 | E80: 21 | F80: 10761 | K80: 0 | L80: 222
A81: 21 | B81: 10894 | C81: 12 | D81: 10900 | E81: 23 | F81: 10906 | K81: 0 | L81: 212
A82: 21 | B82: 11002 | C82: 12 | D82: 11007 | E82: 23 | F82: 11012 | K82: 0 | L82: 212
A83: 21 | B83: 11112 | C83: 21 | D83: 11116 | E83: 12 | F83: 11118 | K83: 0 | L83: 221
A84: 21 | B84: 11212 | C84: 21 | D84: 11218 | E84: 21 | F84: 11224 | K84: 0 | L84: 222
A85: 21 | B85: 11426 | C85: 21 | D85: 11434 | E85: 21 | F85: 11439 | K85: 0 | L85: 222
A86: 12 | B86: 11628 | C86: 23 | D86: 11635 | E86: 23 | F86: 11644 | K86: 0 | L86: 122
A87: 21 | B87: 11741 | C87: 12 | D87: 11744 | E87: 23 | F87: 11750 | K87: 0 | L87: 212
A88: 21 | B88: 11863 | C88: 12 | D88: 11872 | E88: 23 | F88: 11885 | K88: 0 | L88: 212
A89: 21 | B89: 11980 | C89: 21 | D89: 11983 | E89: 21 | F89: 11989 | K89: 0 | L89: 222
A90: 21 | B90: 12304 | C90: 21 | D90: 12307 | E90: 21 | F90: 12326 | K90: 0 | L90: 222
A91: 12 | B91: 12472 | C91: 23 | D91: 12486 | E91: 23 | F91: 12494 | K91: 0 | L91: 122
A92: 21 | B92: 12591 | C92: 21 | D92: 12595 | E92: 12 | F92: 12597 | K92: 0 | L92: 221
A93: 21 | B93: 12695 | C93: 21 | D93: 12698 | E93: 21 | F93: 12703 | K93: 0 | L93: 222
A94: 12 | B94: 12852 | C94: 14 | D94: 13029 | E94: 23 | F94: 13034 | K94: 0 | L94: 112
A95: 12 | B95: 13126 | C95: 23 | D95: 13130 | E95: 14 | F95: 13135 | K95: 0 | L95: 121
A96: 21 | B96: 13243 | C96: 21 | D96: 13248 | E96: 21 | F96: 13252 | K96: 0 | L96: 222
A97: 21 | B97: 13342 | C97: 21 | D97: 13347 | E97: 12 | F97: 13351 | K97: 0 | L97: 221
A98: 21 | B98: 13448 | C98: 21 | D98: 13458 | E98: 21 | F98: 13466 | K98: 0 | L98: 222
A99: 21 | B99: 13565 | C99: 21 | D99: 13573 | E99: 21 | F99: 13579 | K99: 0 | L99: 222
A100: 21 | B100: 13737 | C100: 21 | D100: 13744 | E100: 21 | F100: 13750 | K100: 0 | L100: 222
A101: 12 | B101: 13970 | C101: 23 | D101: 13982 | E101: 23 | F101: 13997 | K101: 0 | L101: 122
A102: 21 | B102: 14094 | C102: 21 | D102: 14099 | E102: 12 | F102: 14103 | K102: 0 | L102: 221
A103: 21 | B103: 14200 | C103: 12 | D103: 14208 | E103: 23 | F103: 14212 | K103: 0 | L103: 212
A104: 21 | B104: 14307 | C104: 21 | D104: 14311 | E104: 21 | F104: 14316 | K104: 0 | L104: 222
A105: 21 | B105: 14423 | C105: 12 | D105: 14426 | E105: 23 | F105: 14431 | K105: 0 | L105: 212
A106: 21 | B106: 14527 | C106: 21 | D106: 14533 | E106: 12 | F106: 14535 | K106: 0 | L106: 221
A107: 12 | B107: 14629 | C107: 23 | D107: 14632 | E107: 23 | F107: 14637 | K107: 0 | L107: 122
A108: 21 | B108: 14735 | C108: 21 | D108: 14741 | E108: 21 | F108: 14746 | K108: 0 | L108: 222
A109: 21 | B109: 14862 | C109: 12 | D109: 14868 | E109: 23 | F109: 14877 | K109: 0 | L109: 212
A110: 21 | B110: 14969 | C110: 12 | D110: 14971 | E110: 23 | F110: 14973 | K110: 0 | L110: 212
A111: 21 | B111: 15069 | C111: 21 | D111: 15072 | E111: 21 | F111: 15076 | K111: 0 | L111: 222
A112: 12 | B112: 15163 | C112: 23 | D112: 15166 | E112: 14 | F112: 15172 | K112: 0 | L112: 121
A113: 21 | B113: 15268 | C113: 21 | D113: 15271 | E113: 21 | F113: 15280 | K113: 0 | L113: 222
A114: 21 | B114: 15389 | C114: 12 | D114: 15395 | E114: 23 | F114: 15403 | K114: 0 | L114: 212
A115: 21 | B115: 15499 | C115: 21 | D115: 15502 | E115: 12 | F115: 15505 | K115: 0 | L115: 221
A116: 21 | B116: 15600 | C116: 21 | D116: 15608 | E116: 12 | F116: 15613 | K116: 0 | L116: 221
A117: 21 | B117: 15709 | C117: 12 | D117: 15712 | E117: 23 | F117: 15715 | K117: 0 | L117: 212
A118: 21 | B118: 15812 | C118: 12 | D118: 15815 | E118: 23 | F118: 15821 | K118: 0 | L118: 212
A119: 21 | B119: 15916 | C119: 21 | D119: 15920 | E119: 12 | F119: 15923 | K119: 0 | L119: 221
A120: 12 | B120: 16016 | C120: 23 | D120: 16019 | E120: 23 | F120: 16022 | K120: 0 | L120: 122
A121: 21 | B121: 16120 | C121: 21 | D121: 16125 | E121: 12 | F121: 16129 | K121: 0 | L121: 221
A122: 21 | B122: 16227 | C122: 21 | D122: 16234 | E122: 21 | F122: 16244 | K122: 0 | L122: 222
A123: 21 | B123: 16410 | C123: 12 | D123: 16418 | E123: 23 | F123: 16429 | K123: 0 | L123: 212
A124: 21 | B124: 16527 | C124: 21 | D124: 16534 | E124: 21 | F124: 16539 | K124: 0 | L124: 222
A125: 21 | B125: 16640 | C125: 21 | D125: 16642 | E125: 12 | F125: 16645 | K125: 0 | L125: 221
A126: 21 | B126: 16741 | C126: 21 | D126: 16743 | E126: 12 | F126: 16745 | K126: 0 | L126: 221
A127: 21 | B127: 16840 | C127: 21 | D127: 16843 | E127: 12 | F127: 16845 | K127: 0 | L127: 221
A128: 12 | B128: 16938 | C128: 23 | D128: 16941 | E128: 14 | F128: 16945 | K128: 0 | L128: 121
A129: 21 | B129: 17040 | C129: 21 | D129: 17044 | E129: 12 | F129: 17046 | K129: 0 | L129: 221
A130: 21 | B130: 17142 | C130: 21 | D130: 17150 | E130: 21 | F130: 17157 | K130: 0 | L130: 222
A131: 21 | B131: 17324 | C131: 21 | D131: 17330 | E131: 21 | F131: 17336 | K131: 0 | L131: 222
A132: 21 | B132: 17595 | C132: 12 | D132: 17602 | E132: 23 | F132: 17613 | K132: 0 | L132: 212
A133: 21 | B133: 17708 | C133: 12 | D133: 17712 | E133: 23 | F133: 17718 | K133: 0 | L133: 212
A134: 21 | B134: 17812 | C134: 21 | D134: 17816 | E134: 21 | F134: 17823 | K134: 0 | L134: 222
A135: 21 | B135: 17998 | C135: 21 | D135: 18009 | E135: 21 | F135: 18026 | K135: 0 | L135: 222
A136: 21 | B136: 18215 | C136: 12 | D136: 18220 | E136: 23 | F136: 18224 | K136: 0 | L136: 212
A137: 12 | B137: 18327 | C137: 23 | D137: 18340 | E137: 23 | F137: 18352 | K137: 0 | L137: 122
A138: 21 | B138: 18448 | C138: 21 | D138: 18452 | E138: 12 | F138: 18455 | K138: 0 | L138: 221
A139: 21 | B139: 18553 | C139: 21 | D139: 18558 | E139: 21 | F139: 18563 | K139: 0 | L139: 222
A140: 21 | B140: 18655 | C140: 21 | D140: 18660 | E140: 12 | F140: 18662 | K140: 0 | L140: 221
A141: 12 | B141: 18754 | C141: 23 | D141: 18758 | E141: 23 | F141: 18762 | K141: 0 | L141: 122
A142: 21 | B142: 18859 | C142: 21 | D142: 18861 | E142: 12 | F142: 18865 | K142: 0 | L142: 221
A143: 21 | B143: 18961 | C143: 12 | D143: 18968 | E143: 23 | F143: 18973 | K143: 0 | L143: 212
A144: 21 | B144: 19079 | C144: 21 | D144: 19086 | E144: 21 | F144: 19091 | K144: 1 | L144: 222

Sheet !M828A40.Gus
A1: Report for:!M828A40.Gus
A2: Date: | B2: <date>
A3: Hen: | B3: <hen> | F3: Correct Sequence | G3: =Start!J2 -> 222 | P3: Total Sequences in Data | Q3: =4994-COUNTBLANK(L7:L5000) -> 84 | V3: Total Sequences in Block Data | W3: =COUNTA(L7:L20) -> 14 | AA3: Total Sequences in Block Data | AB3: =COUNTA(L21:L34) -> 14 | AF3: Total Sequences in Block Data | AG3: =COUNTA(L35:L48) -> 14 | AK3: Total Sequences in Block Data | AL3: =COUNTA(L49:L62) -> 14 | AP3: Total Sequences in Block Data | AQ3: =COUNTA(L63:L76) -> 14 | AU3: Total Sequences in Block Data | AV3: =COUNTA(L77:L90) -> 14
P4: Total Sequences in Summary | Q4: =SUM(O7:O14) -> 84 | V4: Total Sequences in Block Summary | W4: =SUM(U7:U14) -> 14 | AA4: Total Sequences in Block Summary | AB4: =SUM(Z7:Z14) -> 14 | AF4: Total Sequences in Block Summary | AG4: =SUM(AE7:AE14) -> 14 | AK4: Total Sequences in Block Summary | AL4: =SUM(AJ7:AJ14) -> 14 | AP4: Total Sequences in Block Summary | AQ4: =SUM(AO7:AO14) -> 14 | AU4: Total Sequences in Block Summary | AV4: =SUM(AT7:AT14) -> 14
T5: Block 1 | Y5: Block 2 | AD5: Block 3 | AI5: Block 4 | AN5: Block 5 | AS5: Block 6
A6: Sequence Component 1 | B6: Time 1 | C6: Sequence Component 2 | D6: Time 2 | E6: Sequence Component 3 | F6: Time 3 | G6: Sequence Component 4 | H6: Time 4 | I6: Sequence Component 5 | J6: Time 5 | K6: Correct? 0=No 1=Yes | L6: Sequence | N6: Frequency | P6: Relative Frequency | Q6: Variability | T6: Frequency | V6: Relative Frequency | W6: Variability | Y6: Frequency | AA6: Relative Frequency | AB6: Variability | AD6: Frequency | AF6: Relative Frequency | AG6: Variability | AI6: Frequency | AK6: Relative Frequency | AL6: Variability | AN6: Frequency | AP6: Relative Frequency | AQ6: Variability | AS6: Frequency | AU6: Relative Frequency | AV6: Variability
A7: 12 | B7: 1 | C7: 23 | D7: 7 | E7: 23 | F7: 12 | K7: 0 | L7: 122 | N7: 111 | O7: =COUNTIF($L$7:$L$500,N7) -> 0 | P7: =O7/$Q$4 -> 0 | Q7: =IF(P7=0,0,(P7*((LOG(P7))/LOG(2)))) -> 0 | T7: =N7 -> 111 | U7: =COUNTIF(L7:L20,T7) -> 0 | V7: =U7/(W4-U14) -> 0 | W7: =IF(V7=0,0,(V7*((LOG(V7))/LOG(2)))) -> 0 | Y7: =N7 -> 111 | Z7: =COUNTIF(L21:L34,Y7) -> 0 | AA7: =Z7/(AB4-Z14) -> 0 | AB7: =IF(AA7=0,0,(AA7*((LOG(AA7))/LOG(2)))) -> 0 | AD7: =N7 -> 111 | AE7: =COUNTIF(L35:L48,AD7) -> 0 | AF7: =AE7/(AG4-AE14) -> 0 | AG7: =IF(AF7=0,0,(AF7*((LOG(AF7))/LOG(2)))) -> 0 | AI7: =N7 -> 111 | AJ7: =COUNTIF(L49:L62,AI7) -> 0 | AK7: =AJ7/(AL4-AJ14) -> 0 | AL7: =IF(AK7=0,0,(AK7*((LOG(AK7))/LOG(2)))) -> 0 | AN7: =N7 -> 111 | AO7: =COUNTIF(L63:L76,AN7) -> 0 | AP7: =AO7/(AQ4-AO14) -> 0 | AQ7: =IF(AP7=0,0,(AP7*((LOG(AP7))/LOG(2)))) -> 0 | AS7: =N7 -> 111 | AT7: =COUNTIF(L77:L90,AS7) -> 0 | AU7: =AT7/(AV4-AT14) -> 0 | AV7: =IF(AU7=0,0,(AU7*((LOG(AU7))/LOG(2)))) -> 0
A8: 12 | B8: 108 | C8: 14 | D8: 115 | E8: 23 | F8: 117 | K8: 0 | L8: 112 | N8: 112 | O8: =COUNTIF($L$7:$L$500,N8) -> 1 | P8: =O8/$Q$4 -> 0.0119047619 | Q8: =IF(P8=0,0,(P8*((LOG(P8))/LOG(2)))) -> -0.07609901694 | T8: =N8 -> 112 | U8: =COUNTIF(L7:L20,T8) -> 1 | V8: =U8/(W4-U14) -> 0.25 | W8: =IF(V8=0,0,(V8*((LOG(V8))/LOG(2)))) -> -0.5 | Y8: =N8 -> 112 | Z8: =COUNTIF(L21:L34,Y8) -> 0 | AA8: =Z8/(AB4-Z14) -> 0 | AB8: =IF(AA8=0,0,(AA8*((LOG(AA8))/LOG(2)))) -> 0 | AD8: =N8 -> 112 | AE8: =COUNTIF(L35:L48,AD8) -> 0 | AF8: =AE8/(AG4-AE14) -> 0 | AG8: =IF(AF8=0,0,(AF8*((LOG(AF8))/LOG(2)))) -> 0 | AI8: =N8 -> 112 | AJ8: =COUNTIF(L49:L62,AI8) -> 0 | AK8: =AJ8/(AL4-AJ14) -> 0 | AL8: =IF(AK8=0,0,(AK8*((LOG(AK8))/LOG(2)))) -> 0 | AN8: =N8 -> 112 | AO8: =COUNTIF(L63:L76,AN8) -> 0 | AP8: =AO8/(AQ4-AO14) -> 0 | AQ8: =IF(AP8=0,0,(AP8*((LOG(AP8))/LOG(2)))) -> 0 | AS8: =N8 -> 112 | AT8: =COUNTIF(L77:L90,AS8) -> 0 | AU8: =AT8/(AV4-AT14) -> 0 | AV8: =IF(AU8=0,0,(AU8*((LOG(AU8))/LOG(2)))) -> 0
A9: 21 | B9: 215 | C9: 21 | D9: 219 | E9: 21 | F9: 223 | K9: 0 | L9: 222 | N9: 121 | O9: =COUNTIF($L$7:$L$500,N9) -> 0 | P9: =O9/$Q$4 -> 0 | Q9: =IF(P9=0,0,(P9*((LOG(P9))/LOG(2)))) -> 0 | T9: =N9 -> 121 | U9: =COUNTIF(L7:L20,T9) -> 0 | V9: =U9/(W4-U14) -> 0 | W9: =IF(V9=0,0,(V9*((LOG(V9))/LOG(2)))) -> 0 | Y9: =N9 -> 121 | Z9: =COUNTIF(L21:L34,Y9) -> 0 | AA9: =Z9/(AB4-Z14) -> 0 | AB9: =IF(AA9=0,0,(AA9*((LOG(AA9))/LOG(2)))) -> 0 | AD9: =N9 -> 121 | AE9: =COUNTIF(L35:L48,AD9) -> 0 | AF9: =AE9/(AG4-AE14) -> 0 | AG9: =IF(AF9=0,0,(AF9*((LOG(AF9))/LOG(2)))) -> 0 | AI9: =N9 -> 121 | AJ9: =COUNTIF(L49:L62,AI9) -> 0 | AK9: =AJ9/(AL4-AJ14) -> 0 | AL9: =IF(AK9=0,0,(AK9*((LOG(AK9))/LOG(2)))) -> 0 | AN9: =N9 -> 121 | AO9: =COUNTIF(L63:L76,AN9) -> 0 | AP9: =AO9/(AQ4-AO14) -> 0 | AQ9: =IF(AP9=0,0,(AP9*((LOG(AP9))/LOG(2)))) -> 0 | AS9: =N9 -> 121 | AT9: =COUNTIF(L77:L90,AS9) -> 0 | AU9: =AT9/(AV4-AT14) -> 0 | AV9: =IF(AU9=0,0,(AU9*((LOG(AU9))/LOG(2)))) -> 0
A10: 21 | B10: 481 | C10: 21 | D10: 491 | E10: 21 | F10: 497 | K10: 0 | L10: 222 | N10: 122 | O10: =COUNTIF($L$7:$L$500,N10) -> 15 | P10: =O10/$Q$4 -> 0.1785714286 | Q10: =IF(P10=0,0,(P10*((LOG(P10))/LOG(2)))) -> -0.4438262191 | T10: =N10 -> 122 | U10: =COUNTIF(L7:L20,T10) -> 3 | V10: =U10/(W4-U14) -> 0.75 | W10: =IF(V10=0,0,(V10*((LOG(V10))/LOG(2)))) -> -0.3112781245 | Y10: =N10 -> 122 | Z10: =COUNTIF(L21:L34,Y10) -> 2 | AA10: =Z10/(AB4-Z14) -> 0.25 | AB10: =IF(AA10=0,0,(AA10*((LOG(AA10))/LOG(2)))) -> -0.5 | AD10: =N10 -> 122 | AE10: =COUNTIF(L35:L48,AD10) -> 2 | AF10: =AE10/(AG4-AE14) -> 0.2222222222 | AG10: =IF(AF10=0,0,(AF10*((LOG(AF10))/LOG(2)))) -> -0.4822055559 | AI10: =N10 -> 122 | AJ10: =COUNTIF(L49:L62,AI10) -> 3 | AK10: =AJ10/(AL4-AJ14) -> 0.4285714286 | AL10: =IF(AK10=0,0,(AK10*((LOG(AK10))/LOG(2)))) -> -0.5238824663 | AN10: =N10 -> 122 | AO10: =COUNTIF(L63:L76,AN10) -> 2 | AP10: =AO10/(AQ4-AO14) -> 0.2857142857 | AQ10: =IF(AP10=0,0,(AP10*((LOG(AP10))/LOG(2)))) -> -0.5163871206 | AS10: =N10 -> 122 | AT10: =COUNTIF(L77:L90,AS10) -> 3 | AU10: =AT10/(AV4-AT14) -> 0.3 | AV10: =IF(AU10=0,0,(AU10*((LOG(AU10))/LOG(2)))) -> -0.5210896782
A11: 21 | B11: 652 | C11: 21 | D11: 662 | E11: 21 | F11: 670 | K11: 0 | L11: 222 | N11: 211 | O11: =COUNTIF($L$7:$L$500,N11) -> 0 | P11: =O11/$Q$4 -> 0 | Q11: =IF(P11=0,0,(P11*((LOG(P11))/LOG(2)))) -> 0 | T11: =N11 -> 211 | U11: =COUNTIF(L7:L20,T11) -> 0 | V11: =U11/(W4-U14) -> 0 | W11: =IF(V11=0,0,(V11*((LOG(V11))/LOG(2)))) -> 0 | Y11: =N11 -> 211 | Z11: =COUNTIF(L21:L34,Y11) -> 0 | AA11: =Z11/(AB4-Z14) -> 0 | AB11: =IF(AA11=0,0,(AA11*((LOG(AA11))/LOG(2)))) -> 0 | AD11: =N11 -> 211 | AE11: =COUNTIF(L35:L48,AD11) -> 0 | AF11: =AE11/(AG4-AE14) -> 0 | AG11: =IF(AF11=0,0,(AF11*((LOG(AF11))/LOG(2)))) -> 0 | AI11: =N11 -> 211 | AJ11: =COUNTIF(L49:L62,AI11) -> 0 | AK11: =AJ11/(AL4-AJ14) -> 0 | AL11: =IF(AK11=0,0,(AK11*((LOG(AK11))/LOG(2)))) -> 0 | AN11: =N11 -> 211 | AO11: =COUNTIF(L63:L76,AN11) -> 0 | AP11: =AO11/(AQ4-AO14) -> 0 | AQ11: =IF(AP11=0,0,(AP11*((LOG(AP11))/LOG(2)))) -> 0 | AS11: =N11 -> 211 | AT11: =COUNTIF(L77:L90,AS11) -> 0 | AU11: =AT11/(AV4-AT14) -> 0 | AV11: =IF(AU11=0,0,(AU11*((LOG(AU11))/LOG(2)))) -> 0
A12: 21 | B12: 806 | C12: 21 | D12: 818 | E12: 21 | F12: 825 | K12: 0 | L12: 222 | N12: 212 | O12: =COUNTIF($L$7:$L$500,N12) -> 15 | P12: =O12/$Q$4 -> 0.1785714286 | Q12: =IF(P12=0,0,(P12*((LOG(P12))/LOG(2)))) -> -0.4438262191 | T12: =N12 -> 212 | U12: =COUNTIF(L7:L20,T12) -> 0 | V12: =U12/(W4-U14) -> 0 | W12: =IF(V12=0,0,(V12*((LOG(V12))/LOG(2)))) -> 0 | Y12: =N12 -> 212 | Z12: =COUNTIF(L21:L34,Y12) -> 4 | AA12: =Z12/(AB4-Z14) -> 0.5 | AB12: =IF(AA12=0,0,(AA12*((LOG(AA12))/LOG(2)))) -> -0.5 | AD12: =N12 -> 212 | AE12: =COUNTIF(L35:L48,AD12) -> 5 | AF12: =AE12/(AG4-AE14) -> 0.5555555556 | AG12: =IF(AF12=0,0,(AF12*((LOG(AF12))/LOG(2)))) -> -0.4711093925 | AI12: =N12 -> 212 | AJ12: =COUNTIF(L49:L62,AI12) -> 2 | AK12: =AJ12/(AL4-AJ14) -> 0.2857142857 | AL12: =IF(AK12=0,0,(AK12*((LOG(AK12))/LOG(2)))) -> -0.5163871206 | AN12: =N12 -> 212 | AO12: =COUNTIF(L63:L76,AN12) -> 1 | AP12: =AO12/(AQ4-AO14) -> 0.1428571429 | AQ12: =IF(AP12=0,0,(AP12*((LOG(AP12))/LOG(2)))) -> -0.4010507032 | AS12: =N12 -> 212 | AT12: =COUNTIF(L77:L90,AS12) -> 3 | AU12: =AT12/(AV4-AT14) -> 0.3 | AV12: =IF(AU12=0,0,(AU12*((LOG(AU12))/LOG(2)))) -> -0.5210896782
A13: 21 | B13: 1029 | C13: 21 | D13: 1042 | E13: 21 | F13: 1048 | K13: 0 | L13: 222 | N13: 221 | O13: =COUNTIF($L$7:$L$500,N13) -> 14 | P13: =O13/$Q$4 -> 0.1666666667 | Q13: =IF(P13=0,0,(P13*((LOG(P13))/LOG(2)))) -> -0.4308270835 | T13: =N13 -> 221 | U13: =COUNTIF(L7:L20,T13) -> 0 | V13: =U13/(W4-U14) -> 0 | W13: =IF(V13=0,0,(V13*((LOG(V13))/LOG(2)))) -> 0 | Y13: =N13 -> 221 | Z13: =COUNTIF(L21:L34,Y13) -> 2 | AA13: =Z13/(AB4-Z14) -> 0.25 | AB13: =IF(AA13=0,0,(AA13*((LOG(AA13))/LOG(2)))) -> -0.5 | AD13: =N13 -> 221 | AE13: =COUNTIF(L35:L48,AD13) -> 2 | AF13: =AE13/(AG4-AE14) -> 0.2222222222 | AG13: =IF(AF13=0,0,(AF13*((LOG(AF13))/LOG(2)))) -> -0.4822055559 | AI13: =N13 -> 221 | AJ13: =COUNTIF(L49:L62,AI13) -> 2 | AK13: =AJ13/(AL4-AJ14) -> 0.2857142857 | AL13: =IF(AK13=0,0,(AK13*((LOG(AK13))/LOG(2)))) -> -0.5163871206 | AN13: =N13 -> 221 | AO13: =COUNTIF(L63:L76,AN13) -> 4 | AP13: =AO13/(AQ4-AO14) -> 0.5714285714 | AQ13: =IF(AP13=0,0,(AP13*((LOG(AP13))/LOG(2)))) -> -0.4613456697 | AS13: =N13 -> 221 | AT13: =COUNTIF(L77:L90,AS13) -> 4 | AU13: =AT13/(AV4-AT14) -> 0.4 | AV13: =IF(AU13=0,0,(AU13*((LOG(AU13))/LOG(2)))) -> -0.528771238
A14: 21 | B14: 1273 | C14: 21 | D14: 1300 | E14: 21 | F14: 1307 | K14: 0 | L14: 222 | N14: 222 | O14: =COUNTIF($L$7:$L$500,N14) -> 39 | P14: =O14/$Q$4 -> 0.4642857143 | Q14: =IF(P14=0,0,(P14*((LOG(P14))/LOG(2)))) -> -0.5139249161 | T14: =N14 -> 222 | U14: =COUNTIF(L7:L20,T14) -> 10 | Y14: =N14 -> 222 | Z14: =COUNTIF(L21:L34,Y14) -> 6 | AD14: =N14 -> 222 | AE14: =COUNTIF(L35:L48,AD14) -> 5 | AI14: =N14 -> 222 | AJ14: =COUNTIF(L49:L62,AI14) -> 7 | AN14: =N14 -> 222 | AO14: =COUNTIF(L63:L76,AN14) -> 7 | AS14: =N14 -> 222 | AT14: =COUNTIF(L77:L90,AS14) -> 4
A15: 21 | B15: 1545 | C15: 21 | D15: 1553 | E15: 21 | F15: 1568 | K15: 0 | L15: 222 | P15: =SUM(P7:P14) -> 1 | Q15: =-SUM(Q7:Q14) -> 1.908503455 | V15: =SUM(V7:V14) -> 1 | W15: =-SUM(W7:W14) -> 0.8112781245 | AA15: =SUM(AA7:AA14) -> 1 | AB15: =-SUM(AB7:AB14) -> 1.5 | AF15: =SUM(AF7:AF14) -> 1 | AG15: =-SUM(AG7:AG14) -> 1.435520504 | AK15: =SUM(AK7:AK14) -> 1 | AL15: =-SUM(AL7:AL14) -> 1.556656707 | AP15: =SUM(AP7:AP14) -> 1 | AQ15: =-SUM(AQ7:AQ14) -> 1.378783493 | AU15: =SUM(AU7:AU14) -> 1 | AV15: =-SUM(AV7:AV14) -> 1.570950594
A16: 21 | B16: 1859 | C16: 21 | D16: 1878 | E16: 21 | F16: 1896 | K16: 0 | L16: 222 | P16: U= | Q16: =Q15/(LOG(Q4)/LOG(2)) -> 0.2985620595 | V16: U1= | W16: =W15/(LOG(W4)/LOG(2)) -> 0.2130818222 | AA16: U2= | AB16: =AB15/(LOG(AB4)/LOG(2)) -> 0.3939743026 | AF16: U3= | AG16: =AG15/(LOG(AG4)/LOG(2)) -> 0.377038793 | AK16: U4= | AL16: =AL15/(LOG(AL4)/LOG(2)) -> 0.4088551604 | AP16: U5= | AQ16: =AQ15/(LOG(AQ4)/LOG(2)) -> 0.3621368435 | AU16: U6= | AV16: =AV15/(LOG(AV4)/LOG(2)) -> 0.4126094432
A17: 12 | B17: 2059 | C17: 23 | D17: 2076 | E17: 23 | F17: 2090 | K17: 0 | L17: 122
A18: 21 | B18: 2187 | C18: 21 | D18: 2192 | E18: 21 | F18: 2197 | K18: 0 | L18: 222
A19: 12 | B19: 2428 | C19: 23 | D19: 2433 | E19: 23 | F19: 2445 | K19: 0 | L19: 122 | N19: Total Target Seq
A20: 21 | B20: 2551 | C20: 21 | D20: 2558 | E20: 21 | F20: 2565 | K20: 0 | L20: 222 | N20: =COUNTIF(L7:L90,G3) -> 39 | P20: 14 | Q20: 14 | R20: 14 | S20: 14 | T20: 14 | U20: 14
A21: 21 | B21: 2718 | C21: 21 | D21: 2724 | E21: 21 | F21: 2769 | K21: 0 | L21: 222 | P21: % of reinforcement given in 6 equal intervals based on number of trials
A22: 21 | B22: 2918 | C22: 21 | D22: 2947 | E22: 21 | F22: 2974 | K22: 0 | L22: 222 | P22: %_1 | Q22: %_2 | R22: %_3 | S22: %_4 | T22: %_5 | U22: %_6
A23: 21 | B23: 3194 | C23: 21 | D23: 3210 | E23: 12 | F23: 3220 | K23: 0 | L23: 221 | O23: target sequence | P23: =$G$3 -> 222 | Q23: =$G$3 -> 222 | R23: =$G$3 -> 222 | S23: =$G$3 -> 222 | T23: =$G$3 -> 222 | U23: =$G$3 -> 222
A24: 12 | B24: 3447 | C24: 23 | D24: 3455 | E24: 23 | F24: 3477 | K24: 0 | L24: 122 | O24: total reinforcement | P24: =U14 -> 10 | Q24: =Z14 -> 6 | R24: =AE14 -> 5 | S24: =AJ14 -> 7 | T24: =AO14 -> 7 | U24: =AT14 -> 4
A25: 21 | B25: 3573 | C25: 12 | D25: 3578 | E25: 23 | F25: 3583 | K25: 0 | L25: 212 | O25: % target
A26: 21 | B26: 3680 | C26: 12 | D26: 3684 | E26: 23 | F26: 3689 | K26: 0 | L26: 212 | O26: CCRF
A27: 21 | B27: 3783 | C27: 21 | D27: 3787 | E27: 21 | F27: 3791 | K27: 0 | L27: 222 | O27: % CCRf
A28: 21 | B28: 3915 | C28: 21 | D28: 3920 | E28: 12 | F28: 3922 | K28: 0 | L28: 221 | O28: average response rate | P28: =F20/P20 -> 183.2142857 | Q28: =(F34-F20)/Q20 -> 152.9285714 | R28: =(F48-F34)/R20 -> 148.6428571 | S28: =(F62-F48)/S20 -> 126.2857143 | T28: =(F76-F62)/T20 -> 130.5714286 | U28: =(F90-F76)/U20 -> 114.3571429
A29: 12 | B29: 4016 | C29: 23 | D29: 4020 | E29: 23 | F29: 4023 | K29: 0 | L29: 122
A30: 21 | B30: 4122 | C30: 12 | D30: 4130 | E30: 23 | F30: 4137 | K30: 0 | L30: 212
A31: 21 | B31: 4232 | C31: 21 | D31: 4235 | E31: 21 | F31: 4242 | K31: 0 | L31: 222
A32: 21 | B32: 4388 | C32: 21 | D32: 4393 | E32: 21 | F32: 4397 | K32: 0 | L32: 222
A33: 21 | B33: 4580 | C33: 12 | D33: 4595 | E33: 23 | F33: 4599 | K33: 0 | L33: 212
A34: 21 | B34: 4693 | C34: 21 | D34: 4700 | E34: 21 | F34: 4706 | K34: 0 | L34: 222
A35: 12 | B35: 4842 | C35: 23 | D35: 4851 | E35: 23 | F35: 4864 | K35: 0 | L35: 122
A36: 21 | B36: 4961 | C36: 21 | D36: 4965 | E36: 12 | F36: 4968 | K36: 0 | L36: 221
A37: 21 | B37: 5063 | C37: 12 | D37: 5070 | E37: 23 | F37: 5077 | K37: 0 | L37: 212
A38: 21 | B38: 5174 | C38: 21 | D38: 5176 | E38: 21 | F38: 5180 | K38: 0 | L38: 222
A39: 12 | B39: 5794 | C39: 23 | D39: 5800 | E39: 23 | F39: 5813 | K39: 0 | L39: 122
A40: 21 | B40: 5906 | C40: 21 | D40: 5911 | E40: 21 | F40: 5914 | K40: 0 | L40: 222
A41: 21 | B41: 6006 | C41: 12 | D41: 6012 | E41: 23 | F41: 6022 | K41: 0 | L41: 212
A42: 21 | B42: 6120 | C42: 12 | D42: 6122 | E42: 23 | F42: 6124 | K42: 0 | L42: 212
A43: 21 | B43: 6220 | C43: 21 | D43: 6228 | E43: 21 | F43: 6235 | K43: 0 | L43: 222
A44: 21 | B44: 6361 | C44: 12 | D44: 6365 | E44: 23 | F44: 6373 | K44: 0 | L44: 212
A45: 21 | B45: 6470 | C45: 21 | D45: 6474 | E45: 12 | F45: 6476 | K45: 0 | L45: 221
A46: 21 | B46: 6573 | C46: 21 | D46: 6580 | E46: 21 | F46: 6586 | K46: 0 | L46: 222
A47: 21 | B47: 6676 | C47: 12 | D47: 6679 | E47: 23 | F47: 6688 | K47: 0 | L47: 212
A48: 21 | B48: 6780 | C48: 21 | D48: 6783 | E48: 21 | F48: 6787 | K48: 0 | L48: 222
A49: 12 | B49: 6885 | C49: 23 | D49: 6902 | E49: 23 | F49: 6909 | K49: 0 | L49: 122
A50: 21 | B50: 7005 | C50: 21 | D50: 7009 | E50: 12 | F50: 7011 | K50: 0 | L50: 221
A51: 21 | B51: 7108 | C51: 21 | D51: 7112 | E51: 21 | F51: 7126 | K51: 0 | L51: 222
A52: 21 | B52: 7231 | C52: 12 | D52: 7235 | E52: 23 | F52: 7237 | K52: 0 | L52: 212
A53: 21 | B53: 7333 | C53: 21 | D53: 7338 | E53: 21 | F53: 7342 | K53: 0 | L53: 222
A54: 21 | B54: 7468 | C54: 21 | D54: 7470 | E54: 12 | F54: 7473 | K54: 0 | L54: 221
A55: 21 | B55: 7573 | C55: 12 | D55: 7578 | E55: 23 | F55: 7582 | K55: 0 | L55: 212
A56: 21 | B56: 7676 | C56: 21 | D56: 7680 | E56: 21 | F56: 7684 | K56: 0 | L56: 222
A57: 12 | B57: 7790 | C57: 23 | D57: 7798 | E57: 23 | F57: 7803 | K57: 0 | L57: 122
A58: 21 | B58: 7899 | C58: 21 | D58: 7901 | E58: 21 | F58: 7905 | K58: 0 | L58: 222
A59: 21 | B59: 8042 | C59: 21 | D59: 8046 | E59: 21 | F59: 8055 | K59: 0 | L59: 222
A60: 12 | B60: 8291 | C60: 23 | D60: 8320 | E60: 23 | F60: 8333 | K60: 0 | L60: 122
A61: 21 | B61: 8424 | C61: 21 | D61: 8430 | E61: 21 | F61: 8438 | K61: 0 | L61: 222
A62: 21 | B62: 8542 | C62: 21 | D62: 8544 | E62: 21 | F62: 8555 | K62: 0 | L62: 222
A63: 21 | B63: 8768 | C63: 21 | D63: 8782 | E63: 12 | F63: 8791 | K63: 0 | L63: 221
A64: 21 | B64: 8884 | C64: 21 | D64: 8889 | E64: 21 | F64: 8897 | K64: 0 | L64: 222
A65: 21 | B65: 8986 | C65: 21 | D65: 8990 | E65: 21 | F65: 8995 | K65: 0 | L65: 222
A66: 21 | B66: 9195 | C66: 21 | D66: 9200 | E66: 21 | F66: 9208 | K66: 0 | L66: 222
A67: 21 | B67: 9327 | C67: 21 | D67: 9337 | E67: 12 | F67: 9344 | K67: 0 | L67: 221
A68: 12 | B68: 9435 | C68: 23 | D68: 9439 | E68: 23 | F68: 9445 | K68: 0 | L68: 122
A69: 21 | B69: 9541 | C69: 21 | D69: 9545 | E69: 21 | F69: 9552 | K69: 0 | L69: 222
A70: 21 | B70: 9685 | C70: 21 | D70: 9688 | E70: 21 | F70: 9694 | K70: 0 | L70: 222
A71: 21 | B71: 9829 | C71: 21 | D71: 9833 | E71: 12 | F71: 9839 | K71: 0 | L71: 221
A72: 12 | B72: 9931 | C72: 23 | D72: 9940 | E72: 23 | F72: 9946 | K72: 0 | L72: 122
A73: 21 | B73: 10040 | C73: 21 | D73: 10043 | E73: 21 | F73: 10047 | K73: 0 | L73: 222
A74: 21 | B74: 10159 | C74: 12 | D74: 10163 | E74: 23 | F74: 10170 | K74: 0 | L74: 212
A75: 21 | B75: 10268 | C75: 21 | D75: 10274 | E75: 12 | F75: 10281 | K75: 0 | L75: 221
A76: 21 | B76: 10376 | C76: 21 | D76: 10378 | E76: 21 | F76: 10383 | K76: 0 | L76: 222
A77: 21 | B77: 10531 | C77: 21 | D77: 10541 | E77: 12 | F77: 10547 | K77: 0 | L77: 221
A78: 21 | B78: 10643 | C78: 12 | D78: 10650 | E78: 23 | F78: 10656 | K78: 0 | L78: 212
A79: 21 | B79: 10749 | C79: 21 | D79: 10752 | E79: 21 | F79: 10757 | K79: 0 | L79: 222
A80: 12 | B80: 10883 | C80: 23 | D80: 10887 | E80: 23 | F80: 10893 | K80: 0 | L80: 122
A81: 21 | B81: 10985 | C81: 21 | D81: 10992 | E81: 12 | F81: 10995 | K81: 0 | L81: 221
A82: 21 | B82: 11088 | C82: 21 | D82: 11094 | E82: 21 | F82: 11104 | K82: 0 | L82: 222
A83: 21 | B83: 11199 | C83: 21 | D83: 11201 | E83: 12 | F83: 11207 | K83: 0 | L83: 221
A84: 12 | B84: 11299 | C84: 23 | D84: 11304 | E84: 23 | F84: 11311 | K84: 0 | L84: 122
A85: 21 | B85: 11407 | C85: 21 | D85: 11413 | E85: 21 | F85: 11420 | K85: 0 | L85: 222
A86: 21 | B86: 11553 | C86: 12 | D86: 11558 | E86: 23 | F86: 11564 | K86: 0 | L86: 212
A87: 21 | B87: 11659 | C87: 21 | D87: 11664 | E87: 12 | F87: 11673 | K87: 0 | L87: 221
A88: 12 | B88: 11767 | C88: 23 | D88: 11770 | E88: 23 | F88: 11773 | K88: 0 | L88: 122
A89: 21 | B89: 11869 | C89: 12 | D89: 11874 | E89: 23 | F89: 11879 | K89: 0 | L89: 212
A90: 21 | B90: 11975 | C90: 21 | D90: 11978 | E90: 21 | F90: 11984 | K90: 1 | L90: 222

Sheet !M829A50.Gus
A1: Report for:!M829A50.Gus
A2: Date: | B2: <date>
A3: Hen: | B3: <hen> | F3: Correct Sequence | G3: =Start!J2 -> 222 | P3: Total Sequences in Data | Q3: =4994-COUNTBLANK(L7:L5000) -> 46 | V3: Total Sequences in Block Data | W3: =COUNTA(L7:L14) -> 8 | AA3: Total Sequences in Block Data | AB3: =COUNTA(L15:L21) -> 7 | AF3: Total Sequences in Block Data | AG3: =COUNTA(L22:L29) -> 8 | AK3: Total Sequences in Block Data | AL3: =COUNTA(L30:L37) -> 8 | AP3: Total Sequences in Block Data | AQ3: =COUNTA(L38:L44) -> 7 | AU3: Total Sequences in Block Data | AV3: =COUNTA(L45:L52) -> 8
P4: Total Sequences in Summary | Q4: =SUM(O7:O14) -> 46 | V4: Total Sequences in Block Summary | W4: =SUM(U7:U14) -> 8 | AA4: Total Sequences in Block Summary | AB4: =SUM(Z7:Z14) -> 7 | AF4: Total Sequences in Block Summary | AG4: =SUM(AE7:AE14) -> 8 | AK4: Total Sequences in Block Summary | AL4: =SUM(AJ7:AJ14) -> 8 | AP4: Total Sequences in Block Summary | AQ4: =SUM(AO7:AO14) -> 7 | AU4: Total Sequences in Block Summary | AV4: =SUM(AT7:AT14) -> 8
T5: Block 1 | Y5: Block 2 | AD5: Block 3 | AI5: Block 4 | AN5: Block 5 | AS5: Block 6
A6: Sequence Component 1 | B6: Time 1 | C6: Sequence Component 2 | D6: Time 2 | E6: Sequence Component 3 | F6: Time 3 | G6: Sequence Component 4 | H6: Time 4 | I6: Sequence Component 5 | J6: Time 5 | K6: Correct? 0=No 1=Yes | L6: Sequence | N6: Frequency | P6: Relative Frequency | Q6: Variability | T6: Frequency | V6: Relative Frequency | W6: Variability | Y6: Frequency | AA6: Relative Frequency | AB6: Variability | AD6: Frequency | AF6: Relative Frequency | AG6: Variability | AI6: Frequency | AK6: Relative Frequency | AL6: Variability | AN6: Frequency | AP6: Relative Frequency | AQ6: Variability | AS6: Frequency | AU6: Relative Frequency | AV6: Variability
A7: 21 | B7: 8 | C7: 21 | D7: 12 | E7: 21 | F7: 16 | K7: 0 | L7: 222 | N7: 111 | O7: =COUNTIF($L$7:$L$500,N7) -> 0 | P7: =O7/$Q$4 -> 0 | Q7: =IF(P7=0,0,(P7*((LOG(P7))/LOG(2)))) -> 0 | T7: =N7 -> 111 | U7: =COUNTIF(L7:L14,T7) -> 0 | V7: =U7/(W4-U14) -> 0 | W7: =IF(V7=0,0,(V7*((LOG(V7))/LOG(2)))) -> 0 | Y7: =N7 -> 111 | Z7: =COUNTIF(L15:L21,Y7) -> 0 | AA7: =Z7/(AB4-Z14) -> 0 | AB7: =IF(AA7=0,0,(AA7*((LOG(AA7))/LOG(2)))) -> 0 | AD7: =N7 -> 111 | AE7: =COUNTIF(L22:L29,AD7) -> 0 | AF7: =AE7/(AG4-AE14) -> 0 | AG7: =IF(AF7=0,0,(AF7*((LOG(AF7))/LOG(2)))) -> 0 | AI7: =N7 -> 111 | AJ7: =COUNTIF(L30:L37,AI7) -> 0 | AK7: =AJ7/(AL4-AJ14) -> 0 | AL7: =IF(AK7=0,0,(AK7*((LOG(AK7))/LOG(2)))) -> 0 | AN7: =N7 -> 111 | AO7: =COUNTIF(L38:L44,AN7) -> 0 | AP7: =AO7/(AQ4-AO14) ->  | AQ7: =IF(AP7=0,0,(AP7*((LOG(AP7))/LOG(2)))) ->  | AS7: =N7 -> 111 | AT7: =COUNTIF(L45:L52,AS7) -> 0 | AU7: =AT7/(AV4-AT14) -> 0 | AV7: =IF(AU7=0,0,(AU7*((LOG(AU7))/LOG(2)))) -> 0
A8: 21 | B8: 119 | C8: 21 | D8: 123 | E8: 21 | F8: 129 | K8: 0 | L8: 222 | N8: 112 | O8: =COUNTIF($L$7:$L$500,N8) -> 0 | P8: =O8/$Q$4 -> 0 | Q8: =IF(P8=0,0,(P8*((LOG(P8))/LOG(2)))) -> 0 | T8: =N8 -> 112 | U8: =COUNTIF(L7:L14,T8) -> 0 | V8: =U8/(W4-U14) -> 0 | W8: =IF(V8=0,0,(V8*((LOG(V8))/LOG(2)))) -> 0 | Y8: =N8 -> 112 | Z8: =COUNTIF(L15:L21,Y8) -> 0 | AA8: =Z8/(AB4-Z14) -> 0 | AB8: =IF(AA8=0,0,(AA8*((LOG(AA8))/LOG(2)))) -> 0 | AD8: =N8 -> 112 | AE8: =COUNTIF(L22:L29,AD8) -> 0 | AF8: =AE8/(AG4-AE14) -> 0 | AG8: =IF(AF8=0,0,(AF8*((LOG(AF8))/LOG(2)))) -> 0 | AI8: =N8 -> 112 | AJ8: =COUNTIF(L30:L37,AI8) -> 0 | AK8: =AJ8/(AL4-AJ14) -> 0 | AL8: =IF(AK8=0,0,(AK8*((LOG(AK8))/LOG(2)))) -> 0 | AN8: =N8 -> 112 | AO8: =COUNTIF(L38:L44,AN8) -> 0 | AP8: =AO8/(AQ4-AO14) ->  | AQ8: =IF(AP8=0,0,(AP8*((LOG(AP8))/LOG(2)))) ->  | AS8: =N8 -> 112 | AT8: =COUNTIF(L45:L52,AS8) -> 0 | AU8: =AT8/(AV4-AT14) -> 0 | AV8: =IF(AU8=0,0,(AU8*((LOG(AU8))/LOG(2)))) -> 0
A9: 12 | B9: 347 | C9: 23 | D9: 352 | E9: 23 | F9: 362 | K9: 0 | L9: 122 | N9: 121 | O9: =COUNTIF($L$7:$L$500,N9) -> 0 | P9: =O9/$Q$4 -> 0 | Q9: =IF(P9=0,0,(P9*((LOG(P9))/LOG(2)))) -> 0 | T9: =N9 -> 121 | U9: =COUNTIF(L7:L14,T9) -> 0 | V9: =U9/(W4-U14) -> 0 | W9: =IF(V9=0,0,(V9*((LOG(V9))/LOG(2)))) -> 0 | Y9: =N9 -> 121 | Z9: =COUNTIF(L15:L21,Y9) -> 0 | AA9: =Z9/(AB4-Z14) -> 0 | AB9: =IF(AA9=0,0,(AA9*((LOG(AA9))/LOG(2)))) -> 0 | AD9: =N9 -> 121 | AE9: =COUNTIF(L22:L29,AD9) -> 0 | AF9: =AE9/(AG4-AE14) -> 0 | AG9: =IF(AF9=0,0,(AF9*((LOG(AF9))/LOG(2)))) -> 0 | AI9: =N9 -> 121 | AJ9: =COUNTIF(L30:L37,AI9) -> 0 | AK9: =AJ9/(AL4-AJ14) -> 0 | AL9: =IF(AK9=0,0,(AK9*((LOG(AK9))/LOG(2)))) -> 0 | AN9: =N9 -> 121 | AO9: =COUNTIF(L38:L44,AN9) -> 0 | AP9: =AO9/(AQ4-AO14) ->  | AQ9: =IF(AP9=0,0,(AP9*((LOG(AP9))/LOG(2)))) ->  | AS9: =N9 -> 121 | AT9: =COUNTIF(L45:L52,AS9) -> 0 | AU9: =AT9/(AV4-AT14) -> 0 | AV9: =IF(AU9=0,0,(AU9*((LOG(AU9))/LOG(2)))) -> 0
A10: 21 | B10: 472 | C10: 21 | D10: 478 | E10: 21 | F10: 486 | K10: 0 | L10: 222 | N10: 122 | O10: =COUNTIF($L$7:$L$500,N10) -> 6 | P10: =O10/$Q$4 -> 0.1304347826 | Q10: =IF(P10=0,0,(P10*((LOG(P10))/LOG(2)))) -> -0.3832955811 | T10: =N10 -> 122 | U10: =COUNTIF(L7:L14,T10) -> 1 | V10: =U10/(W4-U14) -> 1 | W10: =IF(V10=0,0,(V10*((LOG(V10))/LOG(2)))) -> 0 | Y10: =N10 -> 122 | Z10: =COUNTIF(L15:L21,Y10) -> 1 | AA10: =Z10/(AB4-Z14) -> 1 | AB10: =IF(AA10=0,0,(AA10*((LOG(AA10))/LOG(2)))) -> 0 | AD10: =N10 -> 122 | AE10: =COUNTIF(L22:L29,AD10) -> 1 | AF10: =AE10/(AG4-AE14) -> 1 | AG10: =IF(AF10=0,0,(AF10*((LOG(AF10))/LOG(2)))) -> 0 | AI10: =N10 -> 122 | AJ10: =COUNTIF(L30:L37,AI10) -> 1 | AK10: =AJ10/(AL4-AJ14) -> 1 | AL10: =IF(AK10=0,0,(AK10*((LOG(AK10))/LOG(2)))) -> 0 | AN10: =N10 -> 122 | AO10: =COUNTIF(L38:L44,AN10) -> 0 | AP10: =AO10/(AQ4-AO14) ->  | AQ10: =IF(AP10=0,0,(AP10*((LOG(AP10))/LOG(2)))) ->  | AS10: =N10 -> 122 | AT10: =COUNTIF(L45:L52,AS10) -> 2 | AU10: =AT10/(AV4-AT14) -> 1 | AV10: =IF(AU10=0,0,(AU10*((LOG(AU10))/LOG(2)))) -> 0
A11: 21 | B11: 674 | C11: 21 | D11: 685 | E11: 21 | F11: 692 | K11: 0 | L11: 222 | N11: 211 | O11: =COUNTIF($L$7:$L$500,N11) -> 0 | P11: =O11/$Q$4 -> 0 | Q11: =IF(P11=0,0,(P11*((LOG(P11))/LOG(2)))) -> 0 | T11: =N11 -> 211 | U11: =COUNTIF(L7:L14,T11) -> 0 | V11: =U11/(W4-U14) -> 0 | W11: =IF(V11=0,0,(V11*((LOG(V11))/LOG(2)))) -> 0 | Y11: =N11 -> 211 | Z11: =COUNTIF(L15:L21,Y11) -> 0 | AA11: =Z11/(AB4-Z14) -> 0 | AB11: =IF(AA11=0,0,(AA11*((LOG(AA11))/LOG(2)))) -> 0 | AD11: =N11 -> 211 | AE11: =COUNTIF(L22:L29,AD11) -> 0 | AF11: =AE11/(AG4-AE14) -> 0 | AG11: =IF(AF11=0,0,(AF11*((LOG(AF11))/LOG(2)))) -> 0 | AI11: =N11 -> 211 | AJ11: =COUNTIF(L30:L37,AI11) -> 0 | AK11: =AJ11/(AL4-AJ14) -> 0 | AL11: =IF(AK11=0,0,(AK11*((LOG(AK11))/LOG(2)))) -> 0 | AN11: =N11 -> 211 | AO11: =COUNTIF(L38:L44,AN11) -> 0 | AP11: =AO11/(AQ4-AO14) ->  | AQ11: =IF(AP11=0,0,(AP11*((LOG(AP11))/LOG(2)))) ->  | AS11: =N11 -> 211 | AT11: =COUNTIF(L45:L52,AS11) -> 0 | AU11: =AT11/(AV4-AT14) -> 0 | AV11: =IF(AU11=0,0,(AU11*((LOG(AU11))/LOG(2)))) -> 0
A12: 21 | B12: 898 | C12: 21 | D12: 906 | E12: 21 | F12: 908 | K12: 0 | L12: 222 | N12: 212 | O12: =COUNTIF($L$7:$L$500,N12) -> 0 | P12: =O12/$Q$4 -> 0 | Q12: =IF(P12=0,0,(P12*((LOG(P12))/LOG(2)))) -> 0 | T12: =N12 -> 212 | U12: =COUNTIF(L7:L14,T12) -> 0 | V12: =U12/(W4-U14) -> 0 | W12: =IF(V12=0,0,(V12*((LOG(V12))/LOG(2)))) -> 0 | Y12: =N12 -> 212 | Z12: =COUNTIF(L15:L21,Y12) -> 0 | AA12: =Z12/(AB4-Z14) -> 0 | AB12: =IF(AA12=0,0,(AA12*((LOG(AA12))/LOG(2)))) -> 0 | AD12: =N12 -> 212 | AE12: =COUNTIF(L22:L29,AD12) -> 0 | AF12: =AE12/(AG4-AE14) -> 0 | AG12: =IF(AF12=0,0,(AF12*((LOG(AF12))/LOG(2)))) -> 0 | AI12: =N12 -> 212 | AJ12: =COUNTIF(L30:L37,AI12) -> 0 | AK12: =AJ12/(AL4-AJ14) -> 0 | AL12: =IF(AK12=0,0,(AK12*((LOG(AK12))/LOG(2)))) -> 0 | AN12: =N12 -> 212 | AO12: =COUNTIF(L38:L44,AN12) -> 0 | AP12: =AO12/(AQ4-AO14) ->  | AQ12: =IF(AP12=0,0,(AP12*((LOG(AP12))/LOG(2)))) ->  | AS12: =N12 -> 212 | AT12: =COUNTIF(L45:L52,AS12) -> 0 | AU12: =AT12/(AV4-AT14) -> 0 | AV12: =IF(AU12=0,0,(AU12*((LOG(AU12))/LOG(2)))) -> 0
A13: 21 | B13: 1074 | C13: 21 | D13: 1099 | E13: 21 | F13: 1107 | K13: 0 | L13: 222 | N13: 221 | O13: =COUNTIF($L$7:$L$500,N13) -> 0 | P13: =O13/$Q$4 -> 0 | Q13: =IF(P13=0,0,(P13*((LOG(P13))/LOG(2)))) -> 0 | T13: =N13 -> 221 | U13: =COUNTIF(L7:L14,T13) -> 0 | V13: =U13/(W4-U14) -> 0 | W13: =IF(V13=0,0,(V13*((LOG(V13))/LOG(2)))) -> 0 | Y13: =N13 -> 221 | Z13: =COUNTIF(L15:L21,Y13) -> 0 | AA13: =Z13/(AB4-Z14) -> 0 | AB13: =IF(AA13=0,0,(AA13*((LOG(AA13))/LOG(2)))) -> 0 | AD13: =N13 -> 221 | AE13: =COUNTIF(L22:L29,AD13) -> 0 | AF13: =AE13/(AG4-AE14) -> 0 | AG13: =IF(AF13=0,0,(AF13*((LOG(AF13))/LOG(2)))) -> 0 | AI13: =N13 -> 221 | AJ13: =COUNTIF(L30:L37,AI13) -> 0 | AK13: =AJ13/(AL4-AJ14) -> 0 | AL13: =IF(AK13=0,0,(AK13*((LOG(AK13))/LOG(2)))) -> 0 | AN13: =N13 -> 221 | AO13: =COUNTIF(L38:L44,AN13) -> 0 | AP13: =AO13/(AQ4-AO14) ->  | AQ13: =IF(AP13=0,0,(AP13*((LOG(AP13))/LOG(2)))) ->  | AS13: =N13 -> 221 | AT13: =COUNTIF(L45:L52,AS13) -> 0 | AU13: =AT13/(AV4-AT14) -> 0 | AV13: =IF(AU13=0,0,(AU13*((LOG(AU13))/LOG(2)))) -> 0
A14: 21 | B14: 1206 | C14: 21 | D14: 1225 | E14: 21 | F14: 1233 | K14: 0 | L14: 222 | N14: 222 | O14: =COUNTIF($L$7:$L$500,N14) -> 40 | P14: =O14/$Q$4 -> 0.8695652174 | Q14: =IF(P14=0,0,(P14*((LOG(P14))/LOG(2)))) -> -0.1753337923 | T14: =N14 -> 222 | U14: =COUNTIF(L7:L14,T14) -> 7 | Y14: =N14 -> 222 | Z14: =COUNTIF(L15:L21,Y14) -> 6 | AD14: =N14 -> 222 | AE14: =COUNTIF(L22:L29,AD14) -> 7 | AI14: =N14 -> 222 | AJ14: =COUNTIF(L30:L37,AI14) -> 7 | AN14: =N14 -> 222 | AO14: =COUNTIF(L38:L44,AN14) -> 7 | AS14: =N14 -> 222 | AT14: =COUNTIF(L45:L52,AS14) -> 6
A15: 21 | B15: 1370 | C15: 21 | D15: 1398 | E15: 21 | F15: 1420 | K15: 0 | L15: 222 | P15: =SUM(P7:P14) -> 1 | Q15: =-SUM(Q7:Q14) -> 0.5586293735 | V15: =SUM(V7:V14) -> 1 | W15: =-SUM(W7:W14) -> 0 | AA15: =SUM(AA7:AA14) -> 1 | AB15: =-SUM(AB7:AB14) -> 0 | AF15: =SUM(AF7:AF14) -> 1 | AG15: =-SUM(AG7:AG14) -> 0 | AK15: =SUM(AK7:AK14) -> 1 | AL15: =-SUM(AL7:AL14) -> 0 | AP15: =SUM(AP7:AP14) ->  | AQ15: =-SUM(AQ7:AQ14) ->  | AU15: =SUM(AU7:AU14) -> 1 | AV15: =-SUM(AV7:AV14) -> 0
A16: 21 | B16: 1541 | C16: 21 | D16: 1547 | E16: 21 | F16: 1567 | K16: 0 | L16: 222 | P16: U= | Q16: =Q15/(LOG(Q4)/LOG(2)) -> 0.1011357124 | V16: U1= | W16: =W15/(LOG(W4)/LOG(2)) -> 0 | AA16: U2= | AB16: =AB15/(LOG(AB4)/LOG(2)) -> 0 | AF16: U3= | AG16: =AG15/(LOG(AG4)/LOG(2)) -> 0 | AK16: U4= | AL16: =AL15/(LOG(AL4)/LOG(2)) -> 0 | AP16: U5= | AQ16: =AQ15/(LOG(AQ4)/LOG(2)) ->  | AU16: U6= | AV16: =AV15/(LOG(AV4)/LOG(2)) -> 0
A17: 21 | B17: 1730 | C17: 21 | D17: 1763 | E17: 21 | F17: 1780 | K17: 0 | L17: 222
A18: 21 | B18: 1941 | C18: 21 | D18: 1992 | E18: 21 | F18: 2029 | K18: 0 | L18: 222
A19: 21 | B19: 2124 | C19: 21 | D19: 2152 | E19: 21 | F19: 2162 | K19: 0 | L19: 222 | N19: Total Target Seq
A20: 12 | B20: 2311 | C20: 23 | D20: 2338 | E20: 23 | F20: 2346 | K20: 0 | L20: 122 | N20: =COUNTIF(L7:L52,G3) -> 40 | P20: 8 | Q20: 7 | R20: 8 | S20: 8 | T20: 7 | U20: 8
A21: 21 | B21: 2439 | C21: 21 | D21: 2453 | E21: 21 | F21: 2460 | K21: 0 | L21: 222 | P21: % of reinforcement given in 6 equal intervals based on number of trials
A22: 21 | B22: 2615 | C22: 21 | D22: 2644 | E22: 21 | F22: 2654 | K22: 0 | L22: 222 | P22: %_1 | Q22: %_2 | R22: %_3 | S22: %_4 | T22: %_5 | U22: %_6
A23: 21 | B23: 2777 | C23: 21 | D23: 2787 | E23: 21 | F23: 2790 | K23: 0 | L23: 222 | O23: target sequence | P23: =$G$3 -> 222 | Q23: =$G$3 -> 222 | R23: =$G$3 -> 222 | S23: =$G$3 -> 222 | T23: =$G$3 -> 222 | U23: =$G$3 -> 222
A24: 21 | B24: 2899 | C24: 21 | D24: 2908 | E24: 21 | F24: 2927 | K24: 0 | L24: 222 | O24: total reinforcement | P24: =U14 -> 7 | Q24: =Z14 -> 6 | R24: =AE14 -> 7 | S24: =AJ14 -> 7 | T24: =AO14 -> 7 | U24: =AT14 -> 6
A25: 21 | B25: 3028 | C25: 21 | D25: 3038 | E25: 21 | F25: 3045 | K25: 0 | L25: 222 | O25: % target
A26: 21 | B26: 3311 | C26: 21 | D26: 3357 | E26: 21 | F26: 3366 | K26: 0 | L26: 222 | O26: CCRF
A27: 12 | B27: 3477 | C27: 23 | D27: 3483 | E27: 23 | F27: 3519 | K27: 0 | L27: 122 | O27: % CCRf
A28: 21 | B28: 3613 | C28: 21 | D28: 3620 | E28: 21 | F28: 3629 | K28: 0 | L28: 222 | O28: average response rate | P28: =F14/P20 -> 154.125 | Q28: =(F21-F14)/Q20 -> 175.2857143 | R28: =(F29-F21)/R20 -> 160.25 | S28: =(F37-F29)/S20 -> 144.375 | T28: =(F44-F37)/T20 -> 154.1428571 | U28: =(F52-F44)/U20 -> 151.5
A29: 21 | B29: 3734 | C29: 21 | D29: 3739 | E29: 21 | F29: 3742 | K29: 0 | L29: 222
A30: 21 | B30: 3847 | C30: 21 | D30: 3885 | E30: 21 | F30: 3894 | K30: 0 | L30: 222
A31: 12 | B31: 3985 | C31: 23 | D31: 3995 | E31: 23 | F31: 3999 | K31: 0 | L31: 122
A32: 21 | B32: 4096 | C32: 21 | D32: 4105 | E32: 21 | F32: 4111 | K32: 0 | L32: 222
A33: 21 | B33: 4224 | C33: 21 | D33: 4229 | E33: 21 | F33: 4236 | K33: 0 | L33: 222
A34: 21 | B34: 4341 | C34: 21 | D34: 4349 | E34: 21 | F34: 4361 | K34: 0 | L34: 222
A35: 21 | B35: 4525 | C35: 21 | D35: 4530 | E35: 21 | F35: 4539 | K35: 0 | L35: 222
A36: 21 | B36: 4670 | C36: 21 | D36: 4724 | E36: 21 | F36: 4731 | K36: 0 | L36: 222
A37: 21 | B37: 4870 | C37: 21 | D37: 4879 | E37: 21 | F37: 4897 | K37: 0 | L37: 222
A38: 21 | B38: 5000 | C38: 21 | D38: 5007 | E38: 21 | F38: 5015 | K38: 0 | L38: 222
A39: 21 | B39: 5205 | C39: 21 | D39: 5216 | E39: 21 | F39: 5238 | K39: 0 | L39: 222
A40: 21 | B40: 5370 | C40: 21 | D40: 5381 | E40: 21 | F40: 5397 | K40: 0 | L40: 222
A41: 21 | B41: 5502 | C41: 21 | D41: 5507 | E41: 21 | F41: 5510 | K41: 0 | L41: 222
A42: 21 | B42: 5642 | C42: 21 | D42: 5649 | E42: 21 | F42: 5657 | K42: 0 | L42: 222
A43: 21 | B43: 5816 | C43: 21 | D43: 5824 | E43: 21 | F43: 5830 | K43: 0 | L43: 222
A44: 21 | B44: 5960 | C44: 21 | D44: 5968 | E44: 21 | F44: 5976 | K44: 0 | L44: 222
A45: 12 | B45: 6069 | C45: 23 | D45: 6075 | E45: 23 | F45: 6081 | K45: 0 | L45: 122
A46: 21 | B46: 6236 | C46: 21 | D46: 6252 | E46: 21 | F46: 6261 | K46: 0 | L46: 222
A47: 12 | B47: 6398 | C47: 23 | D47: 6424 | E47: 23 | F47: 6432 | K47: 0 | L47: 122
A48: 21 | B48: 6534 | C48: 21 | D48: 6538 | E48: 21 | F48: 6545 | K48: 0 | L48: 222
A49: 21 | B49: 6673 | C49: 21 | D49: 6679 | E49: 21 | F49: 6685 | K49: 0 | L49: 222
A50: 21 | B50: 6851 | C50: 21 | D50: 6858 | E50: 21 | F50: 6872 | K50: 0 | L50: 222
A51: 21 | B51: 7013 | C51: 21 | D51: 7042 | E51: 21 | F51: 7049 | K51: 0 | L51: 222
A52: 21 | B52: 7166 | C52: 21 | D52: 7175 | E52: 21 | F52: 7188 | K52: 1 | L52: 222

Sheet !M830B10.Gus
A1: Report for:!M830B10.Gus
A2: Date: | B2: <date>
A3: Hen: | B3: <hen> | F3: Correct Sequence | G3: =Start!J2 -> 222 | P3: Total Sequences in Data | Q3: =4994-COUNTBLANK(L7:L5000) -> 71 | V3: Total Sequences in Block Data | W3: =COUNTA(L7:L18) -> 12 | AA3: Total Sequences in Block Data | AB3: =COUNTA(L19:L30) -> 12 | AF3: Total Sequences in Block Data | AG3: =COUNTA(L31:L41) -> 11 | AK3: Total Sequences in Block Data | AL3: =COUNTA(L42:L53) -> 12 | AP3: Total Sequences in Block Data | AQ3: =COUNTA(L54:L65) -> 12 | AU3: Total Sequences in Block Data | AV3: =COUNTA(L66:L77) -> 12
P4: Total Sequences in Summary | Q4: =SUM(O7:O14) -> 71 | V4: Total Sequences in Block Summary | W4: =SUM(U7:U14) -> 12 | AA4: Total Sequences in Block Summary | AB4: =SUM(Z7:Z14) -> 12 | AF4: Total Sequences in Block Summary | AG4: =SUM(AE7:AE14) -> 11 | AK4: Total Sequences in Block Summary | AL4: =SUM(AJ7:AJ14) -> 12 | AP4: Total Sequences in Block Summary | AQ4: =SUM(AO7:AO14) -> 12 | AU4: Total Sequences in Block Summary | AV4: =SUM(AT7:AT14) -> 12
T5: Block 1 | Y5: Block 2 | AD5: Block 3 | AI5: Block 4 | AN5: Block 5 | AS5: Block 6
A6: Sequence Component 1 | B6: Time 1 | C6: Sequence Component 2 | D6: Time 2 | E6: Sequence Component 3 | F6: Time 3 | G6: Sequence Component 4 | H6: Time 4 | I6: Sequence Component 5 | J6: Time 5 | K6: Correct? 0=No 1=Yes | L6: Sequence | N6: Frequency | P6: Relative Frequency | Q6: Variability | T6: Frequency | V6: Relative Frequency | W6: Variability | Y6: Frequency | AA6: Relative Frequency | AB6: Variability | AD6: Frequency | AF6: Relative Frequency | AG6: Variability | AI6: Frequency | AK6: Relative Frequency | AL6: Variability | AN6: Frequency | AP6: Relative Frequency | AQ6: Variability | AS6: Frequency | AU6: Relative Frequency | AV6: Variability
A7: 21 | B7: 21 | C7: 21 | D7: 31 | E7: 21 | F7: 43 | K7: 0 | L7: 222 | N7: 111 | O7: =COUNTIF($L$7:$L$500,N7) -> 0 | P7: =O7/$Q$4 -> 0 | Q7: =IF(P7=0,0,(P7*((LOG(P7))/LOG(2)))) -> 0 | T7: =N7 -> 111 | U7: =COUNTIF(L7:L18,T7) -> 0 | V7: =U7/(W4-U14) -> 0 | W7: =IF(V7=0,0,(V7*((LOG(V7))/LOG(2)))) -> 0 | Y7: =N7 -> 111 | Z7: =COUNTIF(L19:L30,Y7) -> 0 | AA7: =Z7/(AB4-Z14) -> 0 | AB7: =IF(AA7=0,0,(AA7*((LOG(AA7))/LOG(2)))) -> 0 | AD7: =N7 -> 111 | AE7: =COUNTIF(L31:L41,AD7) -> 0 | AF7: =AE7/(AG4-AE14) -> 0 | AG7: =IF(AF7=0,0,(AF7*((LOG(AF7))/LOG(2)))) -> 0 | AI7: =N7 -> 111 | AJ7: =COUNTIF(L42:L53,AI7) -> 0 | AK7: =AJ7/(AL4-AJ14) -> 0 | AL7: =IF(AK7=0,0,(AK7*((LOG(AK7))/LOG(2)))) -> 0 | AN7: =N7 -> 111 | AO7: =COUNTIF(L54:L65,AN7) -> 0 | AP7: =AO7/(AQ4-AO14) -> 0 | AQ7: =IF(AP7=0,0,(AP7*((LOG(AP7))/LOG(2)))) -> 0 | AS7: =N7 -> 111 | AT7: =COUNTIF(L66:L77,AS7) -> 0 | AU7: =AT7/(AV4-AT14) -> 0 | AV7: =IF(AU7=0,0,(AU7*((LOG(AU7))/LOG(2)))) -> 0
A8: 21 | B8: 138 | C8: 21 | D8: 147 | E8: 21 | F8: 154 | K8: 0 | L8: 222 | N8: 112 | O8: =COUNTIF($L$7:$L$500,N8) -> 1 | P8: =O8/$Q$4 -> 0.01408450704 | Q8: =IF(P8=0,0,(P8*((LOG(P8))/LOG(2)))) -> -0.08661615661 | T8: =N8 -> 112 | U8: =COUNTIF(L7:L18,T8) -> 1 | V8: =U8/(W4-U14) -> 0.1666666667 | W8: =IF(V8=0,0,(V8*((LOG(V8))/LOG(2)))) -> -0.4308270835 | Y8: =N8 -> 112 | Z8: =COUNTIF(L19:L30,Y8) -> 0 | AA8: =Z8/(AB4-Z14) -> 0 | AB8: =IF(AA8=0,0,(AA8*((LOG(AA8))/LOG(2)))) -> 0 | AD8: =N8 -> 112 | AE8: =COUNTIF(L31:L41,AD8) -> 0 | AF8: =AE8/(AG4-AE14) -> 0 | AG8: =IF(AF8=0,0,(AF8*((LOG(AF8))/LOG(2)))) -> 0 | AI8: =N8 -> 112 | AJ8: =COUNTIF(L42:L53,AI8) -> 0 | AK8: =AJ8/(AL4-AJ14) -> 0 | AL8: =IF(AK8=0,0,(AK8*((LOG(AK8))/LOG(2)))) -> 0 | AN8: =N8 -> 112 | AO8: =COUNTIF(L54:L65,AN8) -> 0 | AP8: =AO8/(AQ4-AO14) -> 0 | AQ8: =IF(AP8=0,0,(AP8*((LOG(AP8))/LOG(2)))) -> 0 | AS8: =N8 -> 112 | AT8: =COUNTIF(L66:L77,AS8) -> 0 | AU8: =AT8/(AV4-AT14) -> 0 | AV8: =IF(AU8=0,0,(AU8*((LOG(AU8))/LOG(2)))) -> 0
A9: 12 | B9: 247 | C9: 23 | D9: 253 | E9: 23 | F9: 255 | K9: 0 | L9: 122 | N9: 121 | O9: =COUNTIF($L$7:$L$500,N9) -> 1 | P9: =O9/$Q$4 -> 0.01408450704 | Q9: =IF(P9=0,0,(P9*((LOG(P9))/LOG(2)))) -> -0.08661615661 | T9: =N9 -> 121 | U9: =COUNTIF(L7:L18,T9) -> 0 | V9: =U9/(W4-U14) -> 0 | W9: =IF(V9=0,0,(V9*((LOG(V9))/LOG(2)))) -> 0 | Y9: =N9 -> 121 | Z9: =COUNTIF(L19:L30,Y9) -> 1 | AA9: =Z9/(AB4-Z14) -> 0.1666666667 | AB9: =IF(AA9=0,0,(AA9*((LOG(AA9))/LOG(2)))) -> -0.4308270835 | AD9: =N9 -> 121 | AE9: =COUNTIF(L31:L41,AD9) -> 0 | AF9: =AE9/(AG4-AE14) -> 0 | AG9: =IF(AF9=0,0,(AF9*((LOG(AF9))/LOG(2)))) -> 0 | AI9: =N9 -> 121 | AJ9: =COUNTIF(L42:L53,AI9) -> 0 | AK9: =AJ9/(AL4-AJ14) -> 0 | AL9: =IF(AK9=0,0,(AK9*((LOG(AK9))/LOG(2)))) -> 0 | AN9: =N9 -> 121 | AO9: =COUNTIF(L54:L65,AN9) -> 0 | AP9: =AO9/(AQ4-AO14) -> 0 | AQ9: =IF(AP9=0,0,(AP9*((LOG(AP9))/LOG(2)))) -> 0 | AS9: =N9 -> 121 | AT9: =COUNTIF(L66:L77,AS9) -> 0 | AU9: =AT9/(AV4-AT14) -> 0 | AV9: =IF(AU9=0,0,(AU9*((LOG(AU9))/LOG(2)))) -> 0
A10: 12 | B10: 635 | C10: 23 | D10: 645 | E10: 23 | F10: 677 | K10: 0 | L10: 122 | N10: 122 | O10: =COUNTIF($L$7:$L$500,N10) -> 20 | P10: =O10/$Q$4 -> 0.2816901408 | Q10: =IF(P10=0,0,(P10*((LOG(P10))/LOG(2)))) -> -0.5148785985 | T10: =N10 -> 122 | U10: =COUNTIF(L7:L18,T10) -> 3 | V10: =U10/(W4-U14) -> 0.5 | W10: =IF(V10=0,0,(V10*((LOG(V10))/LOG(2)))) -> -0.5 | Y10: =N10 -> 122 | Z10: =COUNTIF(L19:L30,Y10) -> 4 | AA10: =Z10/(AB4-Z14) -> 0.6666666667 | AB10: =IF(AA10=0,0,(AA10*((LOG(AA10))/LOG(2)))) -> -0.3899750005 | AD10: =N10 -> 122 | AE10: =COUNTIF(L31:L41,AD10) -> 3 | AF10: =AE10/(AG4-AE14) -> 0.4285714286 | AG10: =IF(AF10=0,0,(AF10*((LOG(AF10))/LOG(2)))) -> -0.5238824663 | AI10: =N10 -> 122 | AJ10: =COUNTIF(L42:L53,AI10) -> 3 | AK10: =AJ10/(AL4-AJ14) -> 0.6 | AL10: =IF(AK10=0,0,(AK10*((LOG(AK10))/LOG(2)))) -> -0.4421793565 | AN10: =N10 -> 122 | AO10: =COUNTIF(L54:L65,AN10) -> 3 | AP10: =AO10/(AQ4-AO14) -> 1 | AQ10: =IF(AP10=0,0,(AP10*((LOG(AP10))/LOG(2)))) -> 0 | AS10: =N10 -> 122 | AT10: =COUNTIF(L66:L77,AS10) -> 4 | AU10: =AT10/(AV4-AT14) -> 0.8 | AV10: =IF(AU10=0,0,(AU10*((LOG(AU10))/LOG(2)))) -> -0.2575424759
A11: 21 | B11: 774 | C11: 21 | D11: 779 | E11: 21 | F11: 787 | K11: 0 | L11: 222 | N11: 211 | O11: =COUNTIF($L$7:$L$500,N11) -> 0 | P11: =O11/$Q$4 -> 0 | Q11: =IF(P11=0,0,(P11*((LOG(P11))/LOG(2)))) -> 0 | T11: =N11 -> 211 | U11: =COUNTIF(L7:L18,T11) -> 0 | V11: =U11/(W4-U14) -> 0 | W11: =IF(V11=0,0,(V11*((LOG(V11))/LOG(2)))) -> 0 | Y11: =N11 -> 211 | Z11: =COUNTIF(L19:L30,Y11) -> 0 | AA11: =Z11/(AB4-Z14) -> 0 | AB11: =IF(AA11=0,0,(AA11*((LOG(AA11))/LOG(2)))) -> 0 | AD11: =N11 -> 211 | AE11: =COUNTIF(L31:L41,AD11) -> 0 | AF11: =AE11/(AG4-AE14) -> 0 | AG11: =IF(AF11=0,0,(AF11*((LOG(AF11))/LOG(2)))) -> 0 | AI11: =N11 -> 211 | AJ11: =COUNTIF(L42:L53,AI11) -> 0 | AK11: =AJ11/(AL4-AJ14) -> 0 | AL11: =IF(AK11=0,0,(AK11*((LOG(AK11))/LOG(2)))) -> 0 | AN11: =N11 -> 211 | AO11: =COUNTIF(L54:L65,AN11) -> 0 | AP11: =AO11/(AQ4-AO14) -> 0 | AQ11: =IF(AP11=0,0,(AP11*((LOG(AP11))/LOG(2)))) -> 0 | AS11: =N11 -> 211 | AT11: =COUNTIF(L66:L77,AS11) -> 0 | AU11: =AT11/(AV4-AT14) -> 0 | AV11: =IF(AU11=0,0,(AU11*((LOG(AU11))/LOG(2)))) -> 0
A12: 21 | B12: 918 | C12: 12 | D12: 924 | E12: 23 | F12: 927 | K12: 0 | L12: 212 | N12: 212 | O12: =COUNTIF($L$7:$L$500,N12) -> 6 | P12: =O12/$Q$4 -> 0.08450704225 | Q12: =IF(P12=0,0,(P12*((LOG(P12))/LOG(2)))) -> -0.3012494044 | T12: =N12 -> 212 | U12: =COUNTIF(L7:L18,T12) -> 1 | V12: =U12/(W4-U14) -> 0.1666666667 | W12: =IF(V12=0,0,(V12*((LOG(V12))/LOG(2)))) -> -0.4308270835 | Y12: =N12 -> 212 | Z12: =COUNTIF(L19:L30,Y12) -> 1 | AA12: =Z12/(AB4-Z14) -> 0.1666666667 | AB12: =IF(AA12=0,0,(AA12*((LOG(AA12))/LOG(2)))) -> -0.4308270835 | AD12: =N12 -> 212 | AE12: =COUNTIF(L31:L41,AD12) -> 3 | AF12: =AE12/(AG4-AE14) -> 0.4285714286 | AG12: =IF(AF12=0,0,(AF12*((LOG(AF12))/LOG(2)))) -> -0.5238824663 | AI12: =N12 -> 212 | AJ12: =COUNTIF(L42:L53,AI12) -> 1 | AK12: =AJ12/(AL4-AJ14) -> 0.2 | AL12: =IF(AK12=0,0,(AK12*((LOG(AK12))/LOG(2)))) -> -0.464385619 | AN12: =N12 -> 212 | AO12: =COUNTIF(L54:L65,AN12) -> 0 | AP12: =AO12/(AQ4-AO14) -> 0 | AQ12: =IF(AP12=0,0,(AP12*((LOG(AP12))/LOG(2)))) -> 0 | AS12: =N12 -> 212 | AT12: =COUNTIF(L66:L77,AS12) -> 0 | AU12: =AT12/(AV4-AT14) -> 0 | AV12: =IF(AU12=0,0,(AU12*((LOG(AU12))/LOG(2)))) -> 0
A13: 21 | B13: 1153 | C13: 21 | D13: 1158 | E13: 21 | F13: 1161 | K13: 0 | L13: 222 | N13: 221 | O13: =COUNTIF($L$7:$L$500,N13) -> 4 | P13: =O13/$Q$4 -> 0.05633802817 | Q13: =IF(P13=0,0,(P13*((LOG(P13))/LOG(2)))) -> -0.2337885701 | T13: =N13 -> 221 | U13: =COUNTIF(L7:L18,T13) -> 1 | V13: =U13/(W4-U14) -> 0.1666666667 | W13: =IF(V13=0,0,(V13*((LOG(V13))/LOG(2)))) -> -0.4308270835 | Y13: =N13 -> 221 | Z13: =COUNTIF(L19:L30,Y13) -> 0 | AA13: =Z13/(AB4-Z14) -> 0 | AB13: =IF(AA13=0,0,(AA13*((LOG(AA13))/LOG(2)))) -> 0 | AD13: =N13 -> 221 | AE13: =COUNTIF(L31:L41,AD13) -> 1 | AF13: =AE13/(AG4-AE14) -> 0.1428571429 | AG13: =IF(AF13=0,0,(AF13*((LOG(AF13))/LOG(2)))) -> -0.4010507032 | AI13: =N13 -> 221 | AJ13: =COUNTIF(L42:L53,AI13) -> 1 | AK13: =AJ13/(AL4-AJ14) -> 0.2 | AL13: =IF(AK13=0,0,(AK13*((LOG(AK13))/LOG(2)))) -> -0.464385619 | AN13: =N13 -> 221 | AO13: =COUNTIF(L54:L65,AN13) -> 0 | AP13: =AO13/(AQ4-AO14) -> 0 | AQ13: =IF(AP13=0,0,(AP13*((LOG(AP13))/LOG(2)))) -> 0 | AS13: =N13 -> 221 | AT13: =COUNTIF(L66:L77,AS13) -> 1 | AU13: =AT13/(AV4-AT14) -> 0.2 | AV13: =IF(AU13=0,0,(AU13*((LOG(AU13))/LOG(2)))) -> -0.464385619
A14: 21 | B14: 1292 | C14: 21 | D14: 1295 | E14: 12 | F14: 1297 | K14: 0 | L14: 221 | N14: 222 | O14: =COUNTIF($L$7:$L$500,N14) -> 39 | P14: =O14/$Q$4 -> 0.5492957746 | Q14: =IF(P14=0,0,(P14*((LOG(P14))/LOG(2)))) -> -0.4747810018 | T14: =N14 -> 222 | U14: =COUNTIF(L7:L18,T14) -> 6 | Y14: =N14 -> 222 | Z14: =COUNTIF(L19:L30,Y14) -> 6 | AD14: =N14 -> 222 | AE14: =COUNTIF(L31:L41,AD14) -> 4 | AI14: =N14 -> 222 | AJ14: =COUNTIF(L42:L53,AI14) -> 7 | AN14: =N14 -> 222 | AO14: =COUNTIF(L54:L65,AN14) -> 9 | AS14: =N14 -> 222 | AT14: =COUNTIF(L66:L77,AS14) -> 7
A15: 12 | B15: 1390 | C15: 14 | D15: 1406 | E15: 23 | F15: 1412 | K15: 0 | L15: 112 | P15: =SUM(P7:P14) -> 1 | Q15: =-SUM(Q7:Q14) -> 1.697929888 | V15: =SUM(V7:V14) -> 1 | W15: =-SUM(W7:W14) -> 1.79248125 | AA15: =SUM(AA7:AA14) -> 1 | AB15: =-SUM(AB7:AB14) -> 1.251629167 | AF15: =SUM(AF7:AF14) -> 1 | AG15: =-SUM(AG7:AG14) -> 1.448815636 | AK15: =SUM(AK7:AK14) -> 1 | AL15: =-SUM(AL7:AL14) -> 1.370950594 | AP15: =SUM(AP7:AP14) -> 1 | AQ15: =-SUM(AQ7:AQ14) -> 0 | AU15: =SUM(AU7:AU14) -> 1 | AV15: =-SUM(AV7:AV14) -> 0.7219280949
A16: 21 | B16: 1515 | C16: 21 | D16: 1520 | E16: 21 | F16: 1530 | K16: 0 | L16: 222 | P16: U= | Q16: =Q15/(LOG(Q4)/LOG(2)) -> 0.2760975134 | V16: U1= | W16: =W15/(LOG(W4)/LOG(2)) -> 0.5 | AA16: U2= | AB16: =AB15/(LOG(AB4)/LOG(2)) -> 0.3491331268 | AF16: U3= | AG16: =AG15/(LOG(AG4)/LOG(2)) -> 0.4188016401 | AK16: U4= | AL16: =AL15/(LOG(AL4)/LOG(2)) -> 0.3824169972 | AP16: U5= | AQ16: =AQ15/(LOG(AQ4)/LOG(2)) -> 0 | AU16: U6= | AV16: =AV15/(LOG(AV4)/LOG(2)) -> 0.2013767493
A17: 12 | B17: 1652 | C17: 23 | D17: 1658 | E17: 23 | F17: 1662 | K17: 0 | L17: 122
A18: 21 | B18: 1760 | C18: 21 | D18: 1767 | E18: 21 | F18: 1772 | K18: 0 | L18: 222
A19: 21 | B19: 1960 | C19: 21 | D19: 1967 | E19: 21 | F19: 1972 | K19: 0 | L19: 222 | N19: Total Target Seq
A20: 12 | B20: 2074 | C20: 23 | D20: 2094 | E20: 23 | F20: 2100 | K20: 0 | L20: 122 | N20: =COUNTIF(L7:L77,G3) -> 39 | P20: 12 | Q20: 12 | R20: 11 | S20: 12 | T20: 12 | U20: 12
A21: 12 | B21: 2194 | C21: 23 | D21: 2197 | E21: 14 | F21: 2201 | K21: 0 | L21: 121 | P21: % of reinforcement given in 6 equal intervals based on number of trials
A22: 21 | B22: 2392 | C22: 21 | D22: 2396 | E22: 21 | F22: 2399 | K22: 0 | L22: 222 | P22: %_1 | Q22: %_2 | R22: %_3 | S22: %_4 | T22: %_5 | U22: %_6
A23: 12 | B23: 2535 | C23: 23 | D23: 2546 | E23: 23 | F23: 2554 | K23: 0 | L23: 122 | O23: target sequence | P23: =$G$3 -> 222 | Q23: =$G$3 -> 222 | R23: =$G$3 -> 222 | S23: =$G$3 -> 222 | T23: =$G$3 -> 222 | U23: =$G$3 -> 222
A24: 12 | B24: 2647 | C24: 23 | D24: 2651 | E24: 23 | F24: 2660 | K24: 0 | L24: 122 | O24: total reinforcement | P24: =U14 -> 6 | Q24: =Z14 -> 6 | R24: =AE14 -> 4 | S24: =AJ14 -> 7 | T24: =AO14 -> 9 | U24: =AT14 -> 7
A25: 21 | B25: 2760 | C25: 21 | D25: 2763 | E25: 21 | F25: 2767 | K25: 0 | L25: 222 | O25: % target
A26: 12 | B26: 2961 | C26: 23 | D26: 2973 | E26: 23 | F26: 2976 | K26: 0 | L26: 122 | O26: CCRF
A27: 21 | B27: 3072 | C27: 21 | D27: 3079 | E27: 21 | F27: 3083 | K27: 0 | L27: 222 | O27: % CCRf
A28: 21 | B28: 3214 | C28: 21 | D28: 3229 | E28: 21 | F28: 3236 | K28: 0 | L28: 222 | O28: average response rate | P28: =F18/P20 -> 147.6666667 | Q28: =(F30-F18)/Q20 -> 141.1666667 | R28: =(F41-F30)/R20 -> 127.0909091 | S28: =(F53-F41)/S20 -> 136.4166667 | T28: =(F65-F53)/T20 -> 155.5833333 | U28: =(F77-F65)/U20 -> 146.8333333
A29: 21 | B29: 3354 | C29: 12 | D29: 3359 | E29: 23 | F29: 3361 | K29: 0 | L29: 212
A30: 21 | B30: 3458 | C30: 21 | D30: 3462 | E30: 21 | F30: 3466 | K30: 0 | L30: 222
A31: 12 | B31: 3616 | C31: 23 | D31: 3628 | E31: 23 | F31: 3633 | K31: 0 | L31: 122
A32: 21 | B32: 3749 | C32: 12 | D32: 3759 | E32: 23 | F32: 3767 | K32: 0 | L32: 212
A33: 21 | B33: 3863 | C33: 21 | D33: 3869 | E33: 12 | F33: 3870 | K33: 0 | L33: 221
A34: 21 | B34: 3994 | C34: 21 | D34: 3997 | E34: 21 | F34: 4003 | K34: 0 | L34: 222
A35: 12 | B35: 4090 | C35: 23 | D35: 4105 | E35: 23 | F35: 4110 | K35: 0 | L35: 122
A36: 12 | B36: 4202 | C36: 23 | D36: 4206 | E36: 23 | F36: 4210 | K36: 0 | L36: 122
A37: 21 | B37: 4308 | C37: 21 | D37: 4312 | E37: 21 | F37: 4316 | K37: 0 | L37: 222
A38: 21 | B38: 4433 | C38: 21 | D38: 4439 | E38: 21 | F38: 4475 | K38: 0 | L38: 222
A39: 21 | B39: 4642 | C39: 12 | D39: 4650 | E39: 23 | F39: 4653 | K39: 0 | L39: 212
A40: 21 | B40: 4752 | C40: 12 | D40: 4755 | E40: 23 | F40: 4759 | K40: 0 | L40: 212
A41: 21 | B41: 4854 | C41: 21 | D41: 4859 | E41: 21 | F41: 4864 | K41: 0 | L41: 222
A42: 12 | B42: 4989 | C42: 23 | D42: 5001 | E42: 23 | F42: 5007 | K42: 0 | L42: 122
A43: 21 | B43: 5103 | C43: 21 | D43: 5107 | E43: 21 | F43: 5113 | K43: 0 | L43: 222
A44: 12 | B44: 5249 | C44: 23 | D44: 5254 | E44: 23 | F44: 5263 | K44: 0 | L44: 122
A45: 21 | B45: 5357 | C45: 12 | D45: 5359 | E45: 23 | F45: 5363 | K45: 0 | L45: 212
A46: 21 | B46: 5462 | C46: 21 | D46: 5466 | E46: 12 | F46: 5468 | K46: 0 | L46: 221
A47: 21 | B47: 5574 | C47: 21 | D47: 5580 | E47: 21 | F47: 5585 | K47: 0 | L47: 222
A48: 21 | B48: 5775 | C48: 21 | D48: 5787 | E48: 21 | F48: 5794 | K48: 0 | L48: 222
A49: 12 | B49: 5886 | C49: 23 | D49: 5891 | E49: 23 | F49: 5894 | K49: 0 | L49: 122
A50: 21 | B50: 5998 | C50: 21 | D50: 6005 | E50: 21 | F50: 6010 | K50: 0 | L50: 222
A51: 21 | B51: 6144 | C51: 21 | D51: 6154 | E51: 21 | F51: 6160 | K51: 0 | L51: 222
A52: 21 | B52: 6324 | C52: 21 | D52: 6332 | E52: 21 | F52: 6338 | K52: 0 | L52: 222
A53: 21 | B53: 6478 | C53: 21 | D53: 6487 | E53: 21 | F53: 6501 | K53: 0 | L53: 222
A54: 21 | B54: 6608 | C54: 21 | D54: 6624 | E54: 21 | F54: 6631 | K54: 0 | L54: 222
A55: 21 | B55: 6798 | C55: 21 | D55: 6802 | E55: 21 | F55: 6810 | K55: 0 | L55: 222
A56: 21 | B56: 6947 | C56: 21 | D56: 6957 | E56: 21 | F56: 6964 | K56: 0 | L56: 222
A57: 21 | B57: 7151 | C57: 21 | D57: 7170 | E57: 21 | F57: 7180 | K57: 0 | L57: 222
A58: 21 | B58: 7333 | C58: 21 | D58: 7341 | E58: 21 | F58: 7350 | K58: 0 | L58: 222
A59: 21 | B59: 7482 | C59: 21 | D59: 7489 | E59: 21 | F59: 7505 | K59: 0 | L59: 222
A60: 12 | B60: 7662 | C60: 23 | D60: 7666 | E60: 23 | F60: 7680 | K60: 0 | L60: 122
A61: 12 | B61: 7782 | C61: 23 | D61: 7787 | E61: 23 | F61: 7792 | K61: 0 | L61: 122
A62: 12 | B62: 7887 | C62: 23 | D62: 7894 | E62: 23 | F62: 7904 | K62: 0 | L62: 122
A63: 21 | B63: 8000 | C63: 21 | D63: 8004 | E63: 21 | F63: 8009 | K63: 0 | L63: 222
A64: 21 | B64: 8120 | C64: 21 | D64: 8130 | E64: 21 | F64: 8136 | K64: 0 | L64: 222
A65: 21 | B65: 8309 | C65: 21 | D65: 8332 | E65: 21 | F65: 8368 | K65: 0 | L65: 222
A66: 21 | B66: 8465 | C66: 21 | D66: 8482 | E66: 21 | F66: 8488 | K66: 0 | L66: 222
A67: 21 | B67: 8668 | C67: 21 | D67: 8686 | E67: 21 | F67: 8708 | K67: 0 | L67: 222
A68: 12 | B68: 8839 | C68: 23 | D68: 8854 | E68: 23 | F68: 8861 | K68: 0 | L68: 122
A69: 21 | B69: 8957 | C69: 21 | D69: 8968 | E69: 21 | F69: 8975 | K69: 0 | L69: 222
A70: 12 | B70: 9168 | C70: 23 | D70: 9175 | E70: 23 | F70: 9190 | K70: 0 | L70: 122
A71: 21 | B71: 9284 | C71: 21 | D71: 9286 | E71: 21 | F71: 9292 | K71: 0 | L71: 222
A72: 21 | B72: 9416 | C72: 21 | D72: 9424 | E72: 21 | F72: 9431 | K72: 0 | L72: 222
A73: 21 | B73: 9612 | C73: 21 | D73: 9648 | E73: 21 | F73: 9666 | K73: 0 | L73: 222
A74: 12 | B74: 9778 | C74: 23 | D74: 9784 | E74: 23 | F74: 9801 | K74: 0 | L74: 122
A75: 12 | B75: 9895 | C75: 23 | D75: 9913 | E75: 23 | F75: 9921 | K75: 0 | L75: 122
A76: 21 | B76: 10017 | C76: 21 | D76: 10024 | E76: 12 | F76: 10025 | K76: 0 | L76: 221
A77: 21 | B77: 10123 | C77: 21 | D77: 10125 | E77: 21 | F77: 10130 | K77: 1 | L77: 222

Sheet !M831B10.Gus
A1: Report for:!M831B10.Gus
A2: Date: | B2: <date>
A3: Hen: | B3: <hen> | F3: Correct Sequence | G3: =Start!J2 -> 222 | P3: Total Sequences in Data | Q3: =4994-COUNTBLANK(L7:L5000) -> 58 | V3: Total Sequences in Block Data | W3: =COUNTA(L7:L16) -> 10 | AA3: Total Sequences in Block Data | AB3: =COUNTA(L17:L25) -> 9 | AF3: Total Sequences in Block Data | AG3: =COUNTA(L26:L35) -> 10 | AK3: Total Sequences in Block Data | AL3: =COUNTA(L36:L45) -> 10 | AP3: Total Sequences in Block Data | AQ3: =COUNTA(L46:L54) -> 9 | AU3: Total Sequences in Block Data | AV3: =COUNTA(L55:L64) -> 10
P4: Total Sequences in Summary | Q4: =SUM(O7:O14) -> 58 | V4: Total Sequences in Block Summary | W4: =SUM(U7:U14) -> 10 | AA4: Total Sequences in Block Summary | AB4: =SUM(Z7:Z14) -> 9 | AF4: Total Sequences in Block Summary | AG4: =SUM(AE7:AE14) -> 10 | AK4: Total Sequences in Block Summary | AL4: =SUM(AJ7:AJ14) -> 10 | AP4: Total Sequences in Block Summary | AQ4: =SUM(AO7:AO14) -> 9 | AU4: Total Sequences in Block Summary | AV4: =SUM(AT7:AT14) -> 10
T5: Block 1 | Y5: Block 2 | AD5: Block 3 | AI5: Block 4 | AN5: Block 5 | AS5: Block 6
A6: Sequence Component 1 | B6: Time 1 | C6: Sequence Component 2 | D6: Time 2 | E6: Sequence Component 3 | F6: Time 3 | G6: Sequence Component 4 | H6: Time 4 | I6: Sequence Component 5 | J6: Time 5 | K6: Correct? 0=No 1=Yes | L6: Sequence | N6: Frequency | P6: Relative Frequency | Q6: Variability | T6: Frequency | V6: Relative Frequency | W6: Variability | Y6: Frequency | AA6: Relative Frequency | AB6: Variability | AD6: Frequency | AF6: Relative Frequency | AG6: Variability | AI6: Frequency | AK6: Relative Frequency | AL6: Variability | AN6: Frequency | AP6: Relative Frequency | AQ6: Variability | AS6: Frequency | AU6: Relative Frequency | AV6: Variability
A7: 21 | B7: 12 | C7: 12 | D7: 14 | E7: 23 | F7: 34 | K7: 0 | L7: 212 | N7: 111 | O7: =COUNTIF($L$7:$L$500,N7) -> 0 | P7: =O7/$Q$4 -> 0 | Q7: =IF(P7=0,0,(P7*((LOG(P7))/LOG(2)))) -> 0 | T7: =N7 -> 111 | U7: =COUNTIF(L7:L16,T7) -> 0 | V7: =U7/(W4-U14) -> 0 | W7: =IF(V7=0,0,(V7*((LOG(V7))/LOG(2)))) -> 0 | Y7: =N7 -> 111 | Z7: =COUNTIF(L17:L25,Y7) -> 0 | AA7: =Z7/(AB4-Z14) -> 0 | AB7: =IF(AA7=0,0,(AA7*((LOG(AA7))/LOG(2)))) -> 0 | AD7: =N7 -> 111 | AE7: =COUNTIF(L26:L35,AD7) -> 0 | AF7: =AE7/(AG4-AE14) ->  | AG7: =IF(AF7=0,0,(AF7*((LOG(AF7))/LOG(2)))) ->  | AI7: =N7 -> 111 | AJ7: =COUNTIF(L36:L45,AI7) -> 0 | AK7: =AJ7/(AL4-AJ14) -> 0 | AL7: =IF(AK7=0,0,(AK7*((LOG(AK7))/LOG(2)))) -> 0 | AN7: =N7 -> 111 | AO7: =COUNTIF(L46:L54,AN7) -> 0 | AP7: =AO7/(AQ4-AO14) -> 0 | AQ7: =IF(AP7=0,0,(AP7*((LOG(AP7))/LOG(2)))) -> 0 | AS7: =N7 -> 111 | AT7: =COUNTIF(L55:L64,AS7) -> 0 | AU7: =AT7/(AV4-AT14) -> 0 | AV7: =IF(AU7=0,0,(AU7*((LOG(AU7))/LOG(2)))) -> 0
A8: 21 | B8: 131 | C8: 12 | D8: 135 | E8: 23 | F8: 139 | K8: 0 | L8: 212 | N8: 112 | O8: =COUNTIF($L$7:$L$500,N8) -> 1 | P8: =O8/$Q$4 -> 0.01724137931 | Q8: =IF(P8=0,0,(P8*((LOG(P8))/LOG(2)))) -> -0.1009996723 | T8: =N8 -> 112 | U8: =COUNTIF(L7:L16,T8) -> 0 | V8: =U8/(W4-U14) -> 0 | W8: =IF(V8=0,0,(V8*((LOG(V8))/LOG(2)))) -> 0 | Y8: =N8 -> 112 | Z8: =COUNTIF(L17:L25,Y8) -> 0 | AA8: =Z8/(AB4-Z14) -> 0 | AB8: =IF(AA8=0,0,(AA8*((LOG(AA8))/LOG(2)))) -> 0 | AD8: =N8 -> 112 | AE8: =COUNTIF(L26:L35,AD8) -> 0 | AF8: =AE8/(AG4-AE14) ->  | AG8: =IF(AF8=0,0,(AF8*((LOG(AF8))/LOG(2)))) ->  | AI8: =N8 -> 112 | AJ8: =COUNTIF(L36:L45,AI8) -> 0 | AK8: =AJ8/(AL4-AJ14) -> 0 | AL8: =IF(AK8=0,0,(AK8*((LOG(AK8))/LOG(2)))) -> 0 | AN8: =N8 -> 112 | AO8: =COUNTIF(L46:L54,AN8) -> 1 | AP8: =AO8/(AQ4-AO14) -> 0.125 | AQ8: =IF(AP8=0,0,(AP8*((LOG(AP8))/LOG(2)))) -> -0.375 | AS8: =N8 -> 112 | AT8: =COUNTIF(L55:L64,AS8) -> 0 | AU8: =AT8/(AV4-AT14) -> 0 | AV8: =IF(AU8=0,0,(AU8*((LOG(AU8))/LOG(2)))) -> 0
A9: 21 | B9: 236 | C9: 21 | D9: 240 | E9: 12 | F9: 242 | K9: 0 | L9: 221 | N9: 121 | O9: =COUNTIF($L$7:$L$500,N9) -> 0 | P9: =O9/$Q$4 -> 0 | Q9: =IF(P9=0,0,(P9*((LOG(P9))/LOG(2)))) -> 0 | T9: =N9 -> 121 | U9: =COUNTIF(L7:L16,T9) -> 0 | V9: =U9/(W4-U14) -> 0 | W9: =IF(V9=0,0,(V9*((LOG(V9))/LOG(2)))) -> 0 | Y9: =N9 -> 121 | Z9: =COUNTIF(L17:L25,Y9) -> 0 | AA9: =Z9/(AB4-Z14) -> 0 | AB9: =IF(AA9=0,0,(AA9*((LOG(AA9))/LOG(2)))) -> 0 | AD9: =N9 -> 121 | AE9: =COUNTIF(L26:L35,AD9) -> 0 | AF9: =AE9/(AG4-AE14) ->  | AG9: =IF(AF9=0,0,(AF9*((LOG(AF9))/LOG(2)))) ->  | AI9: =N9 -> 121 | AJ9: =COUNTIF(L36:L45,AI9) -> 0 | AK9: =AJ9/(AL4-AJ14) -> 0 | AL9: =IF(AK9=0,0,(AK9*((LOG(AK9))/LOG(2)))) -> 0 | AN9: =N9 -> 121 | AO9: =COUNTIF(L46:L54,AN9) -> 0 | AP9: =AO9/(AQ4-AO14) -> 0 | AQ9: =IF(AP9=0,0,(AP9*((LOG(AP9))/LOG(2)))) -> 0 | AS9: =N9 -> 121 | AT9: =COUNTIF(L55:L64,AS9) -> 0 | AU9: =AT9/(AV4-AT14) -> 0 | AV9: =IF(AU9=0,0,(AU9*((LOG(AU9))/LOG(2)))) -> 0
A10: 21 | B10: 340 | C10: 12 | D10: 346 | E10: 23 | F10: 350 | K10: 0 | L10: 212 | N10: 122 | O10: =COUNTIF($L$7:$L$500,N10) -> 5 | P10: =O10/$Q$4 -> 0.08620689655 | Q10: =IF(P10=0,0,(P10*((LOG(P10))/LOG(2)))) -> -0.3048321466 | T10: =N10 -> 122 | U10: =COUNTIF(L7:L16,T10) -> 0 | V10: =U10/(W4-U14) -> 0 | W10: =IF(V10=0,0,(V10*((LOG(V10))/LOG(2)))) -> 0 | Y10: =N10 -> 122 | Z10: =COUNTIF(L17:L25,Y10) -> 0 | AA10: =Z10/(AB4-Z14) -> 0 | AB10: =IF(AA10=0,0,(AA10*((LOG(AA10))/LOG(2)))) -> 0 | AD10: =N10 -> 122 | AE10: =COUNTIF(L26:L35,AD10) -> 0 | AF10: =AE10/(AG4-AE14) ->  | AG10: =IF(AF10=0,0,(AF10*((LOG(AF10))/LOG(2)))) ->  | AI10: =N10 -> 122 | AJ10: =COUNTIF(L36:L45,AI10) -> 1 | AK10: =AJ10/(AL4-AJ14) -> 0.5 | AL10: =IF(AK10=0,0,(AK10*((LOG(AK10))/LOG(2)))) -> -0.5 | AN10: =N10 -> 122 | AO10: =COUNTIF(L46:L54,AN10) -> 3 | AP10: =AO10/(AQ4-AO14) -> 0.375 | AQ10: =IF(AP10=0,0,(AP10*((LOG(AP10))/LOG(2)))) -> -0.5306390622 | AS10: =N10 -> 122 | AT10: =COUNTIF(L55:L64,AS10) -> 1 | AU10: =AT10/(AV4-AT14) -> 0.25 | AV10: =IF(AU10=0,0,(AU10*((LOG(AU10))/LOG(2)))) -> -0.5
A11: 21 | B11: 447 | C11: 21 | D11: 453 | E11: 21 | F11: 459 | K11: 0 | L11: 222 | N11: 211 | O11: =COUNTIF($L$7:$L$500,N11) -> 0 | P11: =O11/$Q$4 -> 0 | Q11: =IF(P11=0,0,(P11*((LOG(P11))/LOG(2)))) -> 0 | T11: =N11 -> 211 | U11: =COUNTIF(L7:L16,T11) -> 0 | V11: =U11/(W4-U14) -> 0 | W11: =IF(V11=0,0,(V11*((LOG(V11))/LOG(2)))) -> 0 | Y11: =N11 -> 211 | Z11: =COUNTIF(L17:L25,Y11) -> 0 | AA11: =Z11/(AB4-Z14) -> 0 | AB11: =IF(AA11=0,0,(AA11*((LOG(AA11))/LOG(2)))) -> 0 | AD11: =N11 -> 211 | AE11: =COUNTIF(L26:L35,AD11) -> 0 | AF11: =AE11/(AG4-AE14) ->  | AG11: =IF(AF11=0,0,(AF11*((LOG(AF11))/LOG(2)))) ->  | AI11: =N11 -> 211 | AJ11: =COUNTIF(L36:L45,AI11) -> 0 | AK11: =AJ11/(AL4-AJ14) -> 0 | AL11: =IF(AK11=0,0,(AK11*((LOG(AK11))/LOG(2)))) -> 0 | AN11: =N11 -> 211 | AO11: =COUNTIF(L46:L54,AN11) -> 0 | AP11: =AO11/(AQ4-AO14) -> 0 | AQ11: =IF(AP11=0,0,(AP11*((LOG(AP11))/LOG(2)))) -> 0 | AS11: =N11 -> 211 | AT11: =COUNTIF(L55:L64,AS11) -> 0 | AU11: =AT11/(AV4-AT14) -> 0 | AV11: =IF(AU11=0,0,(AU11*((LOG(AU11))/LOG(2)))) -> 0
A12: 21 | B12: 593 | C12: 21 | D12: 598 | E12: 21 | F12: 603 | K12: 0 | L12: 222 | N12: 212 | O12: =COUNTIF($L$7:$L$500,N12) -> 7 | P12: =O12/$Q$4 -> 0.1206896552 | Q12: =IF(P12=0,0,(P12*((LOG(P12))/LOG(2)))) -> -0.3681790088 | T12: =N12 -> 212 | U12: =COUNTIF(L7:L16,T12) -> 3 | V12: =U12/(W4-U14) -> 0.75 | W12: =IF(V12=0,0,(V12*((LOG(V12))/LOG(2)))) -> -0.3112781245 | Y12: =N12 -> 212 | Z12: =COUNTIF(L17:L25,Y12) -> 0 | AA12: =Z12/(AB4-Z14) -> 0 | AB12: =IF(AA12=0,0,(AA12*((LOG(AA12))/LOG(2)))) -> 0 | AD12: =N12 -> 212 | AE12: =COUNTIF(L26:L35,AD12) -> 0 | AF12: =AE12/(AG4-AE14) ->  | AG12: =IF(AF12=0,0,(AF12*((LOG(AF12))/LOG(2)))) ->  | AI12: =N12 -> 212 | AJ12: =COUNTIF(L36:L45,AI12) -> 1 | AK12: =AJ12/(AL4-AJ14) -> 0.5 | AL12: =IF(AK12=0,0,(AK12*((LOG(AK12))/LOG(2)))) -> -0.5 | AN12: =N12 -> 212 | AO12: =COUNTIF(L46:L54,AN12) -> 1 | AP12: =AO12/(AQ4-AO14) -> 0.125 | AQ12: =IF(AP12=0,0,(AP12*((LOG(AP12))/LOG(2)))) -> -0.375 | AS12: =N12 -> 212 | AT12: =COUNTIF(L55:L64,AS12) -> 2 | AU12: =AT12/(AV4-AT14) -> 0.5 | AV12: =IF(AU12=0,0,(AU12*((LOG(AU12))/LOG(2)))) -> -0.5
A13: 21 | B13: 854 | C13: 21 | D13: 862 | E13: 21 | F13: 866 | K13: 0 | L13: 222 | N13: 221 | O13: =COUNTIF($L$7:$L$500,N13) -> 6 | P13: =O13/$Q$4 -> 0.1034482759 | Q13: =IF(P13=0,0,(P13*((LOG(P13))/LOG(2)))) -> -0.3385881201 | T13: =N13 -> 221 | U13: =COUNTIF(L7:L16,T13) -> 1 | V13: =U13/(W4-U14) -> 0.25 | W13: =IF(V13=0,0,(V13*((LOG(V13))/LOG(2)))) -> -0.5 | Y13: =N13 -> 221 | Z13: =COUNTIF(L17:L25,Y13) -> 1 | AA13: =Z13/(AB4-Z14) -> 1 | AB13: =IF(AA13=0,0,(AA13*((LOG(AA13))/LOG(2)))) -> 0 | AD13: =N13 -> 221 | AE13: =COUNTIF(L26:L35,AD13) -> 0 | AF13: =AE13/(AG4-AE14) ->  | AG13: =IF(AF13=0,0,(AF13*((LOG(AF13))/LOG(2)))) ->  | AI13: =N13 -> 221 | AJ13: =COUNTIF(L36:L45,AI13) -> 0 | AK13: =AJ13/(AL4-AJ14) -> 0 | AL13: =IF(AK13=0,0,(AK13*((LOG(AK13))/LOG(2)))) -> 0 | AN13: =N13 -> 221 | AO13: =COUNTIF(L46:L54,AN13) -> 3 | AP13: =AO13/(AQ4-AO14) -> 0.375 | AQ13: =IF(AP13=0,0,(AP13*((LOG(AP13))/LOG(2)))) -> -0.5306390622 | AS13: =N13 -> 221 | AT13: =COUNTIF(L55:L64,AS13) -> 1 | AU13: =AT13/(AV4-AT14) -> 0.25 | AV13: =IF(AU13=0,0,(AU13*((LOG(AU13))/LOG(2)))) -> -0.5
A14: 21 | B14: 962 | C14: 21 | D14: 966 | E14: 21 | F14: 980 | K14: 0 | L14: 222 | N14: 222 | O14: =COUNTIF($L$7:$L$500,N14) -> 39 | P14: =O14/$Q$4 -> 0.6724137931 | Q14: =IF(P14=0,0,(P14*((LOG(P14))/LOG(2)))) -> -0.3850098668 | T14: =N14 -> 222 | U14: =COUNTIF(L7:L16,T14) -> 6 | Y14: =N14 -> 222 | Z14: =COUNTIF(L17:L25,Y14) -> 8 | AD14: =N14 -> 222 | AE14: =COUNTIF(L26:L35,AD14) -> 10 | AI14: =N14 -> 222 | AJ14: =COUNTIF(L36:L45,AI14) -> 8 | AN14: =N14 -> 222 | AO14: =COUNTIF(L46:L54,AN14) -> 1 | AS14: =N14 -> 222 | AT14: =COUNTIF(L55:L64,AS14) -> 6
A15: 21 | B15: 1101 | C15: 21 | D15: 1108 | E15: 21 | F15: 1113 | K15: 0 | L15: 222 | P15: =SUM(P7:P14) -> 1 | Q15: =-SUM(Q7:Q14) -> 1.497608815 | V15: =SUM(V7:V14) -> 1 | W15: =-SUM(W7:W14) -> 0.8112781245 | AA15: =SUM(AA7:AA14) -> 1 | AB15: =-SUM(AB7:AB14) -> 0 | AF15: =SUM(AF7:AF14) ->  | AG15: =-SUM(AG7:AG14) ->  | AK15: =SUM(AK7:AK14) -> 1 | AL15: =-SUM(AL7:AL14) -> 1 | AP15: =SUM(AP7:AP14) -> 1 | AQ15: =-SUM(AQ7:AQ14) -> 1.811278124 | AU15: =SUM(AU7:AU14) -> 1 | AV15: =-SUM(AV7:AV14) -> 1.5
A16: 21 | B16: 1243 | C16: 21 | D16: 1248 | E16: 21 | F16: 1254 | K16: 0 | L16: 222 | P16: U= | Q16: =Q15/(LOG(Q4)/LOG(2)) -> 0.2556527267 | V16: U1= | W16: =W15/(LOG(W4)/LOG(2)) -> 0.2442190503 | AA16: U2= | AB16: =AB15/(LOG(AB4)/LOG(2)) -> 0 | AF16: U3= | AG16: =AG15/(LOG(AG4)/LOG(2)) ->  | AK16: U4= | AL16: =AL15/(LOG(AL4)/LOG(2)) -> 0.3010299957 | AP16: U5= | AQ16: =AQ15/(LOG(AQ4)/LOG(2)) -> 0.5713946304 | AU16: U6= | AV16: =AV15/(LOG(AV4)/LOG(2)) -> 0.4515449935
A17: 21 | B17: 1438 | C17: 21 | D17: 1445 | E17: 12 | F17: 1454 | K17: 0 | L17: 221
A18: 21 | B18: 1634 | C18: 21 | D18: 1643 | E18: 21 | F18: 1655 | K18: 0 | L18: 222
A19: 21 | B19: 1750 | C19: 21 | D19: 1766 | E19: 21 | F19: 1773 | K19: 0 | L19: 222 | N19: Total Target Seq
A20: 21 | B20: 1869 | C20: 21 | D20: 1875 | E20: 21 | F20: 1886 | K20: 0 | L20: 222 | N20: =COUNTIF(L7:L64,G3) -> 39 | P20: 10 | Q20: 9 | R20: 10 | S20: 10 | T20: 9 | U20: 10
A21: 21 | B21: 2026 | C21: 21 | D21: 2032 | E21: 21 | F21: 2045 | K21: 0 | L21: 222 | P21: % of reinforcement given in 6 equal intervals based on number of trials
A22: 21 | B22: 2139 | C22: 21 | D22: 2150 | E22: 21 | F22: 2162 | K22: 0 | L22: 222 | P22: %_1 | Q22: %_2 | R22: %_3 | S22: %_4 | T22: %_5 | U22: %_6
A23: 21 | B23: 2285 | C23: 21 | D23: 2288 | E23: 21 | F23: 2296 | K23: 0 | L23: 222 | O23: target sequence | P23: =$G$3 -> 222 | Q23: =$G$3 -> 222 | R23: =$G$3 -> 222 | S23: =$G$3 -> 222 | T23: =$G$3 -> 222 | U23: =$G$3 -> 222
A24: 21 | B24: 2392 | C24: 21 | D24: 2397 | E24: 21 | F24: 2405 | K24: 0 | L24: 222 | O24: total reinforcement | P24: =U14 -> 6 | Q24: =Z14 -> 8 | R24: =AE14 -> 10 | S24: =AJ14 -> 8 | T24: =AO14 -> 1 | U24: =AT14 -> 6
A25: 21 | B25: 2502 | C25: 21 | D25: 2507 | E25: 21 | F25: 2526 | K25: 0 | L25: 222 | O25: % target
A26: 21 | B26: 2680 | C26: 21 | D26: 2688 | E26: 21 | F26: 2697 | K26: 0 | L26: 222 | O26: CCRF
A27: 21 | B27: 2797 | C27: 21 | D27: 2823 | E27: 21 | F27: 2829 | K27: 0 | L27: 222 | O27: % CCRf
A28: 21 | B28: 2919 | C28: 21 | D28: 2929 | E28: 21 | F28: 2947 | K28: 0 | L28: 222 | O28: average response rate | P28: =F16/P20 -> 125.4 | Q28: =(F25-F16)/Q20 -> 141.3333333 | R28: =(F35-F25)/R20 -> 134.9 | S28: =(F45-F35)/S20 -> 132.6 | T28: =(F54-F45)/T20 -> 105.7777778 | U28: =(F64-F54)/U20 -> 112.6
A29: 21 | B29: 3073 | C29: 21 | D29: 3081 | E29: 21 | F29: 3092 | K29: 0 | L29: 222
A30: 21 | B30: 3197 | C30: 21 | D30: 3204 | E30: 21 | F30: 3210 | K30: 0 | L30: 222
A31: 21 | B31: 3349 | C31: 21 | D31: 3371 | E31: 21 | F31: 3379 | K31: 0 | L31: 222
A32: 21 | B32: 3494 | C32: 21 | D32: 3500 | E32: 21 | F32: 3511 | K32: 0 | L32: 222
A33: 21 | B33: 3610 | C33: 21 | D33: 3614 | E33: 21 | F33: 3619 | K33: 0 | L33: 222
A34: 21 | B34: 3736 | C34: 21 | D34: 3744 | E34: 21 | F34: 3761 | K34: 0 | L34: 222
A35: 21 | B35: 3862 | C35: 21 | D35: 3866 | E35: 21 | F35: 3875 | K35: 0 | L35: 222
A36: 12 | B36: 3984 | C36: 23 | D36: 3988 | E36: 23 | F36: 3992 | K36: 0 | L36: 122
A37: 21 | B37: 4183 | C37: 21 | D37: 4188 | E37: 21 | F37: 4203 | K37: 0 | L37: 222
A38: 21 | B38: 4296 | C38: 21 | D38: 4313 | E38: 21 | F38: 4325 | K38: 0 | L38: 222
A39: 21 | B39: 4427 | C39: 21 | D39: 4433 | E39: 21 | F39: 4450 | K39: 0 | L39: 222
A40: 21 | B40: 4544 | C40: 21 | D40: 4548 | E40: 21 | F40: 4567 | K40: 0 | L40: 222
A41: 21 | B41: 4686 | C41: 21 | D41: 4695 | E41: 21 | F41: 4709 | K41: 0 | L41: 222
A42: 21 | B42: 4810 | C42: 21 | D42: 4853 | E42: 21 | F42: 4886 | K42: 0 | L42: 222
A43: 21 | B43: 4974 | C43: 12 | D43: 4980 | E43: 23 | F43: 4985 | K43: 0 | L43: 212
A44: 21 | B44: 5078 | C44: 21 | D44: 5083 | E44: 21 | F44: 5087 | K44: 0 | L44: 222
A45: 21 | B45: 5185 | C45: 21 | D45: 5194 | E45: 21 | F45: 5201 | K45: 0 | L45: 222
A46: 12 | B46: 5290 | C46: 23 | D46: 5295 | E46: 23 | F46: 5306 | K46: 0 | L46: 122
A47: 21 | B47: 5401 | C47: 12 | D47: 5404 | E47: 23 | F47: 5409 | K47: 0 | L47: 212
A48: 21 | B48: 5507 | C48: 21 | D48: 5511 | E48: 12 | F48: 5513 | K48: 0 | L48: 221
A49: 21 | B49: 5610 | C49: 21 | D49: 5615 | E49: 21 | F49: 5619 | K49: 0 | L49: 222
A50: 12 | B50: 5724 | C50: 23 | D50: 5728 | E50: 23 | F50: 5734 | K50: 0 | L50: 122
A51: 21 | B51: 5829 | C51: 21 | D51: 5839 | E51: 12 | F51: 5843 | K51: 0 | L51: 221
A52: 12 | B52: 5937 | C52: 14 | D52: 5940 | E52: 23 | F52: 5948 | K52: 0 | L52: 112
A53: 12 | B53: 6041 | C53: 23 | D53: 6043 | E53: 23 | F53: 6050 | K53: 0 | L53: 122
A54: 21 | B54: 6146 | C54: 21 | D54: 6150 | E54: 12 | F54: 6153 | K54: 0 | L54: 221
A55: 12 | B55: 6246 | C55: 23 | D55: 6249 | E55: 23 | F55: 6253 | K55: 0 | L55: 122
A56: 21 | B56: 6348 | C56: 21 | D56: 6351 | E56: 21 | F56: 6357 | K56: 0 | L56: 222
A57: 21 | B57: 6461 | C57: 12 | D57: 6466 | E57: 23 | F57: 6471 | K57: 0 | L57: 212
A58: 21 | B58: 6566 | C58: 21 | D58: 6570 | E58: 21 | F58: 6575 | K58: 0 | L58: 222
A59: 21 | B59: 6694 | C59: 21 | D59: 6700 | E59: 21 | F59: 6706 | K59: 0 | L59: 222
A60: 21 | B60: 6806 | C60: 12 | D60: 6809 | E60: 23 | F60: 6812 | K60: 0 | L60: 212
A61: 21 | B61: 6909 | C61: 21 | D61: 6914 | E61: 12 | F61: 6916 | K61: 0 | L61: 221
A62: 21 | B62: 7012 | C62: 21 | D62: 7018 | E62: 21 | F62: 7023 | K62: 0 | L62: 222
A63: 21 | B63: 7135 | C63: 21 | D63: 7138 | E63: 21 | F63: 7145 | K63: 0 | L63: 222
A64: 21 | B64: 7265 | C64: 21 | D64: 7272 | E64: 21 | F64: 7279 | K64: 1 | L64: 222

Sheet !M901A00.Gus
A1: Report for:!M901A00.Gus
A2: Date: | B2: <date>
A3: Hen: | B3: <hen> | F3: Correct Sequence | G3: =Start!J2 -> 222 | P3: Total Sequences in Data | Q3: =4994-COUNTBLANK(L7:L5000) -> 40 | V3: Total Sequences in Block Data | W3: =COUNTA(L7:L13) -> 7 | AA3: Total Sequences in Block Data | AB3: =COUNTA(L14:L19) -> 6 | AF3: Total Sequences in Block Data | AG3: =COUNTA(L20:L26) -> 7 | AK3: Total Sequences in Block Data | AL3: =COUNTA(L27:L33) -> 7 | AP3: Total Sequences in Block Data | AQ3: =COUNTA(L34:L39) -> 6 | AU3: Total Sequences in Block Data | AV3: =COUNTA(L40:L46) -> 7
P4: Total Sequences in Summary | Q4: =SUM(O7:O14) -> 40 | V4: Total Sequences in Block Summary | W4: =SUM(U7:U14) -> 7 | AA4: Total Sequences in Block Summary | AB4: =SUM(Z7:Z14) -> 6 | AF4: Total Sequences in Block Summary | AG4: =SUM(AE7:AE14) -> 7 | AK4: Total Sequences in Block Summary | AL4: =SUM(AJ7:AJ14) -> 7 | AP4: Total Sequences in Block Summary | AQ4: =SUM(AO7:AO14) -> 6 | AU4: Total Sequences in Block Summary | AV4: =SUM(AT7:AT14) -> 7
T5: Block 1 | Y5: Block 2 | AD5: Block 3 | AI5: Block 4 | AN5: Block 5 | AS5: Block 6
A6: Sequence Component 1 | B6: Time 1 | C6: Sequence Component 2 | D6: Time 2 | E6: Sequence Component 3 | F6: Time 3 | G6: Sequence Component 4 | H6: Time 4 | I6: Sequence Component 5 | J6: Time 5 | K6: Correct? 0=No 1=Yes | L6: Sequence | N6: Frequency | P6: Relative Frequency | Q6: Variability | T6: Frequency | V6: Relative Frequency | W6: Variability | Y6: Frequency | AA6: Relative Frequency | AB6: Variability | AD6: Frequency | AF6: Relative Frequency | AG6: Variability | AI6: Frequency | AK6: Relative Frequency | AL6: Variability | AN6: Frequency | AP6: Relative Frequency | AQ6: Variability | AS6: Frequency | AU6: Relative Frequency | AV6: Variability
A7: 21 | B7: 40 | C7: 21 | D7: 42 | E7: 21 | F7: 45 | K7: 0 | L7: 222 | N7: 111 | O7: =COUNTIF($L$7:$L$500,N7) -> 0 | P7: =O7/$Q$4 -> 0 | Q7: =IF(P7=0,0,(P7*((LOG(P7))/LOG(2)))) -> 0 | T7: =N7 -> 111 | U7: =COUNTIF(L7:L13,T7) -> 0 | V7: =U7/(W4-U14) ->  | W7: =IF(V7=0,0,(V7*((LOG(V7))/LOG(2)))) ->  | Y7: =N7 -> 111 | Z7: =COUNTIF(L14:L19,Y7) -> 0 | AA7: =Z7/(AB4-Z14) ->  | AB7: =IF(AA7=0,0,(AA7*((LOG(AA7))/LOG(2)))) ->  | AD7: =N7 -> 111 | AE7: =COUNTIF(L20:L26,AD7) -> 0 | AF7: =AE7/(AG4-AE14) ->  | AG7: =IF(AF7=0,0,(AF7*((LOG(AF7))/LOG(2)))) ->  | AI7: =N7 -> 111 | AJ7: =COUNTIF(L27:L33,AI7) -> 0 | AK7: =AJ7/(AL4-AJ14) ->  | AL7: =IF(AK7=0,0,(AK7*((LOG(AK7))/LOG(2)))) ->  | AN7: =N7 -> 111 | AO7: =COUNTIF(L34:L39,AN7) -> 0 | AP7: =AO7/(AQ4-AO14) ->  | AQ7: =IF(AP7=0,0,(AP7*((LOG(AP7))/LOG(2)))) ->  | AS7: =N7 -> 111 | AT7: =COUNTIF(L40:L46,AS7) -> 0 | AU7: =AT7/(AV4-AT14) ->  | AV7: =IF(AU7=0,0,(AU7*((LOG(AU7))/LOG(2)))) -> 
A8: 21 | B8: 143 | C8: 21 | D8: 148 | E8: 21 | F8: 153 | K8: 0 | L8: 222 | N8: 112 | O8: =COUNTIF($L$7:$L$500,N8) -> 0 | P8: =O8/$Q$4 -> 0 | Q8: =IF(P8=0,0,(P8*((LOG(P8))/LOG(2)))) -> 0 | T8: =N8 -> 112 | U8: =COUNTIF(L7:L13,T8) -> 0 | V8: =U8/(W4-U14) ->  | W8: =IF(V8=0,0,(V8*((LOG(V8))/LOG(2)))) ->  | Y8: =N8 -> 112 | Z8: =COUNTIF(L14:L19,Y8) -> 0 | AA8: =Z8/(AB4-Z14) ->  | AB8: =IF(AA8=0,0,(AA8*((LOG(AA8))/LOG(2)))) ->  | AD8: =N8 -> 112 | AE8: =COUNTIF(L20:L26,AD8) -> 0 | AF8: =AE8/(AG4-AE14) ->  | AG8: =IF(AF8=0,0,(AF8*((LOG(AF8))/LOG(2)))) ->  | AI8: =N8 -> 112 | AJ8: =COUNTIF(L27:L33,AI8) -> 0 | AK8: =AJ8/(AL4-AJ14) ->  | AL8: =IF(AK8=0,0,(AK8*((LOG(AK8))/LOG(2)))) ->  | AN8: =N8 -> 112 | AO8: =COUNTIF(L34:L39,AN8) -> 0 | AP8: =AO8/(AQ4-AO14) ->  | AQ8: =IF(AP8=0,0,(AP8*((LOG(AP8))/LOG(2)))) ->  | AS8: =N8 -> 112 | AT8: =COUNTIF(L40:L46,AS8) -> 0 | AU8: =AT8/(AV4-AT14) ->  | AV8: =IF(AU8=0,0,(AU8*((LOG(AU8))/LOG(2)))) -> 
A9: 21 | B9: 255 | C9: 21 | D9: 262 | E9: 21 | F9: 265 | K9: 0 | L9: 222 | N9: 121 | O9: =COUNTIF($L$7:$L$500,N9) -> 0 | P9: =O9/$Q$4 -> 0 | Q9: =IF(P9=0,0,(P9*((LOG(P9))/LOG(2)))) -> 0 | T9: =N9 -> 121 | U9: =COUNTIF(L7:L13,T9) -> 0 | V9: =U9/(W4-U14) ->  | W9: =IF(V9=0,0,(V9*((LOG(V9))/LOG(2)))) ->  | Y9: =N9 -> 121 | Z9: =COUNTIF(L14:L19,Y9) -> 0 | AA9: =Z9/(AB4-Z14) ->  | AB9: =IF(AA9=0,0,(AA9*((LOG(AA9))/LOG(2)))) ->  | AD9: =N9 -> 121 | AE9: =COUNTIF(L20:L26,AD9) -> 0 | AF9: =AE9/(AG4-AE14) ->  | AG9: =IF(AF9=0,0,(AF9*((LOG(AF9))/LOG(2)))) ->  | AI9: =N9 -> 121 | AJ9: =COUNTIF(L27:L33,AI9) -> 0 | AK9: =AJ9/(AL4-AJ14) ->  | AL9: =IF(AK9=0,0,(AK9*((LOG(AK9))/LOG(2)))) ->  | AN9: =N9 -> 121 | AO9: =COUNTIF(L34:L39,AN9) -> 0 | AP9: =AO9/(AQ4-AO14) ->  | AQ9: =IF(AP9=0,0,(AP9*((LOG(AP9))/LOG(2)))) ->  | AS9: =N9 -> 121 | AT9: =COUNTIF(L40:L46,AS9) -> 0 | AU9: =AT9/(AV4-AT14) ->  | AV9: =IF(AU9=0,0,(AU9*((LOG(AU9))/LOG(2)))) -> 
A10: 21 | B10: 422 | C10: 21 | D10: 431 | E10: 21 | F10: 439 | K10: 0 | L10: 222 | N10: 122 | O10: =COUNTIF($L$7:$L$500,N10) -> 0 | P10: =O10/$Q$4 -> 0 | Q10: =IF(P10=0,0,(P10*((LOG(P10))/LOG(2)))) -> 0 | T10: =N10 -> 122 | U10: =COUNTIF(L7:L13,T10) -> 0 | V10: =U10/(W4-U14) ->  | W10: =IF(V10=0,0,(V10*((LOG(V10))/LOG(2)))) ->  | Y10: =N10 -> 122 | Z10: =COUNTIF(L14:L19,Y10) -> 0 | AA10: =Z10/(AB4-Z14) ->  | AB10: =IF(AA10=0,0,(AA10*((LOG(AA10))/LOG(2)))) ->  | AD10: =N10 -> 122 | AE10: =COUNTIF(L20:L26,AD10) -> 0 | AF10: =AE10/(AG4-AE14) ->  | AG10: =IF(AF10=0,0,(AF10*((LOG(AF10))/LOG(2)))) ->  | AI10: =N10 -> 122 | AJ10: =COUNTIF(L27:L33,AI10) -> 0 | AK10: =AJ10/(AL4-AJ14) ->  | AL10: =IF(AK10=0,0,(AK10*((LOG(AK10))/LOG(2)))) ->  | AN10: =N10 -> 122 | AO10: =COUNTIF(L34:L39,AN10) -> 0 | AP10: =AO10/(AQ4-AO14) ->  | AQ10: =IF(AP10=0,0,(AP10*((LOG(AP10))/LOG(2)))) ->  | AS10: =N10 -> 122 | AT10: =COUNTIF(L40:L46,AS10) -> 0 | AU10: =AT10/(AV4-AT14) ->  | AV10: =IF(AU10=0,0,(AU10*((LOG(AU10))/LOG(2)))) -> 
A11: 21 | B11: 656 | C11: 21 | D11: 671 | E11: 21 | F11: 681 | K11: 0 | L11: 222 | N11: 211 | O11: =COUNTIF($L$7:$L$500,N11) -> 0 | P11: =O11/$Q$4 -> 0 | Q11: =IF(P11=0,0,(P11*((LOG(P11))/LOG(2)))) -> 0 | T11: =N11 -> 211 | U11: =COUNTIF(L7:L13,T11) -> 0 | V11: =U11/(W4-U14) ->  | W11: =IF(V11=0,0,(V11*((LOG(V11))/LOG(2)))) ->  | Y11: =N11 -> 211 | Z11: =COUNTIF(L14:L19,Y11) -> 0 | AA11: =Z11/(AB4-Z14) ->  | AB11: =IF(AA11=0,0,(AA11*((LOG(AA11))/LOG(2)))) ->  | AD11: =N11 -> 211 | AE11: =COUNTIF(L20:L26,AD11) -> 0 | AF11: =AE11/(AG4-AE14) ->  | AG11: =IF(AF11=0,0,(AF11*((LOG(AF11))/LOG(2)))) ->  | AI11: =N11 -> 211 | AJ11: =COUNTIF(L27:L33,AI11) -> 0 | AK11: =AJ11/(AL4-AJ14) ->  | AL11: =IF(AK11=0,0,(AK11*((LOG(AK11))/LOG(2)))) ->  | AN11: =N11 -> 211 | AO11: =COUNTIF(L34:L39,AN11) -> 0 | AP11: =AO11/(AQ4-AO14) ->  | AQ11: =IF(AP11=0,0,(AP11*((LOG(AP11))/LOG(2)))) ->  | AS11: =N11 -> 211 | AT11: =COUNTIF(L40:L46,AS11) -> 0 | AU11: =AT11/(AV4-AT14) ->  | AV11: =IF(AU11=0,0,(AU11*((LOG(AU11))/LOG(2)))) -> 
A12: 21 | B12: 793 | C12: 21 | D12: 803 | E12: 21 | F12: 812 | K12: 0 | L12: 222 | N12: 212 | O12: =COUNTIF($L$7:$L$500,N12) -> 0 | P12: =O12/$Q$4 -> 0 | Q12: =IF(P12=0,0,(P12*((LOG(P12))/LOG(2)))) -> 0 | T12: =N12 -> 212 | U12: =COUNTIF(L7:L13,T12) -> 0 | V12: =U12/(W4-U14) ->  | W12: =IF(V12=0,0,(V12*((LOG(V12))/LOG(2)))) ->  | Y12: =N12 -> 212 | Z12: =COUNTIF(L14:L19,Y12) -> 0 | AA12: =Z12/(AB4-Z14) ->  | AB12: =IF(AA12=0,0,(AA12*((LOG(AA12))/LOG(2)))) ->  | AD12: =N12 -> 212 | AE12: =COUNTIF(L20:L26,AD12) -> 0 | AF12: =AE12/(AG4-AE14) ->  | AG12: =IF(AF12=0,0,(AF12*((LOG(AF12))/LOG(2)))) ->  | AI12: =N12 -> 212 | AJ12: =COUNTIF(L27:L33,AI12) -> 0 | AK12: =AJ12/(AL4-AJ14) ->  | AL12: =IF(AK12=0,0,(AK12*((LOG(AK12))/LOG(2)))) ->  | AN12: =N12 -> 212 | AO12: =COUNTIF(L34:L39,AN12) -> 0 | AP12: =AO12/(AQ4-AO14) ->  | AQ12: =IF(AP12=0,0,(AP12*((LOG(AP12))/LOG(2)))) ->  | AS12: =N12 -> 212 | AT12: =COUNTIF(L40:L46,AS12) -> 0 | AU12: =AT12/(AV4-AT14) ->  | AV12: =IF(AU12=0,0,(AU12*((LOG(AU12))/LOG(2)))) -> 
A13: 21 | B13: 938 | C13: 21 | D13: 945 | E13: 21 | F13: 953 | K13: 0 | L13: 222 | N13: 221 | O13: =COUNTIF($L$7:$L$500,N13) -> 0 | P13: =O13/$Q$4 -> 0 | Q13: =IF(P13=0,0,(P13*((LOG(P13))/LOG(2)))) -> 0 | T13: =N13 -> 221 | U13: =COUNTIF(L7:L13,T13) -> 0 | V13: =U13/(W4-U14) ->  | W13: =IF(V13=0,0,(V13*((LOG(V13))/LOG(2)))) ->  | Y13: =N13 -> 221 | Z13: =COUNTIF(L14:L19,Y13) -> 0 | AA13: =Z13/(AB4-Z14) ->  | AB13: =IF(AA13=0,0,(AA13*((LOG(AA13))/LOG(2)))) ->  | AD13: =N13 -> 221 | AE13: =COUNTIF(L20:L26,AD13) -> 0 | AF13: =AE13/(AG4-AE14) ->  | AG13: =IF(AF13=0,0,(AF13*((LOG(AF13))/LOG(2)))) ->  | AI13: =N13 -> 221 | AJ13: =COUNTIF(L27:L33,AI13) -> 0 | AK13: =AJ13/(AL4-AJ14) ->  | AL13: =IF(AK13=0,0,(AK13*((LOG(AK13))/LOG(2)))) ->  | AN13: =N13 -> 221 | AO13: =COUNTIF(L34:L39,AN13) -> 0 | AP13: =AO13/(AQ4-AO14) ->  | AQ13: =IF(AP13=0,0,(AP13*((LOG(AP13))/LOG(2)))) ->  | AS13: =N13 -> 221 | AT13: =COUNTIF(L40:L46,AS13) -> 0 | AU13: =AT13/(AV4-AT14) ->  | AV13: =IF(AU13=0,0,(AU13*((LOG(AU13))/LOG(2)))) -> 
A14: 21 | B14: 1117 | C14: 21 | D14: 1122 | E14: 21 | F14: 1148 | K14: 0 | L14: 222 | N14: 222 | O14: =COUNTIF($L$7:$L$500,N14) -> 40 | P14: =O14/$Q$4 -> 1 | Q14: =IF(P14=0,0,(P14*((LOG(P14))/LOG(2)))) -> 0 | T14: =N14 -> 222 | U14: =COUNTIF(L7:L13,T14) -> 7 | Y14: =N14 -> 222 | Z14: =COUNTIF(L14:L19,Y14) -> 6 | AD14: =N14 -> 222 | AE14: =COUNTIF(L20:L26,AD14) -> 7 | AI14: =N14 -> 222 | AJ14: =COUNTIF(L27:L33,AI14) -> 7 | AN14: =N14 -> 222 | AO14: =COUNTIF(L34:L39,AN14) -> 6 | AS14: =N14 -> 222 | AT14: =COUNTIF(L40:L46,AS14) -> 7
A15: 21 | B15: 1263 | C15: 21 | D15: 1269 | E15: 21 | F15: 1287 | K15: 0 | L15: 222 | P15: =SUM(P7:P14) -> 1 | Q15: =-SUM(Q7:Q14) -> 0 | V15: =SUM(V7:V14) ->  | W15: =-SUM(W7:W14) ->  | AA15: =SUM(AA7:AA14) ->  | AB15: =-SUM(AB7:AB14) ->  | AF15: =SUM(AF7:AF14) ->  | AG15: =-SUM(AG7:AG14) ->  | AK15: =SUM(AK7:AK14) ->  | AL15: =-SUM(AL7:AL14) ->  | AP15: =SUM(AP7:AP14) ->  | AQ15: =-SUM(AQ7:AQ14) ->  | AU15: =SUM(AU7:AU14) ->  | AV15: =-SUM(AV7:AV14) -> 
A16: 21 | B16: 1388 | C16: 21 | D16: 1394 | E16: 21 | F16: 1408 | K16: 0 | L16: 222 | P16: U= | Q16: =Q15/(LOG(Q4)/LOG(2)) -> 0 | V16: U1= | W16: =W15/(LOG(W4)/LOG(2)) ->  | AA16: U2= | AB16: =AB15/(LOG(AB4)/LOG(2)) ->  | AF16: U3= | AG16: =AG15/(LOG(AG4)/LOG(2)) ->  | AK16: U4= | AL16: =AL15/(LOG(AL4)/LOG(2)) ->  | AP16: U5= | AQ16: =AQ15/(LOG(AQ4)/LOG(2)) ->  | AU16: U6= | AV16: =AV15/(LOG(AV4)/LOG(2)) -> 
A17: 21 | B17: 1554 | C17: 21 | D17: 1560 | E17: 21 | F17: 1577 | K17: 0 | L17: 222
A18: 21 | B18: 1692 | C18: 21 | D18: 1717 | E18: 21 | F18: 1727 | K18: 0 | L18: 222
A19: 21 | B19: 1830 | C19: 21 | D19: 1845 | E19: 21 | F19: 1851 | K19: 0 | L19: 222 | N19: Total Target Seq
A20: 21 | B20: 1987 | C20: 21 | D20: 1997 | E20: 21 | F20: 2008 | K20: 0 | L20: 222 | N20: =COUNTIF(L7:L46,G3) -> 40 | P20: 7 | Q20: 6 | R20: 7 | S20: 7 | T20: 6 | U20: 7
A21: 21 | B21: 2107 | C21: 21 | D21: 2113 | E21: 21 | F21: 2121 | K21: 0 | L21: 222 | P21: % of reinforcement given in 6 equal intervals based on number of trials
A22: 21 | B22: 2220 | C22: 21 | D22: 2232 | E22: 21 | F22: 2239 | K22: 0 | L22: 222 | P22: %_1 | Q22: %_2 | R22: %_3 | S22: %_4 | T22: %_5 | U22: %_6
A23: 21 | B23: 2329 | C23: 21 | D23: 2345 | E23: 21 | F23: 2352 | K23: 0 | L23: 222 | O23: target sequence | P23: =$G$3 -> 222 | Q23: =$G$3 -> 222 | R23: =$G$3 -> 222 | S23: =$G$3 -> 222 | T23: =$G$3 -> 222 | U23: =$G$3 -> 222
A24: 21 | B24: 2452 | C24: 21 | D24: 2461 | E24: 21 | F24: 2471 | K24: 0 | L24: 222 | O24: total reinforcement | P24: =U14 -> 7 | Q24: =Z14 -> 6 | R24: =AE14 -> 7 | S24: =AJ14 -> 7 | T24: =AO14 -> 6 | U24: =AT14 -> 7
A25: 21 | B25: 2584 | C25: 21 | D25: 2593 | E25: 21 | F25: 2601 | K25: 0 | L25: 222 | O25: % target
A26: 21 | B26: 2700 | C26: 21 | D26: 2710 | E26: 21 | F26: 2736 | K26: 0 | L26: 222 | O26: CCRF
A27: 21 | B27: 2838 | C27: 21 | D27: 2853 | E27: 21 | F27: 2861 | K27: 0 | L27: 222 | O27: % CCRf
A28: 21 | B28: 2985 | C28: 21 | D28: 3002 | E28: 21 | F28: 3016 | K28: 0 | L28: 222 | O28: average response rate | P28: =F13/P20 -> 136.1428571 | Q28: =(F19-F13)/Q20 -> 149.6666667 | R28: =(F26-F19)/R20 -> 126.4285714 | S28: =(F33-F26)/S20 -> 152.7142857 | T28: =(F39-F33)/T20 -> 156.5 | U28: =(F46-F39)/U20 -> 147.8571429
A29: 21 | B29: 3108 | C29: 21 | D29: 3115 | E29: 21 | F29: 3121 | K29: 0 | L29: 222
A30: 21 | B30: 3371 | C30: 21 | D30: 3377 | E30: 21 | F30: 3388 | K30: 0 | L30: 222
A31: 21 | B31: 3499 | C31: 21 | D31: 3517 | E31: 21 | F31: 3532 | K31: 0 | L31: 222
A32: 21 | B32: 3633 | C32: 21 | D32: 3644 | E32: 21 | F32: 3652 | K32: 0 | L32: 222
A33: 21 | B33: 3783 | C33: 21 | D33: 3800 | E33: 21 | F33: 3805 | K33: 0 | L33: 222
A34: 21 | B34: 3944 | C34: 21 | D34: 3951 | E34: 21 | F34: 3956 | K34: 0 | L34: 222
A35: 21 | B35: 4103 | C35: 21 | D35: 4124 | E35: 21 | F35: 4132 | K35: 0 | L35: 222
A36: 21 | B36: 4235 | C36: 21 | D36: 4242 | E36: 21 | F36: 4257 | K36: 0 | L36: 222
A37: 21 | B37: 4424 | C37: 21 | D37: 4434 | E37: 21 | F37: 4441 | K37: 0 | L37: 222
A38: 21 | B38: 4606 | C38: 21 | D38: 4610 | E38: 21 | F38: 4626 | K38: 0 | L38: 222
A39: 21 | B39: 4720 | C39: 21 | D39: 4728 | E39: 21 | F39: 4744 | K39: 0 | L39: 222
A40: 21 | B40: 4836 | C40: 21 | D40: 4842 | E40: 21 | F40: 4855 | K40: 0 | L40: 222
A41: 21 | B41: 4954 | C41: 21 | D41: 4960 | E41: 21 | F41: 4966 | K41: 0 | L41: 222
A42: 21 | B42: 5121 | C42: 21 | D42: 5139 | E42: 21 | F42: 5148 | K42: 0 | L42: 222
A43: 21 | B43: 5277 | C43: 21 | D43: 5282 | E43: 21 | F43: 5288 | K43: 0 | L43: 222
A44: 21 | B44: 5418 | C44: 21 | D44: 5426 | E44: 21 | F44: 5436 | K44: 0 | L44: 222
A45: 21 | B45: 5630 | C45: 21 | D45: 5641 | E45: 21 | F45: 5657 | K45: 0 | L45: 222
A46: 21 | B46: 5756 | C46: 21 | D46: 5772 | E46: 21 | F46: 5779 | K46: 1 | L46: 222

Sheet !M902A10.Gus
A1: Report for:!M902A10.Gus
A2: Date: | B2: <date>
A3: Hen: | B3: <hen> | F3: Correct Sequence | G3: =Start!J2 -> 222 | P3: Total Sequences in Data | Q3: =4994-COUNTBLANK(L7:L5000) -> 55 | V3: Total Sequences in Block Data | W3: =COUNTA(L7:L15) -> 9 | AA3: Total Sequences in Block Data | AB3: =COUNTA(L16:L24) -> 9 | AF3: Total Sequences in Block Data | AG3: =COUNTA(L25:L34) -> 10 | AK3: Total Sequences in Block Data | AL3: =COUNTA(L35:L43) -> 9 | AP3: Total Sequences in Block Data | AQ3: =COUNTA(L44:L52) -> 9 | AU3: Total Sequences in Block Data | AV3: =COUNTA(L53:L61) -> 9
P4: Total Sequences in Summary | Q4: =SUM(O7:O14) -> 55 | V4: Total Sequences in Block Summary | W4: =SUM(U7:U14) -> 9 | AA4: Total Sequences in Block Summary | AB4: =SUM(Z7:Z14) -> 9 | AF4: Total Sequences in Block Summary | AG4: =SUM(AE7:AE14) -> 10 | AK4: Total Sequences in Block Summary | AL4: =SUM(AJ7:AJ14) -> 9 | AP4: Total Sequences in Block Summary | AQ4: =SUM(AO7:AO14) -> 9 | AU4: Total Sequences in Block Summary | AV4: =SUM(AT7:AT14) -> 9
T5: Block 1 | Y5: Block 2 | AD5: Block 3 | AI5: Block 4 | AN5: Block 5 | AS5: Block 6
A6: Sequence Component 1 | B6: Time 1 | C6: Sequence Component 2 | D6: Time 2 | E6: Sequence Component 3 | F6: Time 3 | G6: Sequence Component 4 | H6: Time 4 | I6: Sequence Component 5 | J6: Time 5 | K6: Correct? 0=No 1=Yes | L6: Sequence | N6: Frequency | P6: Relative Frequency | Q6: Variability | T6: Frequency | V6: Relative Frequency | W6: Variability | Y6: Frequency | AA6: Relative Frequency | AB6: Variability | AD6: Frequency | AF6: Relative Frequency | AG6: Variability | AI6: Frequency | AK6: Relative Frequency | AL6: Variability | AN6: Frequency | AP6: Relative Frequency | AQ6: Variability | AS6: Frequency | AU6: Relative Frequency | AV6: Variability
A7: 21 | B7: 14 | C7: 21 | D7: 19 | E7: 21 | F7: 26 | K7: 0 | L7: 222 | N7: 111 | O7: =COUNTIF($L$7:$L$500,N7) -> 0 | P7: =O7/$Q$4 -> 0 | Q7: =IF(P7=0,0,(P7*((LOG(P7))/LOG(2)))) -> 0 | T7: =N7 -> 111 | U7: =COUNTIF(L7:L15,T7) -> 0 | V7: =U7/(W4-U14) -> 0 | W7: =IF(V7=0,0,(V7*((LOG(V7))/LOG(2)))) -> 0 | Y7: =N7 -> 111 | Z7: =COUNTIF(L16:L24,Y7) -> 0 | AA7: =Z7/(AB4-Z14) -> 0 | AB7: =IF(AA7=0,0,(AA7*((LOG(AA7))/LOG(2)))) -> 0 | AD7: =N7 -> 111 | AE7: =COUNTIF(L25:L34,AD7) -> 0 | AF7: =AE7/(AG4-AE14) -> 0 | AG7: =IF(AF7=0,0,(AF7*((LOG(AF7))/LOG(2)))) -> 0 | AI7: =N7 -> 111 | AJ7: =COUNTIF(L35:L43,AI7) -> 0 | AK7: =AJ7/(AL4-AJ14) -> 0 | AL7: =IF(AK7=0,0,(AK7*((LOG(AK7))/LOG(2)))) -> 0 | AN7: =N7 -> 111 | AO7: =COUNTIF(L44:L52,AN7) -> 0 | AP7: =AO7/(AQ4-AO14) -> 0 | AQ7: =IF(AP7=0,0,(AP7*((LOG(AP7))/LOG(2)))) -> 0 | AS7: =N7 -> 111 | AT7: =COUNTIF(L53:L61,AS7) -> 0 | AU7: =AT7/(AV4-AT14) -> 0 | AV7: =IF(AU7=0,0,(AU7*((LOG(AU7))/LOG(2)))) -> 0
A8: 21 | B8: 189 | C8: 21 | D8: 198 | E8: 21 | F8: 203 | K8: 0 | L8: 222 | N8: 112 | O8: =COUNTIF($L$7:$L$500,N8) -> 0 | P8: =O8/$Q$4 -> 0 | Q8: =IF(P8=0,0,(P8*((LOG(P8))/LOG(2)))) -> 0 | T8: =N8 -> 112 | U8: =COUNTIF(L7:L15,T8) -> 0 | V8: =U8/(W4-U14) -> 0 | W8: =IF(V8=0,0,(V8*((LOG(V8))/LOG(2)))) -> 0 | Y8: =N8 -> 112 | Z8: =COUNTIF(L16:L24,Y8) -> 0 | AA8: =Z8/(AB4-Z14) -> 0 | AB8: =IF(AA8=0,0,(AA8*((LOG(AA8))/LOG(2)))) -> 0 | AD8: =N8 -> 112 | AE8: =COUNTIF(L25:L34,AD8) -> 0 | AF8: =AE8/(AG4-AE14) -> 0 | AG8: =IF(AF8=0,0,(AF8*((LOG(AF8))/LOG(2)))) -> 0 | AI8: =N8 -> 112 | AJ8: =COUNTIF(L35:L43,AI8) -> 0 | AK8: =AJ8/(AL4-AJ14) -> 0 | AL8: =IF(AK8=0,0,(AK8*((LOG(AK8))/LOG(2)))) -> 0 | AN8: =N8 -> 112 | AO8: =COUNTIF(L44:L52,AN8) -> 0 | AP8: =AO8/(AQ4-AO14) -> 0 | AQ8: =IF(AP8=0,0,(AP8*((LOG(AP8))/LOG(2)))) -> 0 | AS8: =N8 -> 112 | AT8: =COUNTIF(L53:L61,AS8) -> 0 | AU8: =AT8/(AV4-AT14) -> 0 | AV8: =IF(AU8=0,0,(AU8*((LOG(AU8))/LOG(2)))) -> 0
A9: 12 | B9: 335 | C9: 23 | D9: 352 | E9: 23 | F9: 360 | K9: 0 | L9: 122 | N9: 121 | O9: =COUNTIF($L$7:$L$500,N9) -> 1 | P9: =O9/$Q$4 -> 0.01818181818 | Q9: =IF(P9=0,0,(P9*((LOG(P9))/LOG(2)))) -> -0.1051156312 | T9: =N9 -> 121 | U9: =COUNTIF(L7:L15,T9) -> 0 | V9: =U9/(W4-U14) -> 0 | W9: =IF(V9=0,0,(V9*((LOG(V9))/LOG(2)))) -> 0 | Y9: =N9 -> 121 | Z9: =COUNTIF(L16:L24,Y9) -> 0 | AA9: =Z9/(AB4-Z14) -> 0 | AB9: =IF(AA9=0,0,(AA9*((LOG(AA9))/LOG(2)))) -> 0 | AD9: =N9 -> 121 | AE9: =COUNTIF(L25:L34,AD9) -> 0 | AF9: =AE9/(AG4-AE14) -> 0 | AG9: =IF(AF9=0,0,(AF9*((LOG(AF9))/LOG(2)))) -> 0 | AI9: =N9 -> 121 | AJ9: =COUNTIF(L35:L43,AI9) -> 0 | AK9: =AJ9/(AL4-AJ14) -> 0 | AL9: =IF(AK9=0,0,(AK9*((LOG(AK9))/LOG(2)))) -> 0 | AN9: =N9 -> 121 | AO9: =COUNTIF(L44:L52,AN9) -> 1 | AP9: =AO9/(AQ4-AO14) -> 0.2 | AQ9: =IF(AP9=0,0,(AP9*((LOG(AP9))/LOG(2)))) -> -0.464385619 | AS9: =N9 -> 121 | AT9: =COUNTIF(L53:L61,AS9) -> 0 | AU9: =AT9/(AV4-AT14) -> 0 | AV9: =IF(AU9=0,0,(AU9*((LOG(AU9))/LOG(2)))) -> 0
A10: 21 | B10: 468 | C10: 21 | D10: 473 | E10: 21 | F10: 481 | K10: 0 | L10: 222 | N10: 122 | O10: =COUNTIF($L$7:$L$500,N10) -> 8 | P10: =O10/$Q$4 -> 0.1454545455 | Q10: =IF(P10=0,0,(P10*((LOG(P10))/LOG(2)))) -> -0.4045614129 | T10: =N10 -> 122 | U10: =COUNTIF(L7:L15,T10) -> 1 | V10: =U10/(W4-U14) -> 0.5 | W10: =IF(V10=0,0,(V10*((LOG(V10))/LOG(2)))) -> -0.5 | Y10: =N10 -> 122 | Z10: =COUNTIF(L16:L24,Y10) -> 1 | AA10: =Z10/(AB4-Z14) -> 0.5 | AB10: =IF(AA10=0,0,(AA10*((LOG(AA10))/LOG(2)))) -> -0.5 | AD10: =N10 -> 122 | AE10: =COUNTIF(L25:L34,AD10) -> 2 | AF10: =AE10/(AG4-AE14) -> 1 | AG10: =IF(AF10=0,0,(AF10*((LOG(AF10))/LOG(2)))) -> 0 | AI10: =N10 -> 122 | AJ10: =COUNTIF(L35:L43,AI10) -> 3 | AK10: =AJ10/(AL4-AJ14) -> 0.75 | AL10: =IF(AK10=0,0,(AK10*((LOG(AK10))/LOG(2)))) -> -0.3112781245 | AN10: =N10 -> 122 | AO10: =COUNTIF(L44:L52,AN10) -> 1 | AP10: =AO10/(AQ4-AO14) -> 0.2 | AQ10: =IF(AP10=0,0,(AP10*((LOG(AP10))/LOG(2)))) -> -0.464385619 | AS10: =N10 -> 122 | AT10: =COUNTIF(L53:L61,AS10) -> 0 | AU10: =AT10/(AV4-AT14) -> 0 | AV10: =IF(AU10=0,0,(AU10*((LOG(AU10))/LOG(2)))) -> 0
A11: 21 | B11: 569 | C11: 21 | D11: 576 | E11: 21 | F11: 586 | K11: 0 | L11: 222 | N11: 211 | O11: =COUNTIF($L$7:$L$500,N11) -> 1 | P11: =O11/$Q$4 -> 0.01818181818 | Q11: =IF(P11=0,0,(P11*((LOG(P11))/LOG(2)))) -> -0.1051156312 | T11: =N11 -> 211 | U11: =COUNTIF(L7:L15,T11) -> 0 | V11: =U11/(W4-U14) -> 0 | W11: =IF(V11=0,0,(V11*((LOG(V11))/LOG(2)))) -> 0 | Y11: =N11 -> 211 | Z11: =COUNTIF(L16:L24,Y11) -> 0 | AA11: =Z11/(AB4-Z14) -> 0 | AB11: =IF(AA11=0,0,(AA11*((LOG(AA11))/LOG(2)))) -> 0 | AD11: =N11 -> 211 | AE11: =COUNTIF(L25:L34,AD11) -> 0 | AF11: =AE11/(AG4-AE14) -> 0 | AG11: =IF(AF11=0,0,(AF11*((LOG(AF11))/LOG(2)))) -> 0 | AI11: =N11 -> 211 | AJ11: =COUNTIF(L35:L43,AI11) -> 0 | AK11: =AJ11/(AL4-AJ14) -> 0 | AL11: =IF(AK11=0,0,(AK11*((LOG(AK11))/LOG(2)))) -> 0 | AN11: =N11 -> 211 | AO11: =COUNTIF(L44:L52,AN11) -> 0 | AP11: =AO11/(AQ4-AO14) -> 0 | AQ11: =IF(AP11=0,0,(AP11*((LOG(AP11))/LOG(2)))) -> 0 | AS11: =N11 -> 211 | AT11: =COUNTIF(L53:L61,AS11) -> 1 | AU11: =AT11/(AV4-AT14) -> 1 | AV11: =IF(AU11=0,0,(AU11*((LOG(AU11))/LOG(2)))) -> 0
A12: 21 | B12: 684 | C12: 21 | D12: 689 | E12: 21 | F12: 704 | K12: 0 | L12: 222 | N12: 212 | O12: =COUNTIF($L$7:$L$500,N12) -> 3 | P12: =O12/$Q$4 -> 0.05454545455 | Q12: =IF(P12=0,0,(P12*((LOG(P12))/LOG(2)))) -> -0.2288943934 | T12: =N12 -> 212 | U12: =COUNTIF(L7:L15,T12) -> 0 | V12: =U12/(W4-U14) -> 0 | W12: =IF(V12=0,0,(V12*((LOG(V12))/LOG(2)))) -> 0 | Y12: =N12 -> 212 | Z12: =COUNTIF(L16:L24,Y12) -> 0 | AA12: =Z12/(AB4-Z14) -> 0 | AB12: =IF(AA12=0,0,(AA12*((LOG(AA12))/LOG(2)))) -> 0 | AD12: =N12 -> 212 | AE12: =COUNTIF(L25:L34,AD12) -> 0 | AF12: =AE12/(AG4-AE14) -> 0 | AG12: =IF(AF12=0,0,(AF12*((LOG(AF12))/LOG(2)))) -> 0 | AI12: =N12 -> 212 | AJ12: =COUNTIF(L35:L43,AI12) -> 1 | AK12: =AJ12/(AL4-AJ14) -> 0.25 | AL12: =IF(AK12=0,0,(AK12*((LOG(AK12))/LOG(2)))) -> -0.5 | AN12: =N12 -> 212 | AO12: =COUNTIF(L44:L52,AN12) -> 2 | AP12: =AO12/(AQ4-AO14) -> 0.4 | AQ12: =IF(AP12=0,0,(AP12*((LOG(AP12))/LOG(2)))) -> -0.528771238 | AS12: =N12 -> 212 | AT12: =COUNTIF(L53:L61,AS12) -> 0 | AU12: =AT12/(AV4-AT14) -> 0 | AV12: =IF(AU12=0,0,(AU12*((LOG(AU12))/LOG(2)))) -> 0
A13: 21 | B13: 798 | C13: 21 | D13: 814 | E13: 21 | F13: 822 | K13: 0 | L13: 222 | N13: 221 | O13: =COUNTIF($L$7:$L$500,N13) -> 3 | P13: =O13/$Q$4 -> 0.05454545455 | Q13: =IF(P13=0,0,(P13*((LOG(P13))/LOG(2)))) -> -0.2288943934 | T13: =N13 -> 221 | U13: =COUNTIF(L7:L15,T13) -> 1 | V13: =U13/(W4-U14) -> 0.5 | W13: =IF(V13=0,0,(V13*((LOG(V13))/LOG(2)))) -> -0.5 | Y13: =N13 -> 221 | Z13: =COUNTIF(L16:L24,Y13) -> 1 | AA13: =Z13/(AB4-Z14) -> 0.5 | AB13: =IF(AA13=0,0,(AA13*((LOG(AA13))/LOG(2)))) -> -0.5 | AD13: =N13 -> 221 | AE13: =COUNTIF(L25:L34,AD13) -> 0 | AF13: =AE13/(AG4-AE14) -> 0 | AG13: =IF(AF13=0,0,(AF13*((LOG(AF13))/LOG(2)))) -> 0 | AI13: =N13 -> 221 | AJ13: =COUNTIF(L35:L43,AI13) -> 0 | AK13: =AJ13/(AL4-AJ14) -> 0 | AL13: =IF(AK13=0,0,(AK13*((LOG(AK13))/LOG(2)))) -> 0 | AN13: =N13 -> 221 | AO13: =COUNTIF(L44:L52,AN13) -> 1 | AP13: =AO13/(AQ4-AO14) -> 0.2 | AQ13: =IF(AP13=0,0,(AP13*((LOG(AP13))/LOG(2)))) -> -0.464385619 | AS13: =N13 -> 221 | AT13: =COUNTIF(L53:L61,AS13) -> 0 | AU13: =AT13/(AV4-AT14) -> 0 | AV13: =IF(AU13=0,0,(AU13*((LOG(AU13))/LOG(2)))) -> 0
A14: 21 | B14: 934 | C14: 21 | D14: 950 | E14: 21 | F14: 962 | K14: 0 | L14: 222 | N14: 222 | O14: =COUNTIF($L$7:$L$500,N14) -> 39 | P14: =O14/$Q$4 -> 0.7090909091 | Q14: =IF(P14=0,0,(P14*((LOG(P14))/LOG(2)))) -> -0.3516789508 | T14: =N14 -> 222 | U14: =COUNTIF(L7:L15,T14) -> 7 | Y14: =N14 -> 222 | Z14: =COUNTIF(L16:L24,Y14) -> 7 | AD14: =N14 -> 222 | AE14: =COUNTIF(L25:L34,AD14) -> 8 | AI14: =N14 -> 222 | AJ14: =COUNTIF(L35:L43,AI14) -> 5 | AN14: =N14 -> 222 | AO14: =COUNTIF(L44:L52,AN14) -> 4 | AS14: =N14 -> 222 | AT14: =COUNTIF(L53:L61,AS14) -> 8
A15: 21 | B15: 1062 | C15: 21 | D15: 1071 | E15: 12 | F15: 1076 | K15: 0 | L15: 221 | P15: =SUM(P7:P14) -> 1 | Q15: =-SUM(Q7:Q14) -> 1.424260413 | V15: =SUM(V7:V14) -> 1 | W15: =-SUM(W7:W14) -> 1 | AA15: =SUM(AA7:AA14) -> 1 | AB15: =-SUM(AB7:AB14) -> 1 | AF15: =SUM(AF7:AF14) -> 1 | AG15: =-SUM(AG7:AG14) -> 0 | AK15: =SUM(AK7:AK14) -> 1 | AL15: =-SUM(AL7:AL14) -> 0.8112781245 | AP15: =SUM(AP7:AP14) -> 1 | AQ15: =-SUM(AQ7:AQ14) -> 1.921928095 | AU15: =SUM(AU7:AU14) -> 1 | AV15: =-SUM(AV7:AV14) -> 0
A16: 21 | B16: 1178 | C16: 21 | D16: 1182 | E16: 21 | F16: 1185 | K16: 0 | L16: 222 | P16: U= | Q16: =Q15/(LOG(Q4)/LOG(2)) -> 0.2463538827 | V16: U1= | W16: =W15/(LOG(W4)/LOG(2)) -> 0.3154648768 | AA16: U2= | AB16: =AB15/(LOG(AB4)/LOG(2)) -> 0.3154648768 | AF16: U3= | AG16: =AG15/(LOG(AG4)/LOG(2)) -> 0 | AK16: U4= | AL16: =AL15/(LOG(AL4)/LOG(2)) -> 0.2559297536 | AP16: U5= | AQ16: =AQ15/(LOG(AQ4)/LOG(2)) -> 0.6063008096 | AU16: U6= | AV16: =AV15/(LOG(AV4)/LOG(2)) -> 0
A17: 21 | B17: 1296 | C17: 21 | D17: 1302 | E17: 21 | F17: 1315 | K17: 0 | L17: 222
A18: 21 | B18: 1466 | C18: 21 | D18: 1474 | E18: 21 | F18: 1480 | K18: 0 | L18: 222
A19: 21 | B19: 1577 | C19: 21 | D19: 1582 | E19: 12 | F19: 1586 | K19: 0 | L19: 221 | N19: Total Target Seq
A20: 21 | B20: 1705 | C20: 21 | D20: 1712 | E20: 21 | F20: 1722 | K20: 0 | L20: 222 | N20: =COUNTIF(L7:L61,G3) -> 39 | P20: 9 | Q20: 9 | R20: 10 | S20: 9 | T20: 9 | U20: 9
A21: 21 | B21: 1829 | C21: 21 | D21: 1835 | E21: 21 | F21: 1841 | K21: 0 | L21: 222 | P21: % of reinforcement given in 6 equal intervals based on number of trials
A22: 12 | B22: 1933 | C22: 23 | D22: 1958 | E22: 23 | F22: 1976 | K22: 0 | L22: 122 | P22: %_1 | Q22: %_2 | R22: %_3 | S22: %_4 | T22: %_5 | U22: %_6
A23: 21 | B23: 2076 | C23: 21 | D23: 2081 | E23: 21 | F23: 2085 | K23: 0 | L23: 222 | O23: target sequence | P23: =$G$3 -> 222 | Q23: =$G$3 -> 222 | R23: =$G$3 -> 222 | S23: =$G$3 -> 222 | T23: =$G$3 -> 222 | U23: =$G$3 -> 222
A24: 21 | B24: 2206 | C24: 21 | D24: 2212 | E24: 21 | F24: 2220 | K24: 0 | L24: 222 | O24: total reinforcement | P24: =U14 -> 7 | Q24: =Z14 -> 7 | R24: =AE14 -> 8 | S24: =AJ14 -> 5 | T24: =AO14 -> 4 | U24: =AT14 -> 8
A25: 21 | B25: 2320 | C25: 21 | D25: 2330 | E25: 21 | F25: 2373 | K25: 0 | L25: 222 | O25: % target
A26: 21 | B26: 2466 | C26: 21 | D26: 2478 | E26: 21 | F26: 2495 | K26: 0 | L26: 222 | O26: CCRF
A27: 21 | B27: 2634 | C27: 21 | D27: 2643 | E27: 21 | F27: 2648 | K27: 0 | L27: 222 | O27: % CCRf
A28: 12 | B28: 2776 | C28: 23 | D28: 2815 | E28: 23 | F28: 2819 | K28: 0 | L28: 122 | O28: average response rate | P28: =F15/P20 -> 119.5555556 | Q28: =(F24-F15)/Q20 -> 127.1111111 | R28: =(F34-F24)/R20 -> 140.8 | S28: =(F43-F34)/S20 -> 111 | T28: =(F52-F43)/T20 -> 115.3333333 | U28: =(F61-F52)/U20 -> 143.1111111
A29: 21 | B29: 2911 | C29: 21 | D29: 2915 | E29: 21 | F29: 2918 | K29: 0 | L29: 222
A30: 21 | B30: 3043 | C30: 21 | D30: 3049 | E30: 21 | F30: 3058 | K30: 0 | L30: 222
A31: 21 | B31: 3171 | C31: 21 | D31: 3178 | E31: 21 | F31: 3196 | K31: 0 | L31: 222
A32: 21 | B32: 3310 | C32: 21 | D32: 3331 | E32: 21 | F32: 3341 | K32: 0 | L32: 222
A33: 21 | B33: 3494 | C33: 21 | D33: 3500 | E33: 21 | F33: 3514 | K33: 0 | L33: 222
A34: 12 | B34: 3607 | C34: 23 | D34: 3613 | E34: 23 | F34: 3628 | K34: 0 | L34: 122
A35: 21 | B35: 3722 | C35: 21 | D35: 3727 | E35: 21 | F35: 3731 | K35: 0 | L35: 222
A36: 12 | B36: 3820 | C36: 23 | D36: 3825 | E36: 23 | F36: 3831 | K36: 0 | L36: 122
A37: 21 | B37: 3930 | C37: 21 | D37: 3936 | E37: 21 | F37: 3942 | K37: 0 | L37: 222
A38: 12 | B38: 4032 | C38: 23 | D38: 4038 | E38: 23 | F38: 4048 | K38: 0 | L38: 122
A39: 21 | B39: 4145 | C39: 12 | D39: 4149 | E39: 23 | F39: 4155 | K39: 0 | L39: 212
A40: 12 | B40: 4247 | C40: 23 | D40: 4253 | E40: 23 | F40: 4256 | K40: 0 | L40: 122
A41: 21 | B41: 4354 | C41: 21 | D41: 4357 | E41: 21 | F41: 4361 | K41: 0 | L41: 222
A42: 21 | B42: 4488 | C42: 21 | D42: 4502 | E42: 21 | F42: 4509 | K42: 0 | L42: 222
A43: 21 | B43: 4607 | C43: 21 | D43: 4615 | E43: 21 | F43: 4627 | K43: 0 | L43: 222
A44: 21 | B44: 4749 | C44: 21 | D44: 4758 | E44: 21 | F44: 4782 | K44: 0 | L44: 222
A45: 21 | B45: 4876 | C45: 21 | D45: 4898 | E45: 21 | F45: 4911 | K45: 0 | L45: 222
A46: 21 | B46: 5003 | C46: 12 | D46: 5006 | E46: 23 | F46: 5014 | K46: 0 | L46: 212
A47: 21 | B47: 5110 | C47: 21 | D47: 5114 | E47: 12 | F47: 5116 | K47: 0 | L47: 221
A48: 21 | B48: 5213 | C48: 21 | D48: 5217 | E48: 21 | F48: 5222 | K48: 0 | L48: 222
A49: 12 | B49: 5316 | C49: 23 | D49: 5325 | E49: 23 | F49: 5330 | K49: 0 | L49: 122
A50: 21 | B50: 5426 | C50: 21 | D50: 5431 | E50: 21 | F50: 5436 | K50: 0 | L50: 222
A51: 12 | B51: 5537 | C51: 23 | D51: 5549 | E51: 14 | F51: 5557 | K51: 0 | L51: 121
A52: 21 | B52: 5656 | C52: 12 | D52: 5659 | E52: 23 | F52: 5665 | K52: 0 | L52: 212
A53: 21 | B53: 5757 | C53: 12 | D53: 5762 | E53: 14 | F53: 5765 | K53: 0 | L53: 211
A54: 21 | B54: 5917 | C54: 21 | D54: 5932 | E54: 21 | F54: 5939 | K54: 0 | L54: 222
A55: 21 | B55: 6047 | C55: 21 | D55: 6057 | E55: 21 | F55: 6066 | K55: 0 | L55: 222
A56: 21 | B56: 6222 | C56: 21 | D56: 6231 | E56: 21 | F56: 6255 | K56: 0 | L56: 222
A57: 21 | B57: 6400 | C57: 21 | D57: 6411 | E57: 21 | F57: 6420 | K57: 0 | L57: 222
A58: 21 | B58: 6523 | C58: 21 | D58: 6532 | E58: 21 | F58: 6545 | K58: 0 | L58: 222
A59: 21 | B59: 6664 | C59: 21 | D59: 6669 | E59: 21 | F59: 6692 | K59: 0 | L59: 222
A60: 21 | B60: 6815 | C60: 21 | D60: 6821 | E60: 21 | F60: 6840 | K60: 0 | L60: 222
A61: 21 | B61: 6936 | C61: 21 | D61: 6942 | E61: 21 | F61: 6953 | K61: 1 | L61: 222

Sheet !M903C30.Gus
A1: Report for:!M903C30.Gus
A2: Date: | B2: <date>
A3: Hen: | B3: <hen> | F3: Correct Sequence | G3: =Start!J2 -> 222 | P3: Total Sequences in Data | Q3: =4994-COUNTBLANK(L7:L5000) -> 61 | V3: Total Sequences in Block Data | W3: =COUNTA(L7:L16) -> 10 | AA3: Total Sequences in Block Data | AB3: =COUNTA(L17:L26) -> 10 | AF3: Total Sequences in Block Data | AG3: =COUNTA(L27:L37) -> 11 | AK3: Total Sequences in Block Data | AL3: =COUNTA(L38:L47) -> 10 | AP3: Total Sequences in Block Data | AQ3: =COUNTA(L48:L57) -> 10 | AU3: Total Sequences in Block Data | AV3: =COUNTA(L58:L67) -> 10
P4: Total Sequences in Summary | Q4: =SUM(O7:O14) -> 61 | V4: Total Sequences in Block Summary | W4: =SUM(U7:U14) -> 10 | AA4: Total Sequences in Block Summary | AB4: =SUM(Z7:Z14) -> 10 | AF4: Total Sequences in Block Summary | AG4: =SUM(AE7:AE14) -> 11 | AK4: Total Sequences in Block Summary | AL4: =SUM(AJ7:AJ14) -> 10 | AP4: Total Sequences in Block Summary | AQ4: =SUM(AO7:AO14) -> 10 | AU4: Total Sequences in Block Summary | AV4: =SUM(AT7:AT14) -> 10
T5: Block 1 | Y5: Block 2 | AD5: Block 3 | AI5: Block 4 | AN5: Block 5 | AS5: Block 6
A6: Sequence Component 1 | B6: Time 1 | C6: Sequence Component 2 | D6: Time 2 | E6: Sequence Component 3 | F6: Time 3 | G6: Sequence Component 4 | H6: Time 4 | I6: Sequence Component 5 | J6: Time 5 | K6: Correct? 0=No 1=Yes | L6: Sequence | N6: Frequency | P6: Relative Frequency | Q6: Variability | T6: Frequency | V6: Relative Frequency | W6: Variability | Y6: Frequency | AA6: Relative Frequency | AB6: Variability | AD6: Frequency | AF6: Relative Frequency | AG6: Variability | AI6: Frequency | AK6: Relative Frequency | AL6: Variability | AN6: Frequency | AP6: Relative Frequency | AQ6: Variability | AS6: Frequency | AU6: Relative Frequency | AV6: Variability
A7: 12 | B7: 8 | C7: 23 | D7: 12 | E7: 23 | F7: 19 | K7: 0 | L7: 122 | N7: 111 | O7: =COUNTIF($L$7:$L$500,N7) -> 0 | P7: =O7/$Q$4 -> 0 | Q7: =IF(P7=0,0,(P7*((LOG(P7))/LOG(2)))) -> 0 | T7: =N7 -> 111 | U7: =COUNTIF(L7:L16,T7) -> 0 | V7: =U7/(W4-U14) -> 0 | W7: =IF(V7=0,0,(V7*((LOG(V7))/LOG(2)))) -> 0 | Y7: =N7 -> 111 | Z7: =COUNTIF(L17:L26,Y7) -> 0 | AA7: =Z7/(AB4-Z14) -> 0 | AB7: =IF(AA7=0,0,(AA7*((LOG(AA7))/LOG(2)))) -> 0 | AD7: =N7 -> 111 | AE7: =COUNTIF(L27:L37,AD7) -> 0 | AF7: =AE7/(AG4-AE14) -> 0 | AG7: =IF(AF7=0,0,(AF7*((LOG(AF7))/LOG(2)))) -> 0 | AI7: =N7 -> 111 | AJ7: =COUNTIF(L38:L47,AI7) -> 0 | AK7: =AJ7/(AL4-AJ14) -> 0 | AL7: =IF(AK7=0,0,(AK7*((LOG(AK7))/LOG(2)))) -> 0 | AN7: =N7 -> 111 | AO7: =COUNTIF(L48:L57,AN7) -> 0 | AP7: =AO7/(AQ4-AO14) -> 0 | AQ7: =IF(AP7=0,0,(AP7*((LOG(AP7))/LOG(2)))) -> 0 | AS7: =N7 -> 111 | AT7: =COUNTIF(L58:L67,AS7) -> 0 | AU7: =AT7/(AV4-AT14) -> 0 | AV7: =IF(AU7=0,0,(AU7*((LOG(AU7))/LOG(2)))) -> 0
A8: 12 | B8: 111 | C8: 23 | D8: 116 | E8: 14 | F8: 122 | K8: 0 | L8: 121 | N8: 112 | O8: =COUNTIF($L$7:$L$500,N8) -> 0 | P8: =O8/$Q$4 -> 0 | Q8: =IF(P8=0,0,(P8*((LOG(P8))/LOG(2)))) -> 0 | T8: =N8 -> 112 | U8: =COUNTIF(L7:L16,T8) -> 0 | V8: =U8/(W4-U14) -> 0 | W8: =IF(V8=0,0,(V8*((LOG(V8))/LOG(2)))) -> 0 | Y8: =N8 -> 112 | Z8: =COUNTIF(L17:L26,Y8) -> 0 | AA8: =Z8/(AB4-Z14) -> 0 | AB8: =IF(AA8=0,0,(AA8*((LOG(AA8))/LOG(2)))) -> 0 | AD8: =N8 -> 112 | AE8: =COUNTIF(L27:L37,AD8) -> 0 | AF8: =AE8/(AG4-AE14) -> 0 | AG8: =IF(AF8=0,0,(AF8*((LOG(AF8))/LOG(2)))) -> 0 | AI8: =N8 -> 112 | AJ8: =COUNTIF(L38:L47,AI8) -> 0 | AK8: =AJ8/(AL4-AJ14) -> 0 | AL8: =IF(AK8=0,0,(AK8*((LOG(AK8))/LOG(2)))) -> 0 | AN8: =N8 -> 112 | AO8: =COUNTIF(L48:L57,AN8) -> 0 | AP8: =AO8/(AQ4-AO14) -> 0 | AQ8: =IF(AP8=0,0,(AP8*((LOG(AP8))/LOG(2)))) -> 0 | AS8: =N8 -> 112 | AT8: =COUNTIF(L58:L67,AS8) -> 0 | AU8: =AT8/(AV4-AT14) -> 0 | AV8: =IF(AU8=0,0,(AU8*((LOG(AU8))/LOG(2)))) -> 0
A9: 21 | B9: 227 | C9: 21 | D9: 232 | E9: 21 | F9: 238 | K9: 0 | L9: 222 | N9: 121 | O9: =COUNTIF($L$7:$L$500,N9) -> 1 | P9: =O9/$Q$4 -> 0.01639344262 | Q9: =IF(P9=0,0,(P9*((LOG(P9))/LOG(2)))) -> -0.09722520226 | T9: =N9 -> 121 | U9: =COUNTIF(L7:L16,T9) -> 1 | V9: =U9/(W4-U14) -> 0.5 | W9: =IF(V9=0,0,(V9*((LOG(V9))/LOG(2)))) -> -0.5 | Y9: =N9 -> 121 | Z9: =COUNTIF(L17:L26,Y9) -> 0 | AA9: =Z9/(AB4-Z14) -> 0 | AB9: =IF(AA9=0,0,(AA9*((LOG(AA9))/LOG(2)))) -> 0 | AD9: =N9 -> 121 | AE9: =COUNTIF(L27:L37,AD9) -> 0 | AF9: =AE9/(AG4-AE14) -> 0 | AG9: =IF(AF9=0,0,(AF9*((LOG(AF9))/LOG(2)))) -> 0 | AI9: =N9 -> 121 | AJ9: =COUNTIF(L38:L47,AI9) -> 0 | AK9: =AJ9/(AL4-AJ14) -> 0 | AL9: =IF(AK9=0,0,(AK9*((LOG(AK9))/LOG(2)))) -> 0 | AN9: =N9 -> 121 | AO9: =COUNTIF(L48:L57,AN9) -> 0 | AP9: =AO9/(AQ4-AO14) -> 0 | AQ9: =IF(AP9=0,0,(AP9*((LOG(AP9))/LOG(2)))) -> 0 | AS9: =N9 -> 121 | AT9: =COUNTIF(L58:L67,AS9) -> 0 | AU9: =AT9/(AV4-AT14) -> 0 | AV9: =IF(AU9=0,0,(AU9*((LOG(AU9))/LOG(2)))) -> 0
A10: 21 | B10: 360 | C10: 21 | D10: 395 | E10: 21 | F10: 404 | K10: 0 | L10: 222 | N10: 122 | O10: =COUNTIF($L$7:$L$500,N10) -> 11 | P10: =O10/$Q$4 -> 0.1803278689 | Q10: =IF(P10=0,0,(P10*((LOG(P10))/LOG(2)))) -> -0.4456452936 | T10: =N10 -> 122 | U10: =COUNTIF(L7:L16,T10) -> 1 | V10: =U10/(W4-U14) -> 0.5 | W10: =IF(V10=0,0,(V10*((LOG(V10))/LOG(2)))) -> -0.5 | Y10: =N10 -> 122 | Z10: =COUNTIF(L17:L26,Y10) -> 0 | AA10: =Z10/(AB4-Z14) -> 0 | AB10: =IF(AA10=0,0,(AA10*((LOG(AA10))/LOG(2)))) -> 0 | AD10: =N10 -> 122 | AE10: =COUNTIF(L27:L37,AD10) -> 3 | AF10: =AE10/(AG4-AE14) -> 0.5 | AG10: =IF(AF10=0,0,(AF10*((LOG(AF10))/LOG(2)))) -> -0.5 | AI10: =N10 -> 122 | AJ10: =COUNTIF(L38:L47,AI10) -> 2 | AK10: =AJ10/(AL4-AJ14) -> 0.5 | AL10: =IF(AK10=0,0,(AK10*((LOG(AK10))/LOG(2)))) -> -0.5 | AN10: =N10 -> 122 | AO10: =COUNTIF(L48:L57,AN10) -> 2 | AP10: =AO10/(AQ4-AO14) -> 0.4 | AQ10: =IF(AP10=0,0,(AP10*((LOG(AP10))/LOG(2)))) -> -0.528771238 | AS10: =N10 -> 122 | AT10: =COUNTIF(L58:L67,AS10) -> 3 | AU10: =AT10/(AV4-AT14) -> 0.75 | AV10: =IF(AU10=0,0,(AU10*((LOG(AU10))/LOG(2)))) -> -0.3112781245
A11: 21 | B11: 504 | C11: 21 | D11: 528 | E11: 21 | F11: 536 | K11: 0 | L11: 222 | N11: 211 | O11: =COUNTIF($L$7:$L$500,N11) -> 0 | P11: =O11/$Q$4 -> 0 | Q11: =IF(P11=0,0,(P11*((LOG(P11))/LOG(2)))) -> 0 | T11: =N11 -> 211 | U11: =COUNTIF(L7:L16,T11) -> 0 | V11: =U11/(W4-U14) -> 0 | W11: =IF(V11=0,0,(V11*((LOG(V11))/LOG(2)))) -> 0 | Y11: =N11 -> 211 | Z11: =COUNTIF(L17:L26,Y11) -> 0 | AA11: =Z11/(AB4-Z14) -> 0 | AB11: =IF(AA11=0,0,(AA11*((LOG(AA11))/LOG(2)))) -> 0 | AD11: =N11 -> 211 | AE11: =COUNTIF(L27:L37,AD11) -> 0 | AF11: =AE11/(AG4-AE14) -> 0 | AG11: =IF(AF11=0,0,(AF11*((LOG(AF11))/LOG(2)))) -> 0 | AI11: =N11 -> 211 | AJ11: =COUNTIF(L38:L47,AI11) -> 0 | AK11: =AJ11/(AL4-AJ14) -> 0 | AL11: =IF(AK11=0,0,(AK11*((LOG(AK11))/LOG(2)))) -> 0 | AN11: =N11 -> 211 | AO11: =COUNTIF(L48:L57,AN11) -> 0 | AP11: =AO11/(AQ4-AO14) -> 0 | AQ11: =IF(AP11=0,0,(AP11*((LOG(AP11))/LOG(2)))) -> 0 | AS11: =N11 -> 211 | AT11: =COUNTIF(L58:L67,AS11) -> 0 | AU11: =AT11/(AV4-AT14) -> 0 | AV11: =IF(AU11=0,0,(AU11*((LOG(AU11))/LOG(2)))) -> 0
A12: 21 | B12: 652 | C12: 21 | D12: 658 | E12: 21 | F12: 666 | K12: 0 | L12: 222 | N12: 212 | O12: =COUNTIF($L$7:$L$500,N12) -> 5 | P12: =O12/$Q$4 -> 0.08196721311 | Q12: =IF(P12=0,0,(P12*((LOG(P12))/LOG(2)))) -> -0.2958040363 | T12: =N12 -> 212 | U12: =COUNTIF(L7:L16,T12) -> 0 | V12: =U12/(W4-U14) -> 0 | W12: =IF(V12=0,0,(V12*((LOG(V12))/LOG(2)))) -> 0 | Y12: =N12 -> 212 | Z12: =COUNTIF(L17:L26,Y12) -> 1 | AA12: =Z12/(AB4-Z14) -> 1 | AB12: =IF(AA12=0,0,(AA12*((LOG(AA12))/LOG(2)))) -> 0 | AD12: =N12 -> 212 | AE12: =COUNTIF(L27:L37,AD12) -> 1 | AF12: =AE12/(AG4-AE14) -> 0.1666666667 | AG12: =IF(AF12=0,0,(AF12*((LOG(AF12))/LOG(2)))) -> -0.4308270835 | AI12: =N12 -> 212 | AJ12: =COUNTIF(L38:L47,AI12) -> 1 | AK12: =AJ12/(AL4-AJ14) -> 0.25 | AL12: =IF(AK12=0,0,(AK12*((LOG(AK12))/LOG(2)))) -> -0.5 | AN12: =N12 -> 212 | AO12: =COUNTIF(L48:L57,AN12) -> 2 | AP12: =AO12/(AQ4-AO14) -> 0.4 | AQ12: =IF(AP12=0,0,(AP12*((LOG(AP12))/LOG(2)))) -> -0.528771238 | AS12: =N12 -> 212 | AT12: =COUNTIF(L58:L67,AS12) -> 0 | AU12: =AT12/(AV4-AT14) -> 0 | AV12: =IF(AU12=0,0,(AU12*((LOG(AU12))/LOG(2)))) -> 0
A13: 21 | B13: 779 | C13: 21 | D13: 799 | E13: 21 | F13: 809 | K13: 0 | L13: 222 | N13: 221 | O13: =COUNTIF($L$7:$L$500,N13) -> 5 | P13: =O13/$Q$4 -> 0.08196721311 | Q13: =IF(P13=0,0,(P13*((LOG(P13))/LOG(2)))) -> -0.2958040363 | T13: =N13 -> 221 | U13: =COUNTIF(L7:L16,T13) -> 0 | V13: =U13/(W4-U14) -> 0 | W13: =IF(V13=0,0,(V13*((LOG(V13))/LOG(2)))) -> 0 | Y13: =N13 -> 221 | Z13: =COUNTIF(L17:L26,Y13) -> 0 | AA13: =Z13/(AB4-Z14) -> 0 | AB13: =IF(AA13=0,0,(AA13*((LOG(AA13))/LOG(2)))) -> 0 | AD13: =N13 -> 221 | AE13: =COUNTIF(L27:L37,AD13) -> 2 | AF13: =AE13/(AG4-AE14) -> 0.3333333333 | AG13: =IF(AF13=0,0,(AF13*((LOG(AF13))/LOG(2)))) -> -0.5283208336 | AI13: =N13 -> 221 | AJ13: =COUNTIF(L38:L47,AI13) -> 1 | AK13: =AJ13/(AL4-AJ14) -> 0.25 | AL13: =IF(AK13=0,0,(AK13*((LOG(AK13))/LOG(2)))) -> -0.5 | AN13: =N13 -> 221 | AO13: =COUNTIF(L48:L57,AN13) -> 1 | AP13: =AO13/(AQ4-AO14) -> 0.2 | AQ13: =IF(AP13=0,0,(AP13*((LOG(AP13))/LOG(2)))) -> -0.464385619 | AS13: =N13 -> 221 | AT13: =COUNTIF(L58:L67,AS13) -> 1 | AU13: =AT13/(AV4-AT14) -> 0.25 | AV13: =IF(AU13=0,0,(AU13*((LOG(AU13))/LOG(2)))) -> -0.5
A14: 21 | B14: 1057 | C14: 21 | D14: 1066 | E14: 21 | F14: 1081 | K14: 0 | L14: 222 | N14: 222 | O14: =COUNTIF($L$7:$L$500,N14) -> 39 | P14: =O14/$Q$4 -> 0.6393442623 | Q14: =IF(P14=0,0,(P14*((LOG(P14))/LOG(2)))) -> -0.4125913054 | T14: =N14 -> 222 | U14: =COUNTIF(L7:L16,T14) -> 8 | Y14: =N14 -> 222 | Z14: =COUNTIF(L17:L26,Y14) -> 9 | AD14: =N14 -> 222 | AE14: =COUNTIF(L27:L37,AD14) -> 5 | AI14: =N14 -> 222 | AJ14: =COUNTIF(L38:L47,AI14) -> 6 | AN14: =N14 -> 222 | AO14: =COUNTIF(L48:L57,AN14) -> 5 | AS14: =N14 -> 222 | AT14: =COUNTIF(L58:L67,AS14) -> 6
A15: 21 | B15: 1213 | C15: 21 | D15: 1252 | E15: 21 | F15: 1261 | K15: 0 | L15: 222 | P15: =SUM(P7:P14) -> 1 | Q15: =-SUM(Q7:Q14) -> 1.547069874 | V15: =SUM(V7:V14) -> 1 | W15: =-SUM(W7:W14) -> 1 | AA15: =SUM(AA7:AA14) -> 1 | AB15: =-SUM(AB7:AB14) -> 0 | AF15: =SUM(AF7:AF14) -> 1 | AG15: =-SUM(AG7:AG14) -> 1.459147917 | AK15: =SUM(AK7:AK14) -> 1 | AL15: =-SUM(AL7:AL14) -> 1.5 | AP15: =SUM(AP7:AP14) -> 1 | AQ15: =-SUM(AQ7:AQ14) -> 1.521928095 | AU15: =SUM(AU7:AU14) -> 1 | AV15: =-SUM(AV7:AV14) -> 0.8112781245
A16: 21 | B16: 1386 | C16: 21 | D16: 1421 | E16: 21 | F16: 1430 | K16: 0 | L16: 222 | P16: U= | Q16: =Q15/(LOG(Q4)/LOG(2)) -> 0.2608562453 | V16: U1= | W16: =W15/(LOG(W4)/LOG(2)) -> 0.3010299957 | AA16: U2= | AB16: =AB15/(LOG(AB4)/LOG(2)) -> 0 | AF16: U3= | AG16: =AG15/(LOG(AG4)/LOG(2)) -> 0.4217883392 | AK16: U4= | AL16: =AL15/(LOG(AL4)/LOG(2)) -> 0.4515449935 | AP16: U5= | AQ16: =AQ15/(LOG(AQ4)/LOG(2)) -> 0.4581460078 | AU16: U6= | AV16: =AV15/(LOG(AV4)/LOG(2)) -> 0.2442190503
A17: 21 | B17: 2574 | C17: 21 | D17: 2604 | E17: 21 | F17: 2633 | K17: 0 | L17: 222
A18: 21 | B18: 2725 | C18: 21 | D18: 2773 | E18: 21 | F18: 2785 | K18: 0 | L18: 222
A19: 21 | B19: 2899 | C19: 21 | D19: 2908 | E19: 21 | F19: 2927 | K19: 0 | L19: 222 | N19: Total Target Seq
A20: 21 | B20: 3035 | C20: 21 | D20: 3054 | E20: 21 | F20: 3062 | K20: 0 | L20: 222 | N20: =COUNTIF(L7:L67,G3) -> 39 | P20: 10 | Q20: 10 | R20: 11 | S20: 10 | T20: 10 | U20: 10
A21: 21 | B21: 3169 | C21: 21 | D21: 3186 | E21: 21 | F21: 3198 | K21: 0 | L21: 222 | P21: % of reinforcement given in 6 equal intervals based on number of trials
A22: 21 | B22: 3374 | C22: 21 | D22: 3403 | E22: 21 | F22: 3412 | K22: 0 | L22: 222 | P22: %_1 | Q22: %_2 | R22: %_3 | S22: %_4 | T22: %_5 | U22: %_6
A23: 21 | B23: 3564 | C23: 21 | D23: 3585 | E23: 21 | F23: 3597 | K23: 0 | L23: 222 | O23: target sequence | P23: =$G$3 -> 222 | Q23: =$G$3 -> 222 | R23: =$G$3 -> 222 | S23: =$G$3 -> 222 | T23: =$G$3 -> 222 | U23: =$G$3 -> 222
A24: 21 | B24: 3926 | C24: 21 | D24: 3935 | E24: 21 | F24: 3955 | K24: 0 | L24: 222 | O24: total reinforcement | P24: =U14 -> 8 | Q24: =Z14 -> 9 | R24: =AE14 -> 5 | S24: =AJ14 -> 6 | T24: =AO14 -> 5 | U24: =AT14 -> 6
A25: 21 | B25: 4603 | C25: 21 | D25: 4626 | E25: 21 | F25: 4655 | K25: 0 | L25: 222 | O25: % target
A26: 21 | B26: 4742 | C26: 12 | D26: 4745 | E26: 23 | F26: 4750 | K26: 0 | L26: 212 | O26: CCRF
A27: 21 | B27: 4846 | C27: 12 | D27: 4853 | E27: 23 | F27: 4860 | K27: 0 | L27: 212 | O27: % CCRf
A28: 12 | B28: 4961 | C28: 23 | D28: 4968 | E28: 23 | F28: 4980 | K28: 0 | L28: 122 | O28: average response rate | P28: =F16/P20 -> 143 | Q28: =(F26-F16)/Q20 -> 332 | R28: =(F37-F26)/R20 -> 195.8181818 | S28: =(F47-F37)/S20 -> 159.5 | T28: =(F57-F47)/T20 -> 145.1 | U28: =(F67-F57)/U20 -> 121.9
A29: 12 | B29: 5072 | C29: 23 | D29: 5078 | E29: 23 | F29: 5086 | K29: 0 | L29: 122
A30: 21 | B30: 5183 | C30: 21 | D30: 5187 | E30: 21 | F30: 5190 | K30: 0 | L30: 222
A31: 21 | B31: 5680 | C31: 21 | D31: 5687 | E31: 21 | F31: 5716 | K31: 0 | L31: 222
A32: 21 | B32: 5859 | C32: 21 | D32: 5880 | E32: 21 | F32: 5889 | K32: 0 | L32: 222
A33: 12 | B33: 5989 | C33: 23 | D33: 5993 | E33: 23 | F33: 5998 | K33: 0 | L33: 122
A34: 21 | B34: 6095 | C34: 21 | D34: 6099 | E34: 12 | F34: 6102 | K34: 0 | L34: 221
A35: 21 | B35: 6197 | C35: 21 | D35: 6200 | E35: 12 | F35: 6204 | K35: 0 | L35: 221
A36: 21 | B36: 6301 | C36: 21 | D36: 6304 | E36: 21 | F36: 6308 | K36: 0 | L36: 222
A37: 21 | B37: 6873 | C37: 21 | D37: 6883 | E37: 21 | F37: 6904 | K37: 0 | L37: 222
A38: 21 | B38: 7047 | C38: 21 | D38: 7060 | E38: 21 | F38: 7071 | K38: 0 | L38: 222
A39: 21 | B39: 7176 | C39: 12 | D39: 7183 | E39: 23 | F39: 7193 | K39: 0 | L39: 212
A40: 21 | B40: 7288 | C40: 21 | D40: 7294 | E40: 21 | F40: 7303 | K40: 0 | L40: 222
A41: 12 | B41: 7413 | C41: 23 | D41: 7417 | E41: 23 | F41: 7423 | K41: 0 | L41: 122
A42: 21 | B42: 7520 | C42: 21 | D42: 7524 | E42: 12 | F42: 7528 | K42: 0 | L42: 221
A43: 21 | B43: 7624 | C43: 21 | D43: 7626 | E43: 21 | F43: 7628 | K43: 0 | L43: 222
A44: 21 | B44: 8087 | C44: 21 | D44: 8091 | E44: 21 | F44: 8099 | K44: 0 | L44: 222
A45: 21 | B45: 8193 | C45: 21 | D45: 8212 | E45: 21 | F45: 8231 | K45: 0 | L45: 222
A46: 21 | B46: 8378 | C46: 21 | D46: 8389 | E46: 21 | F46: 8400 | K46: 0 | L46: 222
A47: 12 | B47: 8489 | C47: 23 | D47: 8493 | E47: 23 | F47: 8499 | K47: 0 | L47: 122
A48: 21 | B48: 8804 | C48: 21 | D48: 8808 | E48: 21 | F48: 8816 | K48: 0 | L48: 222
A49: 21 | B49: 8957 | C49: 21 | D49: 8962 | E49: 21 | F49: 8969 | K49: 0 | L49: 222
A50: 21 | B50: 9136 | C50: 21 | D50: 9141 | E50: 12 | F50: 9146 | K50: 0 | L50: 221
A51: 21 | B51: 9247 | C51: 12 | D51: 9249 | E51: 23 | F51: 9253 | K51: 0 | L51: 212
A52: 12 | B52: 9345 | C52: 23 | D52: 9351 | E52: 23 | F52: 9359 | K52: 0 | L52: 122
A53: 21 | B53: 9455 | C53: 21 | D53: 9459 | E53: 21 | F53: 9464 | K53: 0 | L53: 222
A54: 21 | B54: 9573 | C54: 12 | D54: 9576 | E54: 23 | F54: 9582 | K54: 0 | L54: 212
A55: 21 | B55: 9678 | C55: 21 | D55: 9686 | E55: 21 | F55: 9691 | K55: 0 | L55: 222
A56: 12 | B56: 9832 | C56: 23 | D56: 9840 | E56: 23 | F56: 9845 | K56: 0 | L56: 122
A57: 21 | B57: 9941 | C57: 21 | D57: 9946 | E57: 21 | F57: 9950 | K57: 0 | L57: 222
A58: 21 | B58: 10046 | C58: 21 | D58: 10058 | E58: 21 | F58: 10065 | K58: 0 | L58: 222
A59: 21 | B59: 10157 | C59: 21 | D59: 10160 | E59: 21 | F59: 10166 | K59: 0 | L59: 222
A60: 21 | B60: 10351 | C60: 21 | D60: 10362 | E60: 21 | F60: 10370 | K60: 0 | L60: 222
A61: 21 | B61: 10467 | C61: 21 | D61: 10503 | E61: 21 | F61: 10513 | K61: 0 | L61: 222
A62: 12 | B62: 10604 | C62: 23 | D62: 10637 | E62: 23 | F62: 10654 | K62: 0 | L62: 122
A63: 21 | B63: 10751 | C63: 21 | D63: 10755 | E63: 12 | F63: 10757 | K63: 0 | L63: 221
A64: 21 | B64: 10853 | C64: 21 | D64: 10857 | E64: 21 | F64: 10863 | K64: 0 | L64: 222
A65: 12 | B65: 10953 | C65: 23 | D65: 10964 | E65: 23 | F65: 10970 | K65: 0 | L65: 122
A66: 12 | B66: 11063 | C66: 23 | D66: 11065 | E66: 23 | F66: 11068 | K66: 0 | L66: 122
A67: 21 | B67: 11163 | C67: 21 | D67: 11166 | E67: 21 | F67: 11169 | K67: 1 | L67: 222

Sheet !M904A40.Gus
A1: Report for:!M904A40.Gus
A2: Date: | B2: <date>
A3: Hen: | B3: <hen> | F3: Correct Sequence | G3: =Start!J2 -> 222 | P3: Total Sequences in Data | Q3: =4994-COUNTBLANK(L7:L5000) -> 53 | V3: Total Sequences in Block Data | W3: =COUNTA(L7:L15) -> 9 | AA3: Total Sequences in Block Data | AB3: =COUNTA(L16:L24) -> 9 | AF3: Total Sequences in Block Data | AG3: =COUNTA(L25:L32) -> 8 | AK3: Total Sequences in Block Data | AL3: =COUNTA(L33:L41) -> 9 | AP3: Total Sequences in Block Data | AQ3: =COUNTA(L42:L50) -> 9 | AU3: Total Sequences in Block Data | AV3: =COUNTA(L51:L59) -> 9
P4: Total Sequences in Summary | Q4: =SUM(O7:O14) -> 53 | V4: Total Sequences in Block Summary | W4: =SUM(U7:U14) -> 9 | AA4: Total Sequences in Block Summary | AB4: =SUM(Z7:Z14) -> 9 | AF4: Total Sequences in Block Summary | AG4: =SUM(AE7:AE14) -> 8 | AK4: Total Sequences in Block Summary | AL4: =SUM(AJ7:AJ14) -> 9 | AP4: Total Sequences in Block Summary | AQ4: =SUM(AO7:AO14) -> 9 | AU4: Total Sequences in Block Summary | AV4: =SUM(AT7:AT14) -> 9
T5: Block 1 | Y5: Block 2 | AD5: Block 3 | AI5: Block 4 | AN5: Block 5 | AS5: Block 6
A6: Sequence Component 1 | B6: Time 1 | C6: Sequence Component 2 | D6: Time 2 | E6: Sequence Component 3 | F6: Time 3 | G6: Sequence Component 4 | H6: Time 4 | I6: Sequence Component 5 | J6: Time 5 | K6: Correct? 0=No 1=Yes | L6: Sequence | N6: Frequency | P6: Relative Frequency | Q6: Variability | T6: Frequency | V6: Relative Frequency | W6: Variability | Y6: Frequency | AA6: Relative Frequency | AB6: Variability | AD6: Frequency | AF6: Relative Frequency | AG6: Variability | AI6: Frequency | AK6: Relative Frequency | AL6: Variability | AN6: Frequency | AP6: Relative Frequency | AQ6: Variability | AS6: Frequency | AU6: Relative Frequency | AV6: Variability
A7: 21 | B7: 83 | C7: 21 | D7: 88 | E7: 21 | F7: 98 | K7: 0 | L7: 222 | N7: 111 | O7: =COUNTIF($L$7:$L$500,N7) -> 0 | P7: =O7/$Q$4 -> 0 | Q7: =IF(P7=0,0,(P7*((LOG(P7))/LOG(2)))) -> 0 | T7: =N7 -> 111 | U7: =COUNTIF(L7:L15,T7) -> 0 | V7: =U7/(W4-U14) -> 0 | W7: =IF(V7=0,0,(V7*((LOG(V7))/LOG(2)))) -> 0 | Y7: =N7 -> 111 | Z7: =COUNTIF(L16:L24,Y7) -> 0 | AA7: =Z7/(AB4-Z14) -> 0 | AB7: =IF(AA7=0,0,(AA7*((LOG(AA7))/LOG(2)))) -> 0 | AD7: =N7 -> 111 | AE7: =COUNTIF(L25:L32,AD7) -> 0 | AF7: =AE7/(AG4-AE14) -> 0 | AG7: =IF(AF7=0,0,(AF7*((LOG(AF7))/LOG(2)))) -> 0 | AI7: =N7 -> 111 | AJ7: =COUNTIF(L33:L41,AI7) -> 0 | AK7: =AJ7/(AL4-AJ14) -> 0 | AL7: =IF(AK7=0,0,(AK7*((LOG(AK7))/LOG(2)))) -> 0 | AN7: =N7 -> 111 | AO7: =COUNTIF(L42:L50,AN7) -> 0 | AP7: =AO7/(AQ4-AO14) -> 0 | AQ7: =IF(AP7=0,0,(AP7*((LOG(AP7))/LOG(2)))) -> 0 | AS7: =N7 -> 111 | AT7: =COUNTIF(L51:L59,AS7) -> 0 | AU7: =AT7/(AV4-AT14) -> 0 | AV7: =IF(AU7=0,0,(AU7*((LOG(AU7))/LOG(2)))) -> 0
A8: 12 | B8: 199 | C8: 23 | D8: 217 | E8: 23 | F8: 222 | K8: 0 | L8: 122 | N8: 112 | O8: =COUNTIF($L$7:$L$500,N8) -> 0 | P8: =O8/$Q$4 -> 0 | Q8: =IF(P8=0,0,(P8*((LOG(P8))/LOG(2)))) -> 0 | T8: =N8 -> 112 | U8: =COUNTIF(L7:L15,T8) -> 0 | V8: =U8/(W4-U14) -> 0 | W8: =IF(V8=0,0,(V8*((LOG(V8))/LOG(2)))) -> 0 | Y8: =N8 -> 112 | Z8: =COUNTIF(L16:L24,Y8) -> 0 | AA8: =Z8/(AB4-Z14) -> 0 | AB8: =IF(AA8=0,0,(AA8*((LOG(AA8))/LOG(2)))) -> 0 | AD8: =N8 -> 112 | AE8: =COUNTIF(L25:L32,AD8) -> 0 | AF8: =AE8/(AG4-AE14) -> 0 | AG8: =IF(AF8=0,0,(AF8*((LOG(AF8))/LOG(2)))) -> 0 | AI8: =N8 -> 112 | AJ8: =COUNTIF(L33:L41,AI8) -> 0 | AK8: =AJ8/(AL4-AJ14) -> 0 | AL8: =IF(AK8=0,0,(AK8*((LOG(AK8))/LOG(2)))) -> 0 | AN8: =N8 -> 112 | AO8: =COUNTIF(L42:L50,AN8) -> 0 | AP8: =AO8/(AQ4-AO14) -> 0 | AQ8: =IF(AP8=0,0,(AP8*((LOG(AP8))/LOG(2)))) -> 0 | AS8: =N8 -> 112 | AT8: =COUNTIF(L51:L59,AS8) -> 0 | AU8: =AT8/(AV4-AT14) -> 0 | AV8: =IF(AU8=0,0,(AU8*((LOG(AU8))/LOG(2)))) -> 0
A9: 21 | B9: 320 | C9: 21 | D9: 324 | E9: 21 | F9: 331 | K9: 0 | L9: 222 | N9: 121 | O9: =COUNTIF($L$7:$L$500,N9) -> 0 | P9: =O9/$Q$4 -> 0 | Q9: =IF(P9=0,0,(P9*((LOG(P9))/LOG(2)))) -> 0 | T9: =N9 -> 121 | U9: =COUNTIF(L7:L15,T9) -> 0 | V9: =U9/(W4-U14) -> 0 | W9: =IF(V9=0,0,(V9*((LOG(V9))/LOG(2)))) -> 0 | Y9: =N9 -> 121 | Z9: =COUNTIF(L16:L24,Y9) -> 0 | AA9: =Z9/(AB4-Z14) -> 0 | AB9: =IF(AA9=0,0,(AA9*((LOG(AA9))/LOG(2)))) -> 0 | AD9: =N9 -> 121 | AE9: =COUNTIF(L25:L32,AD9) -> 0 | AF9: =AE9/(AG4-AE14) -> 0 | AG9: =IF(AF9=0,0,(AF9*((LOG(AF9))/LOG(2)))) -> 0 | AI9: =N9 -> 121 | AJ9: =COUNTIF(L33:L41,AI9) -> 0 | AK9: =AJ9/(AL4-AJ14) -> 0 | AL9: =IF(AK9=0,0,(AK9*((LOG(AK9))/LOG(2)))) -> 0 | AN9: =N9 -> 121 | AO9: =COUNTIF(L42:L50,AN9) -> 0 | AP9: =AO9/(AQ4-AO14) -> 0 | AQ9: =IF(AP9=0,0,(AP9*((LOG(AP9))/LOG(2)))) -> 0 | AS9: =N9 -> 121 | AT9: =COUNTIF(L51:L59,AS9) -> 0 | AU9: =AT9/(AV4-AT14) -> 0 | AV9: =IF(AU9=0,0,(AU9*((LOG(AU9))/LOG(2)))) -> 0
A10: 21 | B10: 515 | C10: 21 | D10: 552 | E10: 21 | F10: 561 | K10: 0 | L10: 222 | N10: 122 | O10: =COUNTIF($L$7:$L$500,N10) -> 6 | P10: =O10/$Q$4 -> 0.1132075472 | Q10: =IF(P10=0,0,(P10*((LOG(P10))/LOG(2)))) -> -0.3558065608 | T10: =N10 -> 122 | U10: =COUNTIF(L7:L15,T10) -> 1 | V10: =U10/(W4-U14) -> 1 | W10: =IF(V10=0,0,(V10*((LOG(V10))/LOG(2)))) -> 0 | Y10: =N10 -> 122 | Z10: =COUNTIF(L16:L24,Y10) -> 0 | AA10: =Z10/(AB4-Z14) -> 0 | AB10: =IF(AA10=0,0,(AA10*((LOG(AA10))/LOG(2)))) -> 0 | AD10: =N10 -> 122 | AE10: =COUNTIF(L25:L32,AD10) -> 0 | AF10: =AE10/(AG4-AE14) -> 0 | AG10: =IF(AF10=0,0,(AF10*((LOG(AF10))/LOG(2)))) -> 0 | AI10: =N10 -> 122 | AJ10: =COUNTIF(L33:L41,AI10) -> 1 | AK10: =AJ10/(AL4-AJ14) -> 0.3333333333 | AL10: =IF(AK10=0,0,(AK10*((LOG(AK10))/LOG(2)))) -> -0.5283208336 | AN10: =N10 -> 122 | AO10: =COUNTIF(L42:L50,AN10) -> 2 | AP10: =AO10/(AQ4-AO14) -> 0.4 | AQ10: =IF(AP10=0,0,(AP10*((LOG(AP10))/LOG(2)))) -> -0.528771238 | AS10: =N10 -> 122 | AT10: =COUNTIF(L51:L59,AS10) -> 2 | AU10: =AT10/(AV4-AT14) -> 0.6666666667 | AV10: =IF(AU10=0,0,(AU10*((LOG(AU10))/LOG(2)))) -> -0.3899750005
A11: 21 | B11: 674 | C11: 21 | D11: 682 | E11: 21 | F11: 695 | K11: 0 | L11: 222 | N11: 211 | O11: =COUNTIF($L$7:$L$500,N11) -> 0 | P11: =O11/$Q$4 -> 0 | Q11: =IF(P11=0,0,(P11*((LOG(P11))/LOG(2)))) -> 0 | T11: =N11 -> 211 | U11: =COUNTIF(L7:L15,T11) -> 0 | V11: =U11/(W4-U14) -> 0 | W11: =IF(V11=0,0,(V11*((LOG(V11))/LOG(2)))) -> 0 | Y11: =N11 -> 211 | Z11: =COUNTIF(L16:L24,Y11) -> 0 | AA11: =Z11/(AB4-Z14) -> 0 | AB11: =IF(AA11=0,0,(AA11*((LOG(AA11))/LOG(2)))) -> 0 | AD11: =N11 -> 211 | AE11: =COUNTIF(L25:L32,AD11) -> 0 | AF11: =AE11/(AG4-AE14) -> 0 | AG11: =IF(AF11=0,0,(AF11*((LOG(AF11))/LOG(2)))) -> 0 | AI11: =N11 -> 211 | AJ11: =COUNTIF(L33:L41,AI11) -> 0 | AK11: =AJ11/(AL4-AJ14) -> 0 | AL11: =IF(AK11=0,0,(AK11*((LOG(AK11))/LOG(2)))) -> 0 | AN11: =N11 -> 211 | AO11: =COUNTIF(L42:L50,AN11) -> 0 | AP11: =AO11/(AQ4-AO14) -> 0 | AQ11: =IF(AP11=0,0,(AP11*((LOG(AP11))/LOG(2)))) -> 0 | AS11: =N11 -> 211 | AT11: =COUNTIF(L51:L59,AS11) -> 0 | AU11: =AT11/(AV4-AT14) -> 0 | AV11: =IF(AU11=0,0,(AU11*((LOG(AU11))/LOG(2)))) -> 0
A12: 21 | B12: 917 | C12: 21 | D12: 931 | E12: 21 | F12: 946 | K12: 0 | L12: 222 | N12: 212 | O12: =COUNTIF($L$7:$L$500,N12) -> 3 | P12: =O12/$Q$4 -> 0.05660377358 | Q12: =IF(P12=0,0,(P12*((LOG(P12))/LOG(2)))) -> -0.234507054 | T12: =N12 -> 212 | U12: =COUNTIF(L7:L15,T12) -> 0 | V12: =U12/(W4-U14) -> 0 | W12: =IF(V12=0,0,(V12*((LOG(V12))/LOG(2)))) -> 0 | Y12: =N12 -> 212 | Z12: =COUNTIF(L16:L24,Y12) -> 0 | AA12: =Z12/(AB4-Z14) -> 0 | AB12: =IF(AA12=0,0,(AA12*((LOG(AA12))/LOG(2)))) -> 0 | AD12: =N12 -> 212 | AE12: =COUNTIF(L25:L32,AD12) -> 1 | AF12: =AE12/(AG4-AE14) -> 1 | AG12: =IF(AF12=0,0,(AF12*((LOG(AF12))/LOG(2)))) -> 0 | AI12: =N12 -> 212 | AJ12: =COUNTIF(L33:L41,AI12) -> 1 | AK12: =AJ12/(AL4-AJ14) -> 0.3333333333 | AL12: =IF(AK12=0,0,(AK12*((LOG(AK12))/LOG(2)))) -> -0.5283208336 | AN12: =N12 -> 212 | AO12: =COUNTIF(L42:L50,AN12) -> 1 | AP12: =AO12/(AQ4-AO14) -> 0.2 | AQ12: =IF(AP12=0,0,(AP12*((LOG(AP12))/LOG(2)))) -> -0.464385619 | AS12: =N12 -> 212 | AT12: =COUNTIF(L51:L59,AS12) -> 0 | AU12: =AT12/(AV4-AT14) -> 0 | AV12: =IF(AU12=0,0,(AU12*((LOG(AU12))/LOG(2)))) -> 0
A13: 21 | B13: 1464 | C13: 21 | D13: 1491 | E13: 21 | F13: 1531 | K13: 0 | L13: 222 | N13: 221 | O13: =COUNTIF($L$7:$L$500,N13) -> 5 | P13: =O13/$Q$4 -> 0.09433962264 | Q13: =IF(P13=0,0,(P13*((LOG(P13))/LOG(2)))) -> -0.3213200339 | T13: =N13 -> 221 | U13: =COUNTIF(L7:L15,T13) -> 0 | V13: =U13/(W4-U14) -> 0 | W13: =IF(V13=0,0,(V13*((LOG(V13))/LOG(2)))) -> 0 | Y13: =N13 -> 221 | Z13: =COUNTIF(L16:L24,Y13) -> 1 | AA13: =Z13/(AB4-Z14) -> 1 | AB13: =IF(AA13=0,0,(AA13*((LOG(AA13))/LOG(2)))) -> 0 | AD13: =N13 -> 221 | AE13: =COUNTIF(L25:L32,AD13) -> 0 | AF13: =AE13/(AG4-AE14) -> 0 | AG13: =IF(AF13=0,0,(AF13*((LOG(AF13))/LOG(2)))) -> 0 | AI13: =N13 -> 221 | AJ13: =COUNTIF(L33:L41,AI13) -> 1 | AK13: =AJ13/(AL4-AJ14) -> 0.3333333333 | AL13: =IF(AK13=0,0,(AK13*((LOG(AK13))/LOG(2)))) -> -0.5283208336 | AN13: =N13 -> 221 | AO13: =COUNTIF(L42:L50,AN13) -> 2 | AP13: =AO13/(AQ4-AO14) -> 0.4 | AQ13: =IF(AP13=0,0,(AP13*((LOG(AP13))/LOG(2)))) -> -0.528771238 | AS13: =N13 -> 221 | AT13: =COUNTIF(L51:L59,AS13) -> 1 | AU13: =AT13/(AV4-AT14) -> 0.3333333333 | AV13: =IF(AU13=0,0,(AU13*((LOG(AU13))/LOG(2)))) -> -0.5283208336
A14: 21 | B14: 1649 | C14: 21 | D14: 1661 | E14: 21 | F14: 1676 | K14: 0 | L14: 222 | N14: 222 | O14: =COUNTIF($L$7:$L$500,N14) -> 39 | P14: =O14/$Q$4 -> 0.7358490566 | Q14: =IF(P14=0,0,(P14*((LOG(P14))/LOG(2)))) -> -0.3256266263 | T14: =N14 -> 222 | U14: =COUNTIF(L7:L15,T14) -> 8 | Y14: =N14 -> 222 | Z14: =COUNTIF(L16:L24,Y14) -> 8 | AD14: =N14 -> 222 | AE14: =COUNTIF(L25:L32,AD14) -> 7 | AI14: =N14 -> 222 | AJ14: =COUNTIF(L33:L41,AI14) -> 6 | AN14: =N14 -> 222 | AO14: =COUNTIF(L42:L50,AN14) -> 4 | AS14: =N14 -> 222 | AT14: =COUNTIF(L51:L59,AS14) -> 6
A15: 21 | B15: 1903 | C15: 21 | D15: 1910 | E15: 21 | F15: 1925 | K15: 0 | L15: 222 | P15: =SUM(P7:P14) -> 1 | Q15: =-SUM(Q7:Q14) -> 1.237260275 | V15: =SUM(V7:V14) -> 1 | W15: =-SUM(W7:W14) -> 0 | AA15: =SUM(AA7:AA14) -> 1 | AB15: =-SUM(AB7:AB14) -> 0 | AF15: =SUM(AF7:AF14) -> 1 | AG15: =-SUM(AG7:AG14) -> 0 | AK15: =SUM(AK7:AK14) -> 1 | AL15: =-SUM(AL7:AL14) -> 1.584962501 | AP15: =SUM(AP7:AP14) -> 1 | AQ15: =-SUM(AQ7:AQ14) -> 1.521928095 | AU15: =SUM(AU7:AU14) -> 1 | AV15: =-SUM(AV7:AV14) -> 0.9182958341
A16: 21 | B16: 2166 | C16: 21 | D16: 2179 | E16: 21 | F16: 2218 | K16: 0 | L16: 222 | P16: U= | Q16: =Q15/(LOG(Q4)/LOG(2)) -> 0.2160051427 | V16: U1= | W16: =W15/(LOG(W4)/LOG(2)) -> 0 | AA16: U2= | AB16: =AB15/(LOG(AB4)/LOG(2)) -> 0 | AF16: U3= | AG16: =AG15/(LOG(AG4)/LOG(2)) -> 0 | AK16: U4= | AL16: =AL15/(LOG(AL4)/LOG(2)) -> 0.5 | AP16: U5= | AQ16: =AQ15/(LOG(AQ4)/LOG(2)) -> 0.4801148589 | AU16: U6= | AV16: =AV15/(LOG(AV4)/LOG(2)) -> 0.2896900821
A17: 21 | B17: 2675 | C17: 21 | D17: 2686 | E17: 21 | F17: 2694 | K17: 0 | L17: 222
A18: 21 | B18: 2878 | C18: 21 | D18: 2887 | E18: 21 | F18: 2896 | K18: 0 | L18: 222
A19: 21 | B19: 3064 | C19: 21 | D19: 3073 | E19: 21 | F19: 3079 | K19: 0 | L19: 222 | N19: Total Target Seq
A20: 21 | B20: 3243 | C20: 21 | D20: 3278 | E20: 21 | F20: 3287 | K20: 0 | L20: 222 | N20: =COUNTIF(L7:L59,G3) -> 39 | P20: 9 | Q20: 9 | R20: 8 | S20: 9 | T20: 9 | U20: 9
A21: 21 | B21: 3487 | C21: 21 | D21: 3512 | E21: 21 | F21: 3521 | K21: 0 | L21: 222 | P21: % of reinforcement given in 6 equal intervals based on number of trials
A22: 21 | B22: 3758 | C22: 21 | D22: 3767 | E22: 21 | F22: 3783 | K22: 0 | L22: 222 | P22: %_1 | Q22: %_2 | R22: %_3 | S22: %_4 | T22: %_5 | U22: %_6
A23: 21 | B23: 3948 | C23: 21 | D23: 3956 | E23: 12 | F23: 3964 | K23: 0 | L23: 221 | O23: target sequence | P23: =$G$3 -> 222 | Q23: =$G$3 -> 222 | R23: =$G$3 -> 222 | S23: =$G$3 -> 222 | T23: =$G$3 -> 222 | U23: =$G$3 -> 222
A24: 21 | B24: 4245 | C24: 21 | D24: 4257 | E24: 21 | F24: 4266 | K24: 0 | L24: 222 | O24: total reinforcement | P24: =U14 -> 8 | Q24: =Z14 -> 8 | R24: =AE14 -> 7 | S24: =AJ14 -> 6 | T24: =AO14 -> 4 | U24: =AT14 -> 6
A25: 21 | B25: 4695 | C25: 21 | D25: 4722 | E25: 21 | F25: 4733 | K25: 0 | L25: 222 | O25: % target
A26: 21 | B26: 4900 | C26: 12 | D26: 4904 | E26: 23 | F26: 4914 | K26: 0 | L26: 212 | O26: CCRF
A27: 21 | B27: 5008 | C27: 21 | D27: 5014 | E27: 21 | F27: 5022 | K27: 0 | L27: 222 | O27: % CCRf
A28: 21 | B28: 5231 | C28: 21 | D28: 5243 | E28: 21 | F28: 5251 | K28: 0 | L28: 222 | O28: average response rate | P28: =F15/P20 -> 213.8888889 | Q28: =(F24-F15)/Q20 -> 260.1111111 | R28: =(F32-F24)/R20 -> 197.125 | S28: =(F41-F32)/S20 -> 190.3333333 | T28: =(F50-F41)/T20 -> 129.3333333 | U28: =(F59-F50)/U20 -> 139.1111111
A29: 21 | B29: 5396 | C29: 21 | D29: 5431 | E29: 21 | F29: 5449 | K29: 0 | L29: 222
A30: 21 | B30: 5544 | C30: 21 | D30: 5555 | E30: 21 | F30: 5564 | K30: 0 | L30: 222
A31: 21 | B31: 5662 | C31: 21 | D31: 5666 | E31: 21 | F31: 5692 | K31: 0 | L31: 222
A32: 21 | B32: 5811 | C32: 21 | D32: 5832 | E32: 21 | F32: 5843 | K32: 0 | L32: 222
A33: 21 | B33: 6040 | C33: 21 | D33: 6054 | E33: 21 | F33: 6077 | K33: 0 | L33: 222
A34: 21 | B34: 6361 | C34: 21 | D34: 6408 | E34: 21 | F34: 6416 | K34: 0 | L34: 222
A35: 21 | B35: 6579 | C35: 21 | D35: 6583 | E35: 21 | F35: 6585 | K35: 0 | L35: 222
A36: 21 | B36: 6913 | C36: 21 | D36: 6926 | E36: 21 | F36: 6933 | K36: 0 | L36: 222
A37: 21 | B37: 7084 | C37: 12 | D37: 7088 | E37: 23 | F37: 7095 | K37: 0 | L37: 212
A38: 21 | B38: 7192 | C38: 21 | D38: 7197 | E38: 12 | F38: 7200 | K38: 0 | L38: 221
A39: 21 | B39: 7297 | C39: 21 | D39: 7305 | E39: 21 | F39: 7310 | K39: 0 | L39: 222
A40: 12 | B40: 7427 | C40: 23 | D40: 7434 | E40: 23 | F40: 7443 | K40: 0 | L40: 122
A41: 21 | B41: 7542 | C41: 21 | D41: 7547 | E41: 21 | F41: 7556 | K41: 0 | L41: 222
A42: 21 | B42: 7658 | C42: 21 | D42: 7660 | E42: 12 | F42: 7663 | K42: 0 | L42: 221
A43: 12 | B43: 7783 | C43: 23 | D43: 7787 | E43: 23 | F43: 7794 | K43: 0 | L43: 122
A44: 21 | B44: 7893 | C44: 21 | D44: 7897 | E44: 21 | F44: 7901 | K44: 0 | L44: 222
A45: 21 | B45: 8037 | C45: 12 | D45: 8043 | E45: 23 | F45: 8044 | K45: 0 | L45: 212
A46: 21 | B46: 8140 | C46: 21 | D46: 8147 | E46: 21 | F46: 8154 | K46: 0 | L46: 222
A47: 21 | B47: 8268 | C47: 21 | D47: 8277 | E47: 21 | F47: 8284 | K47: 0 | L47: 222
A48: 21 | B48: 8378 | C48: 21 | D48: 8386 | E48: 21 | F48: 8399 | K48: 0 | L48: 222
A49: 12 | B49: 8599 | C49: 23 | D49: 8611 | E49: 23 | F49: 8615 | K49: 0 | L49: 122
A50: 21 | B50: 8712 | C50: 21 | D50: 8718 | E50: 12 | F50: 8720 | K50: 0 | L50: 221
A51: 21 | B51: 8819 | C51: 21 | D51: 8821 | E51: 21 | F51: 8827 | K51: 0 | L51: 222
A52: 12 | B52: 8915 | C52: 23 | D52: 8929 | E52: 23 | F52: 8933 | K52: 0 | L52: 122
A53: 12 | B53: 9026 | C53: 23 | D53: 9031 | E53: 23 | F53: 9034 | K53: 0 | L53: 122
A54: 21 | B54: 9132 | C54: 21 | D54: 9141 | E54: 21 | F54: 9146 | K54: 0 | L54: 222
A55: 21 | B55: 9300 | C55: 21 | D55: 9305 | E55: 12 | F55: 9309 | K55: 0 | L55: 221
A56: 21 | B56: 9411 | C56: 21 | D56: 9414 | E56: 21 | F56: 9419 | K56: 0 | L56: 222
A57: 21 | B57: 9561 | C57: 21 | D57: 9566 | E57: 21 | F57: 9581 | K57: 0 | L57: 222
A58: 21 | B58: 9781 | C58: 21 | D58: 9817 | E58: 21 | F58: 9831 | K58: 0 | L58: 222
A59: 21 | B59: 9932 | C59: 21 | D59: 9960 | E59: 21 | F59: 9972 | K59: 1 | L59: 222

Sheet !M905A40.Gus
A1: Report for:!M905A40.Gus
A2: Date: | B2: <date>
A3: Hen: | B3: <hen> | F3: Correct Sequence | G3: =Start!J2 -> 222 | P3: Total Sequences in Data | Q3: =4994-COUNTBLANK(L7:L5000) -> 66 | V3: Total Sequences in Block Data | W3: =COUNTA(L7:L17) -> 11 | AA3: Total Sequences in Block Data | AB3: =COUNTA(L18:L28) -> 11 | AF3: Total Sequences in Block Data | AG3: =COUNTA(L29:L39) -> 11 | AK3: Total Sequences in Block Data | AL3: =COUNTA(L40:L50) -> 11 | AP3: Total Sequences in Block Data | AQ3: =COUNTA(L51:L61) -> 11 | AU3: Total Sequences in Block Data | AV3: =COUNTA(L62:L72) -> 11
P4: Total Sequences in Summary | Q4: =SUM(O7:O14) -> 66 | V4: Total Sequences in Block Summary | W4: =SUM(U7:U14) -> 11 | AA4: Total Sequences in Block Summary | AB4: =SUM(Z7:Z14) -> 11 | AF4: Total Sequences in Block Summary | AG4: =SUM(AE7:AE14) -> 11 | AK4: Total Sequences in Block Summary | AL4: =SUM(AJ7:AJ14) -> 11 | AP4: Total Sequences in Block Summary | AQ4: =SUM(AO7:AO14) -> 11 | AU4: Total Sequences in Block Summary | AV4: =SUM(AT7:AT14) -> 11
T5: Block 1 | Y5: Block 2 | AD5: Block 3 | AI5: Block 4 | AN5: Block 5 | AS5: Block 6
A6: Sequence Component 1 | B6: Time 1 | C6: Sequence Component 2 | D6: Time 2 | E6: Sequence Component 3 | F6: Time 3 | G6: Sequence Component 4 | H6: Time 4 | I6: Sequence Component 5 | J6: Time 5 | K6: Correct? 0=No 1=Yes | L6: Sequence | N6: Frequency | P6: Relative Frequency | Q6: Variability | T6: Frequency | V6: Relative Frequency | W6: Variability | Y6: Frequency | AA6: Relative Frequency | AB6: Variability | AD6: Frequency | AF6: Relative Frequency | AG6: Variability | AI6: Frequency | AK6: Relative Frequency | AL6: Variability | AN6: Frequency | AP6: Relative Frequency | AQ6: Variability | AS6: Frequency | AU6: Relative Frequency | AV6: Variability
A7: 21 | B7: 7 | C7: 12 | D7: 16 | E7: 23 | F7: 21 | K7: 0 | L7: 212 | N7: 111 | O7: =COUNTIF($L$7:$L$500,N7) -> 0 | P7: =O7/$Q$4 -> 0 | Q7: =IF(P7=0,0,(P7*((LOG(P7))/LOG(2)))) -> 0 | T7: =N7 -> 111 | U7: =COUNTIF(L7:L17,T7) -> 0 | V7: =U7/(W4-U14) -> 0 | W7: =IF(V7=0,0,(V7*((LOG(V7))/LOG(2)))) -> 0 | Y7: =N7 -> 111 | Z7: =COUNTIF(L18:L28,Y7) -> 0 | AA7: =Z7/(AB4-Z14) -> 0 | AB7: =IF(AA7=0,0,(AA7*((LOG(AA7))/LOG(2)))) -> 0 | AD7: =N7 -> 111 | AE7: =COUNTIF(L29:L39,AD7) -> 0 | AF7: =AE7/(AG4-AE14) -> 0 | AG7: =IF(AF7=0,0,(AF7*((LOG(AF7))/LOG(2)))) -> 0 | AI7: =N7 -> 111 | AJ7: =COUNTIF(L40:L50,AI7) -> 0 | AK7: =AJ7/(AL4-AJ14) -> 0 | AL7: =IF(AK7=0,0,(AK7*((LOG(AK7))/LOG(2)))) -> 0 | AN7: =N7 -> 111 | AO7: =COUNTIF(L51:L61,AN7) -> 0 | AP7: =AO7/(AQ4-AO14) -> 0 | AQ7: =IF(AP7=0,0,(AP7*((LOG(AP7))/LOG(2)))) -> 0 | AS7: =N7 -> 111 | AT7: =COUNTIF(L62:L72,AS7) -> 0 | AU7: =AT7/(AV4-AT14) -> 0 | AV7: =IF(AU7=0,0,(AU7*((LOG(AU7))/LOG(2)))) -> 0
A8: 21 | B8: 118 | C8: 21 | D8: 120 | E8: 21 | F8: 122 | K8: 0 | L8: 222 | N8: 112 | O8: =COUNTIF($L$7:$L$500,N8) -> 0 | P8: =O8/$Q$4 -> 0 | Q8: =IF(P8=0,0,(P8*((LOG(P8))/LOG(2)))) -> 0 | T8: =N8 -> 112 | U8: =COUNTIF(L7:L17,T8) -> 0 | V8: =U8/(W4-U14) -> 0 | W8: =IF(V8=0,0,(V8*((LOG(V8))/LOG(2)))) -> 0 | Y8: =N8 -> 112 | Z8: =COUNTIF(L18:L28,Y8) -> 0 | AA8: =Z8/(AB4-Z14) -> 0 | AB8: =IF(AA8=0,0,(AA8*((LOG(AA8))/LOG(2)))) -> 0 | AD8: =N8 -> 112 | AE8: =COUNTIF(L29:L39,AD8) -> 0 | AF8: =AE8/(AG4-AE14) -> 0 | AG8: =IF(AF8=0,0,(AF8*((LOG(AF8))/LOG(2)))) -> 0 | AI8: =N8 -> 112 | AJ8: =COUNTIF(L40:L50,AI8) -> 0 | AK8: =AJ8/(AL4-AJ14) -> 0 | AL8: =IF(AK8=0,0,(AK8*((LOG(AK8))/LOG(2)))) -> 0 | AN8: =N8 -> 112 | AO8: =COUNTIF(L51:L61,AN8) -> 0 | AP8: =AO8/(AQ4-AO14) -> 0 | AQ8: =IF(AP8=0,0,(AP8*((LOG(AP8))/LOG(2)))) -> 0 | AS8: =N8 -> 112 | AT8: =COUNTIF(L62:L72,AS8) -> 0 | AU8: =AT8/(AV4-AT14) -> 0 | AV8: =IF(AU8=0,0,(AU8*((LOG(AU8))/LOG(2)))) -> 0
A9: 21 | B9: 220 | C9: 21 | D9: 232 | E9: 21 | F9: 245 | K9: 0 | L9: 222 | N9: 121 | O9: =COUNTIF($L$7:$L$500,N9) -> 0 | P9: =O9/$Q$4 -> 0 | Q9: =IF(P9=0,0,(P9*((LOG(P9))/LOG(2)))) -> 0 | T9: =N9 -> 121 | U9: =COUNTIF(L7:L17,T9) -> 0 | V9: =U9/(W4-U14) -> 0 | W9: =IF(V9=0,0,(V9*((LOG(V9))/LOG(2)))) -> 0 | Y9: =N9 -> 121 | Z9: =COUNTIF(L18:L28,Y9) -> 0 | AA9: =Z9/(AB4-Z14) -> 0 | AB9: =IF(AA9=0,0,(AA9*((LOG(AA9))/LOG(2)))) -> 0 | AD9: =N9 -> 121 | AE9: =COUNTIF(L29:L39,AD9) -> 0 | AF9: =AE9/(AG4-AE14) -> 0 | AG9: =IF(AF9=0,0,(AF9*((LOG(AF9))/LOG(2)))) -> 0 | AI9: =N9 -> 121 | AJ9: =COUNTIF(L40:L50,AI9) -> 0 | AK9: =AJ9/(AL4-AJ14) -> 0 | AL9: =IF(AK9=0,0,(AK9*((LOG(AK9))/LOG(2)))) -> 0 | AN9: =N9 -> 121 | AO9: =COUNTIF(L51:L61,AN9) -> 0 | AP9: =AO9/(AQ4-AO14) -> 0 | AQ9: =IF(AP9=0,0,(AP9*((LOG(AP9))/LOG(2)))) -> 0 | AS9: =N9 -> 121 | AT9: =COUNTIF(L62:L72,AS9) -> 0 | AU9: =AT9/(AV4-AT14) -> 0 | AV9: =IF(AU9=0,0,(AU9*((LOG(AU9))/LOG(2)))) -> 0
A10: 12 | B10: 334 | C10: 23 | D10: 337 | E10: 23 | F10: 342 | K10: 0 | L10: 122 | N10: 122 | O10: =COUNTIF($L$7:$L$500,N10) -> 10 | P10: =O10/$Q$4 -> 0.1515151515 | Q10: =IF(P10=0,0,(P10*((LOG(P10))/LOG(2)))) -> -0.4124948522 | T10: =N10 -> 122 | U10: =COUNTIF(L7:L17,T10) -> 2 | V10: =U10/(W4-U14) -> 0.25 | W10: =IF(V10=0,0,(V10*((LOG(V10))/LOG(2)))) -> -0.5 | Y10: =N10 -> 122 | Z10: =COUNTIF(L18:L28,Y10) -> 2 | AA10: =Z10/(AB4-Z14) -> 0.5 | AB10: =IF(AA10=0,0,(AA10*((LOG(AA10))/LOG(2)))) -> -0.5 | AD10: =N10 -> 122 | AE10: =COUNTIF(L29:L39,AD10) -> 2 | AF10: =AE10/(AG4-AE14) -> 0.3333333333 | AG10: =IF(AF10=0,0,(AF10*((LOG(AF10))/LOG(2)))) -> -0.5283208336 | AI10: =N10 -> 122 | AJ10: =COUNTIF(L40:L50,AI10) -> 1 | AK10: =AJ10/(AL4-AJ14) -> 0.5 | AL10: =IF(AK10=0,0,(AK10*((LOG(AK10))/LOG(2)))) -> -0.5 | AN10: =N10 -> 122 | AO10: =COUNTIF(L51:L61,AN10) -> 1 | AP10: =AO10/(AQ4-AO14) -> 0.5 | AQ10: =IF(AP10=0,0,(AP10*((LOG(AP10))/LOG(2)))) -> -0.5 | AS10: =N10 -> 122 | AT10: =COUNTIF(L62:L72,AS10) -> 2 | AU10: =AT10/(AV4-AT14) -> 0.5 | AV10: =IF(AU10=0,0,(AU10*((LOG(AU10))/LOG(2)))) -> -0.5
A11: 21 | B11: 438 | C11: 12 | D11: 446 | E11: 23 | F11: 449 | K11: 0 | L11: 212 | N11: 211 | O11: =COUNTIF($L$7:$L$500,N11) -> 0 | P11: =O11/$Q$4 -> 0 | Q11: =IF(P11=0,0,(P11*((LOG(P11))/LOG(2)))) -> 0 | T11: =N11 -> 211 | U11: =COUNTIF(L7:L17,T11) -> 0 | V11: =U11/(W4-U14) -> 0 | W11: =IF(V11=0,0,(V11*((LOG(V11))/LOG(2)))) -> 0 | Y11: =N11 -> 211 | Z11: =COUNTIF(L18:L28,Y11) -> 0 | AA11: =Z11/(AB4-Z14) -> 0 | AB11: =IF(AA11=0,0,(AA11*((LOG(AA11))/LOG(2)))) -> 0 | AD11: =N11 -> 211 | AE11: =COUNTIF(L29:L39,AD11) -> 0 | AF11: =AE11/(AG4-AE14) -> 0 | AG11: =IF(AF11=0,0,(AF11*((LOG(AF11))/LOG(2)))) -> 0 | AI11: =N11 -> 211 | AJ11: =COUNTIF(L40:L50,AI11) -> 0 | AK11: =AJ11/(AL4-AJ14) -> 0 | AL11: =IF(AK11=0,0,(AK11*((LOG(AK11))/LOG(2)))) -> 0 | AN11: =N11 -> 211 | AO11: =COUNTIF(L51:L61,AN11) -> 0 | AP11: =AO11/(AQ4-AO14) -> 0 | AQ11: =IF(AP11=0,0,(AP11*((LOG(AP11))/LOG(2)))) -> 0 | AS11: =N11 -> 211 | AT11: =COUNTIF(L62:L72,AS11) -> 0 | AU11: =AT11/(AV4-AT14) -> 0 | AV11: =IF(AU11=0,0,(AU11*((LOG(AU11))/LOG(2)))) -> 0
A12: 21 | B12: 548 | C12: 12 | D12: 555 | E12: 23 | F12: 562 | K12: 0 | L12: 212 | N12: 212 | O12: =COUNTIF($L$7:$L$500,N12) -> 11 | P12: =O12/$Q$4 -> 0.1666666667 | Q12: =IF(P12=0,0,(P12*((LOG(P12))/LOG(2)))) -> -0.4308270835 | T12: =N12 -> 212 | U12: =COUNTIF(L7:L17,T12) -> 5 | V12: =U12/(W4-U14) -> 0.625 | W12: =IF(V12=0,0,(V12*((LOG(V12))/LOG(2)))) -> -0.4237949407 | Y12: =N12 -> 212 | Z12: =COUNTIF(L18:L28,Y12) -> 1 | AA12: =Z12/(AB4-Z14) -> 0.25 | AB12: =IF(AA12=0,0,(AA12*((LOG(AA12))/LOG(2)))) -> -0.5 | AD12: =N12 -> 212 | AE12: =COUNTIF(L29:L39,AD12) -> 3 | AF12: =AE12/(AG4-AE14) -> 0.5 | AG12: =IF(AF12=0,0,(AF12*((LOG(AF12))/LOG(2)))) -> -0.5 | AI12: =N12 -> 212 | AJ12: =COUNTIF(L40:L50,AI12) -> 1 | AK12: =AJ12/(AL4-AJ14) -> 0.5 | AL12: =IF(AK12=0,0,(AK12*((LOG(AK12))/LOG(2)))) -> -0.5 | AN12: =N12 -> 212 | AO12: =COUNTIF(L51:L61,AN12) -> 0 | AP12: =AO12/(AQ4-AO14) -> 0 | AQ12: =IF(AP12=0,0,(AP12*((LOG(AP12))/LOG(2)))) -> 0 | AS12: =N12 -> 212 | AT12: =COUNTIF(L62:L72,AS12) -> 1 | AU12: =AT12/(AV4-AT14) -> 0.25 | AV12: =IF(AU12=0,0,(AU12*((LOG(AU12))/LOG(2)))) -> -0.5
A13: 21 | B13: 659 | C13: 21 | D13: 663 | E13: 21 | F13: 667 | K13: 0 | L13: 222 | N13: 221 | O13: =COUNTIF($L$7:$L$500,N13) -> 5 | P13: =O13/$Q$4 -> 0.07575757576 | Q13: =IF(P13=0,0,(P13*((LOG(P13))/LOG(2)))) -> -0.2820050019 | T13: =N13 -> 221 | U13: =COUNTIF(L7:L17,T13) -> 1 | V13: =U13/(W4-U14) -> 0.125 | W13: =IF(V13=0,0,(V13*((LOG(V13))/LOG(2)))) -> -0.375 | Y13: =N13 -> 221 | Z13: =COUNTIF(L18:L28,Y13) -> 1 | AA13: =Z13/(AB4-Z14) -> 0.25 | AB13: =IF(AA13=0,0,(AA13*((LOG(AA13))/LOG(2)))) -> -0.5 | AD13: =N13 -> 221 | AE13: =COUNTIF(L29:L39,AD13) -> 1 | AF13: =AE13/(AG4-AE14) -> 0.1666666667 | AG13: =IF(AF13=0,0,(AF13*((LOG(AF13))/LOG(2)))) -> -0.4308270835 | AI13: =N13 -> 221 | AJ13: =COUNTIF(L40:L50,AI13) -> 0 | AK13: =AJ13/(AL4-AJ14) -> 0 | AL13: =IF(AK13=0,0,(AK13*((LOG(AK13))/LOG(2)))) -> 0 | AN13: =N13 -> 221 | AO13: =COUNTIF(L51:L61,AN13) -> 1 | AP13: =AO13/(AQ4-AO14) -> 0.5 | AQ13: =IF(AP13=0,0,(AP13*((LOG(AP13))/LOG(2)))) -> -0.5 | AS13: =N13 -> 221 | AT13: =COUNTIF(L62:L72,AS13) -> 1 | AU13: =AT13/(AV4-AT14) -> 0.25 | AV13: =IF(AU13=0,0,(AU13*((LOG(AU13))/LOG(2)))) -> -0.5
A14: 21 | B14: 768 | C14: 12 | D14: 769 | E14: 23 | F14: 776 | K14: 0 | L14: 212 | N14: 222 | O14: =COUNTIF($L$7:$L$500,N14) -> 40 | P14: =O14/$Q$4 -> 0.6060606061 | Q14: =IF(P14=0,0,(P14*((LOG(P14))/LOG(2)))) -> -0.4378581966 | T14: =N14 -> 222 | U14: =COUNTIF(L7:L17,T14) -> 3 | Y14: =N14 -> 222 | Z14: =COUNTIF(L18:L28,Y14) -> 7 | AD14: =N14 -> 222 | AE14: =COUNTIF(L29:L39,AD14) -> 5 | AI14: =N14 -> 222 | AJ14: =COUNTIF(L40:L50,AI14) -> 9 | AN14: =N14 -> 222 | AO14: =COUNTIF(L51:L61,AN14) -> 9 | AS14: =N14 -> 222 | AT14: =COUNTIF(L62:L72,AS14) -> 7
A15: 21 | B15: 874 | C15: 12 | D15: 878 | E15: 23 | F15: 883 | K15: 0 | L15: 212 | P15: =SUM(P7:P14) -> 1 | Q15: =-SUM(Q7:Q14) -> 1.563185134 | V15: =SUM(V7:V14) -> 1 | W15: =-SUM(W7:W14) -> 1.298794941 | AA15: =SUM(AA7:AA14) -> 1 | AB15: =-SUM(AB7:AB14) -> 1.5 | AF15: =SUM(AF7:AF14) -> 1 | AG15: =-SUM(AG7:AG14) -> 1.459147917 | AK15: =SUM(AK7:AK14) -> 1 | AL15: =-SUM(AL7:AL14) -> 1 | AP15: =SUM(AP7:AP14) -> 1 | AQ15: =-SUM(AQ7:AQ14) -> 1 | AU15: =SUM(AU7:AU14) -> 1 | AV15: =-SUM(AV7:AV14) -> 1.5
A16: 12 | B16: 977 | C16: 23 | D16: 979 | E16: 23 | F16: 985 | K16: 0 | L16: 122 | P16: U= | Q16: =Q15/(LOG(Q4)/LOG(2)) -> 0.2586173408 | V16: U1= | W16: =W15/(LOG(W4)/LOG(2)) -> 0.375435934 | AA16: U2= | AB16: =AB15/(LOG(AB4)/LOG(2)) -> 0.4335972395 | AF16: U3= | AG16: =AG15/(LOG(AG4)/LOG(2)) -> 0.4217883392 | AK16: U4= | AL16: =AL15/(LOG(AL4)/LOG(2)) -> 0.2890648263 | AP16: U5= | AQ16: =AQ15/(LOG(AQ4)/LOG(2)) -> 0.2890648263 | AU16: U6= | AV16: =AV15/(LOG(AV4)/LOG(2)) -> 0.4335972395
A17: 21 | B17: 1083 | C17: 21 | D17: 1086 | E17: 12 | F17: 1088 | K17: 0 | L17: 221
A18: 21 | B18: 1187 | C18: 21 | D18: 1188 | E18: 21 | F18: 1192 | K18: 0 | L18: 222
A19: 21 | B19: 1316 | C19: 12 | D19: 1318 | E19: 23 | F19: 1326 | K19: 0 | L19: 212 | N19: Total Target Seq
A20: 21 | B20: 1423 | C20: 21 | D20: 1427 | E20: 21 | F20: 1432 | K20: 0 | L20: 222 | N20: =COUNTIF(L7:L72,G3) -> 40 | P20: 11 | Q20: 11 | R20: 11 | S20: 11 | T20: 11 | U20: 11
A21: 21 | B21: 1534 | C21: 21 | D21: 1539 | E21: 21 | F21: 1547 | K21: 0 | L21: 222 | P21: % of reinforcement given in 6 equal intervals based on number of trials
A22: 21 | B22: 1674 | C22: 21 | D22: 1691 | E22: 21 | F22: 1700 | K22: 0 | L22: 222 | P22: %_1 | Q22: %_2 | R22: %_3 | S22: %_4 | T22: %_5 | U22: %_6
A23: 12 | B23: 1791 | C23: 23 | D23: 1798 | E23: 23 | F23: 1803 | K23: 0 | L23: 122 | O23: target sequence | P23: =$G$3 -> 222 | Q23: =$G$3 -> 222 | R23: =$G$3 -> 222 | S23: =$G$3 -> 222 | T23: =$G$3 -> 222 | U23: =$G$3 -> 222
A24: 21 | B24: 1906 | C24: 21 | D24: 1909 | E24: 21 | F24: 1915 | K24: 0 | L24: 222 | O24: total reinforcement | P24: =U14 -> 3 | Q24: =Z14 -> 7 | R24: =AE14 -> 5 | S24: =AJ14 -> 9 | T24: =AO14 -> 9 | U24: =AT14 -> 7
A25: 21 | B25: 2032 | C25: 21 | D25: 2034 | E25: 21 | F25: 2039 | K25: 0 | L25: 222 | O25: % target
A26: 12 | B26: 2126 | C26: 23 | D26: 2131 | E26: 23 | F26: 2135 | K26: 0 | L26: 122 | O26: CCRF
A27: 21 | B27: 2233 | C27: 21 | D27: 2237 | E27: 12 | F27: 2241 | K27: 0 | L27: 221 | O27: % CCRf
A28: 21 | B28: 2340 | C28: 21 | D28: 2347 | E28: 21 | F28: 2353 | K28: 0 | L28: 222 | O28: average response rate | P28: =F17/P20 -> 98.90909091 | Q28: =(F28-F17)/Q20 -> 115 | R28: =(F39-F28)/R20 -> 116.1818182 | S28: =(F50-F39)/S20 -> 125.1818182 | T28: =(F61-F50)/T20 -> 149.0909091 | U28: =(F72-F61)/U20 -> 139.6363636
A29: 21 | B29: 2448 | C29: 21 | D29: 2453 | E29: 21 | F29: 2460 | K29: 0 | L29: 222
A30: 21 | B30: 2576 | C30: 21 | D30: 2584 | E30: 21 | F30: 2591 | K30: 0 | L30: 222
A31: 21 | B31: 2699 | C31: 12 | D31: 2702 | E31: 23 | F31: 2717 | K31: 0 | L31: 212
A32: 21 | B32: 2864 | C32: 21 | D32: 2869 | E32: 21 | F32: 2875 | K32: 0 | L32: 222
A33: 12 | B33: 2964 | C33: 23 | D33: 2967 | E33: 23 | F33: 2969 | K33: 0 | L33: 122
A34: 21 | B34: 3066 | C34: 21 | D34: 3070 | E34: 12 | F34: 3074 | K34: 0 | L34: 221
A35: 21 | B35: 3170 | C35: 12 | D35: 3181 | E35: 23 | F35: 3183 | K35: 0 | L35: 212
A36: 21 | B36: 3279 | C36: 21 | D36: 3288 | E36: 21 | F36: 3295 | K36: 0 | L36: 222
A37: 12 | B37: 3403 | C37: 23 | D37: 3408 | E37: 23 | F37: 3415 | K37: 0 | L37: 122
A38: 21 | B38: 3510 | C38: 12 | D38: 3519 | E38: 23 | F38: 3526 | K38: 0 | L38: 212
A39: 21 | B39: 3623 | C39: 21 | D39: 3626 | E39: 21 | F39: 3631 | K39: 0 | L39: 222
A40: 12 | B40: 3725 | C40: 23 | D40: 3729 | E40: 23 | F40: 3733 | K40: 0 | L40: 122
A41: 21 | B41: 3828 | C41: 21 | D41: 3832 | E41: 21 | F41: 3835 | K41: 0 | L41: 222
A42: 21 | B42: 3934 | C42: 21 | D42: 3938 | E42: 21 | F42: 3957 | K42: 0 | L42: 222
A43: 21 | B43: 4102 | C43: 12 | D43: 4109 | E43: 23 | F43: 4115 | K43: 0 | L43: 212
A44: 21 | B44: 4211 | C44: 21 | D44: 4219 | E44: 21 | F44: 4225 | K44: 0 | L44: 222
A45: 21 | B45: 4346 | C45: 21 | D45: 4354 | E45: 21 | F45: 4360 | K45: 0 | L45: 222
A46: 21 | B46: 4450 | C46: 21 | D46: 4454 | E46: 21 | F46: 4470 | K46: 0 | L46: 222
A47: 21 | B47: 4565 | C47: 21 | D47: 4572 | E47: 21 | F47: 4583 | K47: 0 | L47: 222
A48: 21 | B48: 4677 | C48: 21 | D48: 4687 | E48: 21 | F48: 4693 | K48: 0 | L48: 222
A49: 21 | B49: 4793 | C49: 21 | D49: 4799 | E49: 21 | F49: 4808 | K49: 0 | L49: 222
A50: 21 | B50: 4971 | C50: 21 | D50: 5000 | E50: 21 | F50: 5008 | K50: 0 | L50: 222
A51: 21 | B51: 5100 | C51: 21 | D51: 5111 | E51: 21 | F51: 5117 | K51: 0 | L51: 222
A52: 21 | B52: 5263 | C52: 21 | D52: 5271 | E52: 21 | F52: 5280 | K52: 0 | L52: 222
A53: 12 | B53: 5385 | C53: 23 | D53: 5390 | E53: 23 | F53: 5404 | K53: 0 | L53: 122
A54: 21 | B54: 5499 | C54: 21 | D54: 5503 | E54: 21 | F54: 5510 | K54: 0 | L54: 222
A55: 21 | B55: 5603 | C55: 21 | D55: 5608 | E55: 21 | F55: 5614 | K55: 0 | L55: 222
A56: 21 | B56: 5732 | C56: 21 | D56: 5745 | E56: 21 | F56: 5764 | K56: 0 | L56: 222
A57: 21 | B57: 5864 | C57: 21 | D57: 5876 | E57: 12 | F57: 5878 | K57: 0 | L57: 221
A58: 21 | B58: 6140 | C58: 21 | D58: 6146 | E58: 21 | F58: 6161 | K58: 0 | L58: 222
A59: 21 | B59: 6282 | C59: 21 | D59: 6293 | E59: 21 | F59: 6305 | K59: 0 | L59: 222
A60: 21 | B60: 6422 | C60: 21 | D60: 6436 | E60: 21 | F60: 6451 | K60: 0 | L60: 222
A61: 21 | B61: 6607 | C61: 21 | D61: 6616 | E61: 21 | F61: 6648 | K61: 0 | L61: 222
A62: 21 | B62: 6772 | C62: 21 | D62: 6776 | E62: 21 | F62: 6795 | K62: 0 | L62: 222
A63: 12 | B63: 6883 | C63: 23 | D63: 6889 | E63: 23 | F63: 6894 | K63: 0 | L63: 122
A64: 21 | B64: 7007 | C64: 21 | D64: 7013 | E64: 21 | F64: 7021 | K64: 0 | L64: 222
A65: 12 | B65: 7113 | C65: 23 | D65: 7120 | E65: 23 | F65: 7133 | K65: 0 | L65: 122
A66: 21 | B66: 7225 | C66: 21 | D66: 7234 | E66: 12 | F66: 7238 | K66: 0 | L66: 221
A67: 21 | B67: 7334 | C67: 12 | D67: 7339 | E67: 23 | F67: 7347 | K67: 0 | L67: 212
A68: 21 | B68: 7468 | C68: 21 | D68: 7478 | E68: 21 | F68: 7484 | K68: 0 | L68: 222
A69: 21 | B69: 7611 | C69: 21 | D69: 7625 | E69: 21 | F69: 7635 | K69: 0 | L69: 222
A70: 21 | B70: 7793 | C70: 21 | D70: 7809 | E70: 21 | F70: 7815 | K70: 0 | L70: 222
A71: 21 | B71: 8056 | C71: 21 | D71: 8066 | E71: 21 | F71: 8082 | K71: 0 | L71: 222
A72: 21 | B72: 8172 | C72: 21 | D72: 8175 | E72: 21 | F72: 8184 | K72: 1 | L72: 222

Sheet !M906B10.Gus
A1: Report for:!M906B10.Gus
A2: Date: | B2: <date>
A3: Hen: | B3: <hen> | F3: Correct Sequence | G3: =Start!J2 -> 222 | P3: Total Sequences in Data | Q3: =4994-COUNTBLANK(L7:L5000) -> 48 | V3: Total Sequences in Block Data | W3: =COUNTA(L7:L14) -> 8 | AA3: Total Sequences in Block Data | AB3: =COUNTA(L15:L22) -> 8 | AF3: Total Sequences in Block Data | AG3: =COUNTA(L23:L30) -> 8 | AK3: Total Sequences in Block Data | AL3: =COUNTA(L31:L38) -> 8 | AP3: Total Sequences in Block Data | AQ3: =COUNTA(L39:L46) -> 8 | AU3: Total Sequences in Block Data | AV3: =COUNTA(L47:L54) -> 8
P4: Total Sequences in Summary | Q4: =SUM(O7:O14) -> 48 | V4: Total Sequences in Block Summary | W4: =SUM(U7:U14) -> 8 | AA4: Total Sequences in Block Summary | AB4: =SUM(Z7:Z14) -> 8 | AF4: Total Sequences in Block Summary | AG4: =SUM(AE7:AE14) -> 8 | AK4: Total Sequences in Block Summary | AL4: =SUM(AJ7:AJ14) -> 8 | AP4: Total Sequences in Block Summary | AQ4: =SUM(AO7:AO14) -> 8 | AU4: Total Sequences in Block Summary | AV4: =SUM(AT7:AT14) -> 8
T5: Block 1 | Y5: Block 2 | AD5: Block 3 | AI5: Block 4 | AN5: Block 5 | AS5: Block 6
A6: Sequence Component 1 | B6: Time 1 | C6: Sequence Component 2 | D6: Time 2 | E6: Sequence Component 3 | F6: Time 3 | G6: Sequence Component 4 | H6: Time 4 | I6: Sequence Component 5 | J6: Time 5 | K6: Correct? 0=No 1=Yes | L6: Sequence | N6: Frequency | P6: Relative Frequency | Q6: Variability | T6: Frequency | V6: Relative Frequency | W6: Variability | Y6: Frequency | AA6: Relative Frequency | AB6: Variability | AD6: Frequency | AF6: Relative Frequency | AG6: Variability | AI6: Frequency | AK6: Relative Frequency | AL6: Variability | AN6: Frequency | AP6: Relative Frequency | AQ6: Variability | AS6: Frequency | AU6: Relative Frequency | AV6: Variability
A7: 21 | B7: 21 | C7: 21 | D7: 27 | E7: 21 | F7: 34 | K7: 0 | L7: 222 | N7: 111 | O7: =COUNTIF($L$7:$L$500,N7) -> 0 | P7: =O7/$Q$4 -> 0 | Q7: =IF(P7=0,0,(P7*((LOG(P7))/LOG(2)))) -> 0 | T7: =N7 -> 111 | U7: =COUNTIF(L7:L14,T7) -> 0 | V7: =U7/(W4-U14) -> 0 | W7: =IF(V7=0,0,(V7*((LOG(V7))/LOG(2)))) -> 0 | Y7: =N7 -> 111 | Z7: =COUNTIF(L15:L22,Y7) -> 0 | AA7: =Z7/(AB4-Z14) -> 0 | AB7: =IF(AA7=0,0,(AA7*((LOG(AA7))/LOG(2)))) -> 0 | AD7: =N7 -> 111 | AE7: =COUNTIF(L23:L30,AD7) -> 0 | AF7: =AE7/(AG4-AE14) -> 0 | AG7: =IF(AF7=0,0,(AF7*((LOG(AF7))/LOG(2)))) -> 0 | AI7: =N7 -> 111 | AJ7: =COUNTIF(L31:L38,AI7) -> 0 | AK7: =AJ7/(AL4-AJ14) -> 0 | AL7: =IF(AK7=0,0,(AK7*((LOG(AK7))/LOG(2)))) -> 0 | AN7: =N7 -> 111 | AO7: =COUNTIF(L39:L46,AN7) -> 0 | AP7: =AO7/(AQ4-AO14) -> 0 | AQ7: =IF(AP7=0,0,(AP7*((LOG(AP7))/LOG(2)))) -> 0 | AS7: =N7 -> 111 | AT7: =COUNTIF(L47:L54,AS7) -> 0 | AU7: =AT7/(AV4-AT14) ->  | AV7: =IF(AU7=0,0,(AU7*((LOG(AU7))/LOG(2)))) -> 
A8: 21 | B8: 163 | C8: 21 | D8: 172 | E8: 21 | F8: 179 | K8: 0 | L8: 222 | N8: 112 | O8: =COUNTIF($L$7:$L$500,N8) -> 0 | P8: =O8/$Q$4 -> 0 | Q8: =IF(P8=0,0,(P8*((LOG(P8))/LOG(2)))) -> 0 | T8: =N8 -> 112 | U8: =COUNTIF(L7:L14,T8) -> 0 | V8: =U8/(W4-U14) -> 0 | W8: =IF(V8=0,0,(V8*((LOG(V8))/LOG(2)))) -> 0 | Y8: =N8 -> 112 | Z8: =COUNTIF(L15:L22,Y8) -> 0 | AA8: =Z8/(AB4-Z14) -> 0 | AB8: =IF(AA8=0,0,(AA8*((LOG(AA8))/LOG(2)))) -> 0 | AD8: =N8 -> 112 | AE8: =COUNTIF(L23:L30,AD8) -> 0 | AF8: =AE8/(AG4-AE14) -> 0 | AG8: =IF(AF8=0,0,(AF8*((LOG(AF8))/LOG(2)))) -> 0 | AI8: =N8 -> 112 | AJ8: =COUNTIF(L31:L38,AI8) -> 0 | AK8: =AJ8/(AL4-AJ14) -> 0 | AL8: =IF(AK8=0,0,(AK8*((LOG(AK8))/LOG(2)))) -> 0 | AN8: =N8 -> 112 | AO8: =COUNTIF(L39:L46,AN8) -> 0 | AP8: =AO8/(AQ4-AO14) -> 0 | AQ8: =IF(AP8=0,0,(AP8*((LOG(AP8))/LOG(2)))) -> 0 | AS8: =N8 -> 112 | AT8: =COUNTIF(L47:L54,AS8) -> 0 | AU8: =AT8/(AV4-AT14) ->  | AV8: =IF(AU8=0,0,(AU8*((LOG(AU8))/LOG(2)))) -> 
A9: 21 | B9: 276 | C9: 12 | D9: 280 | E9: 23 | F9: 281 | K9: 0 | L9: 212 | N9: 121 | O9: =COUNTIF($L$7:$L$500,N9) -> 0 | P9: =O9/$Q$4 -> 0 | Q9: =IF(P9=0,0,(P9*((LOG(P9))/LOG(2)))) -> 0 | T9: =N9 -> 121 | U9: =COUNTIF(L7:L14,T9) -> 0 | V9: =U9/(W4-U14) -> 0 | W9: =IF(V9=0,0,(V9*((LOG(V9))/LOG(2)))) -> 0 | Y9: =N9 -> 121 | Z9: =COUNTIF(L15:L22,Y9) -> 0 | AA9: =Z9/(AB4-Z14) -> 0 | AB9: =IF(AA9=0,0,(AA9*((LOG(AA9))/LOG(2)))) -> 0 | AD9: =N9 -> 121 | AE9: =COUNTIF(L23:L30,AD9) -> 0 | AF9: =AE9/(AG4-AE14) -> 0 | AG9: =IF(AF9=0,0,(AF9*((LOG(AF9))/LOG(2)))) -> 0 | AI9: =N9 -> 121 | AJ9: =COUNTIF(L31:L38,AI9) -> 0 | AK9: =AJ9/(AL4-AJ14) -> 0 | AL9: =IF(AK9=0,0,(AK9*((LOG(AK9))/LOG(2)))) -> 0 | AN9: =N9 -> 121 | AO9: =COUNTIF(L39:L46,AN9) -> 0 | AP9: =AO9/(AQ4-AO14) -> 0 | AQ9: =IF(AP9=0,0,(AP9*((LOG(AP9))/LOG(2)))) -> 0 | AS9: =N9 -> 121 | AT9: =COUNTIF(L47:L54,AS9) -> 0 | AU9: =AT9/(AV4-AT14) ->  | AV9: =IF(AU9=0,0,(AU9*((LOG(AU9))/LOG(2)))) -> 
A10: 21 | B10: 407 | C10: 21 | D10: 418 | E10: 21 | F10: 422 | K10: 0 | L10: 222 | N10: 122 | O10: =COUNTIF($L$7:$L$500,N10) -> 3 | P10: =O10/$Q$4 -> 0.0625 | Q10: =IF(P10=0,0,(P10*((LOG(P10))/LOG(2)))) -> -0.25 | T10: =N10 -> 122 | U10: =COUNTIF(L7:L14,T10) -> 0 | V10: =U10/(W4-U14) -> 0 | W10: =IF(V10=0,0,(V10*((LOG(V10))/LOG(2)))) -> 0 | Y10: =N10 -> 122 | Z10: =COUNTIF(L15:L22,Y10) -> 0 | AA10: =Z10/(AB4-Z14) -> 0 | AB10: =IF(AA10=0,0,(AA10*((LOG(AA10))/LOG(2)))) -> 0 | AD10: =N10 -> 122 | AE10: =COUNTIF(L23:L30,AD10) -> 2 | AF10: =AE10/(AG4-AE14) -> 1 | AG10: =IF(AF10=0,0,(AF10*((LOG(AF10))/LOG(2)))) -> 0 | AI10: =N10 -> 122 | AJ10: =COUNTIF(L31:L38,AI10) -> 1 | AK10: =AJ10/(AL4-AJ14) -> 1 | AL10: =IF(AK10=0,0,(AK10*((LOG(AK10))/LOG(2)))) -> 0 | AN10: =N10 -> 122 | AO10: =COUNTIF(L39:L46,AN10) -> 0 | AP10: =AO10/(AQ4-AO14) -> 0 | AQ10: =IF(AP10=0,0,(AP10*((LOG(AP10))/LOG(2)))) -> 0 | AS10: =N10 -> 122 | AT10: =COUNTIF(L47:L54,AS10) -> 0 | AU10: =AT10/(AV4-AT14) ->  | AV10: =IF(AU10=0,0,(AU10*((LOG(AU10))/LOG(2)))) -> 
A11: 21 | B11: 538 | C11: 21 | D11: 544 | E11: 21 | F11: 550 | K11: 0 | L11: 222 | N11: 211 | O11: =COUNTIF($L$7:$L$500,N11) -> 0 | P11: =O11/$Q$4 -> 0 | Q11: =IF(P11=0,0,(P11*((LOG(P11))/LOG(2)))) -> 0 | T11: =N11 -> 211 | U11: =COUNTIF(L7:L14,T11) -> 0 | V11: =U11/(W4-U14) -> 0 | W11: =IF(V11=0,0,(V11*((LOG(V11))/LOG(2)))) -> 0 | Y11: =N11 -> 211 | Z11: =COUNTIF(L15:L22,Y11) -> 0 | AA11: =Z11/(AB4-Z14) -> 0 | AB11: =IF(AA11=0,0,(AA11*((LOG(AA11))/LOG(2)))) -> 0 | AD11: =N11 -> 211 | AE11: =COUNTIF(L23:L30,AD11) -> 0 | AF11: =AE11/(AG4-AE14) -> 0 | AG11: =IF(AF11=0,0,(AF11*((LOG(AF11))/LOG(2)))) -> 0 | AI11: =N11 -> 211 | AJ11: =COUNTIF(L31:L38,AI11) -> 0 | AK11: =AJ11/(AL4-AJ14) -> 0 | AL11: =IF(AK11=0,0,(AK11*((LOG(AK11))/LOG(2)))) -> 0 | AN11: =N11 -> 211 | AO11: =COUNTIF(L39:L46,AN11) -> 0 | AP11: =AO11/(AQ4-AO14) -> 0 | AQ11: =IF(AP11=0,0,(AP11*((LOG(AP11))/LOG(2)))) -> 0 | AS11: =N11 -> 211 | AT11: =COUNTIF(L47:L54,AS11) -> 0 | AU11: =AT11/(AV4-AT14) ->  | AV11: =IF(AU11=0,0,(AU11*((LOG(AU11))/LOG(2)))) -> 
A12: 21 | B12: 688 | C12: 21 | D12: 698 | E12: 21 | F12: 706 | K12: 0 | L12: 222 | N12: 212 | O12: =COUNTIF($L$7:$L$500,N12) -> 3 | P12: =O12/$Q$4 -> 0.0625 | Q12: =IF(P12=0,0,(P12*((LOG(P12))/LOG(2)))) -> -0.25 | T12: =N12 -> 212 | U12: =COUNTIF(L7:L14,T12) -> 1 | V12: =U12/(W4-U14) -> 0.5 | W12: =IF(V12=0,0,(V12*((LOG(V12))/LOG(2)))) -> -0.5 | Y12: =N12 -> 212 | Z12: =COUNTIF(L15:L22,Y12) -> 1 | AA12: =Z12/(AB4-Z14) -> 0.3333333333 | AB12: =IF(AA12=0,0,(AA12*((LOG(AA12))/LOG(2)))) -> -0.5283208336 | AD12: =N12 -> 212 | AE12: =COUNTIF(L23:L30,AD12) -> 0 | AF12: =AE12/(AG4-AE14) -> 0 | AG12: =IF(AF12=0,0,(AF12*((LOG(AF12))/LOG(2)))) -> 0 | AI12: =N12 -> 212 | AJ12: =COUNTIF(L31:L38,AI12) -> 0 | AK12: =AJ12/(AL4-AJ14) -> 0 | AL12: =IF(AK12=0,0,(AK12*((LOG(AK12))/LOG(2)))) -> 0 | AN12: =N12 -> 212 | AO12: =COUNTIF(L39:L46,AN12) -> 1 | AP12: =AO12/(AQ4-AO14) -> 1 | AQ12: =IF(AP12=0,0,(AP12*((LOG(AP12))/LOG(2)))) -> 0 | AS12: =N12 -> 212 | AT12: =COUNTIF(L47:L54,AS12) -> 0 | AU12: =AT12/(AV4-AT14) ->  | AV12: =IF(AU12=0,0,(AU12*((LOG(AU12))/LOG(2)))) -> 
A13: 21 | B13: 796 | C13: 21 | D13: 805 | E13: 21 | F13: 817 | K13: 0 | L13: 222 | N13: 221 | O13: =COUNTIF($L$7:$L$500,N13) -> 3 | P13: =O13/$Q$4 -> 0.0625 | Q13: =IF(P13=0,0,(P13*((LOG(P13))/LOG(2)))) -> -0.25 | T13: =N13 -> 221 | U13: =COUNTIF(L7:L14,T13) -> 1 | V13: =U13/(W4-U14) -> 0.5 | W13: =IF(V13=0,0,(V13*((LOG(V13))/LOG(2)))) -> -0.5 | Y13: =N13 -> 221 | Z13: =COUNTIF(L15:L22,Y13) -> 2 | AA13: =Z13/(AB4-Z14) -> 0.6666666667 | AB13: =IF(AA13=0,0,(AA13*((LOG(AA13))/LOG(2)))) -> -0.3899750005 | AD13: =N13 -> 221 | AE13: =COUNTIF(L23:L30,AD13) -> 0 | AF13: =AE13/(AG4-AE14) -> 0 | AG13: =IF(AF13=0,0,(AF13*((LOG(AF13))/LOG(2)))) -> 0 | AI13: =N13 -> 221 | AJ13: =COUNTIF(L31:L38,AI13) -> 0 | AK13: =AJ13/(AL4-AJ14) -> 0 | AL13: =IF(AK13=0,0,(AK13*((LOG(AK13))/LOG(2)))) -> 0 | AN13: =N13 -> 221 | AO13: =COUNTIF(L39:L46,AN13) -> 0 | AP13: =AO13/(AQ4-AO14) -> 0 | AQ13: =IF(AP13=0,0,(AP13*((LOG(AP13))/LOG(2)))) -> 0 | AS13: =N13 -> 221 | AT13: =COUNTIF(L47:L54,AS13) -> 0 | AU13: =AT13/(AV4-AT14) ->  | AV13: =IF(AU13=0,0,(AU13*((LOG(AU13))/LOG(2)))) -> 
A14: 21 | B14: 966 | C14: 21 | D14: 973 | E14: 12 | F14: 979 | K14: 0 | L14: 221 | N14: 222 | O14: =COUNTIF($L$7:$L$500,N14) -> 39 | P14: =O14/$Q$4 -> 0.8125 | Q14: =IF(P14=0,0,(P14*((LOG(P14))/LOG(2)))) -> -0.243392729 | T14: =N14 -> 222 | U14: =COUNTIF(L7:L14,T14) -> 6 | Y14: =N14 -> 222 | Z14: =COUNTIF(L15:L22,Y14) -> 5 | AD14: =N14 -> 222 | AE14: =COUNTIF(L23:L30,AD14) -> 6 | AI14: =N14 -> 222 | AJ14: =COUNTIF(L31:L38,AI14) -> 7 | AN14: =N14 -> 222 | AO14: =COUNTIF(L39:L46,AN14) -> 7 | AS14: =N14 -> 222 | AT14: =COUNTIF(L47:L54,AS14) -> 8
A15: 21 | B15: 1076 | C15: 21 | D15: 1079 | E15: 12 | F15: 1081 | K15: 0 | L15: 221 | P15: =SUM(P7:P14) -> 1 | Q15: =-SUM(Q7:Q14) -> 0.993392729 | V15: =SUM(V7:V14) -> 1 | W15: =-SUM(W7:W14) -> 1 | AA15: =SUM(AA7:AA14) -> 1 | AB15: =-SUM(AB7:AB14) -> 0.9182958341 | AF15: =SUM(AF7:AF14) -> 1 | AG15: =-SUM(AG7:AG14) -> 0 | AK15: =SUM(AK7:AK14) -> 1 | AL15: =-SUM(AL7:AL14) -> 0 | AP15: =SUM(AP7:AP14) -> 1 | AQ15: =-SUM(AQ7:AQ14) -> 0 | AU15: =SUM(AU7:AU14) ->  | AV15: =-SUM(AV7:AV14) -> 
A16: 21 | B16: 1177 | C16: 21 | D16: 1183 | E16: 21 | F16: 1186 | K16: 0 | L16: 222 | P16: U= | Q16: =Q15/(LOG(Q4)/LOG(2)) -> 0.1778691851 | V16: U1= | W16: =W15/(LOG(W4)/LOG(2)) -> 0.3333333333 | AA16: U2= | AB16: =AB15/(LOG(AB4)/LOG(2)) -> 0.3060986114 | AF16: U3= | AG16: =AG15/(LOG(AG4)/LOG(2)) -> 0 | AK16: U4= | AL16: =AL15/(LOG(AL4)/LOG(2)) -> 0 | AP16: U5= | AQ16: =AQ15/(LOG(AQ4)/LOG(2)) -> 0 | AU16: U6= | AV16: =AV15/(LOG(AV4)/LOG(2)) -> 
A17: 21 | B17: 1298 | C17: 21 | D17: 1306 | E17: 21 | F17: 1316 | K17: 0 | L17: 222
A18: 21 | B18: 1409 | C18: 21 | D18: 1416 | E18: 21 | F18: 1435 | K18: 0 | L18: 222
A19: 21 | B19: 1543 | C19: 12 | D19: 1547 | E19: 23 | F19: 1553 | K19: 0 | L19: 212 | N19: Total Target Seq
A20: 21 | B20: 1650 | C20: 21 | D20: 1653 | E20: 12 | F20: 1658 | K20: 0 | L20: 221 | N20: =COUNTIF(L7:L54,G3) -> 39 | P20: 8 | Q20: 8 | R20: 8 | S20: 8 | T20: 8 | U20: 8
A21: 21 | B21: 2224 | C21: 21 | D21: 2228 | E21: 21 | F21: 2234 | K21: 0 | L21: 222 | P21: % of reinforcement given in 6 equal intervals based on number of trials
A22: 21 | B22: 2333 | C22: 21 | D22: 2338 | E22: 21 | F22: 2349 | K22: 0 | L22: 222 | P22: %_1 | Q22: %_2 | R22: %_3 | S22: %_4 | T22: %_5 | U22: %_6
A23: 21 | B23: 2486 | C23: 21 | D23: 2493 | E23: 21 | F23: 2499 | K23: 0 | L23: 222 | O23: target sequence | P23: =$G$3 -> 222 | Q23: =$G$3 -> 222 | R23: =$G$3 -> 222 | S23: =$G$3 -> 222 | T23: =$G$3 -> 222 | U23: =$G$3 -> 222
A24: 21 | B24: 2621 | C24: 21 | D24: 2623 | E24: 21 | F24: 2639 | K24: 0 | L24: 222 | O24: total reinforcement | P24: =U14 -> 6 | Q24: =Z14 -> 5 | R24: =AE14 -> 6 | S24: =AJ14 -> 7 | T24: =AO14 -> 7 | U24: =AT14 -> 8
A25: 12 | B25: 2852 | C25: 23 | D25: 2874 | E25: 23 | F25: 2879 | K25: 0 | L25: 122 | O25: % target
A26: 12 | B26: 3010 | C26: 23 | D26: 3012 | E26: 23 | F26: 3031 | K26: 0 | L26: 122 | O26: CCRF
A27: 21 | B27: 3123 | C27: 21 | D27: 3125 | E27: 21 | F27: 3129 | K27: 0 | L27: 222 | O27: % CCRf
A28: 21 | B28: 3229 | C28: 21 | D28: 3234 | E28: 21 | F28: 3239 | K28: 0 | L28: 222 | O28: average response rate | P28: =F14/P20 -> 122.375 | Q28: =(F22-F14)/Q20 -> 171.25 | R28: =(F30-F22)/R20 -> 142.375 | S28: =(F38-F30)/S20 -> 130 | T28: =(F46-F38)/T20 -> 132.875 | U28: =(F54-F46)/U20 -> 152.125
A29: 21 | B29: 3337 | C29: 21 | D29: 3347 | E29: 21 | F29: 3356 | K29: 0 | L29: 222
A30: 21 | B30: 3458 | C30: 21 | D30: 3471 | E30: 21 | F30: 3488 | K30: 0 | L30: 222
A31: 21 | B31: 3588 | C31: 21 | D31: 3598 | E31: 21 | F31: 3606 | K31: 0 | L31: 222
A32: 21 | B32: 3753 | C32: 21 | D32: 3758 | E32: 21 | F32: 3767 | K32: 0 | L32: 222
A33: 21 | B33: 3858 | C33: 21 | D33: 3871 | E33: 21 | F33: 3880 | K33: 0 | L33: 222
A34: 12 | B34: 4011 | C34: 23 | D34: 4040 | E34: 23 | F34: 4052 | K34: 0 | L34: 122
A35: 21 | B35: 4153 | C35: 21 | D35: 4159 | E35: 21 | F35: 4165 | K35: 0 | L35: 222
A36: 21 | B36: 4255 | C36: 21 | D36: 4265 | E36: 21 | F36: 4272 | K36: 0 | L36: 222
A37: 21 | B37: 4410 | C37: 21 | D37: 4417 | E37: 21 | F37: 4427 | K37: 0 | L37: 222
A38: 21 | B38: 4519 | C38: 21 | D38: 4522 | E38: 21 | F38: 4528 | K38: 0 | L38: 222
A39: 21 | B39: 4661 | C39: 21 | D39: 4673 | E39: 21 | F39: 4686 | K39: 0 | L39: 222
A40: 21 | B40: 4780 | C40: 21 | D40: 4786 | E40: 21 | F40: 4807 | K40: 0 | L40: 222
A41: 21 | B41: 4925 | C41: 21 | D41: 4931 | E41: 21 | F41: 4937 | K41: 0 | L41: 222
A42: 21 | B42: 5059 | C42: 21 | D42: 5095 | E42: 21 | F42: 5104 | K42: 0 | L42: 222
A43: 21 | B43: 5199 | C43: 21 | D43: 5205 | E43: 21 | F43: 5214 | K43: 0 | L43: 222
A44: 21 | B44: 5315 | C44: 21 | D44: 5328 | E44: 21 | F44: 5335 | K44: 0 | L44: 222
A45: 21 | B45: 5422 | C45: 21 | D45: 5429 | E45: 21 | F45: 5436 | K45: 0 | L45: 222
A46: 21 | B46: 5570 | C46: 12 | D46: 5574 | E46: 23 | F46: 5591 | K46: 0 | L46: 212
A47: 21 | B47: 5688 | C47: 21 | D47: 5695 | E47: 21 | F47: 5700 | K47: 0 | L47: 222
A48: 21 | B48: 5854 | C48: 21 | D48: 5874 | E48: 21 | F48: 5880 | K48: 0 | L48: 222
A49: 21 | B49: 6009 | C49: 21 | D49: 6018 | E49: 21 | F49: 6031 | K49: 0 | L49: 222
A50: 21 | B50: 6169 | C50: 21 | D50: 6176 | E50: 21 | F50: 6181 | K50: 0 | L50: 222
A51: 21 | B51: 6300 | C51: 21 | D51: 6330 | E51: 21 | F51: 6367 | K51: 0 | L51: 222
A52: 21 | B52: 6468 | C52: 21 | D52: 6504 | E52: 21 | F52: 6517 | K52: 0 | L52: 222
A53: 21 | B53: 6650 | C53: 21 | D53: 6664 | E53: 21 | F53: 6670 | K53: 0 | L53: 222
A54: 21 | B54: 6796 | C54: 21 | D54: 6801 | E54: 21 | F54: 6808 | K54: 1 | L54: 222

Sheet !M907A50.Gus
A1: Report for:!M907A50.Gus
A2: Date: | B2: <date>
A3: Hen: | B3: <hen> | F3: Correct Sequence | G3: =Start!J2 -> 222 | P3: Total Sequences in Data | Q3: =4994-COUNTBLANK(L7:L5000) -> 55 | V3: Total Sequences in Block Data | W3: =COUNTA(L7:L15) -> 9 | AA3: Total Sequences in Block Data | AB3: =COUNTA(L16:L24) -> 9 | AF3: Total Sequences in Block Data | AG3: =COUNTA(L25:L34) -> 10 | AK3: Total Sequences in Block Data | AL3: =COUNTA(L35:L43) -> 9 | AP3: Total Sequences in Block Data | AQ3: =COUNTA(L44:L52) -> 9 | AU3: Total Sequences in Block Data | AV3: =COUNTA(L53:L61) -> 9
P4: Total Sequences in Summary | Q4: =SUM(O7:O14) -> 55 | V4: Total Sequences in Block Summary | W4: =SUM(U7:U14) -> 9 | AA4: Total Sequences in Block Summary | AB4: =SUM(Z7:Z14) -> 9 | AF4: Total Sequences in Block Summary | AG4: =SUM(AE7:AE14) -> 10 | AK4: Total Sequences in Block Summary | AL4: =SUM(AJ7:AJ14) -> 9 | AP4: Total Sequences in Block Summary | AQ4: =SUM(AO7:AO14) -> 9 | AU4: Total Sequences in Block Summary | AV4: =SUM(AT7:AT14) -> 9
T5: Block 1 | Y5: Block 2 | AD5: Block 3 | AI5: Block 4 | AN5: Block 5 | AS5: Block 6
A6: Sequence Component 1 | B6: Time 1 | C6: Sequence Component 2 | D6: Time 2 | E6: Sequence Component 3 | F6: Time 3 | G6: Sequence Component 4 | H6: Time 4 | I6: Sequence Component 5 | J6: Time 5 | K6: Correct? 0=No 1=Yes | L6: Sequence | N6: Frequency | P6: Relative Frequency | Q6: Variability | T6: Frequency | V6: Relative Frequency | W6: Variability | Y6: Frequency | AA6: Relative Frequency | AB6: Variability | AD6: Frequency | AF6: Relative Frequency | AG6: Variability | AI6: Frequency | AK6: Relative Frequency | AL6: Variability | AN6: Frequency | AP6: Relative Frequency | AQ6: Variability | AS6: Frequency | AU6: Relative Frequency | AV6: Variability
A7: 12 | B7: 19 | C7: 23 | D7: 26 | E7: 23 | F7: 40 | K7: 0 | L7: 122 | N7: 111 | O7: =COUNTIF($L$7:$L$500,N7) -> 0 | P7: =O7/$Q$4 -> 0 | Q7: =IF(P7=0,0,(P7*((LOG(P7))/LOG(2)))) -> 0 | T7: =N7 -> 111 | U7: =COUNTIF(L7:L15,T7) -> 0 | V7: =U7/(W4-U14) -> 0 | W7: =IF(V7=0,0,(V7*((LOG(V7))/LOG(2)))) -> 0 | Y7: =N7 -> 111 | Z7: =COUNTIF(L16:L24,Y7) -> 0 | AA7: =Z7/(AB4-Z14) -> 0 | AB7: =IF(AA7=0,0,(AA7*((LOG(AA7))/LOG(2)))) -> 0 | AD7: =N7 -> 111 | AE7: =COUNTIF(L25:L34,AD7) -> 0 | AF7: =AE7/(AG4-AE14) -> 0 | AG7: =IF(AF7=0,0,(AF7*((LOG(AF7))/LOG(2)))) -> 0 | AI7: =N7 -> 111 | AJ7: =COUNTIF(L35:L43,AI7) -> 0 | AK7: =AJ7/(AL4-AJ14) -> 0 | AL7: =IF(AK7=0,0,(AK7*((LOG(AK7))/LOG(2)))) -> 0 | AN7: =N7 -> 111 | AO7: =COUNTIF(L44:L52,AN7) -> 0 | AP7: =AO7/(AQ4-AO14) -> 0 | AQ7: =IF(AP7=0,0,(AP7*((LOG(AP7))/LOG(2)))) -> 0 | AS7: =N7 -> 111 | AT7: =COUNTIF(L53:L61,AS7) -> 0 | AU7: =AT7/(AV4-AT14) ->  | AV7: =IF(AU7=0,0,(AU7*((LOG(AU7))/LOG(2)))) -> 
A8: 21 | B8: 153 | C8: 12 | D8: 158 | E8: 23 | F8: 163 | K8: 0 | L8: 212 | N8: 112 | O8: =COUNTIF($L$7:$L$500,N8) -> 1 | P8: =O8/$Q$4 -> 0.01818181818 | Q8: =IF(P8=0,0,(P8*((LOG(P8))/LOG(2)))) -> -0.1051156312 | T8: =N8 -> 112 | U8: =COUNTIF(L7:L15,T8) -> 0 | V8: =U8/(W4-U14) -> 0 | W8: =IF(V8=0,0,(V8*((LOG(V8))/LOG(2)))) -> 0 | Y8: =N8 -> 112 | Z8: =COUNTIF(L16:L24,Y8) -> 0 | AA8: =Z8/(AB4-Z14) -> 0 | AB8: =IF(AA8=0,0,(AA8*((LOG(AA8))/LOG(2)))) -> 0 | AD8: =N8 -> 112 | AE8: =COUNTIF(L25:L34,AD8) -> 0 | AF8: =AE8/(AG4-AE14) -> 0 | AG8: =IF(AF8=0,0,(AF8*((LOG(AF8))/LOG(2)))) -> 0 | AI8: =N8 -> 112 | AJ8: =COUNTIF(L35:L43,AI8) -> 1 | AK8: =AJ8/(AL4-AJ14) -> 0.3333333333 | AL8: =IF(AK8=0,0,(AK8*((LOG(AK8))/LOG(2)))) -> -0.5283208336 | AN8: =N8 -> 112 | AO8: =COUNTIF(L44:L52,AN8) -> 0 | AP8: =AO8/(AQ4-AO14) -> 0 | AQ8: =IF(AP8=0,0,(AP8*((LOG(AP8))/LOG(2)))) -> 0 | AS8: =N8 -> 112 | AT8: =COUNTIF(L53:L61,AS8) -> 0 | AU8: =AT8/(AV4-AT14) ->  | AV8: =IF(AU8=0,0,(AU8*((LOG(AU8))/LOG(2)))) -> 
A9: 21 | B9: 268 | C9: 21 | D9: 276 | E9: 21 | F9: 294 | K9: 0 | L9: 222 | N9: 121 | O9: =COUNTIF($L$7:$L$500,N9) -> 0 | P9: =O9/$Q$4 -> 0 | Q9: =IF(P9=0,0,(P9*((LOG(P9))/LOG(2)))) -> 0 | T9: =N9 -> 121 | U9: =COUNTIF(L7:L15,T9) -> 0 | V9: =U9/(W4-U14) -> 0 | W9: =IF(V9=0,0,(V9*((LOG(V9))/LOG(2)))) -> 0 | Y9: =N9 -> 121 | Z9: =COUNTIF(L16:L24,Y9) -> 0 | AA9: =Z9/(AB4-Z14) -> 0 | AB9: =IF(AA9=0,0,(AA9*((LOG(AA9))/LOG(2)))) -> 0 | AD9: =N9 -> 121 | AE9: =COUNTIF(L25:L34,AD9) -> 0 | AF9: =AE9/(AG4-AE14) -> 0 | AG9: =IF(AF9=0,0,(AF9*((LOG(AF9))/LOG(2)))) -> 0 | AI9: =N9 -> 121 | AJ9: =COUNTIF(L35:L43,AI9) -> 0 | AK9: =AJ9/(AL4-AJ14) -> 0 | AL9: =IF(AK9=0,0,(AK9*((LOG(AK9))/LOG(2)))) -> 0 | AN9: =N9 -> 121 | AO9: =COUNTIF(L44:L52,AN9) -> 0 | AP9: =AO9/(AQ4-AO14) -> 0 | AQ9: =IF(AP9=0,0,(AP9*((LOG(AP9))/LOG(2)))) -> 0 | AS9: =N9 -> 121 | AT9: =COUNTIF(L53:L61,AS9) -> 0 | AU9: =AT9/(AV4-AT14) ->  | AV9: =IF(AU9=0,0,(AU9*((LOG(AU9))/LOG(2)))) -> 
A10: 21 | B10: 386 | C10: 21 | D10: 393 | E10: 21 | F10: 399 | K10: 0 | L10: 222 | N10: 122 | O10: =COUNTIF($L$7:$L$500,N10) -> 3 | P10: =O10/$Q$4 -> 0.05454545455 | Q10: =IF(P10=0,0,(P10*((LOG(P10))/LOG(2)))) -> -0.2288943934 | T10: =N10 -> 122 | U10: =COUNTIF(L7:L15,T10) -> 1 | V10: =U10/(W4-U14) -> 0.1666666667 | W10: =IF(V10=0,0,(V10*((LOG(V10))/LOG(2)))) -> -0.4308270835 | Y10: =N10 -> 122 | Z10: =COUNTIF(L16:L24,Y10) -> 0 | AA10: =Z10/(AB4-Z14) -> 0 | AB10: =IF(AA10=0,0,(AA10*((LOG(AA10))/LOG(2)))) -> 0 | AD10: =N10 -> 122 | AE10: =COUNTIF(L25:L34,AD10) -> 0 | AF10: =AE10/(AG4-AE14) -> 0 | AG10: =IF(AF10=0,0,(AF10*((LOG(AF10))/LOG(2)))) -> 0 | AI10: =N10 -> 122 | AJ10: =COUNTIF(L35:L43,AI10) -> 2 | AK10: =AJ10/(AL4-AJ14) -> 0.6666666667 | AL10: =IF(AK10=0,0,(AK10*((LOG(AK10))/LOG(2)))) -> -0.3899750005 | AN10: =N10 -> 122 | AO10: =COUNTIF(L44:L52,AN10) -> 0 | AP10: =AO10/(AQ4-AO14) -> 0 | AQ10: =IF(AP10=0,0,(AP10*((LOG(AP10))/LOG(2)))) -> 0 | AS10: =N10 -> 122 | AT10: =COUNTIF(L53:L61,AS10) -> 0 | AU10: =AT10/(AV4-AT14) ->  | AV10: =IF(AU10=0,0,(AU10*((LOG(AU10))/LOG(2)))) -> 
A11: 21 | B11: 582 | C11: 21 | D11: 600 | E11: 12 | F11: 614 | K11: 0 | L11: 221 | N11: 211 | O11: =COUNTIF($L$7:$L$500,N11) -> 0 | P11: =O11/$Q$4 -> 0 | Q11: =IF(P11=0,0,(P11*((LOG(P11))/LOG(2)))) -> 0 | T11: =N11 -> 211 | U11: =COUNTIF(L7:L15,T11) -> 0 | V11: =U11/(W4-U14) -> 0 | W11: =IF(V11=0,0,(V11*((LOG(V11))/LOG(2)))) -> 0 | Y11: =N11 -> 211 | Z11: =COUNTIF(L16:L24,Y11) -> 0 | AA11: =Z11/(AB4-Z14) -> 0 | AB11: =IF(AA11=0,0,(AA11*((LOG(AA11))/LOG(2)))) -> 0 | AD11: =N11 -> 211 | AE11: =COUNTIF(L25:L34,AD11) -> 0 | AF11: =AE11/(AG4-AE14) -> 0 | AG11: =IF(AF11=0,0,(AF11*((LOG(AF11))/LOG(2)))) -> 0 | AI11: =N11 -> 211 | AJ11: =COUNTIF(L35:L43,AI11) -> 0 | AK11: =AJ11/(AL4-AJ14) -> 0 | AL11: =IF(AK11=0,0,(AK11*((LOG(AK11))/LOG(2)))) -> 0 | AN11: =N11 -> 211 | AO11: =COUNTIF(L44:L52,AN11) -> 0 | AP11: =AO11/(AQ4-AO14) -> 0 | AQ11: =IF(AP11=0,0,(AP11*((LOG(AP11))/LOG(2)))) -> 0 | AS11: =N11 -> 211 | AT11: =COUNTIF(L53:L61,AS11) -> 0 | AU11: =AT11/(AV4-AT14) ->  | AV11: =IF(AU11=0,0,(AU11*((LOG(AU11))/LOG(2)))) -> 
A12: 21 | B12: 711 | C12: 12 | D12: 718 | E12: 23 | F12: 727 | K12: 0 | L12: 212 | N12: 212 | O12: =COUNTIF($L$7:$L$500,N12) -> 6 | P12: =O12/$Q$4 -> 0.1090909091 | Q12: =IF(P12=0,0,(P12*((LOG(P12))/LOG(2)))) -> -0.3486978778 | T12: =N12 -> 212 | U12: =COUNTIF(L7:L15,T12) -> 3 | V12: =U12/(W4-U14) -> 0.5 | W12: =IF(V12=0,0,(V12*((LOG(V12))/LOG(2)))) -> -0.5 | Y12: =N12 -> 212 | Z12: =COUNTIF(L16:L24,Y12) -> 0 | AA12: =Z12/(AB4-Z14) -> 0 | AB12: =IF(AA12=0,0,(AA12*((LOG(AA12))/LOG(2)))) -> 0 | AD12: =N12 -> 212 | AE12: =COUNTIF(L25:L34,AD12) -> 2 | AF12: =AE12/(AG4-AE14) -> 0.5 | AG12: =IF(AF12=0,0,(AF12*((LOG(AF12))/LOG(2)))) -> -0.5 | AI12: =N12 -> 212 | AJ12: =COUNTIF(L35:L43,AI12) -> 0 | AK12: =AJ12/(AL4-AJ14) -> 0 | AL12: =IF(AK12=0,0,(AK12*((LOG(AK12))/LOG(2)))) -> 0 | AN12: =N12 -> 212 | AO12: =COUNTIF(L44:L52,AN12) -> 1 | AP12: =AO12/(AQ4-AO14) -> 0.5 | AQ12: =IF(AP12=0,0,(AP12*((LOG(AP12))/LOG(2)))) -> -0.5 | AS12: =N12 -> 212 | AT12: =COUNTIF(L53:L61,AS12) -> 0 | AU12: =AT12/(AV4-AT14) ->  | AV12: =IF(AU12=0,0,(AU12*((LOG(AU12))/LOG(2)))) -> 
A13: 21 | B13: 819 | C13: 21 | D13: 825 | E13: 21 | F13: 830 | K13: 0 | L13: 222 | N13: 221 | O13: =COUNTIF($L$7:$L$500,N13) -> 7 | P13: =O13/$Q$4 -> 0.1272727273 | Q13: =IF(P13=0,0,(P13*((LOG(P13))/LOG(2)))) -> -0.3785097007 | T13: =N13 -> 221 | U13: =COUNTIF(L7:L15,T13) -> 2 | V13: =U13/(W4-U14) -> 0.3333333333 | W13: =IF(V13=0,0,(V13*((LOG(V13))/LOG(2)))) -> -0.5283208336 | Y13: =N13 -> 221 | Z13: =COUNTIF(L16:L24,Y13) -> 2 | AA13: =Z13/(AB4-Z14) -> 1 | AB13: =IF(AA13=0,0,(AA13*((LOG(AA13))/LOG(2)))) -> 0 | AD13: =N13 -> 221 | AE13: =COUNTIF(L25:L34,AD13) -> 2 | AF13: =AE13/(AG4-AE14) -> 0.5 | AG13: =IF(AF13=0,0,(AF13*((LOG(AF13))/LOG(2)))) -> -0.5 | AI13: =N13 -> 221 | AJ13: =COUNTIF(L35:L43,AI13) -> 0 | AK13: =AJ13/(AL4-AJ14) -> 0 | AL13: =IF(AK13=0,0,(AK13*((LOG(AK13))/LOG(2)))) -> 0 | AN13: =N13 -> 221 | AO13: =COUNTIF(L44:L52,AN13) -> 1 | AP13: =AO13/(AQ4-AO14) -> 0.5 | AQ13: =IF(AP13=0,0,(AP13*((LOG(AP13))/LOG(2)))) -> -0.5 | AS13: =N13 -> 221 | AT13: =COUNTIF(L53:L61,AS13) -> 0 | AU13: =AT13/(AV4-AT14) ->  | AV13: =IF(AU13=0,0,(AU13*((LOG(AU13))/LOG(2)))) -> 
A14: 21 | B14: 938 | C14: 12 | D14: 942 | E14: 23 | F14: 949 | K14: 0 | L14: 212 | N14: 222 | O14: =COUNTIF($L$7:$L$500,N14) -> 38 | P14: =O14/$Q$4 -> 0.6909090909 | Q14: =IF(P14=0,0,(P14*((LOG(P14))/LOG(2)))) -> -0.3685531564 | T14: =N14 -> 222 | U14: =COUNTIF(L7:L15,T14) -> 3 | Y14: =N14 -> 222 | Z14: =COUNTIF(L16:L24,Y14) -> 7 | AD14: =N14 -> 222 | AE14: =COUNTIF(L25:L34,AD14) -> 6 | AI14: =N14 -> 222 | AJ14: =COUNTIF(L35:L43,AI14) -> 6 | AN14: =N14 -> 222 | AO14: =COUNTIF(L44:L52,AN14) -> 7 | AS14: =N14 -> 222 | AT14: =COUNTIF(L53:L61,AS14) -> 9
A15: 21 | B15: 1046 | C15: 21 | D15: 1052 | E15: 12 | F15: 1057 | K15: 0 | L15: 221 | P15: =SUM(P7:P14) -> 1 | Q15: =-SUM(Q7:Q14) -> 1.429770759 | V15: =SUM(V7:V14) -> 1 | W15: =-SUM(W7:W14) -> 1.459147917 | AA15: =SUM(AA7:AA14) -> 1 | AB15: =-SUM(AB7:AB14) -> 0 | AF15: =SUM(AF7:AF14) -> 1 | AG15: =-SUM(AG7:AG14) -> 1 | AK15: =SUM(AK7:AK14) -> 1 | AL15: =-SUM(AL7:AL14) -> 0.9182958341 | AP15: =SUM(AP7:AP14) -> 1 | AQ15: =-SUM(AQ7:AQ14) -> 1 | AU15: =SUM(AU7:AU14) ->  | AV15: =-SUM(AV7:AV14) -> 
A16: 21 | B16: 1155 | C16: 21 | D16: 1157 | E16: 21 | F16: 1164 | K16: 0 | L16: 222 | P16: U= | Q16: =Q15/(LOG(Q4)/LOG(2)) -> 0.2473070057 | V16: U1= | W16: =W15/(LOG(W4)/LOG(2)) -> 0.4603099179 | AA16: U2= | AB16: =AB15/(LOG(AB4)/LOG(2)) -> 0 | AF16: U3= | AG16: =AG15/(LOG(AG4)/LOG(2)) -> 0.3010299957 | AK16: U4= | AL16: =AL15/(LOG(AL4)/LOG(2)) -> 0.2896900821 | AP16: U5= | AQ16: =AQ15/(LOG(AQ4)/LOG(2)) -> 0.3154648768 | AU16: U6= | AV16: =AV15/(LOG(AV4)/LOG(2)) -> 
A17: 21 | B17: 1262 | C17: 21 | D17: 1267 | E17: 21 | F17: 1278 | K17: 0 | L17: 222
A18: 21 | B18: 1374 | C18: 21 | D18: 1382 | E18: 21 | F18: 1400 | K18: 0 | L18: 222
A19: 21 | B19: 1526 | C19: 21 | D19: 1532 | E19: 21 | F19: 1575 | K19: 0 | L19: 222 | N19: Total Target Seq
A20: 21 | B20: 1683 | C20: 21 | D20: 1717 | E20: 21 | F20: 1754 | K20: 0 | L20: 222 | N20: =COUNTIF(L7:L61,G3) -> 38 | P20: 9 | Q20: 9 | R20: 10 | S20: 9 | T20: 9 | U20: 9
A21: 21 | B21: 1880 | C21: 21 | D21: 1890 | E21: 12 | F21: 1906 | K21: 0 | L21: 221 | P21: % of reinforcement given in 6 equal intervals based on number of trials
A22: 21 | B22: 2004 | C22: 21 | D22: 2006 | E22: 12 | F22: 2012 | K22: 0 | L22: 221 | P22: %_1 | Q22: %_2 | R22: %_3 | S22: %_4 | T22: %_5 | U22: %_6
A23: 21 | B23: 2108 | C23: 21 | D23: 2112 | E23: 21 | F23: 2116 | K23: 0 | L23: 222 | O23: target sequence | P23: =$G$3 -> 222 | Q23: =$G$3 -> 222 | R23: =$G$3 -> 222 | S23: =$G$3 -> 222 | T23: =$G$3 -> 222 | U23: =$G$3 -> 222
A24: 21 | B24: 2210 | C24: 21 | D24: 2221 | E24: 21 | F24: 2231 | K24: 0 | L24: 222 | O24: total reinforcement | P24: =U14 -> 3 | Q24: =Z14 -> 7 | R24: =AE14 -> 6 | S24: =AJ14 -> 6 | T24: =AO14 -> 7 | U24: =AT14 -> 9
A25: 21 | B25: 2389 | C25: 21 | D25: 2399 | E25: 21 | F25: 2419 | K25: 0 | L25: 222 | O25: % target
A26: 21 | B26: 2522 | C26: 21 | D26: 2532 | E26: 12 | F26: 2535 | K26: 0 | L26: 221 | O26: CCRF
A27: 21 | B27: 2637 | C27: 21 | D27: 2643 | E27: 12 | F27: 2649 | K27: 0 | L27: 221 | O27: % CCRf
A28: 21 | B28: 2762 | C28: 12 | D28: 2769 | E28: 23 | F28: 2774 | K28: 0 | L28: 212 | O28: average response rate | P28: =F15/P20 -> 117.4444444 | Q28: =(F24-F15)/Q20 -> 130.4444444 | R28: =(F34-F24)/R20 -> 138.3 | S28: =(F43-F34)/S20 -> 138.5555556 | T28: =(F52-F43)/T20 -> 142.7777778 | U28: =(F61-F52)/U20 -> 211.7777778
A29: 21 | B29: 2868 | C29: 12 | D29: 2876 | E29: 23 | F29: 2885 | K29: 0 | L29: 212
A30: 21 | B30: 2988 | C30: 21 | D30: 2993 | E30: 21 | F30: 2997 | K30: 0 | L30: 222
A31: 21 | B31: 3110 | C31: 21 | D31: 3116 | E31: 21 | F31: 3120 | K31: 0 | L31: 222
A32: 21 | B32: 3226 | C32: 21 | D32: 3239 | E32: 21 | F32: 3262 | K32: 0 | L32: 222
A33: 21 | B33: 3403 | C33: 21 | D33: 3423 | E33: 21 | F33: 3432 | K33: 0 | L33: 222
A34: 21 | B34: 3567 | C34: 21 | D34: 3575 | E34: 21 | F34: 3614 | K34: 0 | L34: 222
A35: 12 | B35: 3702 | C35: 23 | D35: 3706 | E35: 23 | F35: 3715 | K35: 0 | L35: 122
A36: 12 | B36: 3872 | C36: 23 | D36: 3882 | E36: 23 | F36: 3886 | K36: 0 | L36: 122
A37: 12 | B37: 3984 | C37: 14 | D37: 3989 | E37: 23 | F37: 3999 | K37: 0 | L37: 112
A38: 21 | B38: 4093 | C38: 21 | D38: 4097 | E38: 21 | F38: 4103 | K38: 0 | L38: 222
A39: 21 | B39: 4218 | C39: 21 | D39: 4235 | E39: 21 | F39: 4248 | K39: 0 | L39: 222
A40: 21 | B40: 4361 | C40: 21 | D40: 4373 | E40: 21 | F40: 4410 | K40: 0 | L40: 222
A41: 21 | B41: 4497 | C41: 21 | D41: 4502 | E41: 21 | F41: 4506 | K41: 0 | L41: 222
A42: 21 | B42: 4635 | C42: 21 | D42: 4644 | E42: 21 | F42: 4699 | K42: 0 | L42: 222
A43: 21 | B43: 4805 | C43: 21 | D43: 4812 | E43: 21 | F43: 4861 | K43: 0 | L43: 222
A44: 21 | B44: 4954 | C44: 12 | D44: 4958 | E44: 23 | F44: 4970 | K44: 0 | L44: 212
A45: 21 | B45: 5070 | C45: 21 | D45: 5076 | E45: 12 | F45: 5080 | K45: 0 | L45: 221
A46: 21 | B46: 5175 | C46: 21 | D46: 5177 | E46: 21 | F46: 5180 | K46: 0 | L46: 222
A47: 21 | B47: 5276 | C47: 21 | D47: 5281 | E47: 21 | F47: 5285 | K47: 0 | L47: 222
A48: 21 | B48: 5394 | C48: 21 | D48: 5404 | E48: 21 | F48: 5411 | K48: 0 | L48: 222
A49: 21 | B49: 5543 | C49: 21 | D49: 5552 | E49: 21 | F49: 5560 | K49: 0 | L49: 222
A50: 21 | B50: 5753 | C50: 21 | D50: 5766 | E50: 21 | F50: 5814 | K50: 0 | L50: 222
A51: 21 | B51: 5932 | C51: 21 | D51: 5940 | E51: 21 | F51: 5976 | K51: 0 | L51: 222
A52: 21 | B52: 6089 | C52: 21 | D52: 6096 | E52: 21 | F52: 6146 | K52: 0 | L52: 222
A53: 21 | B53: 6246 | C53: 21 | D53: 6272 | E53: 21 | F53: 6288 | K53: 0 | L53: 222
A54: 21 | B54: 6437 | C54: 21 | D54: 6476 | E54: 21 | F54: 6507 | K54: 0 | L54: 222
A55: 21 | B55: 6620 | C55: 21 | D55: 6697 | E55: 21 | F55: 6726 | K55: 0 | L55: 222
A56: 21 | B56: 6849 | C56: 21 | D56: 6857 | E56: 21 | F56: 6904 | K56: 0 | L56: 222
A57: 21 | B57: 7027 | C57: 21 | D57: 7068 | E57: 21 | F57: 7091 | K57: 0 | L57: 222
A58: 21 | B58: 7260 | C58: 21 | D58: 7273 | E58: 21 | F58: 7300 | K58: 0 | L58: 222
A59: 21 | B59: 7707 | C59: 21 | D59: 7741 | E59: 21 | F59: 7759 | K59: 0 | L59: 222
A60: 21 | B60: 7864 | C60: 21 | D60: 7899 | E60: 21 | F60: 7923 | K60: 0 | L60: 222
A61: 21 | B61: 8020 | C61: 21 | D61: 8028 | E61: 21 | F61: 8052 | K61: 1 | L61: 222

Sheet !M908A50.Gus
A1: Report for:!M908A50.Gus
A2: Date: | B2: <date>
A3: Hen: | B3: <hen> | F3: Correct Sequence | G3: =Start!J2 -> 222 | P3: Total Sequences in Data | Q3: =4994-COUNTBLANK(L7:L5000) -> 60 | V3: Total Sequences in Block Data | W3: =COUNTA(L7:L16) -> 10 | AA3: Total Sequences in Block Data | AB3: =COUNTA(L17:L26) -> 10 | AF3: Total Sequences in Block Data | AG3: =COUNTA(L27:L36) -> 10 | AK3: Total Sequences in Block Data | AL3: =COUNTA(L37:L46) -> 10 | AP3: Total Sequences in Block Data | AQ3: =COUNTA(L47:L56) -> 10 | AU3: Total Sequences in Block Data | AV3: =COUNTA(L57:L66) -> 10
P4: Total Sequences in Summary | Q4: =SUM(O7:O14) -> 60 | V4: Total Sequences in Block Summary | W4: =SUM(U7:U14) -> 10 | AA4: Total Sequences in Block Summary | AB4: =SUM(Z7:Z14) -> 10 | AF4: Total Sequences in Block Summary | AG4: =SUM(AE7:AE14) -> 10 | AK4: Total Sequences in Block Summary | AL4: =SUM(AJ7:AJ14) -> 10 | AP4: Total Sequences in Block Summary | AQ4: =SUM(AO7:AO14) -> 10 | AU4: Total Sequences in Block Summary | AV4: =SUM(AT7:AT14) -> 10
T5: Block 1 | Y5: Block 2 | AD5: Block 3 | AI5: Block 4 | AN5: Block 5 | AS5: Block 6
